Workbook

Sheet Summary
B2: New Customer Contributions (NCC) - Summary of charges
B4: NCC (per lot) | C4: 2017-18 | D4: 2018-19 | E4: 2019-20 | F4: 2020-21 | G4: 2021-22 | H4: 2022-23 | I4: ='WATER&RW_st'!J10 -> 2023-24 | J4: ='WATER&RW_st'!K10 -> 2024-25 | K4: ='WATER&RW_st'!L10 -> 2025-26 | L4: ='WATER&RW_st'!M10 -> 2026-27 | M4: ='WATER&RW_st'!N10 -> 2027-28
B5: Charge | C5: 2820.07 | D5: na | E5: na | F5: na | G5: na | H5: na | I5: na | J5: na | K5: na | L5: na | M5: na
B6: Charge - Water (incl. Recycled Water) - greenfield | C6: na | D6: 3042.22 | E6: 3042.22 | F6: 3042.22 | G6: 3042.22 | H6: 3042.22 | I6: ='Projected NCC revenue'!$Q$5 -> 3680.00611 | J6: ='Projected NCC revenue'!$Q$5 -> 3680.00611 | K6: ='Projected NCC revenue'!$Q$5 -> 3680.00611 | L6: ='Projected NCC revenue'!$Q$5 -> 3680.00611 | M6: ='Projected NCC revenue'!$Q$5 -> 3680.00611
B7: Charge - Water (incl. Recycled Water) - infill | C7: na | D7: 613.55 | E7: 613.55 | F7: 613.55 | G7: 613.55 | H7: 613.55 | I7: ='Projected NCC revenue'!$Q$9 -> 736.0012219 | J7: ='Projected NCC revenue'!$Q$9 -> 736.0012219 | K7: ='Projected NCC revenue'!$Q$9 -> 736.0012219 | L7: ='Projected NCC revenue'!$Q$9 -> 736.0012219 | M7: ='Projected NCC revenue'!$Q$9 -> 736.0012219
B8: Fyansford - Water | C8: na | D8: 2177.84 | E8: 2177.84 | F8: 2177.84 | G8: 2177.84 | H8: 2177.84 | I8: 2396.38 | J8: 2396.38 | K8: 2396.38 | L8: 2396.38 | M8: 2396.38
B9: Fyansford - Sewer | C9: na | D9: 914.71 | E9: 914.71 | F9: 914.71 | G9: 914.71 | H9: 914.71 | I9: 1006.5 | J9: 1006.5 | K9: 1006.5 | L9: 1006.5 | M9: 1006.5
B10: Charge - Sewer - greenfield | C10: na | D10: na | E10: na | F10: na | G10: na | H10: na | I10: =IF('Projected NCC revenue'!$Q$13="",0,'Projected NCC revenue'!$Q$13) -> 539.1735646 | J10: =IF('Projected NCC revenue'!$Q$13="",0,'Projected NCC revenue'!$Q$13) -> 539.1735646 | K10: =IF('Projected NCC revenue'!$Q$13="",0,'Projected NCC revenue'!$Q$13) -> 539.1735646 | L10: =IF('Projected NCC revenue'!$Q$13="",0,'Projected NCC revenue'!$Q$13) -> 539.1735646 | M10: =IF('Projected NCC revenue'!$Q$13="",0,'Projected NCC revenue'!$Q$13) -> 539.1735646
B11: Charge - Sewer - infill | C11: na | I11: ='Projected NCC revenue'!$Q$17 -> 107.8347129 | J11: ='Projected NCC revenue'!$Q$17 -> 107.8347129 | K11: ='Projected NCC revenue'!$Q$17 -> 107.8347129 | L11: ='Projected NCC revenue'!$Q$17 -> 107.8347129 | M11: ='Projected NCC revenue'!$Q$17 -> 107.8347129
B38: NCC (per lot) 2022-23 $ | C38: 2013-18 | D38: 2018-23 | E38: 2023-28 | G38: engaged tariffs | H38: var
B39: Charge | C39: =C5*cpi!K6 -> 3162.051339 | D39: - | E39: - | G39: -
B40: Charge - Water (incl. Recycled Water) - greenfield | C40: - | D40: 3347.5 | E40: =I6 -> 3680.00611 | G40: 3871.592138 | H40: =E40-G40 -> -191.5860289
B41: Charge - Sewer - greenfield | C41: - | D41: - | E41: =I10 -> 539.1735646 | G41: 347.3164656 | H41: 191.857099
B42: subtotal | C42: - | D42: =SUM(D40:D41) -> 3347.5 | E42: =SUM(E40:E41) -> 4219.179674 | G42: 4218.908604 | H42: 0.2710701383
B43: Charge - Water (incl. Recycled Water) - infill | C43: - | D43: 675.11 | E43: =I7 -> 736.0012219 | G43: 774.3184277 | H43: -38.31720577
B44: Charge - Sewer - infill | C44: - | D44: - | E44: =I11 -> 107.8347129 | G44: 69.46329312 | H44: 38.3714198 | J44: 2023-28 | K44: 2028-33 | L44: 2033-38 | M44: 2038-53
B45: subtotal | C45: - | D45: =SUM(D43:D44) -> 675.11 | E45: =SUM(E43:E44) -> 843.8359348 | G45: 843.7817208 | H45: 0.05421402766 | J45: 0 | K45: 0.00158 | L45: =K45 -> 0.00158 | M45: 0
B46: Charge - Fyansford - Water | C46: - | D46: 2396.38 | E46: =D46 -> 2396.38 | G46: 2396.38 | H46: 0
B47: Charge - Fyansford - Sewer | C47: - | D47: 1006.5 | E47: =D47 -> 1006.5 | G47: 1006.5 | H47: 0
B48: subtotal | C48: - | D48: =SUM(D46:D47) -> 3402.88 | E48: =D48 -> 3402.88 | G48: 3402.88 | H48: 0

Sheet WATER&RW_st
A1: 2023 Price Submission - Water & RW NCC ($M 2022/23) | X1: Maintenance cost assumptons
A3: Real discount rate (=WACC) | B3: 0.0271 | C3: pa | J3: BRWRP unit cost | L3: 0 | M3: /kL | N3: BR WRP Upgrade unit cost | Q3: 0 | R3: /kL plus | S3: 0 | T3: million / year fixed cost | X3: 0.77 | Y3: Civil portion of total capex | AB3: 0.0015 | AC3: maintenance cost as portion of civil capex
A4: Value of Franking Credits (as a Proportion of Face Value) | B4: 0.5 | J4: MGP unit cost | L4: 0.464 | M4: /kL | N4: Desal unit cost | Q4: 2.62 | R4: /kL | S4: MGP1 | V4: 0.37 | W4: /kL | X4: 0.23 | Y4: M&E portion of total capex | AB4: 0.0165 | AC4: maintenance cost as portion of M&E capex
A5: Asset Class Life | B5: 70 | AB5: =X3*AB3+X4*AB4 -> 0.00495 | AC5: maintenance cost as portion of total capex
A6: NPV | B6: =C139 -> 8.474489838e-14 | J6: RCW unit cost | L6: =0.7*cpi!$K$6 -> 0.7848868778 | M6: /kL plus | O6: million / year fixed
A7: Per lot NCC | B7: 2944.004888 | C7: /connection
J8: PS23
A10: Year | B10: Assumptions | D10: Unutilised WP1 | E10: Unutilised WP2 | F10: Unutilised WP3 | G10: Unutilised WP4 | I10: pre-PS23 | J10: 2023-24 | K10: 2024-25 | L10: 2025-26 | M10: 2026-27 | N10: 2027-28 | O10: 2028-29 | P10: 2029-30 | Q10: 2030-31 | R10: 2031-32 | S10: 2032-33 | T10: 2033-34 | U10: 2034-35 | V10: 2035-36 | W10: 2036-37 | X10: 2037-38 | Y10: 2038-39 | Z10: 2039-40 | AA10: 2040-41 | AB10: 2041-42 | AC10: 2042-43 | AD10: 2043-44 | AE10: 2044-45 | AF10: 2045-46 | AG10: 2046-47 | AH10: 2047-48 | AI10: 2048-49 | AJ10: 2049-50 | AK10: 2050-51 | AL10: 2051-52 | AM10: 2052-53 | AN10: PV
D11: 0 | E11: 0 | F11: 0 | G11: 0 | I11: 0 | J11: 1 | K11: 2 | L11: 3 | M11: 4 | N11: 5 | O11: 6 | P11: 7 | Q11: 8 | R11: 9 | S11: 10 | T11: 11 | U11: 12 | V11: 13 | W11: 14 | X11: 15 | Y11: 16 | Z11: 17 | AA11: 18 | AB11: 19 | AC11: 20 | AD11: 21 | AE11: 22 | AF11: 23 | AG11: 24 | AH11: 25 | AI11: 26 | AJ11: 27 | AK11: 28 | AL11: 29 | AM11: 30 | AN11: Beyond
A14: Incremental CAPEX
A15: Recycled Water CAPEX | E15: ='[5]Recycled Water'!$L$917*E11/1000000*cpi!$K$6 -> 0 | F15: ='[5]Recycled Water'!$Q$917*F11/1000000*cpi!$K$6 -> 0 | G15: ='[5]Recycled Water'!$V$917*G11/1000000*cpi!$K$6 -> 0 | I15: =SUM(D15:G15) -> 0 | J15: ='[5]Recycled Water'!W916/1000000*cpi!$K$22 -> 4.034071607 | K15: ='[5]Recycled Water'!X916/1000000*cpi!$K$22 -> 2.402539509 | L15: ='[5]Recycled Water'!Y916/1000000*cpi!$K$22 -> 5.344234292 | M15: ='[5]Recycled Water'!Z916/1000000*cpi!$K$22 -> 6.092535961 | N15: ='[5]Recycled Water'!AA916/1000000*cpi!$K$22 -> 3.103291773 | O15: ='[5]Recycled Water'!AB916/1000000*cpi!$K$22 -> 24.26029129 | P15: ='[5]Recycled Water'!AC916/1000000*cpi!$K$22 -> 46.11296978 | Q15: ='[5]Recycled Water'!AD916/1000000*cpi!$K$22 -> 3.670798646 | R15: ='[5]Recycled Water'!AE916/1000000*cpi!$K$22 -> 16.58799472 | S15: ='[5]Recycled Water'!AF916/1000000*cpi!$K$22 -> 13.6349554 | T15: ='[5]Recycled Water'!AG916/1000000*cpi!$K$22 -> 16.13304707 | U15: ='[5]Recycled Water'!AH916/1000000*cpi!$K$22 -> 6.780120865 | V15: ='[5]Recycled Water'!AI916/1000000*cpi!$K$22 -> 59.02700691 | W15: ='[5]Recycled Water'!AJ916/1000000*cpi!$K$22 -> 2.576558524 | X15: ='[5]Recycled Water'!AK916/1000000*cpi!$K$22 -> 8.531605174 | Y15: ='[5]Recycled Water'!AL916/1000000*cpi!$K$22 -> 1.525667939 | Z15: ='[5]Recycled Water'!AM916/1000000*cpi!$K$22 -> 2.576558524 | AA15: ='[5]Recycled Water'!AN916/1000000*cpi!$K$22 -> 3.627449109 | AB15: ='[5]Recycled Water'!AO916/1000000*cpi!$K$22 -> 1.525667939 | AC15: ='[5]Recycled Water'!AP916/1000000*cpi!$K$22 -> 34.8038698 | AD15: ='[5]Recycled Water'!AQ916/1000000*cpi!$K$22 -> 2.576558524 | AE15: ='[5]Recycled Water'!AR916/1000000*cpi!$K$22 -> 0.6677989313 | AF15: ='[5]Recycled Water'!AS916/1000000*cpi!$K$22 -> 0.6677989313 | AG15: ='[5]Recycled Water'!AT916/1000000*cpi!$K$22 -> 0.6677989313 | AH15: ='[5]Recycled Water'!AU916/1000000*cpi!$K$22 -> 0.6677989313 | AI15: ='[5]Recycled Water'!AV916/1000000*cpi!$K$22 -> 0 | AJ15: ='[5]Recycled Water'!AW916/1000000*cpi!$K$22 -> 0 | AK15: ='[5]Recycled Water'!AX916/1000000*cpi!$K$22 -> 0 | AL15: ='[5]Recycled Water'!AY916/1000000*cpi!$K$22 -> 0 | AM15: ='[5]Recycled Water'!AZ916/1000000*cpi!$K$22 -> 0
A16: Water CAPEX | B16: 1 | C16: % of capital | E16: =[5]Water!$L$917*E11/1000000*cpi!$K$6 -> 0 | F16: =[5]Water!$Q$917*F11/1000000*cpi!$K$6 -> 0 | G16: =[5]Water!$V$917*G11/1000000*cpi!$K$6 -> 0 | I16: =SUM(D16:G16) -> 0 | J16: =[5]Water!W916/1000000*cpi!$K$22 -> 6.758461102 | K16: =[5]Water!X916/1000000*cpi!$K$22 -> 16.68545566 | L16: =[5]Water!Y916/1000000*cpi!$K$22 -> 23.84750008 | M16: =[5]Water!Z916/1000000*cpi!$K$22 -> 15.692968 | N16: =[5]Water!AA916/1000000*cpi!$K$22 -> 22.74882787 | O16: =[5]Water!AB916/1000000*cpi!$K$22 -> 30.39921011 | P16: =[5]Water!AC916/1000000*cpi!$K$22 -> 44.26518202 | Q16: =[5]Water!AD916/1000000*cpi!$K$22 -> 41.1893175 | R16: =[5]Water!AE916/1000000*cpi!$K$22 -> 15.89032284 | S16: =[5]Water!AF916/1000000*cpi!$K$22 -> 33.24287758 | T16: =[5]Water!AG916/1000000*cpi!$K$22 -> 11.34282596 | U16: =[5]Water!AH916/1000000*cpi!$K$22 -> 43.87055989 | V16: =[5]Water!AI916/1000000*cpi!$K$22 -> 13.29872145 | W16: =[5]Water!AJ916/1000000*cpi!$K$22 -> 10.32556388 | X16: =[5]Water!AK916/1000000*cpi!$K$22 -> 9.533590663 | Y16: =[5]Water!AL916/1000000*cpi!$K$22 -> 9.533590663 | Z16: =[5]Water!AM916/1000000*cpi!$K$22 -> 9.533590663 | AA16: =[5]Water!AN916/1000000*cpi!$K$22 -> 9.533590663 | AB16: =[5]Water!AO916/1000000*cpi!$K$22 -> 9.533590663 | AC16: =[5]Water!AP916/1000000*cpi!$K$22 -> 9.366288881 | AD16: =[5]Water!AQ916/1000000*cpi!$K$22 -> 6.936503353 | AE16: =[5]Water!AR916/1000000*cpi!$K$22 -> 6.936503353 | AF16: =[5]Water!AS916/1000000*cpi!$K$22 -> 6.936503353 | AG16: =[5]Water!AT916/1000000*cpi!$K$22 -> 6.936503353 | AH16: =[5]Water!AU916/1000000*cpi!$K$22 -> 6.01446036 | AI16: =[5]Water!AV916/1000000*cpi!$K$22 -> 5.052973661 | AJ16: =[5]Water!AW916/1000000*cpi!$K$22 -> 5.052973661 | AK16: =[5]Water!AX916/1000000*cpi!$K$22 -> 5.052973661 | AL16: =[5]Water!AY916/1000000*cpi!$K$22 -> 5.052973661 | AM16: =[5]Water!AZ916/1000000*cpi!$K$22 -> 5.052973661
A17: Total CAPEX | D17: 0 | E17: =SUM(E15:E16) -> 0 | F17: =SUM(F15:F16) -> 0 | G17: 0 | I17: =SUM(I15:I16) -> 0 | J17: =SUM(J15:J16) -> 10.79253271 | K17: 19.08799517 | L17: 29.19173437 | M17: 21.78550397 | N17: 25.85211965 | O17: 54.6595014 | P17: 90.3781518 | Q17: 44.86011615 | R17: 32.47831757 | S17: =SUM(S15:S16) -> 46.87783298 | T17: 27.47587304 | U17: 50.65068075 | V17: 72.32572836 | W17: 12.9021224 | X17: 18.06519584 | Y17: 11.0592586 | Z17: 12.11014919 | AA17: 13.16103977 | AB17: 11.0592586 | AC17: 44.17015869 | AD17: 9.513061877 | AE17: 7.604302284 | AF17: 7.604302284 | AG17: 7.604302284 | AH17: 6.682259292 | AI17: 5.052973661 | AJ17: 5.052973661 | AK17: 5.052973661 | AL17: 5.052973661 | AM17: 5.052973661
A19: Depreciation | I19: =I17/$B5 -> 0 | J19: =J17/$B5 -> 0.1541790387 | K19: =K17/$B5 -> 0.2726856453 | L19: 0.4170247767 | M19: 0.3112214852 | N19: 0.369315995 | O19: 0.78085002 | P19: 1.291116454 | Q19: 0.6408588022 | R19: 0.4639759652 | S19: 0.6696833282 | T19: 0.392512472 | U19: 0.7235811536 | V19: 1.033224691 | W19: 0.1843160343 | X19: 0.2580742262 | Y19: 0.1579894086 | Z19: 0.1730021312 | AA19: 0.1880148539 | AB19: 0.1579894086 | AC19: 0.6310022669 | AD19: 0.135900884 | AE19: 0.1086328898 | AF19: 0.1086328898 | AG19: 0.1086328898 | AH19: 0.09546084702 | AI19: 0.07218533802 | AJ19: 0.07218533802 | AK19: 0.07218533802 | AL19: 0.07218533802 | AM19: 0.07218533802
A20: Total depreciation of Capex (in tax calculation) - cumulative | I20: =I19 -> 0 | J20: =I20+J19 -> 0.1541790387 | K20: =J20+K19 -> 0.426864684 | L20: 0.8438894607 | M20: 1.155110946 | N20: 1.524426941 | O20: =N20+O19 -> 2.305276961 | P20: 3.596393415 | Q20: 4.237252217 | R20: 4.701228183 | S20: 5.370911511 | T20: 5.763423983 | U20: 6.487005136 | V20: 7.520229827 | W20: 7.704545862 | X20: 7.962620088 | Y20: 8.120609496 | Z20: 8.293611628 | AA20: 8.481626482 | AB20: 8.63961589 | AC20: 9.270618157 | AD20: 9.406519041 | AE20: 9.515151931 | AF20: 9.623784821 | AG20: 9.73241771 | AH20: 9.827878557 | AI20: =AH20+AI19 -> 9.900063895 | AJ20: =AI20+AJ19 -> 9.972249233 | AK20: =AJ20+AK19 -> 10.04443457 | AL20: =AK20+AL19 -> 10.11661991 | AM20: =AL20+AM19 -> 10.18880525
A22: Government Contributions | I22: 0 | J22: 0 | K22: 0 | L22: 0 | M22: 0 | N22: 0 | O22: 0 | P22: 0 | Q22: 0 | R22: 0 | S22: 0 | T22: 0 | U22: 0 | V22: 0 | W22: 0 | X22: 0 | Y22: 0 | Z22: 0 | AA22: 0 | AB22: 0 | AC22: 0 | AD22: 0 | AE22: 0 | AF22: 0 | AG22: 0 | AH22: 0 | AI22: 0 | AJ22: 0 | AK22: 0 | AL22: 0 | AM22: 0
A24: Incremental OPEX
A25: Water
A26: Water reticulation | B26: =$AB$5 -> 0.00495 | C26: of CAPEX | J26: =I26+$B$26*J46 -> 0.06112074752 | K26: =J26+$B$26*K46 -> 0.122425833 | L26: 0.1847194644 | M26: 0.2471806704 | N26: 0.308921422 | O26: 0.3709526371 | P26: 0.4331806307 | Q26: 0.4954389179 | R26: 0.5568409423 | S26: 0.617413995 | T26: 0.6783416684 | U26: 0.7393491236 | V26: 0.8006749641 | W26: 0.8633902773 | X26: 0.9252680616 | Y26: 0.9870106424 | Z26: 1.049458368 | AA26: 1.110832691 | AB26: 1.173177428 | AC26: 1.236507922 | AD26: 1.300839759 | AE26: 1.366188772 | AF26: 1.432571043 | AG26: 1.500002911 | AH26: 1.568500971 | AI26: 1.63808208 | AJ26: 1.708763363 | AK26: 1.780562216 | AL26: 1.853496308 | AM26: 1.92758359 | AO26: =SUM(J26:AN26) -> 29.03879742 | AP26: ='[6]WATER&RW_st'!$AO26+'[6]WATER&RW_NWGGA'!$AO26 -> 23.35188939
A27: Maintenance costs (from CWIP spreadsheet)-Recycled Water | J27: ='[5]Recycled Water'!W1847/1000000*cpi!$K$22 -> 0.01464367993 | K27: ='[5]Recycled Water'!X1847/1000000*cpi!$K$22 -> 0.02336489835 | L27: ='[5]Recycled Water'!Y1847/1000000*cpi!$K$22 -> 0.04276446883 | M27: ='[5]Recycled Water'!Z1847/1000000*cpi!$K$22 -> 0.06488037437 | N27: ='[5]Recycled Water'!AA1847/1000000*cpi!$K$22 -> 0.07614532351 | O27: ='[5]Recycled Water'!AB1847/1000000*cpi!$K$22 -> 0.1642101809 | P27: ='[5]Recycled Water'!AC1847/1000000*cpi!$K$22 -> 0.3316002612 | Q27: ='[5]Recycled Water'!AD1847/1000000*cpi!$K$22 -> 0.3449252603 | R27: ='[5]Recycled Water'!AE1847/1000000*cpi!$K$22 -> 0.4051396811 | S27: ='[5]Recycled Water'!AF1847/1000000*cpi!$K$22 -> 0.4546345692 | T27: ='[5]Recycled Water'!AG1847/1000000*cpi!$K$22 -> 0.5131975301 | U27: ='[5]Recycled Water'!AH1847/1000000*cpi!$K$22 -> 0.5378093688 | V27: ='[5]Recycled Water'!AI1847/1000000*cpi!$K$22 -> 0.7520774039 | W27: ='[5]Recycled Water'!AJ1847/1000000*cpi!$K$22 -> 0.7614303113 | X27: ='[5]Recycled Water'!AK1847/1000000*cpi!$K$22 -> 0.7924000381 | Y27: ='[5]Recycled Water'!AL1847/1000000*cpi!$K$22 -> 0.7979382127 | Z27: ='[5]Recycled Water'!AM1847/1000000*cpi!$K$22 -> 0.8072911202 | AA27: ='[5]Recycled Water'!AN1847/1000000*cpi!$K$22 -> 0.8204587605 | AB27: ='[5]Recycled Water'!AO1847/1000000*cpi!$K$22 -> 0.8259969351 | AC27: ='[5]Recycled Water'!AP1847/1000000*cpi!$K$22 -> 0.9523349825 | AD27: ='[5]Recycled Water'!AQ1847/1000000*cpi!$K$22 -> 0.9616878899 | AE27: ='[5]Recycled Water'!AR1847/1000000*cpi!$K$22 -> 0.964112 | AF27: ='[5]Recycled Water'!AS1847/1000000*cpi!$K$22 -> 0.9665361101 | AG27: ='[5]Recycled Water'!AT1847/1000000*cpi!$K$22 -> 0.9689602203 | AH27: ='[5]Recycled Water'!AU1847/1000000*cpi!$K$22 -> 0.9713843304 | AI27: ='[5]Recycled Water'!AV1847/1000000*cpi!$K$22 -> 0.9713843304 | AJ27: ='[5]Recycled Water'!AW1847/1000000*cpi!$K$22 -> 0.9713843304 | AK27: ='[5]Recycled Water'!AX1847/1000000*cpi!$K$22 -> 0.9713843304 | AL27: ='[5]Recycled Water'!AY1847/1000000*cpi!$K$22 -> 0.9713843304 | AM27: ='[5]Recycled Water'!AZ1847/1000000*cpi!$K$22 -> 0.9713843304 | AO27: =SUM(J27:AN27) -> 19.17284556 | AP27: ='[6]WATER&RW_st'!$AO27+'[6]WATER&RW_NWGGA'!$AO27 -> 10.59133602
A28: Maintenance costs (from CWIP spreadsheet)-Water | J28: =[5]Water!W1847/1000000*cpi!$K$22 -> 0.0245332138 | K28: =[5]Water!X1847/1000000*cpi!$K$22 -> 0.08510141785 | L28: =[5]Water!Y1847/1000000*cpi!$K$22 -> 0.1716678431 | M28: =[5]Water!Z1847/1000000*cpi!$K$22 -> 0.228633317 | N28: =[5]Water!AA1847/1000000*cpi!$K$22 -> 0.3112115622 | O28: =[5]Water!AB1847/1000000*cpi!$K$22 -> 0.4215606949 | P28: =[5]Water!AC1847/1000000*cpi!$K$22 -> 0.5822433056 | Q28: =[5]Water!AD1847/1000000*cpi!$K$22 -> 0.7317605282 | R28: =[5]Water!AE1847/1000000*cpi!$K$22 -> 0.7894424001 | S28: =[5]Water!AF1847/1000000*cpi!$K$22 -> 0.9101140457 | T28: =[5]Water!AG1847/1000000*cpi!$K$22 -> 0.9512885039 | U28: =[5]Water!AH1847/1000000*cpi!$K$22 -> 1.110538636 | V28: =[5]Water!AI1847/1000000*cpi!$K$22 -> 1.158812995 | W28: =[5]Water!AJ1847/1000000*cpi!$K$22 -> 1.196294792 | X28: =[5]Water!AK1847/1000000*cpi!$K$22 -> 1.230901726 | Y28: =[5]Water!AL1847/1000000*cpi!$K$22 -> 1.26550866 | Z28: =[5]Water!AM1847/1000000*cpi!$K$22 -> 1.300115594 | AA28: =[5]Water!AN1847/1000000*cpi!$K$22 -> 1.334722529 | AB28: =[5]Water!AO1847/1000000*cpi!$K$22 -> 1.369329463 | AC28: =[5]Water!AP1847/1000000*cpi!$K$22 -> 1.403329091 | AD28: =[5]Water!AQ1847/1000000*cpi!$K$22 -> 1.428508598 | AE28: =[5]Water!AR1847/1000000*cpi!$K$22 -> 1.453688106 | AF28: =[5]Water!AS1847/1000000*cpi!$K$22 -> 1.478867613 | AG28: =[5]Water!AT1847/1000000*cpi!$K$22 -> 1.50404712 | AH28: =[5]Water!AU1847/1000000*cpi!$K$22 -> 1.525879611 | AI28: =[5]Water!AV1847/1000000*cpi!$K$22 -> 1.544221905 | AJ28: =[5]Water!AW1847/1000000*cpi!$K$22 -> 1.5625642 | AK28: =[5]Water!AX1847/1000000*cpi!$K$22 -> 1.580906494 | AL28: =[5]Water!AY1847/1000000*cpi!$K$22 -> 1.599248789 | AM28: =[5]Water!AZ1847/1000000*cpi!$K$22 -> 1.617591083 | AO28: 31.87263384 | AP28: ='[6]WATER&RW_st'!$AO28+'[6]WATER&RW_NWGGA'!$AO28 -> 22.04785819
A29: Bulk water supply | J29: =((IF(J32="MGP1",$V$4*(J90+J102),IF(J32="Desal",$Q$4*(J90+J102),IF(J32="MGP",$L$4*(J90+J102),0))))/1000000)+(((J91+J104)*$L$6)/1000000) -> 0.2644403789 | K29: =((IF(K32="MGP1",$V$4*((K90+K102)-(J90+J102)),IF(K32="Desal",$Q$4*((K90+K102)-(J90+J102)),IF(K32="MGP",$L$4*((K90+K102)-(J90+J102)),0))))/1000000)+((((K91+K104)-(J91+K94))*$L$6)/1000000)+J29 -> 0.6491524588 | L29: =((IF(L32="MGP1",$V$4*((L90+L102)-(K90+K102)),IF(L32="Desal",$Q$4*((L90+L102)-(K90+K102)),IF(L32="MGP",$L$4*((L90+L102)-(K90+K102)),0))))/1000000)+((((L91+L104)-(K91+L94))*$L$6)/1000000)+K29 -> 1.039429178 | M29: 1.515551564 | N29: 1.991218746 | O29: 2.467108939 | P29: 2.945825105 | Q29: 3.427244552 | R29: 3.90736082 | S29: 4.384178519 | T29: 4.862515058 | U29: 5.34411813 | V29: 5.829231591 | W29: 6.322670448 | X29: 8.670376418 | Y29: 11.00619163 | Z29: 13.35789 | AA29: 15.69739826 | AB29: 18.05076578 | AC29: 20.44410879 | AD29: 22.87563798 | AE29: 25.34592489 | AF29: 27.85555014 | AG29: 30.40510351 | AH29: 32.99518411 | AI29: 35.62640052 | AJ29: 38.29937095 | AK29: 41.01472339 | AL29: 43.77309573 | AM29: 46.57513598 | AO29: 476.9429036 | AP29: ='[6]WATER&RW_st'!$AO29+'[6]WATER&RW_NWGGA'!$AO29 -> 304.8001803
A30: Sub-total - Water | J30: =SUM(J26:J29) -> 0.3647380201 | K30: =SUM(K26:K29) -> 0.880044608 | L30: 1.438580954 | M30: 2.056245926 | N30: 2.687497054 | O30: 3.423832451 | P30: 4.292849302 | Q30: 4.999369258 | R30: 5.658783844 | S30: 6.366341129 | T30: 7.00534276 | U30: 7.731815258 | V30: 8.540796954 | W30: 9.143785828 | X30: 11.61894624 | Y30: 14.05664915 | Z30: 16.51475508 | AA30: 18.96341224 | AB30: 21.4192696 | AC30: 24.03628079 | AD30: 26.56667422 | AE30: 29.12991376 | AF30: 31.7335249 | AG30: 34.37811376 | AH30: 37.06094902 | AI30: 39.78008884 | AJ30: 42.54208285 | AK30: 45.34757643 | AL30: 48.19722516 | AM30: 51.09169498 | AO30: =SUM(J30:AN30) -> 557.0271804 | AP30: ='[6]WATER&RW_st'!$AO30+'[6]WATER&RW_NWGGA'!$AO30 -> 360.7912639
AO31: 0 | AP31: ='[6]WATER&RW_st'!$AO31+'[6]WATER&RW_NWGGA'!$AO31 -> 20.40192531
A32: Marginal water source av year (MGP, Desal) | J32: MGP1 | K32: MGP1 | L32: MGP1 | M32: MGP | N32: MGP | O32: MGP | P32: MGP | Q32: MGP | R32: MGP | S32: MGP | T32: MGP | U32: MGP | V32: MGP | W32: MGP | X32: Desal | Y32: Desal | Z32: Desal | AA32: Desal | AB32: Desal | AC32: Desal | AD32: Desal | AE32: Desal | AF32: Desal | AG32: Desal | AH32: Desal | AI32: Desal | AJ32: Desal | AK32: Desal | AL32: Desal | AM32: Desal | AO32: 0 | AP32: ='[6]WATER&RW_st'!$AO32+'[6]WATER&RW_NWGGA'!$AO32 -> 0
AO33: 0 | AP33: ='[6]WATER&RW_st'!$AO33+'[6]WATER&RW_NWGGA'!$AO33 -> 0
A34: Sewage treatment location (BR or BRUp) | J34: BR | K34: BR | L34: BR | M34: BR | N34: BR | O34: BR | P34: BR | Q34: BR | R34: BR | S34: BRUp | T34: BRUp | U34: BRUp | V34: BRUp | W34: BRUp | X34: BRUp | Y34: BRUp | Z34: BRUp | AA34: BRUp | AB34: BRUp | AC34: BRUp | AD34: BRUp | AE34: BRUp | AF34: BRUp | AG34: BRUp | AH34: BRUp | AI34: BRUp | AJ34: BRUp | AK34: BRUp | AL34: BRUp | AM34: BRUp | AO34: 0 | AP34: ='[6]WATER&RW_st'!$AO34+'[6]WATER&RW_NWGGA'!$AO34 -> 0
AO35: 0 | AP35: ='[6]WATER&RW_st'!$AO35+'[6]WATER&RW_NWGGA'!$AO35 -> 0
A36: Sewerage | B36: ref SEWER worksheet | AO36: 0 | AP36: ='[6]WATER&RW_st'!$AO36+'[6]WATER&RW_NWGGA'!$AO36 -> 0
A37: Sewerage reticulation | B37: =$AB$5 -> 0.00495 | C37: of CAPEX | J37: =I37+$B$37*J50 -> 0 | K37: 0 | L37: 0 | M37: 0 | N37: 0 | O37: 0 | P37: 0 | Q37: 0 | R37: 0 | S37: 0 | T37: 0 | U37: 0 | V37: 0 | W37: 0 | X37: 0 | Y37: 0 | Z37: 0 | AA37: 0 | AB37: 0 | AC37: 0 | AD37: 0 | AE37: 0 | AF37: 0 | AG37: 0 | AH37: 0 | AI37: =AH37+$B$37*AI50 -> 0 | AJ37: =AI37+$B$37*AJ50 -> 0 | AK37: =AJ37+$B$37*AK50 -> 0 | AL37: =AK37+$B$37*AL50 -> 0 | AM37: =AL37+$B$37*AM50 -> 0 | AO37: 0 | AP37: ='[6]WATER&RW_st'!$AO37+'[6]WATER&RW_NWGGA'!$AO37 -> 0
A38: Maintenance costs (from CWIP spreadsheet) | AO38: 0 | AP38: ='[6]WATER&RW_st'!$AO38+'[6]WATER&RW_NWGGA'!$AO38 -> 0
A39: Sewage treatment opex (BRWRP) | J39: =(IF(J34="BRUp",0,IF(J34="BR",$L$3*(J97+J103),0)))/1000000 -> 0 | K39: 0 | L39: 0 | M39: 0 | N39: 0 | O39: 0 | P39: 0 | Q39: 0 | R39: 0 | S39: 0 | T39: 0 | U39: 0 | V39: 0 | W39: 0 | X39: 0 | Y39: 0 | Z39: 0 | AA39: 0 | AB39: 0 | AC39: 0 | AD39: 0 | AE39: 0 | AF39: 0 | AG39: 0 | AH39: 0 | AI39: =(IF(AI34="BRUp",0,IF(AI34="BR",$L$3*(AI97+AI103),0)))/1000000 -> 0 | AJ39: 0 | AK39: 0 | AL39: 0 | AM39: 0 | AO39: 0 | AP39: ='[6]WATER&RW_st'!$AO39+'[6]WATER&RW_NWGGA'!$AO39 -> 0
J40: =(IF(J34="BR",0,IF(J34="BRUp",($Q$3*(J97+J103)+$S$3),0)))/1000000 -> 0 | K40: 0 | L40: 0 | M40: 0 | N40: 0 | O40: 0 | P40: 0 | Q40: 0 | R40: 0 | S40: 0 | T40: 0 | U40: 0 | V40: 0 | W40: 0 | X40: 0 | Y40: 0 | Z40: 0 | AA40: 0 | AB40: 0 | AC40: 0 | AD40: 0 | AE40: 0 | AF40: 0 | AG40: 0 | AH40: 0 | AI40: =(IF(AI34="BR",0,IF(AI34="BRUp",($Q$3*(AI97+AI103)+$S$3),0)))/1000000 -> 0 | AJ40: 0 | AK40: 0 | AL40: 0 | AM40: 0 | AO40: 0 | AP40: ='[6]WATER&RW_st'!$AO40+'[6]WATER&RW_NWGGA'!$AO40 -> 0
A41: Sub-total - Sewer | J41: =SUM(J37:J40) -> 0 | K41: =SUM(K37:K40) -> 0 | L41: 0 | M41: 0 | N41: 0 | O41: 0 | P41: 0 | Q41: 0 | R41: 0 | S41: 0 | T41: 0 | U41: 0 | V41: 0 | W41: 0 | X41: 0 | Y41: 0 | Z41: 0 | AA41: 0 | AB41: 0 | AC41: 0 | AD41: 0 | AE41: 0 | AF41: 0 | AG41: 0 | AH41: 0 | AI41: 0 | AJ41: 0 | AK41: 0 | AL41: 0 | AM41: 0 | AO41: 0 | AP41: ='[6]WATER&RW_st'!$AO41+'[6]WATER&RW_NWGGA'!$AO41 -> 0
A42: Total OPEX | J42: =J30+J41 -> 0.3647380201 | K42: 0.880044608 | L42: 1.438580954 | M42: 2.056245926 | N42: 2.687497054 | O42: 3.423832451 | P42: 4.292849302 | Q42: 4.999369258 | R42: 5.658783844 | S42: 6.366341129 | T42: 7.00534276 | U42: 7.731815258 | V42: 8.540796954 | W42: 9.143785828 | X42: 11.61894624 | Y42: 14.05664915 | Z42: 16.51475508 | AA42: 18.96341224 | AB42: 21.4192696 | AC42: 24.03628079 | AD42: 26.56667422 | AE42: 29.12991376 | AF42: 31.7335249 | AG42: 34.37811376 | AH42: 37.06094902 | AI42: 39.78008884 | AJ42: =AJ30+AJ41 -> 42.54208285 | AK42: =AK30+AK41 -> 45.34757643 | AL42: =AL30+AL41 -> 48.19722516 | AM42: =AM30+AM41 -> 51.09169498 | AO42: 557.0271804 | AP42: ='[6]WATER&RW_st'!$AO42+'[6]WATER&RW_NWGGA'!$AO42 -> 360.7912639
A44: Gifted Assets
A45: Water
A46: Water reticulation | B46: 2973 | C46: /connection | J46: =$B$46*(J59+J65)/1000000 -> 12.34762576 | K46: =$B$46*(K59+K65)/1000000 -> 12.38486576 | L46: 12.58457199 | M46: 12.61842545 | N46: 12.47287912 | O46: 12.53155859 | P46: 12.57131185 | Q46: 12.57743175 | R46: 12.40444937 | S46: 12.23698034 | T46: 12.30862089 | U46: 12.32473843 | V46: 12.38905869 | W46: 12.66976023 | X46: 12.50056249 | Y46: 12.47324866 | Z46: 12.61570212 | AA46: 12.3988532 | AB46: 12.59489632 | AC46: 12.79403915 | AD46: 12.99633071 | AE46: 13.20182078 | AF46: 13.41055994 | AG46: 13.62259955 | AH46: 13.8379918 | AI46: =$B$46*(AI59+AI65)/1000000 -> 14.05678971 | AJ46: 14.27904711 | AK46: 14.50481871 | AL46: 14.73416008 | AM46: 14.96712765
A47: Sub-total - Water | J47: =SUM(J46:J46) -> 12.34762576 | K47: 12.38486576 | L47: 12.58457199 | M47: 12.61842545 | N47: 12.47287912 | O47: 12.53155859 | P47: 12.57131185 | Q47: 12.57743175 | R47: 12.40444937 | S47: 12.23698034 | T47: 12.30862089 | U47: 12.32473843 | V47: 12.38905869 | W47: 12.66976023 | X47: 12.50056249 | Y47: 12.47324866 | Z47: 12.61570212 | AA47: 12.3988532 | AB47: 12.59489632 | AC47: 12.79403915 | AD47: 12.99633071 | AE47: 13.20182078 | AF47: 13.41055994 | AG47: 13.62259955 | AH47: 13.8379918 | AI47: =SUM(AI46:AI46) -> 14.05678971 | AJ47: 14.27904711 | AK47: 14.50481871 | AL47: 14.73416008 | AM47: 14.96712765
A49: Sewer
A50: Sewer reticulation | B50: 0 | C50: /connection | J50: =$B$50*(J59+J65)/1000000 -> 0 | K50: 0 | L50: 0 | M50: 0 | N50: 0 | O50: 0 | P50: 0 | Q50: 0 | R50: 0 | S50: 0 | T50: 0 | U50: 0 | V50: 0 | W50: 0 | X50: 0 | Y50: 0 | Z50: 0 | AA50: 0 | AB50: 0 | AC50: 0 | AD50: 0 | AE50: 0 | AF50: 0 | AG50: 0 | AH50: 0 | AI50: =$B$50*(AI59+AI65)/1000000 -> 0 | AJ50: 0 | AK50: 0 | AL50: 0 | AM50: 0
A51: Sub-total - Sewer | J51: =SUM(J50:J50) -> 0 | K51: =SUM(K50:K50) -> 0 | L51: 0 | M51: 0 | N51: 0 | O51: 0 | P51: 0 | Q51: 0 | R51: 0 | S51: 0 | T51: 0 | U51: 0 | V51: 0 | W51: 0 | X51: 0 | Y51: 0 | Z51: 0 | AA51: 0 | AB51: 0 | AC51: 0 | AD51: 0 | AE51: 0 | AF51: 0 | AG51: 0 | AH51: 0 | AI51: =SUM(AI50:AI50) -> 0 | AJ51: 0 | AK51: 0 | AL51: 0 | AM51: 0
A52: Gifted assets total | J52: =J47+J51 -> 12.34762576 | K52: =K47+K51 -> 12.38486576 | L52: 12.58457199 | M52: 12.61842545 | N52: 12.47287912 | O52: 12.53155859 | P52: 12.57131185 | Q52: 12.57743175 | R52: 12.40444937 | S52: 12.23698034 | T52: 12.30862089 | U52: 12.32473843 | V52: 12.38905869 | W52: 12.66976023 | X52: 12.50056249 | Y52: 12.47324866 | Z52: 12.61570212 | AA52: 12.3988532 | AB52: 12.59489632 | AC52: 12.79403915 | AD52: 12.99633071 | AE52: 13.20182078 | AF52: 13.41055994 | AG52: 13.62259955 | AH52: 13.8379918 | AI52: =AI47+AI51 -> 14.05678971 | AJ52: =AJ47+AJ51 -> 14.27904711 | AK52: =AK47+AK51 -> 14.50481871 | AL52: =AL47+AL51 -> 14.73416008 | AM52: =AM47+AM51 -> 14.96712765
A54: Change in depreciation of Gifted Assets | J54: =J52/$B$5+IF((J$11-$B$5+1)>0,-INDEX($D52:$AH52,1,(J$11-$B$5+1))/$B$5,0) -> 0.1763946537 | K54: 0.1769266538 | L54: 0.1797795999 | M54: 0.1802632207 | N54: 0.1781839875 | O54: 0.1790222656 | P54: 0.1795901693 | Q54: 0.1796775965 | R54: 0.1772064196 | S54: 0.1748140048 | T54: 0.1758374413 | U54: 0.1760676918 | V54: 0.1769865527 | W54: 0.1809965747 | X54: 0.1785794641 | Y54: 0.1781892666 | Z54: 0.1802243159 | AA54: 0.1771264743 | AB54: 0.1799270903 | AC54: 0.1827719879 | AD54: 0.1856618673 | AE54: 0.1885974398 | AF54: 0.1915794277 | AG54: 0.194608565 | AH54: 0.1976855972 | AI54: =AI52/$B$5+IF((AI$11-$B$5+1)>0,-INDEX($D52:$AH52,1,(AI$11-$B$5+1))/$B$5,0) -> 0.2008112815 | AJ54: 0.2039863873 | AK54: 0.2072116959 | AL54: 0.2104880011 | AM54: 0.2138161093
A55: Total depreciation of Gifted Assets - cumulative | J55: =I55+J54 -> 0.1763946537 | K55: =J55+K54 -> 0.3533213075 | L55: 0.5331009074 | M55: 0.7133641281 | N55: 0.8915481156 | O55: 1.070570381 | P55: 1.25016055 | Q55: 1.429838147 | R55: 1.607044566 | S55: 1.781858571 | T55: 1.957696013 | U55: 2.133763704 | V55: 2.310750257 | W55: 2.491746832 | X55: 2.670326296 | Y55: 2.848515563 | Z55: 3.028739879 | AA55: 3.205866353 | AB55: 3.385793443 | AC55: 3.568565431 | AD55: 3.754227298 | AE55: 3.942824738 | AF55: 4.134404166 | AG55: 4.329012731 | AH55: 4.526698328 | AI55: =AH55+AI54 -> 4.72750961 | AJ55: =AI55+AJ54 -> 4.931495997 | AK55: =AJ55+AK54 -> 5.138707693 | AL55: =AK55+AL54 -> 5.349195694 | AM55: =AL55+AM54 -> 5.563011803
A57: Growth
A58: Residential Water | B58: % of customers
A59: Connections (annual growth) | B59: 1 | J59: =Connections!O102*$B$59 -> 3845.781464 | K59: =Connections!P102*$B$59 -> 3857.373368 | L59: =Connections!Q102*$B$59 -> 3919.566324 | M59: =Connections!R102*$B$59 -> 3930.105142 | N59: =Connections!S102*$B$59 -> 3884.76746 | O59: =Connections!T102*$B$59 -> 3910.238402 | P59: =Connections!U102*$B$59 -> 3922.37305 | Q59: =Connections!V102*$B$59 -> 3924.026151 | R59: =Connections!W102*$B$59 -> 3870.120043 | S59: =Connections!X102*$B$59 -> 3817.595923 | T59: =Connections!Y102*$B$59 -> 3839.803313 | U59: =Connections!Z102*$B$59 -> 3844.582875 | V59: =Connections!AA102*$B$59 -> 3864.760772 | W59: =Connections!AB102*$B$59 -> 3952.505175 | X59: =Connections!AC102*$B$59 -> 3899.348488 | Y59: =Connections!AD102*$B$59 -> 3890.544636 | Z59: =Connections!AE102*$B$59 -> 3935.427964 | AA59: =Connections!AF102*$B$59 -> 3867.021215 | AB59: =Connections!AG102*$B$59 -> 3924.086263 | AC59: =Connections!AH102*$B$59 -> 3986.131527 | AD59: =Connections!AI102*$B$59 -> 4049.157812 | AE59: =Connections!AJ102*$B$59 -> 4113.180631 | AF59: =Connections!AK102*$B$59 -> 4178.21574 | AG59: =Connections!AL102*$B$59 -> 4244.279144 | AH59: =Connections!AM102*$B$59 -> 4311.387102 | AI59: =Connections!AN102*$B$59 -> 4379.556131 | AJ59: =Connections!AO102*$B$59 -> 4448.803007 | AK59: =Connections!AP102*$B$59 -> 4519.144772 | AL59: =Connections!AQ102*$B$59 -> 4590.598739 | AM59: =Connections!AR102*$B$59 -> 4663.182492
A60: Cumulative connections RES | J60: =J59+I60 -> 3845.781464 | K60: 7703.154832 | L60: 11622.72116 | M60: 15552.8263 | N60: 19437.59376 | O60: 23347.83216 | P60: 27270.20521 | Q60: 31194.23136 | R60: 35064.3514 | S60: 38881.94733 | T60: 42721.75064 | U60: 46566.33351 | V60: 50431.09429 | W60: 54383.59946 | X60: 58282.94795 | Y60: 62173.49259 | Z60: 66108.92055 | AA60: 69975.94176 | AB60: 73900.02803 | AC60: 77886.15955 | AD60: 81935.31737 | AE60: 86048.498 | AF60: 90226.71374 | AG60: 94470.99288 | AH60: 98782.37998 | AI60: =AI59+AH60 -> 103161.9361 | AJ60: =AJ59+AI60 -> 107610.7391 | AK60: =AK59+AJ60 -> 112129.8839 | AL60: =AL59+AK60 -> 116720.4826 | AM60: =AM59+AL60 -> 121383.6651
A61: Connections - lag adjusted (annual growth) for revenue only | B61: 0.375 | J61: =J59*(1-$B$61) -> 2403.613415 | K61: =K59*(1-$B$61) -> 2410.858355 | L61: 2449.728953 | M61: 2456.315714 | N61: 2427.979663 | O61: 2443.899001 | P61: 2451.483156 | Q61: 2452.516345 | R61: 2418.825027 | S61: =S59*(1-$B$61) -> 2385.997452 | T61: 2399.87707 | U61: 2402.864297 | V61: 2415.475482 | W61: 2470.315735 | X61: 2437.092805 | Y61: 2431.590398 | Z61: 2459.642478 | AA61: 2416.888259 | AB61: 2452.553914 | AC61: 2491.332204 | AD61: 2530.723633 | AE61: 2570.737894 | AF61: 2611.384837 | AG61: 2652.674465 | AH61: 2694.616939 | AI61: =AI59*(1-$B$61) -> 2737.222582 | AJ61: 2780.501879 | AK61: 2824.465483 | AL61: 2869.124212 | AM61: 2914.489057
A62: Cumulative connections - lag adjusted for revenue only | J62: =I60+J61 -> 2403.613415 | K62: =J60+K61 -> 6256.639819 | L62: =K60+L61 -> 10152.88378 | M62: 14079.03687 | N62: 17980.80596 | O62: 21881.49276 | P62: 25799.31532 | Q62: 29722.72155 | R62: 33613.05639 | S62: =R60+S61 -> 37450.34886 | T62: 41281.8244 | U62: 45124.61494 | V62: 48981.809 | W62: 52901.41002 | X62: 56820.69227 | Y62: 60714.53835 | Z62: 64633.13506 | AA62: 68525.80881 | AB62: 72428.49568 | AC62: 76391.36023 | AD62: 80416.88319 | AE62: 84506.05526 | AF62: 88659.88283 | AG62: 92879.3882 | AH62: 97165.60982 | AI62: =AH60+AI61 -> 101519.6026 | AJ62: =AI60+AJ61 -> 105942.438 | AK62: =AJ60+AK61 -> 110435.2046 | AL62: =AK60+AL61 -> 114999.0081 | AM62: =AL60+AM61 -> 119634.9717
A64: Non-residential Water | B64: % of customers
A65: Connections (annual growth) | B65: 1 | J65: =Connections!O103*$B$65 -> 307.4730808 | K65: =Connections!P103*$B$65 -> 308.4072456 | L65: =Connections!Q103*$B$65 -> 313.3875911 | M65: =Connections!R103*$B$65 -> 314.2357429 | N65: =Connections!S103*$B$65 -> 310.617378 | O65: =Connections!T103*$B$65 -> 304.8838965 | P65: =Connections!U103*$B$65 -> 306.1206763 | Q65: =Connections!V103*$B$65 -> 306.5260695 | R65: =Connections!W103*$B$65 -> 302.2477234 | S65: =Connections!X103*$B$65 -> 298.4418636 | T65: =Connections!Y103*$B$65 -> 300.3315317 | U65: =Connections!Z103*$B$65 -> 300.9732731 | V65: =Connections!AA103*$B$65 -> 302.4301777 | W65: =Connections!AB103*$B$65 -> 309.1027058 | X65: =Connections!AC103*$B$65 -> 305.3479429 | Y65: =Connections!AD103*$B$65 -> 304.9644989 | Z65: =Connections!AE103*$B$65 -> 307.9968982 | AA65: =Connections!AF103*$B$65 -> 303.4642202 | AB65: =Connections!AG103*$B$65 -> 312.3403496 | AC65: =Connections!AH103*$B$65 -> 317.2788851 | AD65: =Connections!AI103*$B$65 -> 322.2955057 | AE65: =Connections!AJ103*$B$65 -> 327.3914461 | AF65: =Connections!AK103*$B$65 -> 332.5679604 | AG65: =Connections!AL103*$B$65 -> 337.8263226 | AH65: =Connections!AM103*$B$65 -> 343.1678267 | AI65: =Connections!AN103*$B$65 -> 348.5937876 | AJ65: =Connections!AO103*$B$65 -> 354.1055403 | AK65: =Connections!AP103*$B$65 -> 359.7044416 | AL65: =Connections!AQ103*$B$65 -> 365.3918693 | AM65: =Connections!AR103*$B$65 -> 371.1692232
A66: Cumulative connections NRES | J66: =J65+I66 -> 307.4730808 | K66: 615.8803264 | L66: 929.2679175 | M66: 1243.50366 | N66: 1554.121039 | O66: 1859.004935 | P66: 2165.125611 | Q66: 2471.651681 | R66: 2773.899404 | S66: 3072.341268 | T66: 3372.672799 | U66: 3673.646073 | V66: 3976.07625 | W66: 4285.178956 | X66: 4590.526899 | Y66: 4895.491398 | Z66: 5203.488296 | AA66: 5506.952516 | AB66: 5819.292866 | AC66: 6136.571751 | AD66: 6458.867257 | AE66: 6786.258703 | AF66: 7118.826663 | AG66: 7456.652986 | AH66: 7799.820812 | AI66: =AI65+AH66 -> 8148.4146 | AJ66: =AJ65+AI66 -> 8502.52014 | AK66: =AK65+AJ66 -> 8862.224582 | AL66: =AL65+AK66 -> 9227.616451 | AM66: =AM65+AL66 -> 9598.785674
A67: Connections - lag adjusted (annual growth) for revenue only | B67: 0.375 | J67: =J65*(1-$B$61) -> 192.1706755 | K67: 192.7545285 | L67: 195.8672445 | M67: 196.3973393 | N67: 194.1358613 | O67: 190.5524353 | P67: 191.3254227 | Q67: 191.5787934 | R67: 188.9048271 | S67: 186.5261648 | T67: 187.7072073 | U67: 188.1082957 | V67: 189.0188611 | W67: 193.1891911 | X67: 190.8424643 | Y67: 190.6028118 | Z67: 192.4980614 | AA67: 189.6651376 | AB67: 195.2127185 | AC67: 198.2993032 | AD67: 201.4346911 | AE67: 204.6196538 | AF67: 207.8549752 | AG67: 211.1414516 | AH67: 214.4798917 | AI67: =AI65*(1-$B$61) -> 217.8711172 | AJ67: 221.3159627 | AK67: 224.815276 | AL67: 228.3699183 | AM67: 231.9807645
A68: Cumulative connections - lag adjusted for revenue only | J68: =I66+J67 -> 192.1706755 | K68: 500.2276093 | L68: 811.7475709 | M68: 1125.665257 | N68: 1437.639522 | O68: 1744.673474 | P68: 2050.330358 | Q68: 2356.704405 | R68: 2660.556508 | S68: 2960.425569 | T68: 3260.048475 | U68: 3560.781095 | V68: 3862.664934 | W68: 4169.265441 | X68: 4476.02142 | Y68: 4781.129711 | Z68: 5087.989459 | AA68: 5393.153434 | AB68: 5702.165235 | AC68: 6017.592169 | AD68: 6338.006442 | AE68: 6663.48691 | AF68: 6994.113678 | AG68: 7329.968115 | AH68: 7671.132877 | AI68: =AH66+AI67 -> 8017.69193 | AJ68: =AI66+AJ67 -> 8369.730563 | AK68: =AJ66+AK67 -> 8727.335416 | AL68: =AK66+AL67 -> 9090.5945 | AM68: =AL66+AM67 -> 9459.597216
A70: Incremental Tariffs
A71: Residential
A72: Price Path | J72: =Tariffs!J9 -> 0 | K72: =Tariffs!K9 -> 0 | L72: =Tariffs!L9 -> 0 | M72: =Tariffs!M9 -> 0 | N72: =Tariffs!N9 -> 0 | O72: =Tariffs!O9 -> 0.00158 | P72: =Tariffs!P9 -> 0.00158 | Q72: =Tariffs!Q9 -> 0.00158 | R72: =Tariffs!R9 -> 0.00158 | S72: =Tariffs!S9 -> 0.00158 | T72: =Tariffs!T9 -> 0.00158 | U72: =Tariffs!U9 -> 0.00158 | V72: =Tariffs!V9 -> 0.00158 | W72: =Tariffs!W9 -> 0.00158 | X72: =Tariffs!X9 -> 0.00158 | Y72: =Tariffs!Y9 -> 0 | Z72: =Tariffs!Z9 -> 0 | AA72: =Tariffs!AA9 -> 0 | AB72: =Tariffs!AB9 -> 0 | AC72: =Tariffs!AC9 -> 0 | AD72: =Tariffs!AD9 -> 0 | AE72: =Tariffs!AE9 -> 0 | AF72: =Tariffs!AF9 -> 0 | AG72: =Tariffs!AG9 -> 0 | AH72: =Tariffs!AH9 -> 0 | AI72: =Tariffs!AI9 -> 0 | AJ72: =Tariffs!AJ9 -> 0 | AK72: =Tariffs!AK9 -> 0 | AL72: =Tariffs!AL9 -> 0 | AM72: =Tariffs!AM9 -> 0
A73: Water variable | G73: =Tariffs!G10 -> 2.0467 | H73: =Tariffs!H10 -> 2.0897 | I73: =Tariffs!I10 -> 2.2286 | J73: =Tariffs!J10 -> 2.2286 | K73: =Tariffs!K10 -> 2.2286 | L73: =Tariffs!L10 -> 2.2286 | M73: =Tariffs!M10 -> 2.2286 | N73: =Tariffs!N10 -> 2.2286 | O73: =Tariffs!O10 -> 2.232121188 | P73: =Tariffs!P10 -> 2.235647939 | Q73: =Tariffs!Q10 -> 2.239180263 | R73: =Tariffs!R10 -> 2.242718168 | S73: =Tariffs!S10 -> 2.246261663 | T73: =Tariffs!T10 -> 2.249810756 | U73: =Tariffs!U10 -> 2.253365457 | V73: =Tariffs!V10 -> 2.256925775 | W73: =Tariffs!W10 -> 2.260491717 | X73: =Tariffs!X10 -> 2.264063294 | Y73: =Tariffs!Y10 -> 2.264063294 | Z73: =Tariffs!Z10 -> 2.264063294 | AA73: =Tariffs!AA10 -> 2.264063294 | AB73: =Tariffs!AB10 -> 2.264063294 | AC73: =Tariffs!AC10 -> 2.264063294 | AD73: =Tariffs!AD10 -> 2.264063294 | AE73: =Tariffs!AE10 -> 2.264063294 | AF73: =Tariffs!AF10 -> 2.264063294 | AG73: =Tariffs!AG10 -> 2.264063294 | AH73: =Tariffs!AH10 -> 2.264063294 | AI73: =Tariffs!AI10 -> 2.264063294 | AJ73: =Tariffs!AJ10 -> 2.264063294 | AK73: =Tariffs!AK10 -> 2.264063294 | AL73: =Tariffs!AL10 -> 2.264063294 | AM73: =Tariffs!AM10 -> 2.264063294
A74: Water fixed | J74: =Tariffs!J11 -> 135.11 | K74: =Tariffs!K11 -> 135.11 | L74: =Tariffs!L11 -> 135.11 | M74: =Tariffs!M11 -> 135.11 | N74: =Tariffs!N11 -> 135.11 | O74: =Tariffs!O11 -> 135.3234738 | P74: =Tariffs!P11 -> 135.5372849 | Q74: =Tariffs!Q11 -> 135.7514338 | R74: =Tariffs!R11 -> 135.9659211 | S74: =Tariffs!S11 -> 136.1807472 | T74: =Tariffs!T11 -> 136.3959128 | U74: =Tariffs!U11 -> 136.6114183 | V74: =Tariffs!V11 -> 136.8272644 | W74: =Tariffs!W11 -> 137.0434515 | X74: =Tariffs!X11 -> 137.2599801 | Y74: =Tariffs!Y11 -> 137.2599801 | Z74: =Tariffs!Z11 -> 137.2599801 | AA74: =Tariffs!AA11 -> 137.2599801 | AB74: =Tariffs!AB11 -> 137.2599801 | AC74: =Tariffs!AC11 -> 137.2599801 | AD74: =Tariffs!AD11 -> 137.2599801 | AE74: =Tariffs!AE11 -> 137.2599801 | AF74: =Tariffs!AF11 -> 137.2599801 | AG74: =Tariffs!AG11 -> 137.2599801 | AH74: =Tariffs!AH11 -> 137.2599801 | AI74: =Tariffs!AI11 -> 137.2599801 | AJ74: =Tariffs!AJ11 -> 137.2599801 | AK74: =Tariffs!AK11 -> 137.2599801 | AL74: =Tariffs!AL11 -> 137.2599801 | AM74: =Tariffs!AM11 -> 137.2599801
A75: Sewerage Fixed
A76: Recycled Water variable | B76: 0.7 | G76: =G73*$B$76 -> 1.43269 | H76: =H73*$B$76 -> 1.46279 | I76: =I73*$B$76 -> 1.56002 | J76: =J73*$B$76 -> 1.56002 | K76: =K73*$B$76 -> 1.56002 | L76: 1.56002 | M76: 1.56002 | N76: 1.56002 | O76: 1.562484832 | P76: 1.564953558 | Q76: 1.567426184 | R76: 1.569902718 | S76: 1.572383164 | T76: 1.574867529 | U76: 1.57735582 | V76: 1.579848042 | W76: 1.582344202 | X76: 1.584844306 | Y76: 1.584844306 | Z76: 1.584844306 | AA76: 1.584844306 | AB76: 1.584844306 | AC76: 1.584844306 | AD76: 1.584844306 | AE76: 1.584844306 | AF76: 1.584844306 | AG76: 1.584844306 | AH76: 1.584844306 | AI76: =AI73*$B$76 -> 1.584844306 | AJ76: 1.584844306 | AK76: 1.584844306 | AL76: 1.584844306 | AM76: 1.584844306
A78: Non-residential
A79: Price Path | J79: =Tariffs!J15 -> 0 | K79: =Tariffs!K15 -> 0 | L79: =Tariffs!L15 -> 0 | M79: =Tariffs!M15 -> 0 | N79: =Tariffs!N15 -> 0 | O79: =Tariffs!O15 -> 0.00158 | P79: =Tariffs!P15 -> 0.00158 | Q79: =Tariffs!Q15 -> 0.00158 | R79: =Tariffs!R15 -> 0.00158 | S79: =Tariffs!S15 -> 0.00158 | T79: =Tariffs!T15 -> 0.00158 | U79: =Tariffs!U15 -> 0.00158 | V79: =Tariffs!V15 -> 0.00158 | W79: =Tariffs!W15 -> 0.00158 | X79: =Tariffs!X15 -> 0.00158 | Y79: =Tariffs!Y15 -> 0 | Z79: =Tariffs!Z15 -> 0 | AA79: =Tariffs!AA15 -> 0 | AB79: =Tariffs!AB15 -> 0 | AC79: =Tariffs!AC15 -> 0 | AD79: =Tariffs!AD15 -> 0 | AE79: =Tariffs!AE15 -> 0 | AF79: =Tariffs!AF15 -> 0 | AG79: =Tariffs!AG15 -> 0 | AH79: =Tariffs!AH15 -> 0 | AI79: =Tariffs!AI15 -> 0 | AJ79: =Tariffs!AJ15 -> 0 | AK79: =Tariffs!AK15 -> 0 | AL79: =Tariffs!AL15 -> 0 | AM79: =Tariffs!AM15 -> 0
A80: Water variable | G80: =Tariffs!G16 -> 2.2375 | H80: =Tariffs!H16 -> 2.1825 | I80: =Tariffs!I16 -> 2.2286 | J80: =Tariffs!J16 -> 2.2286 | K80: =Tariffs!K16 -> 2.2286 | L80: =Tariffs!L16 -> 2.2286 | M80: =Tariffs!M16 -> 2.2286 | N80: =Tariffs!N16 -> 2.2286 | O80: =Tariffs!O16 -> 2.232121188 | P80: =Tariffs!P16 -> 2.235647939 | Q80: =Tariffs!Q16 -> 2.239180263 | R80: =Tariffs!R16 -> 2.242718168 | S80: =Tariffs!S16 -> 2.246261663 | T80: =Tariffs!T16 -> 2.249810756 | U80: =Tariffs!U16 -> 2.253365457 | V80: =Tariffs!V16 -> 2.256925775 | W80: =Tariffs!W16 -> 2.260491717 | X80: =Tariffs!X16 -> 2.264063294 | Y80: =Tariffs!Y16 -> 2.264063294 | Z80: =Tariffs!Z16 -> 2.264063294 | AA80: =Tariffs!AA16 -> 2.264063294 | AB80: =Tariffs!AB16 -> 2.264063294 | AC80: =Tariffs!AC16 -> 2.264063294 | AD80: =Tariffs!AD16 -> 2.264063294 | AE80: =Tariffs!AE16 -> 2.264063294 | AF80: =Tariffs!AF16 -> 2.264063294 | AG80: =Tariffs!AG16 -> 2.264063294 | AH80: =Tariffs!AH16 -> 2.264063294 | AI80: =Tariffs!AI16 -> 2.264063294 | AJ80: =Tariffs!AJ16 -> 2.264063294 | AK80: =Tariffs!AK16 -> 2.264063294 | AL80: =Tariffs!AL16 -> 2.264063294 | AM80: =Tariffs!AM16 -> 2.264063294
A81: Water fixed | J81: =Tariffs!J17 -> 135.11 | K81: =Tariffs!K17 -> 135.11 | L81: =Tariffs!L17 -> 135.11 | M81: =Tariffs!M17 -> 135.11 | N81: =Tariffs!N17 -> 135.11 | O81: =Tariffs!O17 -> 135.3234738 | P81: =Tariffs!P17 -> 135.5372849 | Q81: =Tariffs!Q17 -> 135.7514338 | R81: =Tariffs!R17 -> 135.9659211 | S81: =Tariffs!S17 -> 136.1807472 | T81: =Tariffs!T17 -> 136.3959128 | U81: =Tariffs!U17 -> 136.6114183 | V81: =Tariffs!V17 -> 136.8272644 | W81: =Tariffs!W17 -> 137.0434515 | X81: =Tariffs!X17 -> 137.2599801 | Y81: =Tariffs!Y17 -> 137.2599801 | Z81: =Tariffs!Z17 -> 137.2599801 | AA81: =Tariffs!AA17 -> 137.2599801 | AB81: =Tariffs!AB17 -> 137.2599801 | AC81: =Tariffs!AC17 -> 137.2599801 | AD81: =Tariffs!AD17 -> 137.2599801 | AE81: =Tariffs!AE17 -> 137.2599801 | AF81: =Tariffs!AF17 -> 137.2599801 | AG81: =Tariffs!AG17 -> 137.2599801 | AH81: =Tariffs!AH17 -> 137.2599801 | AI81: =Tariffs!AI17 -> 137.2599801 | AJ81: =Tariffs!AJ17 -> 137.2599801 | AK81: =Tariffs!AK17 -> 137.2599801 | AL81: =Tariffs!AL17 -> 137.2599801 | AM81: =Tariffs!AM17 -> 137.2599801
A82: Sewerage Variable
A83: Sewerage Fixed
A84: Recycled Water variable | B84: 0.8 | G84: =G80*$B$84 -> 1.79 | H84: 1.746 | I84: 1.78288 | J84: 1.78288 | K84: 1.78288 | L84: 1.78288 | M84: 1.78288 | N84: 1.78288 | O84: 1.78569695 | P84: 1.788518352 | Q84: 1.791344211 | R84: 1.794174534 | S84: 1.79700933 | T84: 1.799848605 | U84: 1.802692366 | V84: 1.80554062 | W84: 1.808393374 | X84: 1.811250635 | Y84: 1.811250635 | Z84: 1.811250635 | AA84: 1.811250635 | AB84: 1.811250635 | AC84: 1.811250635 | AD84: 1.811250635 | AE84: 1.811250635 | AF84: 1.811250635 | AG84: 1.811250635 | AH84: 1.811250635 | AI84: =AI80*$B$84 -> 1.811250635 | AJ84: 1.811250635 | AK84: 1.811250635 | AL84: 1.811250635 | AM84: 1.811250635
A86: Incremental Revenue
A87: Residential
A88: Volume - Potable water (kL/connection) | B88: needed to calculate sewerage discharge volumes | J88: 160 | K88: =J88 -> 160 | L88: 160 | M88: 160 | N88: 160 | O88: =N88 -> 160 | P88: 160 | Q88: 160 | R88: 160 | S88: 160 | T88: 160 | U88: 160 | V88: 160 | W88: 160 | X88: 160 | Y88: 160 | Z88: 160 | AA88: 160 | AB88: 160 | AC88: 160 | AD88: 160 | AE88: 160 | AF88: 160 | AG88: 160 | AH88: 160 | AI88: =AH88 -> 160 | AJ88: =AI88 -> 160 | AK88: =AJ88 -> 160 | AL88: =AK88 -> 160 | AM88: =AL88 -> 160
A89: Volume - Recycled water (kL/connection) | J89: =J88*0.35 -> 56 | K89: 56 | L89: 56 | M89: 56 | N89: 56 | O89: 56 | P89: 56 | Q89: 56 | R89: 56 | S89: 56 | T89: 56 | U89: 56 | V89: 56 | W89: 56 | X89: 56 | Y89: 56 | Z89: 56 | AA89: 56 | AB89: 56 | AC89: 56 | AD89: 56 | AE89: 56 | AF89: 56 | AG89: 56 | AH89: 56 | AI89: 56 | AJ89: 56 | AK89: 56 | AL89: 56 | AM89: 56
A90: Volume - Potable water (kL/annum) | J90: =J88*J62 -> 384578.1464 | K90: =K88*K62 -> 1001062.371 | L90: 1624461.405 | M90: 2252645.899 | N90: 2876928.954 | O90: 3501038.841 | P90: 4127890.451 | Q90: 4755635.449 | R90: 5378089.022 | S90: 5992055.817 | T90: 6605091.904 | U90: 7219938.39 | V90: 7837089.439 | W90: 8464225.603 | X90: 9091310.763 | Y90: 9714326.136 | Z90: 10341301.61 | AA90: 10964129.41 | AB90: 11588559.31 | AC90: 12222617.64 | AD90: 12866701.31 | AE90: 13520968.84 | AF90: 14185581.25 | AG90: 14860702.11 | AH90: 15546497.57 | AI90: =AI88*AI62 -> 16243136.41 | AJ90: 16950790.08 | AK90: 17669632.74 | AL90: 18399841.3 | AM90: 19141595.47
A91: Volume - Recycled water (kL/annum) | J91: =J89*Connections!O60 -> 84512.47627 | K91: =K89*Connections!P60 -> 169024.9525 | L91: =L89*Connections!Q60 -> 253537.4288 | M91: =M89*Connections!R60 -> 338049.9051 | N91: =N89*Connections!S60 -> 422562.3814 | O91: =O89*Connections!T60 -> 507074.8576 | P91: =P89*Connections!U60 -> 591587.3339 | Q91: =Q89*Connections!V60 -> 676099.8102 | R91: =R89*Connections!W60 -> 760612.2865 | S91: =S89*Connections!X60 -> 845124.7627 | T91: =T89*Connections!Y60 -> 929637.239 | U91: =U89*Connections!Z60 -> 1014149.715 | V91: =V89*Connections!AA60 -> 1098662.192 | W91: =W89*Connections!AB60 -> 1183174.668 | X91: =X89*Connections!AC60 -> 1267687.144 | Y91: =Y89*Connections!AD60 -> 1352199.62 | Z91: =Z89*Connections!AE60 -> 1436712.097 | AA91: =AA89*Connections!AF60 -> 1521224.573 | AB91: =AB89*Connections!AG60 -> 1605737.049 | AC91: =AC89*Connections!AH60 -> 1690249.525 | AD91: =AD89*Connections!AI60 -> 1774762.002 | AE91: =AE89*Connections!AJ60 -> 1859274.478 | AF91: =AF89*Connections!AK60 -> 1943786.954 | AG91: =AG89*Connections!AL60 -> 2028299.431 | AH91: =AH89*Connections!AM60 -> 2112811.907 | AI91: =AI89*Connections!AN60 -> 2197324.383 | AJ91: =AJ89*Connections!AO60 -> 2281836.859 | AK91: =AK89*Connections!AP60 -> 2366349.336 | AL91: =AL89*Connections!AQ60 -> 2450861.812 | AM91: =AM89*Connections!AR60 -> 2535374.288
A92: Revenue - Potable water volume | J92: =(J90*J$73)/1000000 -> 0.8570708571 | K92: =(K90*K$73)/1000000 -> 2.2309676 | L92: 3.620274688 | M92: 5.020246651 | N92: 6.411523866 | O92: 7.814742978 | P92: 9.22850978 | Q92: 10.64872504 | R92: 12.06153796 | S92: 13.45972526 | T92: 14.86020681 | U92: 16.26915977 | V92: 17.68772915 | W92: 19.13331187 | X92: 20.58330299 | Y92: 21.99384923 | Z92: 23.41336139 | AA92: 24.82348295 | AB92: 26.23723176 | AC92: =(AC90*AC$73)/1000000 -> 27.67277995 | AD92: 29.13102615 | AE92: 30.61232926 | AF92: 32.11705382 | AG92: 33.64557018 | AH92: 35.1982545 | AI92: =(AI90*AI$73)/1000000 -> 36.77548893 | AJ92: 38.37766163 | AK92: 40.0051669 | AL92: 41.6584053 | AM92: 43.3377837
A93: Revenue - Fixed potable water | J93: =(J62*J$74)/1000000 -> 0.3247522085 | K93: =(K62*K$74)/1000000 -> 0.8453346059 | L93: 1.371756128 | M93: 1.902218671 | N93: 2.429386693 | O93: 2.961079612 | P93: 3.49676915 | Q93: 4.034902067 | R93: 4.570230172 | S93: 5.100016491 | T93: 5.630672121 | U93: 6.164537649 | V93: 6.70204693 | W93: 7.249791816 | X93: 7.799207091 | Y93: 8.333676326 | Z93: 8.871542834 | AA93: 9.405851154 | AB93: 9.941533877 | AC93: 10.48547659 | AD93: 11.03801979 | AE93: 11.59929946 | AF93: 12.16945375 | AG93: 12.74862298 | AH93: 13.33694967 | AI93: =(AI62*AI$74)/1000000 -> 13.93457863 | AJ93: 14.54165693 | AK93: 15.15833399 | AL93: 15.78476157 | AM93: 16.42109384
A94: Revenue - Sewerage Service Charges | J94: =(J62*J$75)/1000000 -> 0 | K94: =(K62*K$75)/1000000 -> 0 | L94: 0 | M94: 0 | N94: 0 | O94: 0 | P94: 0 | Q94: 0 | R94: 0 | S94: 0 | T94: 0 | U94: 0 | V94: 0 | W94: 0 | X94: 0 | Y94: 0 | Z94: 0 | AA94: 0 | AB94: 0 | AC94: 0 | AD94: 0 | AE94: 0 | AF94: 0 | AG94: 0 | AH94: 0 | AI94: =(AI62*AI$75)/1000000 -> 0 | AJ94: 0 | AK94: 0 | AL94: 0 | AM94: 0
A95: Revenue - Recycled water volume | J95: =(J91*J$76)/1000000 -> 0.1318411532 | K95: =(K91*K$76)/1000000 -> 0.2636823065 | L95: 0.3955234597 | M95: 0.5273646129 | N95: 0.6592057662 | O95: 0.7922967735 | P95: 0.9258067029 | Q95: 1.059736546 | R95: 1.194087296 | S95: 1.328859948 | T95: 1.464055502 | U95: 1.599674956 | V95: 1.735719312 | W95: 1.872189576 | X95: 2.009086752 | Y95: 2.143025869 | Z95: 2.276964986 | AA95: 2.410904102 | AB95: 2.544843219 | AC95: 2.678782336 | AD95: 2.812721453 | AE95: 2.94666057 | AF95: 3.080599686 | AG95: 3.214538803 | AH95: 3.34847792 | AI95: =(AI91*AI$76)/1000000 -> 3.482417037 | AJ95: 3.616356154 | AK95: 3.750295271 | AL95: 3.884234387 | AM95: 4.018173504
A96: Total residential revenue | J96: =SUM(J92:J95) -> 1.313664219 | K96: =SUM(K92:K95) -> 3.339984512 | L96: 5.387554276 | M96: 7.449829935 | N96: 9.500116326 | O96: 11.56811936 | P96: 13.65108563 | Q96: 15.74336365 | R96: 17.82585543 | S96: 19.8886017 | T96: 21.95493443 | U96: 24.03337237 | V96: 26.1254954 | W96: 28.25529326 | X96: 30.39159684 | Y96: 32.47055143 | Z96: 34.56186921 | AA96: 36.64023821 | AB96: 38.72360886 | AC96: 40.83703887 | AD96: 42.98176739 | AE96: 45.15828929 | AF96: 47.36710726 | AG96: 49.60873196 | AH96: 51.8836821 | AI96: =SUM(AI92:AI95) -> 54.1924846 | AJ96: 56.53567471 | AK96: 58.91379616 | AL96: 61.32740125 | AM96: 63.77705104
A97: Sewerage discharge volume (for incremental Opex calc) | B97: 0.95 | J97: =J90*$B$97 -> 365349.2391 | K97: =K90*$B$97 -> 951009.2525 | L97: 1543238.335 | M97: 2140013.604 | N97: 2733082.506 | O97: 3325986.899 | P97: 3921495.928 | Q97: 4517853.676 | R97: 5109184.571 | S97: 5692453.026 | T97: 6274837.308 | U97: 6858941.47 | V97: 7445234.968 | W97: 8041014.323 | X97: 8636745.225 | Y97: 9228609.829 | Z97: 9824236.53 | AA97: 10415922.94 | AB97: 11009131.34 | AC97: 11611486.76 | AD97: 12223366.24 | AE97: 12844920.4 | AF97: 13476302.19 | AG97: 14117667.01 | AH97: 14769172.69 | AI97: =AI90*$B$97 -> 15430979.59 | AJ97: 16103250.57 | AK97: 16786151.1 | AL97: 17479849.23 | AM97: 18184515.7
A99: Non-residential
A100: Volume - Potable water (kL/connection) | J100: =SUM([7]RevenueTariffBasket_FO!$W$84:$AA$84)/SUM([7]RevenueTariffBasket_FO!$W$78:$AA$78) -> 756.3189304 | K100: =J100 -> 756.3189304 | L100: 756.3189304 | M100: 756.3189304 | N100: 756.3189304 | O100: 756.3189304 | P100: 756.3189304 | Q100: 756.3189304 | R100: 756.3189304 | S100: 756.3189304 | T100: 756.3189304 | U100: 756.3189304 | V100: 756.3189304 | W100: =V100 -> 756.3189304 | X100: 756.3189304 | Y100: 756.3189304 | Z100: 756.3189304 | AA100: 756.3189304 | AB100: 756.3189304 | AC100: 756.3189304 | AD100: 756.3189304 | AE100: 756.3189304 | AF100: 756.3189304 | AG100: 756.3189304 | AH100: 756.3189304 | AI100: =AH100 -> 756.3189304 | AJ100: =AI100 -> 756.3189304 | AK100: =AJ100 -> 756.3189304 | AL100: =AK100 -> 756.3189304 | AM100: =AL100 -> 756.3189304
A101: Volume - Recycled water (kL/connection) | J101: =J89*3 -> 168 | K101: 168 | L101: 168 | M101: 168 | N101: 168 | O101: 168 | P101: 168 | Q101: 168 | R101: 168 | S101: 168 | T101: 168 | U101: 168 | V101: 168 | W101: 168 | X101: 168 | Y101: 168 | Z101: 168 | AA101: 168 | AB101: 168 | AC101: 168 | AD101: 168 | AE101: 168 | AF101: 168 | AG101: 168 | AH101: 168 | AI101: 168 | AJ101: 168 | AK101: 168 | AL101: 168 | AM101: 168
A102: Volume - Potable water (kL/annum) | J102: =J100*J68 -> 145342.3197 | K102: =K100*K68 -> 378331.6104 | L102: 613940.0546 | M102: 851361.9431 | N102: 1087313.985 | O102: 1319529.576 | P102: 1550703.663 | Q102: 1782420.155 | R102: 2012229.252 | S102: 2239025.9 | T102: 2465636.376 | U102: 2693086.149 | V102: 2921406.611 | W102: 3153294.379 | X102: 3385299.733 | Y102: 3616058.909 | Z102: 3848142.746 | AA102: 4078944.037 | AB102: 4312655.511 | AC102: 4551218.873 | AD102: 4793554.253 | AE102: 5039721.293 | AF102: 5289780.576 | AG102: 5543793.645 | AH102: 5801823.013 | AI102: =AI100*AI68 -> 6063932.185 | AJ102: 6330185.667 | AK102: 6600648.987 | AL102: 6875388.709 | AM102: 7154472.448
A103: Sewerage discharge volume (for revenue and incremental Opex calc) | B103: 0.95 | J103: =$B$103*J102 -> 138075.2037 | K103: =$B$103*K102 -> 359415.0299 | L103: 583243.0518 | M103: 808793.8459 | N103: 1032948.286 | O103: 1253553.097 | P103: 1473168.48 | Q103: 1693299.147 | R103: 1911617.79 | S103: 2127074.605 | T103: 2342354.557 | U103: 2558431.842 | V103: 2775336.281 | W103: 2995629.66 | X103: 3216034.746 | Y103: 3435255.964 | Z103: 3655735.608 | AA103: 3874996.835 | AB103: 4097022.736 | AC103: 4323657.929 | AD103: 4553876.541 | AE103: 4787735.228 | AF103: 5025291.547 | AG103: 5266603.962 | AH103: 5511731.862 | AI103: =$B$103*AI102 -> 5760735.575 | AJ103: 6013676.384 | AK103: 6270616.538 | AL103: 6531619.274 | AM103: 6796748.826
A104: Volume - Recycled water (kL/annum) | J104: =J101*Connections!O61 -> 2595.37118 | K104: =K101*Connections!P61 -> 5190.742361 | L104: =L101*Connections!Q61 -> 7786.113541 | M104: =M101*Connections!R61 -> 10381.48472 | N104: =N101*Connections!S61 -> 12976.8559 | O104: =O101*Connections!T61 -> 15572.22708 | P104: =P101*Connections!U61 -> 18167.59826 | Q104: =Q101*Connections!V61 -> 20762.96944 | R104: =R101*Connections!W61 -> 23358.34062 | S104: =S101*Connections!X61 -> 25953.7118 | T104: =T101*Connections!Y61 -> 28549.08298 | U104: =U101*Connections!Z61 -> 31144.45417 | V104: =V101*Connections!AA61 -> 33739.82535 | W104: =W101*Connections!AB61 -> 36335.19653 | X104: =X101*Connections!AC61 -> 38930.56771 | Y104: =Y101*Connections!AD61 -> 41525.93889 | Z104: =Z101*Connections!AE61 -> 44121.31007 | AA104: =AA101*Connections!AF61 -> 46716.68125 | AB104: =AB101*Connections!AG61 -> 49312.05243 | AC104: =AC101*Connections!AH61 -> 51907.42361 | AD104: =AD101*Connections!AI61 -> 54502.79479 | AE104: =AE101*Connections!AJ61 -> 57098.16597 | AF104: =AF101*Connections!AK61 -> 59693.53715 | AG104: =AG101*Connections!AL61 -> 62288.90833 | AH104: =AH101*Connections!AM61 -> 64884.27951 | AI104: =AI101*Connections!AN61 -> 67479.65069 | AJ104: =AJ101*Connections!AO61 -> 70075.02187 | AK104: =AK101*Connections!AP61 -> 72670.39305 | AL104: =AL101*Connections!AQ61 -> 75265.76423 | AM104: =AM101*Connections!AR61 -> 77861.13541
A105: Revenue - Potable water volume | J105: =(J102*J$80)/1000000 -> 0.3239098938 | K105: =(K102*K$80)/1000000 -> 0.843149827 | L105: 1.368226806 | M105: 1.897345226 | N105: 2.423187948 | O105: 2.945349924 | P105: 3.466827449 | Q105: 3.991160031 | R105: 4.512863102 | S105: 5.029438041 | T105: 5.547215239 | U105: 6.068507302 | V105: 6.593397879 | W105: 7.127995827 | X105: 7.664532866 | Y105: 8.186986246 | Z105: 8.712438742 | AA105: 9.234987472 | AB105: 9.764125044 | AC105: 10.30424759 | AD105: 10.85291023 | AE105: 11.41024799 | AF105: 11.97639804 | AG105: 12.5514997 | AH105: 13.13569452 | AI105: 13.72912628 | AJ105: 14.33194101 | AK105: 14.94428709 | AL105: 15.56631521 | AM105: 16.19817846
A106: Revenue - Fixed potable water | J106: =(J68*J$81)/1000000 -> 0.02596417996 | K106: =(K68*K$81)/1000000 -> 0.06758575229 | L106: 0.1096752143 | M106: 0.1520886329 | N106: 0.1942394758 | O106: 0.2360952751 | P106: 0.2778962098 | Q106: 0.319926002 | R106: 0.3617450161 | S106: 0.4031529661 | T106: =(T68*T$81)/1000000 -> 0.4446572875 | U106: =(U68*U$81)/1000000 -> 0.4864433558 | V106: 0.5285178761 | W106: 0.5713705261 | X106: 0.6143786111 | Y106: 0.656257769 | Z106: 0.698377332 | AA106: 0.7402641331 | AB106: 0.7826790867 | AC106: 0.8259745815 | AD106: 0.8699546382 | AE106: 0.9146300808 | AF106: 0.9600119044 | AG106: 1.006111278 | AH106: 1.052939546 | AI106: 1.100508235 | AJ106: 1.148829051 | AK106: 1.197913886 | AL106: 1.24777482 | AM106: 1.298424126
A107: Revenue - Service Charges | C107: /connection | J107: =(J68*$E$83)/1000000 -> 0 | K107: 0 | L107: 0 | M107: 0 | N107: 0 | O107: 0 | P107: 0 | Q107: 0 | R107: 0 | S107: 0 | T107: 0 | U107: 0 | V107: 0 | W107: 0 | X107: 0 | Y107: 0 | Z107: 0 | AA107: 0 | AB107: 0 | AC107: 0 | AD107: 0 | AE107: 0 | AF107: 0 | AG107: 0 | AH107: 0 | AI107: =(AI68*$E$83)/1000000 -> 0 | AJ107: 0 | AK107: 0 | AL107: 0 | AM107: 0
A108: Revenue - Recycled water volume | J108: =(J104*J$84)/1000000 -> 0.00462723537 | K108: =(K104*K$84)/1000000 -> 0.00925447074 | L108: 0.01388170611 | M108: 0.01850894148 | N108: 0.02313617685 | O108: 0.02780727841 | P108: 0.0324930829 | Q108: 0.03719362511 | R108: 0.04190893991 | S108: 0.04663906227 | T108: 0.05138402718 | U108: 0.05614386976 | V108: 0.06091862516 | W108: 0.06570832863 | X108: 0.07051301549 | Y108: 0.07521388319 | Z108: 0.07991475089 | AA108: 0.08461561859 | AB108: 0.08931648629 | AC108: 0.09401735399 | AD108: 0.09871822169 | AE108: 0.1034190894 | AF108: 0.1081199571 | AG108: 0.1128208248 | AH108: 0.1175216925 | AI108: =(AI104*AI$84)/1000000 -> 0.1222225602 | AJ108: 0.1269234279 | AK108: 0.1316242956 | AL108: 0.1363251633 | AM108: 0.141026031
A109: Total Non-residential revenue | J109: =SUM(J105:J108) -> 0.3545013091 | K109: 0.91999005 | L109: 1.491783726 | M109: 2.067942801 | N109: 2.640563601 | O109: 3.209252478 | P109: 3.777216742 | Q109: 4.348279658 | R109: 4.916517058 | S109: 5.479230069 | T109: =SUM(T105:T108) -> 6.043256554 | U109: 6.611094528 | V109: 7.18283438 | W109: 7.765074681 | X109: 8.349424492 | Y109: 8.918457898 | Z109: 9.490730824 | AA109: 10.05986722 | AB109: 10.63612062 | AC109: 11.22423953 | AD109: 11.82158309 | AE109: 12.42829716 | AF109: 13.0445299 | AG109: 13.6704318 | AH109: 14.30615576 | AI109: =SUM(AI105:AI108) -> 14.95185707 | AJ109: 15.60769349 | AK109: 16.27382527 | AL109: 16.95041519 | AM109: 17.63762862
A111: Incremental tariff revenue | J111: =J109+J96 -> 1.668165528 | K111: =K109+K96 -> 4.259974562 | L111: 6.879338002 | M111: 9.517772736 | N111: 12.14067993 | O111: 14.77737184 | P111: 17.42830237 | Q111: 20.09164331 | R111: 22.74237248 | S111: 25.36783177 | T111: 27.99819099 | U111: 30.6444669 | V111: 33.30832978 | W111: 36.02036794 | X111: 38.74102133 | Y111: 41.38900932 | Z111: 44.05260003 | AA111: 46.70010543 | AB111: 49.35972948 | AC111: 52.0612784 | AD111: 54.80335049 | AE111: 57.58658645 | AF111: 60.41163716 | AG111: 63.27916376 | AH111: 66.18983786 | AI111: =AI109+AI96 -> 69.14434167 | AJ111: 72.1433682 | AK111: 75.18762143 | AL111: 78.27781645 | AM111: 81.41467965 | AO111: =AM111 -> 81.41467965
A112: Capital contributions | J112: =$B$7*J59/1000000 -> 11.32199943 | K112: =$B$7*K59/1000000 -> 11.35612605 | L112: 11.53922242 | M112: 11.57024875 | N112: 11.43677439 | O112: 11.51176097 | P112: 11.54748543 | Q112: 11.55235217 | R112: 11.39365232 | S112: 11.23902106 | T112: 11.30439972 | U112: 11.31847077 | V112: 11.3778746 | W112: 11.63619455 | X112: 11.47970101 | Y112: 11.45378242 | Z112: 11.58591916 | AA112: 11.38452936 | AB112: 11.55252914 | AC112: 11.7351907 | AD112: 11.92074039 | AE112: 12.10922388 | AF112: 12.30068756 | AG112: 12.49517854 | AH112: 12.6927447 | AI112: =$B$7*AI59/1000000 -> 12.89343466 | AJ112: 13.0972978 | AK112: 13.3043843 | AL112: 13.51474512 | AM112: 13.72843205 | AO112: =SUM(J112:AM112) -> 357.3541034
A113: Total revenue | J113: =SUM(J111:J112) -> 12.99016495 | K113: 15.61610061 | L113: 18.41856042 | M113: 21.08802148 | N113: 23.57745432 | O113: 26.28913281 | P113: 28.97578781 | Q113: 31.64399548 | R113: 34.13602481 | S113: 36.60685283 | T113: 39.30259071 | U113: 41.96293768 | V113: 44.68620438 | W113: 47.6565625 | X113: 50.22072234 | Y113: 52.84279175 | Z113: 55.63851919 | AA113: 58.08463479 | AB113: 60.91225861 | AC113: 63.7964691 | AD113: 66.72409088 | AE113: 69.69581034 | AF113: 72.71232472 | AG113: 75.77434231 | AH113: 78.88258256 | AI113: =SUM(AI111:AI112) -> 82.03777632 | AJ113: 85.240666 | AK113: 88.49200573 | AL113: 91.79256157 | AM113: 95.1431117
A115: Incremental Net Tax
A117: Gifted Assets | J117: =J52 -> 12.34762576 | K117: =K52 -> 12.38486576 | L117: 12.58457199 | M117: 12.61842545 | N117: 12.47287912 | O117: 12.53155859 | P117: 12.57131185 | Q117: 12.57743175 | R117: 12.40444937 | S117: 12.23698034 | T117: 12.30862089 | U117: 12.32473843 | V117: 12.38905869 | W117: 12.66976023 | X117: 12.50056249 | Y117: 12.47324866 | Z117: 12.61570212 | AA117: 12.3988532 | AB117: 12.59489632 | AC117: 12.79403915 | AD117: 12.99633071 | AE117: 13.20182078 | AF117: 13.41055994 | AG117: 13.62259955 | AH117: 13.8379918 | AI117: 14.05678971 | AJ117: 14.27904711 | AK117: 14.50481871 | AL117: 14.73416008 | AM117: 14.96712765
A118: Incremental Tariff Revenue | J118: =J111 -> 1.668165528 | K118: =K111 -> 4.259974562 | L118: 6.879338002 | M118: 9.517772736 | N118: 12.14067993 | O118: 14.77737184 | P118: 17.42830237 | Q118: 20.09164331 | R118: 22.74237248 | S118: 25.36783177 | T118: 27.99819099 | U118: 30.6444669 | V118: 33.30832978 | W118: 36.02036794 | X118: 38.74102133 | Y118: 41.38900932 | Z118: 44.05260003 | AA118: 46.70010543 | AB118: 49.35972948 | AC118: 52.0612784 | AD118: 54.80335049 | AE118: 57.58658645 | AF118: 60.41163716 | AG118: 63.27916376 | AH118: 66.18983786 | AI118: 69.14434167 | AJ118: 72.1433682 | AK118: 75.18762143 | AL118: 78.27781645 | AM118: 81.41467965
A119: Incremental O&M | J119: =-J42 -> -0.3647380201 | K119: =-K42 -> -0.880044608 | L119: -1.438580954 | M119: -2.056245926 | N119: -2.687497054 | O119: -3.423832451 | P119: -4.292849302 | Q119: -4.999369258 | R119: -5.658783844 | S119: -6.366341129 | T119: -7.00534276 | U119: -7.731815258 | V119: -8.540796954 | W119: -9.143785828 | X119: -11.61894624 | Y119: -14.05664915 | Z119: -16.51475508 | AA119: -18.96341224 | AB119: -21.4192696 | AC119: -24.03628079 | AD119: -26.56667422 | AE119: -29.12991376 | AF119: -31.7335249 | AG119: -34.37811376 | AH119: -37.06094902 | AI119: =-AI42 -> -39.78008884 | AJ119: -42.54208285 | AK119: -45.34757643 | AL119: -48.19722516 | AM119: =-AM42 -> -51.09169498
A120: Tax Depreciation | I120: =-I55-I20 -> 0 | J120: =-J55-J20 -> -0.3305736924 | K120: =-K55-K20 -> -0.7801859915 | L120: -1.376990368 | M120: -1.868475074 | N120: -2.415975056 | O120: -3.375847342 | P120: -4.846553966 | Q120: -5.667090364 | R120: -6.308272749 | S120: -7.152770082 | T120: -7.721119995 | U120: -8.620768841 | V120: -9.830980084 | W120: -10.19629269 | X120: -10.63294638 | Y120: -10.96912506 | Z120: -11.32235151 | AA120: -11.68749283 | AB120: -12.02540933 | AC120: -12.83918359 | AD120: -13.16074634 | AE120: -13.45797667 | AF120: -13.75818899 | AG120: -14.06143044 | AH120: -14.35457689 | AI120: =-AI55-AI20 -> -14.6275735 | AJ120: -14.90374523 | AK120: -15.18314226 | AL120: -15.4658156 | AM120: -15.75181705
A121: Other Benefits (Taxable Income)
A122: Capital contributions | J122: =J112 -> 11.32199943 | K122: 11.35612605 | L122: 11.53922242 | M122: 11.57024875 | N122: 11.43677439 | O122: 11.51176097 | P122: 11.54748543 | Q122: 11.55235217 | R122: 11.39365232 | S122: 11.23902106 | T122: 11.30439972 | U122: 11.31847077 | V122: 11.3778746 | W122: 11.63619455 | X122: 11.47970101 | Y122: 11.45378242 | Z122: 11.58591916 | AA122: 11.38452936 | AB122: 11.55252914 | AC122: 11.7351907 | AD122: 11.92074039 | AE122: 12.10922388 | AF122: 12.30068756 | AG122: 12.49517854 | AH122: 12.6927447 | AI122: 12.89343466 | AJ122: 13.0972978 | AK122: 13.3043843 | AL122: 13.51474512 | AM122: 13.72843205
A123: Change in net taxable income | I123: =SUM(I117:I122) -> 0 | J123: =SUM(J117:J122) -> 24.642479 | K123: =SUM(K117:K122) -> 26.34073577 | L123: 28.18756109 | M123: 29.78172593 | N123: 30.94686133 | O123: 32.02101161 | P123: 32.40769639 | Q123: 33.55496761 | R123: 34.57341758 | S123: 35.32472196 | T123: 36.88474884 | U123: 37.935092 | V123: 38.70348603 | W123: 40.98624421 | X123: 40.4693922 | Y123: 40.2902662 | Z123: 40.41711472 | AA123: 39.83258291 | AB123: 40.062476 | AC123: 39.71504388 | AD123: 39.99300103 | AE123: 40.30974069 | AF123: 40.63117077 | AG123: 40.95739766 | AH123: 41.30504846 | AI123: 41.68690369 | AJ123: 42.07388503 | AK123: 42.46610575 | AL123: 42.86368089 | AM123: 43.26672732
A125: Corporate tax rate | J125: 0.3 | K125: =J125 -> 0.3 | L125: =K125 -> 0.3 | M125: 0.3 | N125: 0.3 | O125: 0.3 | P125: 0.3 | Q125: 0.3 | R125: 0.3 | S125: 0.3 | T125: 0.3 | U125: 0.3 | V125: 0.3 | W125: 0.3 | X125: 0.3 | Y125: 0.3 | Z125: 0.3 | AA125: 0.3 | AB125: 0.3 | AC125: 0.3 | AD125: 0.3 | AE125: 0.3 | AF125: 0.3 | AG125: 0.3 | AH125: 0.3 | AI125: 0.3 | AJ125: 0.3 | AK125: 0.3 | AL125: 0.3 | AM125: 0.3
A126: Change in tax | I126: =-I123*I125 -> 0 | J126: =-J123*J125 -> -7.392743701 | K126: =-K123*K125 -> -7.902220732 | L126: -8.456268326 | M126: -8.93451778 | N126: -9.284058399 | O126: -9.606303482 | P126: -9.722308916 | Q126: -10.06649028 | R126: -10.37202527 | S126: -10.59741659 | T126: -11.06542465 | U126: -11.3805276 | V126: -11.61104581 | W126: -12.29587326 | X126: -12.14081766 | Y126: -12.08707986 | Z126: -12.12513442 | AA126: -11.94977487 | AB126: -12.0187428 | AC126: -11.91451316 | AD126: -11.99790031 | AE126: -12.09292221 | AF126: -12.18935123 | AG126: -12.2872193 | AH126: -12.39151454 | AI126: -12.50607111 | AJ126: -12.62216551 | AK126: -12.73983172 | AL126: -12.85910427 | AM126: -12.98001819
A128: NCC Calculation
AO129: Post Tax Nominal Discount Factor | AP129: (%) | AQ129: 1.038
C130: NPV
A131: Incremental CAPEX | C131: =NPV($B$3,J131:AM131)+I131 -> -534.8593596 | I131: =-I17 -> 0 | J131: -10.79253271 | K131: -19.08799517 | L131: -29.19173437 | M131: -21.78550397 | N131: -25.85211965 | O131: -54.6595014 | P131: -90.3781518 | Q131: -44.86011615 | R131: -32.47831757 | S131: -46.87783298 | T131: -27.47587304 | U131: -50.65068075 | V131: -72.32572836 | W131: -12.9021224 | X131: -18.06519584 | Y131: -11.0592586 | Z131: -12.11014919 | AA131: -13.16103977 | AB131: -11.0592586 | AC131: -44.17015869 | AD131: -9.513061877 | AE131: -7.604302284 | AF131: -7.604302284 | AG131: -7.604302284 | AH131: -6.682259292 | AI131: -5.052973661 | AJ131: -5.052973661 | AK131: -5.052973661 | AL131: -5.052973661 | AM131: -5.052973661 | AN131: =AM131/$B$3 -> -186.4565927
A132: Government Contributions (Not Taxable Income) | C132: =NPV($B$3,J132:AM132)+I132 -> 0 | I132: =I22 -> 0 | J132: 0 | K132: 0 | L132: 0 | M132: 0 | N132: 0 | O132: 0 | P132: 0 | Q132: 0 | R132: 0 | S132: 0 | T132: 0 | U132: 0 | V132: 0 | W132: 0 | X132: 0 | Y132: 0 | Z132: 0 | AA132: 0 | AB132: 0 | AC132: 0 | AD132: 0 | AE132: 0 | AF132: 0 | AG132: 0 | AH132: 0 | AI132: 0 | AJ132: 0 | AK132: 0 | AL132: 0 | AM132: 0 | AN132: =AM132/$B$3 -> 0
A133: Incremental Tariff Revenue | C133: =NPV($B$3,J133:AM133)+I133 -> 713.861848 | I133: =I111 -> 0 | J133: 1.668165528 | K133: 4.259974562 | L133: 6.879338002 | M133: 9.517772736 | N133: 12.14067993 | O133: 14.77737184 | P133: 17.42830237 | Q133: 20.09164331 | R133: 22.74237248 | S133: 25.36783177 | T133: 27.99819099 | U133: 30.6444669 | V133: 33.30832978 | W133: 36.02036794 | X133: 38.74102133 | Y133: 41.38900932 | Z133: 44.05260003 | AA133: 46.70010543 | AB133: 49.35972948 | AC133: 52.0612784 | AD133: 54.80335049 | AE133: 57.58658645 | AF133: 60.41163716 | AG133: 63.27916376 | AH133: 66.18983786 | AI133: 69.14434167 | AJ133: 72.1433682 | AK133: 75.18762143 | AL133: 78.27781645 | AM133: 81.41467965 | AN133: =AM133/$B$3 -> 3004.231722 | AP133: =AM133*(AM133/AH133)^(1/5)/($AQ$129-((AM133/AH133)^(1/5)-1)) -> 85.22078784
A134: Incremental O&M | C134: =NPV($B$3,J134:AM134)+I134 -> -308.4528341 | I134: =-I42 -> 0 | J134: -0.3647380201 | K134: -0.880044608 | L134: -1.438580954 | M134: -2.056245926 | N134: -2.687497054 | O134: -3.423832451 | P134: -4.292849302 | Q134: -4.999369258 | R134: -5.658783844 | S134: -6.366341129 | T134: -7.00534276 | U134: -7.731815258 | V134: -8.540796954 | W134: -9.143785828 | X134: -11.61894624 | Y134: -14.05664915 | Z134: -16.51475508 | AA134: -18.96341224 | AB134: -21.4192696 | AC134: -24.03628079 | AD134: -26.56667422 | AE134: -29.12991376 | AF134: -31.7335249 | AG134: -34.37811376 | AH134: -37.06094902 | AI134: -39.78008884 | AJ134: -42.54208285 | AK134: -45.34757643 | AL134: -48.19722516 | AM134: -51.09169498 | AN134: -1885.302398 | AP134: -56.06772364
C135: =NPV($B$3,J135:AM135)+I135 -> 0 | AN135: 0
A136: Tax | C136: =NPV($B$3,J136:AM136)+I136 -> -220.8470146 | I136: =I126 -> 0 | J136: =J126 -> -7.392743701 | K136: =K126 -> -7.902220732 | L136: -8.456268326 | M136: -8.93451778 | N136: -9.284058399 | O136: -9.606303482 | P136: -9.722308916 | Q136: -10.06649028 | R136: -10.37202527 | S136: -10.59741659 | T136: -11.06542465 | U136: -11.3805276 | V136: -11.61104581 | W136: -12.29587326 | X136: -12.14081766 | Y136: -12.08707986 | Z136: -12.12513442 | AA136: -11.94977487 | AB136: -12.0187428 | AC136: -11.91451316 | AD136: -11.99790031 | AE136: -12.09292221 | AF136: -12.18935123 | AG136: -12.2872193 | AH136: -12.39151454 | AI136: -12.50607111 | AJ136: -12.62216551 | AK136: -12.73983172 | AL136: -12.85910427 | AM136: -12.98001819 | AN136: =AM136/$B$3 -> -478.9674611 | AP136: -12.7358069
A137: Value of Franking Credits | C137: =NPV($B$3,J137:AM137)+I137 -> 110.4235073 | I137: =-I136*$B$4 -> 0 | J137: 3.696371851 | K137: 3.951110366 | L137: 4.228134163 | M137: 4.46725889 | N137: 4.642029199 | O137: 4.803151741 | P137: 4.861154458 | Q137: 5.033245141 | R137: 5.186012637 | S137: 5.298708293 | T137: 5.532712326 | U137: 5.690263801 | V137: 5.805522905 | W137: 6.147936631 | X137: 6.07040883 | Y137: 6.04353993 | Z137: 6.062567208 | AA137: 5.974887437 | AB137: 6.0093714 | AC137: 5.957256582 | AD137: 5.998950154 | AE137: 6.046461103 | AF137: 6.094675616 | AG137: 6.143609649 | AH137: 6.195757269 | AI137: 6.253035554 | AJ137: 6.311082755 | AK137: 6.369915862 | AL137: 6.429552133 | AM137: 6.490009097 | AN137: =AM137/$B$3 -> 239.4837305 | AP137: 6.36790345
A138: Capital contributions | C138: 239.873853 | I138: =I112 -> 0 | J138: 11.32199943 | K138: 11.35612605 | L138: 11.53922242 | M138: 11.57024875 | N138: 11.43677439 | O138: 11.51176097 | P138: 11.54748543 | Q138: 11.55235217 | R138: 11.39365232 | S138: 11.23902106 | T138: 11.30439972 | U138: 11.31847077 | V138: 11.3778746 | W138: 11.63619455 | X138: 11.47970101 | Y138: 11.45378242 | Z138: 11.58591916 | AA138: 11.38452936 | AB138: 11.55252914 | AC138: 11.7351907 | AD138: 11.92074039 | AE138: 12.10922388 | AF138: 12.30068756 | AG138: 12.49517854 | AH138: 12.6927447 | AI138: 12.89343466 | AJ138: 13.0972978 | AK138: 13.3043843 | AL138: 13.51474512 | AM138: 13.72843205 | AN138: 506.5842084
A139: Net cashflow (for NPV) | C139: =NPV($B$3,J139:AM139)+I139 -> 8.474489838e-14 | I139: =SUM(I131:I138) -> 0 | J139: -1.863477625 | K139: -8.303049533 | L139: -16.43988907 | M139: -7.220987299 | N139: -9.604191584 | O139: -36.59735278 | P139: -70.55636776 | Q139: -23.24873507 | R139: -9.187089239 | S139: -21.93602957 | T139: -0.7113374172 | U139: -22.10982214 | V139: -41.98584385 | W139: 19.46271764 | X139: 14.46617143 | Y139: 21.68334407 | Z139: 20.95104772 | AA139: 19.98529534 | AB139: 22.42435901 | AC139: -10.36722696 | AD139: 24.64540462 | AE139: 26.91513318 | AF139: 27.27982192 | AG139: 27.64831662 | AH139: 28.94361698 | AI139: 30.95167827 | AJ139: 31.33452674 | AK139: 31.72153978 | AL139: 32.11281062 | AM139: 32.50843396 | AN139: =AM139/$B$3 -> 1199.573209 | AR139: NPV of Cash Flow excl Capital Contribution | AS139: =NPV($B$3,J141:AM141,AP141)+I139 -> -229.9276461
AR140: Capital Contributions | AS140: =NPV($B$3,J138:AM138,AP138)+I138 -> 239.873853
I141: =SUM(I131:I137) -> 0 | J141: =SUM(J131:J137) -> -13.18547705 | K141: -19.65917558 | L141: -27.97911149 | M141: -18.79123605 | N141: -21.04096597 | O141: -48.10911375 | P141: -82.10385319 | Q141: -34.80108724 | R141: -20.58074156 | S141: -33.17505063 | T141: -12.01573714 | U141: -33.42829291 | V141: -53.36371845 | W141: 7.826523083 | X141: 2.986470419 | Y141: 10.22956164 | Z141: 9.365128556 | AA141: 8.600765981 | AB141: 10.87182987 | AC141: -22.10241765 | AD141: 12.72466423 | AE141: 14.8059093 | AF141: 14.97913436 | AG141: 15.15313807 | AH141: 16.25087228 | AI141: 18.05824362 | AJ141: 18.23722894 | AK141: 18.41715548 | AL141: 18.59806549 | AM141: =SUM(AM131:AM137) -> 18.78000191 | AP141: =SUM(AP131:AP138) -> 22.78516075
V144: v144
AE151: Costs | AG151: Revenue
AD152: Incremental Capex | AE152: =O156 -> 534.8593596 | AF152: New Customer Contributions | AG152: =U153 -> 239.873853
U153: =C138 -> 239.873853 | AD153: Incremental Opex | AE153: =O166 -> 529.2998487 | AF153: General tariff revenue from new connections | AG153: =U160 -> 824.2853553
U154: =U153/$U$172 -> 0.2254116218 | AE154: =SUM(AE152:AE153) -> 1064.159208 | AG154: =SUM(AG152:AG153) -> 1064.159208
O156: =-C131 -> 534.8593596
O157: =O156/$O$172 -> 0.5026121613
U160: =C133+C137 -> 824.2853553
U161: =U160/$U$172 -> 0.7745883782
O166: =-(C134+C136) -> 529.2998487
O167: =O166/$O$172 -> 0.4973878387
O172: =O156+O166 -> 1064.159208 | U172: =U153+U160 -> 1064.159208

Sheet SEWER_st
A1: 2023 Price Submission - Sewer NCC ($M 2022/23) | X1: Maintenance cost assumptons
M2: $ / year fixed cost
A3: Real discount rate (=WACC) | B3: 0.0271 | C3: pa | J3: BRWRP unit cost | L3: 0.464 | M3: /kL | N3: BRWRP upgrade unit cost | P3: =0.2*cpi!$K$6 -> 0.2242533937 | Q3: /kL | X3: 0.77 | Y3: Civil portion of total capex | AB3: 0.0015 | AC3: maintenance cost as portion of civil capex
A4: Value of Franking Credits (as a Proportion of Face Value) | B4: 0.5 | J4: MGP unit cost | L4: =0.23*cpi!$K$6 -> 0.2578914027 | M4: /kL | N4: Bore unit cost | Q4: =0.2*cpi!$K$6 -> 0.2242533937 | R4: /kL | S4: Surface unit cost | V4: =0.05*cpi!$K$6 -> 0.05606334842 | W4: /kL | X4: 0.23 | Y4: M&E portion of total capex | AB4: 0.0165 | AC4: maintenance cost as portion of M&E capex
A5: Asset Class Life | B5: 70 | J5: RCW unit cost | M5: /kL plus | O5: million / year fixed | AB5: =X3*AB3+X4*AB4 -> 0.00495 | AC5: maintenance cost as portion of total capex
A6: NPV | B6: =C139 -> 0
A7: Per lot NCC | B7: 431.3388517 | C7: /connection
J8: PS23
A10: Year | B10: Assumptions | D10: Unutilised WP1 | E10: Unutilised WP2 | F10: Unutilised WP3 | G10: Unutilised WP4 | I10: pre-PS23 | J10: 2023-24 | K10: 2024-25 | L10: 2025-26 | M10: 2026-27 | N10: 2027-28 | O10: 2028-29 | P10: 2029-30 | Q10: 2030-31 | R10: 2031-32 | S10: 2032-33 | T10: 2033-34 | U10: 2034-35 | V10: 2035-36 | W10: 2036-37 | X10: 2037-38 | Y10: 2038-39 | Z10: 2039-40 | AA10: 2040-41 | AB10: 2041-42 | AC10: 2042-43 | AD10: 2043-44 | AE10: 2044-45 | AF10: 2045-46 | AG10: 2046-47 | AH10: 2047-48 | AI10: 2048-49 | AJ10: 2049-50 | AK10: 2050-51 | AL10: 2051-52 | AM10: 2052-53 | AN10: PV
D11: 0 | E11: 0 | F11: 0 | G11: 0 | I11: 0 | J11: 1 | K11: 2 | L11: 3 | M11: 4 | N11: 5 | O11: 6 | P11: 7 | Q11: 8 | R11: 9 | S11: 10 | T11: 11 | U11: 12 | V11: 13 | W11: 14 | X11: 15 | Y11: 16 | Z11: 17 | AA11: 18 | AB11: 19 | AC11: 20 | AD11: 21 | AE11: 22 | AF11: 23 | AG11: 24 | AH11: 25 | AI11: 26 | AJ11: 27 | AK11: 28 | AL11: 29 | AM11: 30 | AN11: Beyond
A14: Incremental CAPEX
A15: Sewerage
A16: Sewerage CAPEX from Spreadsheet | B16: 1 | C16: % of capital | E16: =[5]Sewerage!$L$917*E11/1000000*cpi!$K$6 -> 0 | F16: =[5]Sewerage!$Q$917*F11/1000000*cpi!$K$6 -> 0 | G16: =[5]Sewerage!$V$917*G11/1000000*cpi!$K$6 -> 0 | I16: =SUM(D16:G16) -> 0 | J16: =[5]Sewerage!W916/1000000*cpi!$K$22 -> 20.49497834 | K16: =[5]Sewerage!X916/1000000*cpi!$K$22 -> 6.707510711 | L16: =[5]Sewerage!Y916/1000000*cpi!$K$22 -> 10.46004637 | M16: =[5]Sewerage!Z916/1000000*cpi!$K$22 -> 10.16722274 | N16: =[5]Sewerage!AA916/1000000*cpi!$K$22 -> 16.53344441 | O16: =[5]Sewerage!AB916/1000000*cpi!$K$22 -> 32.20609378 | P16: =[5]Sewerage!AC916/1000000*cpi!$K$22 -> 47.05805148 | Q16: =[5]Sewerage!AD916/1000000*cpi!$K$22 -> 22.58435774 | R16: =[5]Sewerage!AE916/1000000*cpi!$K$22 -> 37.06259618 | S16: =[5]Sewerage!AF916/1000000*cpi!$K$22 -> 3.198516858 | T16: =[5]Sewerage!AG916/1000000*cpi!$K$22 -> 28.28209032 | U16: =[5]Sewerage!AH916/1000000*cpi!$K$22 -> 20.57118065 | V16: =[5]Sewerage!AI916/1000000*cpi!$K$22 -> 101.0588906 | W16: =[5]Sewerage!AJ916/1000000*cpi!$K$22 -> 47.53177862 | X16: =[5]Sewerage!AK916/1000000*cpi!$K$22 -> 46.72390648 | Y16: =[5]Sewerage!AL916/1000000*cpi!$K$22 -> 17.35151462 | Z16: =[5]Sewerage!AM916/1000000*cpi!$K$22 -> 17.35151462 | AA16: =[5]Sewerage!AN916/1000000*cpi!$K$22 -> 16.36433428 | AB16: =[5]Sewerage!AO916/1000000*cpi!$K$22 -> 16.36433428 | AC16: =[5]Sewerage!AP916/1000000*cpi!$K$22 -> 42.63659891 | AD16: =[5]Sewerage!AQ916/1000000*cpi!$K$22 -> 9.137081374 | AE16: =[5]Sewerage!AR916/1000000*cpi!$K$22 -> 9.137081374 | AF16: =[5]Sewerage!AS916/1000000*cpi!$K$22 -> 9.137081374 | AG16: =[5]Sewerage!AT916/1000000*cpi!$K$22 -> 9.137081374 | AH16: =[5]Sewerage!AU916/1000000*cpi!$K$22 -> 9.137081374 | AI16: =[5]Sewerage!AV916/1000000*cpi!$K$22 -> 9.137081374 | AJ16: =[5]Sewerage!AW916/1000000*cpi!$K$22 -> 9.137081374 | AK16: =[5]Sewerage!AX916/1000000*cpi!$K$22 -> 9.137081374 | AL16: =[5]Sewerage!AY916/1000000*cpi!$K$22 -> 9.137081374 | AM16: =[5]Sewerage!AZ916/1000000*cpi!$K$22 -> 9.137081374
A17: Total Capital Expenditure | D17: =SUM(D16:D16) -> 0 | E17: 0 | F17: 0 | G17: 0 | I17: =SUM(I16:I16) -> 0 | J17: 20.49497834 | K17: 6.707510711 | L17: 10.46004637 | M17: 10.16722274 | N17: 16.53344441 | O17: 32.20609378 | P17: 47.05805148 | Q17: 22.58435774 | R17: 37.06259618 | S17: 3.198516858 | T17: 28.28209032 | U17: 20.57118065 | V17: 101.0588906 | W17: 47.53177862 | X17: 46.72390648 | Y17: 17.35151462 | Z17: 17.35151462 | AA17: 16.36433428 | AB17: 16.36433428 | AC17: 42.63659891 | AD17: 9.137081374 | AE17: 9.137081374 | AF17: 9.137081374 | AG17: 9.137081374 | AH17: 9.137081374 | AI17: =SUM(AI16:AI16) -> 9.137081374 | AJ17: 9.137081374 | AK17: 9.137081374 | AL17: 9.137081374 | AM17: 9.137081374
A19: Depreciation | I19: =I17/$B5 -> 0 | J19: =J17/$B5 -> 0.2927854048 | K19: =K17/$B5 -> 0.09582158158 | L19: 0.1494292338 | M19: 0.1452460392 | N19: 0.236192063 | O19: 0.460087054 | P19: 0.6722578782 | Q19: 0.322633682 | R19: 0.5294656597 | S19: 0.04569309796 | T19: 0.4040298617 | U19: 0.2938740093 | V19: 1.443698437 | W19: 0.6790254088 | X19: 0.6674843783 | Y19: 0.2478787803 | Z19: 0.2478787803 | AA19: 0.233776204 | AB19: 0.233776204 | AC19: 0.6090942701 | AD19: 0.1305297339 | AE19: 0.1305297339 | AF19: 0.1305297339 | AG19: 0.1305297339 | AH19: 0.1305297339 | AI19: 0.1305297339 | AJ19: 0.1305297339 | AK19: 0.1305297339 | AL19: 0.1305297339 | AM19: 0.1305297339
A20: Total depreciation of Capex (in tax calculation) - cumulative | I20: =I19 -> 0 | J20: =I20+J19 -> 0.2927854048 | K20: =J20+K19 -> 0.3886069864 | L20: 0.5380362202 | M20: 0.6832822594 | N20: 0.9194743224 | O20: 1.379561376 | P20: 2.051819255 | Q20: 2.374452937 | R20: 2.903918596 | S20: 2.949611694 | T20: 3.353641556 | U20: 3.647515565 | V20: 5.091214002 | W20: 5.770239411 | X20: 6.437723789 | Y20: 6.68560257 | Z20: 6.93348135 | AA20: 7.167257554 | AB20: 7.401033758 | AC20: 8.010128028 | AD20: 8.140657762 | AE20: 8.271187496 | AF20: 8.40171723 | AG20: 8.532246964 | AH20: 8.662776698 | AI20: 8.793306431 | AJ20: 8.923836165 | AK20: 9.054365899 | AL20: 9.184895633 | AM20: 9.315425367
A22: Government Contributions | I22: 0 | J22: 0 | K22: 0 | L22: 0 | M22: 0 | N22: 0 | O22: 0 | P22: 0 | Q22: 0 | R22: 0 | S22: 0 | T22: 0 | U22: 0 | V22: 0 | W22: 0 | X22: 0 | Y22: 0 | Z22: 0 | AA22: 0 | AB22: 0 | AC22: 0 | AD22: 0 | AE22: 0 | AF22: 0 | AG22: 0 | AH22: 0
A24: Incremental OPEX
A25: Water | B25: ref WATER&RW worksheet
A26: Water reticulation | B26: =$AB$5 -> 0.00495 | C26: of CAPEX | J26: =$B$26*J46 -> 0 | K26: 0 | L26: 0 | M26: 0 | N26: 0 | O26: 0 | P26: 0 | Q26: 0 | R26: 0 | S26: 0 | T26: 0 | U26: 0 | V26: 0 | W26: 0 | X26: 0 | Y26: 0 | Z26: 0 | AA26: 0 | AB26: 0 | AC26: 0 | AD26: 0 | AE26: 0 | AF26: 0 | AG26: 0 | AH26: 0 | AI26: =$B$26*AI46 -> 0 | AJ26: 0 | AK26: 0 | AL26: 0 | AM26: 0
A27: Main Water Pipes ((Cost from Capex spreasheet) | J27: 0 | K27: 0 | L27: 0 | M27: 0 | N27: 0 | O27: 0 | P27: 0 | Q27: 0 | R27: 0 | S27: 0 | T27: 0 | U27: 0 | V27: 0 | W27: 0 | X27: 0 | Y27: 0 | Z27: 0 | AA27: 0 | AB27: 0 | AC27: 0 | AD27: 0 | AE27: 0 | AF27: 0 | AG27: 0 | AH27: 0 | AI27: 1 | AJ27: 2 | AK27: 3 | AL27: 4 | AM27: 5
A29: Bulk water supply | J29: =(IF(J32="Surf",$V$4*(J90+J102),IF(J32="Bore",$Q$4*(J90+J102),IF(J32="MGP",$L$4*(J90+J102),0))))/1000000 -> 0 | K29: 0 | L29: 0 | M29: 0.6592436743 | N29: 0.841942532 | O29: 1.024308189 | P29: 1.207352588 | Q29: 1.390668484 | R29: 1.572460295 | S29: 1.751783954 | T29: 1.930860797 | U29: 2.110468293 | V29: 2.290766872 | W29: 2.473996382 | X29: 0 | Y29: 0 | Z29: 0 | AA29: 0 | AB29: 0 | AC29: 0 | AD29: 0 | AE29: 0 | AF29: 0 | AG29: 0 | AH29: 0 | AI29: =(IF(AI32="Surf",$V$4*(AI90+AI102),IF(AI32="Bore",$Q$4*(AI90+AI102),IF(AI32="MGP",$L$4*(AI90+AI102),0))))/1000000 -> 0 | AJ29: 0 | AK29: 0 | AL29: 0 | AM29: 0
A30: Sub-total - Water | J30: 0 | K30: 0 | L30: 0 | M30: 0 | N30: 0 | O30: 0 | P30: 0 | Q30: 0 | R30: 0 | S30: 0 | T30: 0 | U30: 0 | V30: 0 | W30: 0 | X30: 0 | Y30: 0 | Z30: 0 | AA30: 0 | AB30: 0 | AC30: 0 | AD30: 0 | AE30: 0 | AF30: 0 | AG30: 0 | AH30: 0 | AI30: 0 | AJ30: 0 | AK30: 0 | AL30: 0 | AM30: 0
A32: Marginal water source av year (MGP, Bore, Surface) | J32: ='WATER&RW_st'!J32 -> MGP1 | K32: ='WATER&RW_st'!K32 -> MGP1 | L32: ='WATER&RW_st'!L32 -> MGP1 | M32: ='WATER&RW_st'!M32 -> MGP | N32: ='WATER&RW_st'!N32 -> MGP | O32: ='WATER&RW_st'!O32 -> MGP | P32: ='WATER&RW_st'!P32 -> MGP | Q32: ='WATER&RW_st'!Q32 -> MGP | R32: ='WATER&RW_st'!R32 -> MGP | S32: ='WATER&RW_st'!S32 -> MGP | T32: ='WATER&RW_st'!T32 -> MGP | U32: ='WATER&RW_st'!U32 -> MGP | V32: ='WATER&RW_st'!V32 -> MGP | W32: ='WATER&RW_st'!W32 -> MGP | X32: ='WATER&RW_st'!X32 -> Desal | Y32: ='WATER&RW_st'!Y32 -> Desal | Z32: ='WATER&RW_st'!Z32 -> Desal | AA32: ='WATER&RW_st'!AA32 -> Desal | AB32: ='WATER&RW_st'!AB32 -> Desal | AC32: ='WATER&RW_st'!AC32 -> Desal | AD32: ='WATER&RW_st'!AD32 -> Desal | AE32: ='WATER&RW_st'!AE32 -> Desal | AF32: ='WATER&RW_st'!AF32 -> Desal | AG32: ='WATER&RW_st'!AG32 -> Desal | AH32: ='WATER&RW_st'!AH32 -> Desal | AI32: ='WATER&RW_st'!AI32 -> Desal | AJ32: ='WATER&RW_st'!AJ32 -> Desal | AK32: ='WATER&RW_st'!AK32 -> Desal | AL32: ='WATER&RW_st'!AL32 -> Desal | AM32: ='WATER&RW_st'!AM32 -> Desal
A33: Marginal water source for water security in dry years (MGP, Next major supply source) | J33: ='WATER&RW_st'!J33 -> 0 | K33: ='WATER&RW_st'!K33 -> 0 | L33: ='WATER&RW_st'!L33 -> 0 | M33: ='WATER&RW_st'!M33 -> 0 | N33: ='WATER&RW_st'!N33 -> 0 | O33: ='WATER&RW_st'!O33 -> 0 | P33: ='WATER&RW_st'!P33 -> 0 | Q33: ='WATER&RW_st'!Q33 -> 0 | R33: ='WATER&RW_st'!R33 -> 0 | S33: ='WATER&RW_st'!S33 -> 0 | T33: ='WATER&RW_st'!T33 -> 0 | U33: ='WATER&RW_st'!U33 -> 0 | V33: ='WATER&RW_st'!V33 -> 0 | W33: ='WATER&RW_st'!W33 -> 0 | X33: ='WATER&RW_st'!X33 -> 0 | Y33: ='WATER&RW_st'!Y33 -> 0 | Z33: ='WATER&RW_st'!Z33 -> 0 | AA33: ='WATER&RW_st'!AA33 -> 0 | AB33: ='WATER&RW_st'!AB33 -> 0 | AC33: ='WATER&RW_st'!AC33 -> 0 | AD33: ='WATER&RW_st'!AD33 -> 0 | AE33: ='WATER&RW_st'!AE33 -> 0 | AF33: ='WATER&RW_st'!AF33 -> 0 | AG33: ='WATER&RW_st'!AG33 -> 0 | AH33: ='WATER&RW_st'!AH33 -> 0 | AI33: ='WATER&RW_st'!AI33 -> 0 | AJ33: ='WATER&RW_st'!AJ33 -> 0 | AK33: ='WATER&RW_st'!AK33 -> 0 | AL33: ='WATER&RW_st'!AL33 -> 0 | AM33: ='WATER&RW_st'!AM33 -> 0
A34: Sewage treatment location (BR or BRUp) | J34: ='WATER&RW_st'!J34 -> BR | K34: ='WATER&RW_st'!K34 -> BR | L34: ='WATER&RW_st'!L34 -> BR | M34: ='WATER&RW_st'!M34 -> BR | N34: ='WATER&RW_st'!N34 -> BR | O34: ='WATER&RW_st'!O34 -> BR | P34: ='WATER&RW_st'!P34 -> BR | Q34: ='WATER&RW_st'!Q34 -> BR | R34: ='WATER&RW_st'!R34 -> BR | S34: ='WATER&RW_st'!S34 -> BRUp | T34: ='WATER&RW_st'!T34 -> BRUp | U34: ='WATER&RW_st'!U34 -> BRUp | V34: ='WATER&RW_st'!V34 -> BRUp | W34: ='WATER&RW_st'!W34 -> BRUp | X34: ='WATER&RW_st'!X34 -> BRUp | Y34: ='WATER&RW_st'!Y34 -> BRUp | Z34: ='WATER&RW_st'!Z34 -> BRUp | AA34: ='WATER&RW_st'!AA34 -> BRUp | AB34: ='WATER&RW_st'!AB34 -> BRUp | AC34: ='WATER&RW_st'!AC34 -> BRUp | AD34: ='WATER&RW_st'!AD34 -> BRUp | AE34: ='WATER&RW_st'!AE34 -> BRUp | AF34: ='WATER&RW_st'!AF34 -> BRUp | AG34: ='WATER&RW_st'!AG34 -> BRUp | AH34: ='WATER&RW_st'!AH34 -> BRUp | AI34: ='WATER&RW_st'!AI34 -> BRUp | AJ34: ='WATER&RW_st'!AJ34 -> BRUp | AK34: ='WATER&RW_st'!AK34 -> BRUp | AL34: ='WATER&RW_st'!AL34 -> BRUp | AM34: ='WATER&RW_st'!AM34 -> BRUp
A36: Sewerage
A37: Sewerage reticulation | B37: =$AB$5 -> 0.00495 | C37: of CAPEX | J37: =I37+$B$37*J50 -> 0.08505095066 | K37: 0.1703583598 | L37: 0.2570413188 | M37: 0.3439574219 | N37: 0.4298710055 | O37: 0.5161343053 | P37: 0.6027006923 | Q37: 0.6892903937 | R37: 0.7747143748 | S37: 0.8589726357 | T37: =S37+$B$37*T50 -> 0.9437438135 | U37: 1.028608249 | V37: 1.113938972 | W37: 1.201204792 | X37: 1.287304891 | Y37: 1.373218474 | Z37: 1.460111263 | AA37: 1.54551193 | AB37: 1.632262377 | AC37: 1.720384471 | AD37: 1.809899897 | AE37: 1.900830686 | AF37: 1.993199218 | AG37: 2.087028224 | AH37: 2.182340798 | AI37: =AH37+$B$37*AI50 -> 2.279160397 | AJ37: 2.377510847 | AK37: 2.477416356 | AL37: 2.578901509 | AM37: 2.681991284 | AO37: =SUM(J37:AN37) -> 40.40265991 | AP37: =[6]SEWER_st!$AO37+[6]SEWER_NWGGA!$AO37 -> 40.86885914 | AR37: =[6]SEWER_NWGGA!$AM37 -> 1.074300084 | AS37: =[6]SEWER_st!$AM37 -> 0.9688773393 | AT37: =SUM(AR37:AS37) -> 2.043177423 | AU37: =AM37-AT37 -> 0.6388138608
A38: Maintenance costs (from CWIP spreadsheet) | J38: =[5]Sewerage!W1847/1000000*cpi!$K$22 -> 0.07439677137 | K38: =[5]Sewerage!X1847/1000000*cpi!$K$22 -> 0.09874503525 | L38: =[5]Sewerage!Y1847/1000000*cpi!$K$22 -> 0.1367150036 | M38: =[5]Sewerage!Z1847/1000000*cpi!$K$22 -> 0.1736220221 | N38: =[5]Sewerage!AA1847/1000000*cpi!$K$22 -> 0.2336384253 | O38: =[5]Sewerage!AB1847/1000000*cpi!$K$22 -> 0.3505465458 | P38: =[5]Sewerage!AC1847/1000000*cpi!$K$22 -> 0.5213672726 | Q38: =[5]Sewerage!AD1847/1000000*cpi!$K$22 -> 0.6033484912 | R38: =[5]Sewerage!AE1847/1000000*cpi!$K$22 -> 0.7378857153 | S38: =[5]Sewerage!AF1847/1000000*cpi!$K$22 -> 0.7494963315 | T38: =[5]Sewerage!AG1847/1000000*cpi!$K$22 -> 0.8521603194 | U38: =[5]Sewerage!AH1847/1000000*cpi!$K$22 -> 0.9268337052 | V38: =[5]Sewerage!AI1847/1000000*cpi!$K$22 -> 1.293677478 | W38: =[5]Sewerage!AJ1847/1000000*cpi!$K$22 -> 1.466217834 | X38: =[5]Sewerage!AK1847/1000000*cpi!$K$22 -> 1.635825615 | Y38: =[5]Sewerage!AL1847/1000000*cpi!$K$22 -> 1.698811613 | Z38: =[5]Sewerage!AM1847/1000000*cpi!$K$22 -> 1.761797611 | AA38: =[5]Sewerage!AN1847/1000000*cpi!$K$22 -> 1.821200144 | AB38: =[5]Sewerage!AO1847/1000000*cpi!$K$22 -> 1.880602678 | AC38: =[5]Sewerage!AP1847/1000000*cpi!$K$22 -> 2.035373532 | AD38: =[5]Sewerage!AQ1847/1000000*cpi!$K$22 -> 2.068541137 | AE38: =[5]Sewerage!AR1847/1000000*cpi!$K$22 -> 2.101708743 | AF38: =[5]Sewerage!AS1847/1000000*cpi!$K$22 -> 2.134876348 | AG38: =[5]Sewerage!AT1847/1000000*cpi!$K$22 -> 2.168043953 | AH38: =[5]Sewerage!AU1847/1000000*cpi!$K$22 -> 2.201211559 | AI38: =[5]Sewerage!AV1847/1000000*cpi!$K$22 -> 2.234379164 | AJ38: =[5]Sewerage!AW1847/1000000*cpi!$K$22 -> 2.26754677 | AK38: =[5]Sewerage!AX1847/1000000*cpi!$K$22 -> 2.300714375 | AL38: =[5]Sewerage!AY1847/1000000*cpi!$K$22 -> 2.33388198 | AM38: =[5]Sewerage!AZ1847/1000000*cpi!$K$22 -> 2.367049586 | AO38: =SUM(J38:AN38) -> 41.23021576 | AP38: =[6]SEWER_st!$AO38+[6]SEWER_NWGGA!$AO38 -> 19.01821691 | AR38: =[6]SEWER_NWGGA!$AM38 -> 0.2173860806 | AS38: =[6]SEWER_st!$AM38 -> 0.5392108729 | AT38: =SUM(AR38:AS38) -> 0.7565969534 | AU38: =AM38-AT38 -> 1.610452632
A39: Sewage treatment opex (BRWRP) | J39: =(($L$3*(J97+J103))+$G$20)/1000000 -> 0.1923719057 | K39: =(($L$3*(K97+K103))+$G$20)/1000000 -> 0.5007470237 | L39: 0.8125814611 | M39: 1.126810001 | N39: 1.4390874 | O39: 1.750795276 | P39: 2.063663291 | Q39: 2.37699536 | R39: 2.687722394 | S39: =(($P$3*(S97+S103))+$G$20)/1000000 -> 1.447125875 | T39: =(($P$3*(T97+T103))+$G$20)/1000000 -> 1.595058919 | U39: 1.743430329 | V39: 1.892372633 | W39: 2.043736142 | X39: 2.195094553 | Y39: 2.345484483 | Z39: 2.496822505 | AA39: 2.647171657 | AB39: 2.798017658 | AC39: 2.951248402 | AD39: 3.106901937 | AE39: 3.265016571 | AF39: 3.425631217 | AG39: 3.588785404 | AH39: 3.754519286 | AI39: =(($P$3*(AI97+AI103))+$G$20)/1000000 -> 3.922873652 | AJ39: 4.093889934 | AK39: 4.267610221 | AL39: 4.444077268 | AM39: =(($P$3*(AM97+AM103))+$G$20)/1000000 -> 4.623334504 | AO39: 75.59897726 | AP39: =[6]SEWER_st!$AO39+[6]SEWER_NWGGA!$AO39 -> 63.93787353 | AR39: =[6]SEWER_NWGGA!$AM39 -> 1.266931634 | AS39: =[6]SEWER_st!$AM39 -> 1.747590567 | AT39: =SUM(AR39:AS39) -> 3.0145222 | AU39: =AM39-AT39 -> 1.608812304
AO40: =SUM(J40:AN40) -> 0 | AP40: =[6]SEWER_st!$AO40+[6]SEWER_NWGGA!$AO40 -> 0
A41: Sub-total - Sewer | J41: =SUM(J37:J40) -> 0.3518196278 | K41: 0.7698504188 | L41: 1.206337783 | M41: 1.644389445 | N41: 2.10259683 | O41: 2.617476127 | P41: 3.187731256 | Q41: 3.669634245 | R41: 4.200322484 | S41: 3.055594842 | T41: 3.390963052 | U41: 3.698872283 | V41: 4.299989084 | W41: 4.711158768 | X41: 5.118225059 | Y41: 5.41751457 | Z41: 5.718731379 | AA41: 6.013883731 | AB41: 6.310882713 | AC41: 6.707006404 | AD41: 6.98534297 | AE41: 7.267555999 | AF41: 7.553706783 | AG41: 7.843857582 | AH41: 8.138071643 | AI41: 8.436413212 | AJ41: =SUM(AJ37:AJ40) -> 8.738947551 | AK41: =SUM(AK37:AK40) -> 9.045740952 | AL41: =SUM(AL37:AL40) -> 9.356860758 | AM41: =SUM(AM37:AM40) -> 9.672375374 | AO41: 157.2318529 | AP41: =[6]SEWER_st!$AO41+[6]SEWER_NWGGA!$AO41 -> 123.8249496
A42: Total OPEX | J42: =J30+J41 -> 0.3518196278 | K42: 0.7698504188 | L42: 1.206337783 | M42: 1.644389445 | N42: 2.10259683 | O42: 2.617476127 | P42: 3.187731256 | Q42: 3.669634245 | R42: 4.200322484 | S42: 3.055594842 | T42: 3.390963052 | U42: 3.698872283 | V42: 4.299989084 | W42: 4.711158768 | X42: 5.118225059 | Y42: 5.41751457 | Z42: 5.718731379 | AA42: 6.013883731 | AB42: 6.310882713 | AC42: 6.707006404 | AD42: 6.98534297 | AE42: 7.267555999 | AF42: 7.553706783 | AG42: 7.843857582 | AH42: 8.138071643 | AI42: 8.436413212 | AJ42: =AJ30+AJ41 -> 8.738947551 | AK42: =AK30+AK41 -> 9.045740952 | AL42: =AL30+AL41 -> 9.356860758 | AM42: =AM30+AM41 -> 9.672375374 | AO42: 157.2318529 | AP42: =[6]SEWER_st!$AO42+[6]SEWER_NWGGA!$AO42 -> 123.8249496
A44: Gifted Assets
A45: Water
A46: Water reticulation | B46: 0 | C46: /connection | J46: =$B$46*(J59+J65)/1000000 -> 0 | K46: =$B$46*(K59+K65)/1000000 -> 0 | L46: 0 | M46: 0 | N46: 0 | O46: 0 | P46: 0 | Q46: 0 | R46: 0 | S46: 0 | T46: 0 | U46: 0 | V46: 0 | W46: 0 | X46: 0 | Y46: 0 | Z46: 0 | AA46: 0 | AB46: 0 | AC46: 0 | AD46: 0 | AE46: 0 | AF46: 0 | AG46: 0 | AH46: 0 | AI46: =$B$46*(AI59+AI65)/1000000 -> 0 | AJ46: 0 | AK46: 0 | AL46: 0 | AM46: 0
A47: Sub-total - Water | J47: =SUM(J46:J46) -> 0 | K47: 0 | L47: 0 | M47: 0 | N47: 0 | O47: 0 | P47: 0 | Q47: 0 | R47: 0 | S47: 0 | T47: 0 | U47: 0 | V47: 0 | W47: 0 | X47: 0 | Y47: 0 | Z47: 0 | AA47: 0 | AB47: 0 | AC47: 0 | AD47: 0 | AE47: 0 | AF47: 0 | AG47: 0 | AH47: 0 | AI47: =SUM(AI46:AI46) -> 0 | AJ47: 0 | AK47: 0 | AL47: 0 | AM47: 0
A49: Sewer
A50: Sewer reticulation | B50: 4903 | C50: /connection | J50: =$B$50*(J59+J65)/1000000 -> 17.18201023 | K50: 17.23382002 | L50: 17.5117089 | M50: 17.5588087 | N50: 17.35627953 | O50: 17.42692924 | P50: 17.48815899 | Q50: 17.49286897 | R50: 17.25736993 | S50: 17.02187088 | T50: 17.12549046 | U50: 17.14433039 | V50: 17.23853 | W50: 17.62945842 | X50: 17.39395937 | Y50: 17.35627953 | Z50: 17.55409872 | AA50: 17.25265995 | AB50: 17.525343 | AC50: 17.80244305 | AD50: 18.08392445 | AE50: 18.36985645 | AF50: 18.66030944 | AG50: 18.9553549 | AH50: 19.25506543 | AI50: =$B$50*(AI59+AI65)/1000000 -> 19.55951481 | AJ50: 19.86877795 | AK50: 20.18293097 | AL50: 20.50205119 | AM50: 20.82621715
A51: Sub-total - Sewer
A52: Gifted assets total | J52: =SUM(J50:J50) -> 17.18201023 | K52: 17.23382002 | L52: 17.5117089 | M52: 17.5588087 | N52: 17.35627953 | O52: 17.42692924 | P52: 17.48815899 | Q52: 17.49286897 | R52: 17.25736993 | S52: 17.02187088 | T52: 17.12549046 | U52: 17.14433039 | V52: 17.23853 | W52: 17.62945842 | X52: 17.39395937 | Y52: 17.35627953 | Z52: 17.55409872 | AA52: 17.25265995 | AB52: 17.525343 | AC52: 17.80244305 | AD52: 18.08392445 | AE52: 18.36985645 | AF52: 18.66030944 | AG52: 18.9553549 | AH52: 19.25506543 | AI52: =SUM(AI50:AI50) -> 19.55951481 | AJ52: 19.86877795 | AK52: 20.18293097 | AL52: 20.50205119 | AM52: 20.82621715
A54: Change in depreciation of Vested Assets | J54: =J52/$B$5+IF((J$11-$B$5+1)>0,-INDEX($D52:$AH52,1,(J$11-$B$5+1))/$B$5,0) -> 0.2454572891 | K54: 0.2461974289 | L54: 0.2501672699 | M54: 0.2508401243 | N54: 0.2479468504 | O54: 0.248956132 | P54: 0.2498308427 | Q54: 0.2498981282 | R54: 0.2465338561 | S54: 0.2431695841 | T54: 0.2446498638 | U54: 0.2449190055 | V54: 0.2462647143 | W54: 0.251849406 | X54: 0.2484851339 | Y54: 0.2479468504 | Z54: 0.2507728389 | AA54: 0.2464665707 | AB54: 0.2503620428 | AC54: 0.254320615 | AD54: 0.2583417778 | AE54: 0.2624265208 | AF54: 0.2665758492 | AG54: 0.2707907843 | AH54: 0.2750723633 | AI54: =AI52/$B$5+IF((AI$11-$B$5+1)>0,-INDEX($D52:$AH52,1,(AI$11-$B$5+1))/$B$5,0) -> 0.2794216401 | AJ54: 0.283839685 | AK54: 0.2883275853 | AL54: 0.2928864456 | AM54: 0.2975173878
A55: Total depreciation of Vested Assets | J55: =I55+J54 -> 0.2454572891 | K55: 0.491654718 | L55: 0.7418219879 | M55: 0.9926621122 | N55: 1.240608963 | O55: 1.489565095 | P55: 1.739395937 | Q55: 1.989294065 | R55: 2.235827922 | S55: 2.478997506 | T55: 2.723647369 | U55: 2.968566375 | V55: 3.214831089 | W55: 3.466680495 | X55: 3.715165629 | Y55: 3.96311248 | Z55: 4.213885318 | AA55: 4.460351889 | AB55: 4.710713932 | AC55: 4.965034547 | AD55: 5.223376325 | AE55: 5.485802846 | AF55: 5.752378695 | AG55: 6.023169479 | AH55: 6.298241842 | AI55: =AH55+AI54 -> 6.577663482 | AJ55: =AI55+AJ54 -> 6.861503167 | AK55: =AJ55+AK54 -> 7.149830753 | AL55: =AK55+AL54 -> 7.442717198 | AM55: =AL55+AM54 -> 7.740234586
A57: Growth
A58: Residential Sewerage | B58: % of customers
A59: Connections (annual growth) | B59: 1 | J59: =Connections!O36*$B$59 -> 3282.869146 | K59: =Connections!P36*$B$59 -> 3292.768148 | L59: =Connections!Q36*$B$59 -> 3345.862797 | M59: =Connections!R36*$B$59 -> 3354.86189 | N59: =Connections!S36*$B$59 -> 3316.16579 | O59: =Connections!T36*$B$59 -> 3329.66443 | P59: =Connections!U36*$B$59 -> 3341.36325 | Q59: =Connections!V36*$B$59 -> 3342.26316 | R59: =Connections!W36*$B$59 -> 3297.267695 | S59: =Connections!X36*$B$59 -> 3252.272229 | T59: =Connections!Y36*$B$59 -> 3272.070234 | U59: =Connections!Z36*$B$59 -> 3275.669871 | V59: =Connections!AA36*$B$59 -> 3293.668057 | W59: =Connections!AB36*$B$59 -> 3368.36053 | X59: =Connections!AC36*$B$59 -> 3323.365064 | Y59: =Connections!AD36*$B$59 -> 3316.16579 | Z59: =Connections!AE36*$B$59 -> 3353.961981 | AA59: =Connections!AF36*$B$59 -> 3296.367785 | AB59: =Connections!AG36*$B$59 -> 3348.467787 | AC59: =Connections!AH36*$B$59 -> 3401.411722 | AD59: =Connections!AI36*$B$59 -> 3455.192774 | AE59: =Connections!AJ36*$B$59 -> 3509.824179 | AF59: =Connections!AK36*$B$59 -> 3565.319383 | AG59: =Connections!AL36*$B$59 -> 3621.692043 | AH59: =Connections!AM36*$B$59 -> 3678.956033 | AI59: =Connections!AN36*$B$59 -> 3737.125446 | AJ59: =Connections!AO36*$B$59 -> 3796.214599 | AK59: =Connections!AP36*$B$59 -> 3856.238034 | AL59: =Connections!AQ36*$B$59 -> 3917.210523 | AM59: =Connections!AR36*$B$59 -> 3979.147071
A60: Cumulative connections RES | J60: =J59+I60 -> 3282.869146 | K60: 6575.637294 | L60: 9921.500091 | M60: 13276.36198 | N60: 16592.52777 | O60: 19922.1922 | P60: =P59+O60 -> 23263.55545 | Q60: =Q59+P60 -> 26605.81861 | R60: =R59+Q60 -> 29903.08631 | S60: =S59+R60 -> 33155.35853 | T60: =T59+S60 -> 36427.42877 | U60: =U59+T60 -> 39703.09864 | V60: =V59+U60 -> 42996.7667 | W60: =W59+V60 -> 46365.12723 | X60: =X59+W60 -> 49688.49229 | Y60: 53004.65808 | Z60: =Z59+Y60 -> 56358.62006 | AA60: =AA59+Z60 -> 59654.98785 | AB60: =AB59+AA60 -> 63003.45563 | AC60: =AC59+AB60 -> 66404.86736 | AD60: =AD59+AC60 -> 69860.06013 | AE60: =AE59+AD60 -> 73369.88431 | AF60: =AF59+AE60 -> 76935.20369 | AG60: =AG59+AF60 -> 80556.89573 | AH60: =AH59+AG60 -> 84235.85177 | AI60: =AI59+AH60 -> 87972.97721 | AJ60: =AJ59+AI60 -> 91769.19181 | AK60: =AK59+AJ60 -> 95625.42985 | AL60: =AL59+AK60 -> 99542.64037 | AM60: =AM59+AL60 -> 103521.7874 | AR60: =[6]SEWER_NWGGA!$AM60 -> 38350 | AS60: =[6]SEWER_st!$AM60 -> 29902.84325 | AT60: =SUM(AR60:AS60) -> 68252.84325
A61: Connections - lag adjusted (annual growth) for revenue only | B61: 0.375 | J61: =J59*(1-$B$61) -> 2051.793216 | K61: 2057.980093 | L61: 2091.164248 | M61: 2096.788681 | N61: 2072.603619 | O61: 2081.040268 | P61: 2088.352032 | Q61: 2088.914475 | R61: 2060.792309 | S61: 2032.670143 | T61: 2045.043896 | U61: 2047.29367 | V61: 2058.542536 | W61: 2105.225331 | X61: 2077.103165 | Y61: 2072.603619 | Z61: 2096.226238 | AA61: 2060.229866 | AB61: 2092.792367 | AC61: 2125.882326 | AD61: 2159.495484 | AE61: 2193.640112 | AF61: 2228.324614 | AG61: 2263.557527 | AH61: 2299.34752 | AI61: =AI59*(1-$B$61) -> 2335.703404 | AJ61: 2372.634125 | AK61: 2410.148771 | AL61: 2448.256577 | AM61: 2486.96692
A62: Cumulative connections - lag adjusted for revenue only | J62: =I60+J61 -> 2051.793216 | K62: =J60+K61 -> 5340.849238 | L62: 8666.801542 | M62: 12018.28877 | N62: 15348.9656 | O62: 18673.56804 | P62: 22010.54423 | Q62: 25352.46993 | R62: 28666.61092 | S62: 31935.75645 | T62: 35200.40243 | U62: 38474.72244 | V62: 41761.64118 | W62: 45101.99203 | X62: 48442.23039 | Y62: 51761.09591 | Z62: 55100.88432 | AA62: 58418.84993 | AB62: 61747.78021 | AC62: 65129.33796 | AD62: 68564.36284 | AE62: 72053.70024 | AF62: 75598.20892 | AG62: 79198.76122 | AH62: 82856.24325 | AI62: =AH60+AI61 -> 86571.55517 | AJ62: =AI60+AJ61 -> 90345.61134 | AK62: =AJ60+AK61 -> 94179.34058 | AL62: =AK60+AL61 -> 98073.68642 | AM62: =AL60+AM61 -> 102029.6073 | AR62: =[6]SEWER_NWGGA!$AM62 -> 38293.75 | AS62: =[6]SEWER_st!$AM62 -> 29959.09325 | AT62: =SUM(AR62:AS62) -> 68252.84325
A64: Non-residential Sewerage | B64: % of customers
A65: Connections (annual growth) | B65: 1 | J65: =Connections!O37*$B$65 -> 221.518012 | K65: =Connections!P37*$B$65 -> 222.1859665 | L65: =Connections!Q37*$B$65 -> 225.7686317 | M65: =Connections!R37*$B$65 -> 226.3758631 | N65: =Connections!S37*$B$65 -> 223.7647681 | O65: =Connections!T37*$B$65 -> 224.6756152 | P65: =Connections!U37*$B$65 -> 225.465016 | Q65: =Connections!V37*$B$65 -> 225.5257392 | R65: =Connections!W37*$B$65 -> 222.4895822 | S65: =Connections!X37*$B$65 -> 219.4534252 | T65: =Connections!Y37*$B$65 -> 220.7893343 | U65: =Connections!Z37*$B$65 -> 221.0322269 | V65: =Connections!AA37*$B$65 -> 222.2466896 | W65: =Connections!AB37*$B$65 -> 227.2867102 | X65: =Connections!AC37*$B$65 -> 224.2505532 | Y65: =Connections!AD37*$B$65 -> 223.7647681 | Z65: =Connections!AE37*$B$65 -> 226.31514 | AA65: =Connections!AF37*$B$65 -> 222.4288591 | AB65: =Connections!AG37*$B$65 -> 225.9444085 | AC65: =Connections!AH37*$B$65 -> 229.516904 | AD65: =Connections!AI37*$B$65 -> 233.1458856 | AE65: =Connections!AJ37*$B$65 -> 236.8322464 | AF65: =Connections!AK37*$B$65 -> 240.5768938 | AG65: =Connections!AL37*$B$65 -> 244.3807492 | AH65: =Connections!AM37*$B$65 -> 248.2447488 | AI65: =Connections!AN37*$B$65 -> 252.1698437 | AJ65: =Connections!AO37*$B$65 -> 256.1569998 | AK65: =Connections!AP37*$B$65 -> 260.2071984 | AL65: =Connections!AQ37*$B$65 -> 264.3214362 | AM65: =Connections!AR37*$B$65 -> 268.5007259
A66: Cumulative connections NRES | J66: =J65+I66 -> 221.518012 | K66: =K65+J66 -> 443.7039785 | L66: =L65+K66 -> 669.4726102 | M66: =M65+L66 -> 895.8484733 | N66: =N65+M66 -> 1119.613241 | O66: =O65+N66 -> 1344.288857 | P66: =P65+O66 -> 1569.753873 | Q66: =Q65+P66 -> 1795.279612 | R66: =R65+Q66 -> 2017.769194 | S66: =S65+R66 -> 2237.222619 | T66: =T65+S66 -> 2458.011954 | U66: =U65+T66 -> 2679.04418 | V66: =V65+U66 -> 2901.29087 | W66: =W65+V66 -> 3128.57758 | X66: =X65+W66 -> 3352.828134 | Y66: =Y65+X66 -> 3576.592902 | Z66: =Z65+Y66 -> 3802.908042 | AA66: =AA65+Z66 -> 4025.336901 | AB66: =AB65+AA66 -> 4251.281309 | AC66: =AC65+AB66 -> 4480.798213 | AD66: =AD65+AC66 -> 4713.944099 | AE66: =AE65+AD66 -> 4950.776345 | AF66: =AF65+AE66 -> 5191.353239 | AG66: =AG65+AF66 -> 5435.733988 | AH66: =AH65+AG66 -> 5683.978737 | AI66: =AI65+AH66 -> 5936.148581 | AJ66: =AJ65+AI66 -> 6192.30558 | AK66: =AK65+AJ66 -> 6452.512779 | AL66: =AL65+AK66 -> 6716.834215 | AM66: =AM65+AL66 -> 6985.334941 | AR66: =[6]SEWER_NWGGA!$AM66 -> 0 | AS66: =[6]SEWER_st!$AM66 -> 4683.811373 | AT66: =SUM(AR66:AS66) -> 4683.811373
A67: Connections - lag adjusted (annual growth) for revenue only | B67: 0.375 | J67: =J65*(1-$B$61) -> 138.4487575 | K67: 138.8662291 | L67: 141.1053948 | M67: 141.4849144 | N67: 139.8529801 | O67: 140.4222595 | P67: 140.915635 | Q67: 140.953587 | R67: 139.0559889 | S67: 137.1583908 | T67: 137.9933339 | U67: 138.1451418 | V67: 138.904181 | W67: 142.0541939 | X67: 140.1565958 | Y67: 139.8529801 | Z67: 141.4469625 | AA67: 139.0180369 | AB67: 141.2152553 | AC67: 143.448065 | AD67: 145.7161785 | AE67: 148.020154 | AF67: 150.3605586 | AG67: 152.7379682 | AH67: 155.152968 | AI67: =AI65*(1-$B$61) -> 157.6061523 | AJ67: 160.0981249 | AK67: 162.629499 | AL67: 165.2008976 | AM67: 167.8129537
A68: Cumulative connections - lag adjusted for revenue only | J68: =I66+J67 -> 138.4487575 | K68: 360.384241 | L68: 584.8093733 | M68: 810.9575246 | N68: 1035.701453 | O68: 1260.035501 | P68: 1485.204492 | Q68: 1710.70746 | R68: 1934.335601 | S68: 2154.927585 | T68: 2375.215953 | U68: 2596.157095 | V68: 2817.948361 | W68: 3043.345064 | X68: 3268.734176 | Y68: 3492.681114 | Z68: 3718.039864 | AA68: 3941.926079 | AB68: 4166.552156 | AC68: 4394.729374 | AD68: 4626.514392 | AE68: 4861.964253 | AF68: 5101.136904 | AG68: 5344.091207 | AH68: 5590.886956 | AI68: =AH66+AI67 -> 5841.584889 | AJ68: =AI66+AJ67 -> 6096.246706 | AK68: =AJ66+AK67 -> 6354.935079 | AL68: =AK66+AL67 -> 6617.713676 | AM68: =AL66+AM67 -> 6884.647169 | AR68: =[6]SEWER_NWGGA!$AM68 -> 0 | AS68: =[6]SEWER_st!$AM68 -> 4683.811373 | AT68: =SUM(AR68:AS68) -> 4683.811373
A70: Incremental Tariffs
A71: Residential
A72: Price Path | J72: =Tariffs!J9 -> 0 | K72: =Tariffs!K9 -> 0 | L72: =Tariffs!L9 -> 0 | M72: =Tariffs!M9 -> 0 | N72: =Tariffs!N9 -> 0 | O72: =Tariffs!O9 -> 0.00158 | P72: =Tariffs!P9 -> 0.00158 | Q72: =Tariffs!Q9 -> 0.00158 | R72: =Tariffs!R9 -> 0.00158 | S72: =Tariffs!S9 -> 0.00158 | T72: =Tariffs!T9 -> 0.00158 | U72: =Tariffs!U9 -> 0.00158 | V72: =Tariffs!V9 -> 0.00158 | W72: =Tariffs!W9 -> 0.00158 | X72: =Tariffs!X9 -> 0.00158 | Y72: =Tariffs!Y9 -> 0 | Z72: =Tariffs!Z9 -> 0 | AA72: =Tariffs!AA9 -> 0 | AB72: =Tariffs!AB9 -> 0 | AC72: =Tariffs!AC9 -> 0 | AD72: =Tariffs!AD9 -> 0 | AE72: =Tariffs!AE9 -> 0 | AF72: =Tariffs!AF9 -> 0 | AG72: =Tariffs!AG9 -> 0 | AH72: =Tariffs!AH9 -> 0 | AI72: =Tariffs!AI9 -> 0 | AJ72: =Tariffs!AJ9 -> 0 | AK72: =Tariffs!AK9 -> 0 | AL72: =Tariffs!AL9 -> 0 | AM72: =Tariffs!AM9 -> 0
A73: Water variable
A74: Water fixed
A75: Sewerage Fixed | J75: =Tariffs!J12 -> 584.37 | K75: =Tariffs!K12 -> 584.37 | L75: =Tariffs!L12 -> 584.37 | M75: =Tariffs!M12 -> 584.37 | N75: =Tariffs!N12 -> 584.37 | O75: =Tariffs!O12 -> 585.2933046 | P75: =Tariffs!P12 -> 586.218068 | Q75: =Tariffs!Q12 -> 587.1442926 | R75: =Tariffs!R12 -> 588.0719806 | S75: =Tariffs!S12 -> 589.0011343 | T75: =Tariffs!T12 -> 589.9317561 | U75: =Tariffs!U12 -> 590.8638482 | V75: =Tariffs!V12 -> 591.7974131 | W75: =Tariffs!W12 -> 592.732453 | X75: =Tariffs!X12 -> 593.6689703 | Y75: =Tariffs!Y12 -> 593.6689703 | Z75: =Tariffs!Z12 -> 593.6689703 | AA75: =Tariffs!AA12 -> 593.6689703 | AB75: =Tariffs!AB12 -> 593.6689703 | AC75: =Tariffs!AC12 -> 593.6689703 | AD75: =Tariffs!AD12 -> 593.6689703 | AE75: =Tariffs!AE12 -> 593.6689703 | AF75: =Tariffs!AF12 -> 593.6689703 | AG75: =Tariffs!AG12 -> 593.6689703 | AH75: =Tariffs!AH12 -> 593.6689703 | AI75: =Tariffs!AI12 -> 593.6689703 | AJ75: =Tariffs!AJ12 -> 593.6689703 | AK75: =Tariffs!AK12 -> 593.6689703 | AL75: =Tariffs!AL12 -> 593.6689703 | AM75: =Tariffs!AM12 -> 593.6689703
A76: Recycled Water variable | B76: 0.7 | J76: =J73*$B$76 -> 0 | K76: 0 | L76: 0 | M76: 0 | N76: 0 | O76: 0 | P76: 0 | Q76: 0 | R76: 0 | S76: 0 | T76: 0 | U76: 0 | V76: 0 | W76: 0 | X76: 0 | Y76: 0 | Z76: 0 | AA76: 0 | AB76: 0 | AC76: 0 | AD76: 0 | AE76: 0 | AF76: 0 | AG76: 0 | AH76: 0 | AI76: 0 | AJ76: 0 | AK76: 0 | AL76: 0 | AM76: 0
A78: Non-residential
A79: Price Path | J79: =Tariffs!J15 -> 0 | K79: =Tariffs!K15 -> 0 | L79: =Tariffs!L15 -> 0 | M79: =Tariffs!M15 -> 0 | N79: =Tariffs!N15 -> 0 | O79: =Tariffs!O15 -> 0.00158 | P79: =Tariffs!P15 -> 0.00158 | Q79: =Tariffs!Q15 -> 0.00158 | R79: =Tariffs!R15 -> 0.00158 | S79: =Tariffs!S15 -> 0.00158 | T79: =Tariffs!T15 -> 0.00158 | U79: =Tariffs!U15 -> 0.00158 | V79: =Tariffs!V15 -> 0.00158 | W79: =Tariffs!W15 -> 0.00158 | X79: =Tariffs!X15 -> 0.00158 | Y79: =Tariffs!Y15 -> 0 | Z79: =Tariffs!Z15 -> 0 | AA79: =Tariffs!AA15 -> 0 | AB79: =Tariffs!AB15 -> 0 | AC79: =Tariffs!AC15 -> 0 | AD79: =Tariffs!AD15 -> 0 | AE79: =Tariffs!AE15 -> 0 | AF79: =Tariffs!AF15 -> 0 | AG79: =Tariffs!AG15 -> 0 | AH79: =Tariffs!AH15 -> 0 | AI79: =Tariffs!AI15 -> 0 | AJ79: =Tariffs!AJ15 -> 0 | AK79: =Tariffs!AK15 -> 0 | AL79: =Tariffs!AL15 -> 0 | AM79: =Tariffs!AM15 -> 0
A80: Water variable
A81: Water fixed
A82: Sewerage Variable | J82: =Tariffs!J18 -> 1.9834 | K82: =Tariffs!K18 -> 1.9834 | L82: =Tariffs!L18 -> 1.9834 | M82: =Tariffs!M18 -> 1.9834 | N82: =Tariffs!N18 -> 1.9834 | O82: =Tariffs!O18 -> 1.986533772 | P82: =Tariffs!P18 -> 1.989672495 | Q82: =Tariffs!Q18 -> 1.992816178 | R82: =Tariffs!R18 -> 1.995964827 | S82: =Tariffs!S18 -> 1.999118452 | T82: =Tariffs!T18 -> 2.002277059 | U82: =Tariffs!U18 -> 2.005440657 | V82: =Tariffs!V18 -> 2.008609253 | W82: =Tariffs!W18 -> 2.011782856 | X82: =Tariffs!X18 -> 2.014961473 | Y82: =Tariffs!Y18 -> 2.014961473 | Z82: =Tariffs!Z18 -> 2.014961473 | AA82: =Tariffs!AA18 -> 2.014961473 | AB82: =Tariffs!AB18 -> 2.014961473 | AC82: =Tariffs!AC18 -> 2.014961473 | AD82: =Tariffs!AD18 -> 2.014961473 | AE82: =Tariffs!AE18 -> 2.014961473 | AF82: =Tariffs!AF18 -> 2.014961473 | AG82: =Tariffs!AG18 -> 2.014961473 | AH82: =Tariffs!AH18 -> 2.014961473 | AI82: =Tariffs!AI18 -> 2.014961473 | AJ82: =Tariffs!AJ18 -> 2.014961473 | AK82: =Tariffs!AK18 -> 2.014961473 | AL82: =Tariffs!AL18 -> 2.014961473 | AM82: =Tariffs!AM18 -> 2.014961473
A83: Sewerage Fixed | J83: =Tariffs!J19 -> 353.58 | K83: =Tariffs!K19 -> 353.58 | L83: =Tariffs!L19 -> 353.58 | M83: =Tariffs!M19 -> 353.58 | N83: =Tariffs!N19 -> 353.58 | O83: =Tariffs!O19 -> 354.1386564 | P83: =Tariffs!P19 -> 354.6981955 | Q83: =Tariffs!Q19 -> 355.2586186 | R83: =Tariffs!R19 -> 355.8199272 | S83: =Tariffs!S19 -> 356.3821227 | T83: =Tariffs!T19 -> 356.9452065 | U83: =Tariffs!U19 -> 357.5091799 | V83: =Tariffs!V19 -> 358.0740444 | W83: =Tariffs!W19 -> 358.6398014 | X83: =Tariffs!X19 -> 359.2064523 | Y83: =Tariffs!Y19 -> 359.2064523 | Z83: =Tariffs!Z19 -> 359.2064523 | AA83: =Tariffs!AA19 -> 359.2064523 | AB83: =Tariffs!AB19 -> 359.2064523 | AC83: =Tariffs!AC19 -> 359.2064523 | AD83: =Tariffs!AD19 -> 359.2064523 | AE83: =Tariffs!AE19 -> 359.2064523 | AF83: =Tariffs!AF19 -> 359.2064523 | AG83: =Tariffs!AG19 -> 359.2064523 | AH83: =Tariffs!AH19 -> 359.2064523 | AI83: =Tariffs!AI19 -> 359.2064523 | AJ83: =Tariffs!AJ19 -> 359.2064523 | AK83: =Tariffs!AK19 -> 359.2064523 | AL83: =Tariffs!AL19 -> 359.2064523 | AM83: =Tariffs!AM19 -> 359.2064523
A84: Recycled Water variable | B84: 0.8 | J84: =J80*$B$84 -> 0 | K84: 0 | L84: 0 | M84: 0 | N84: 0 | O84: 0 | P84: 0 | Q84: 0 | R84: 0 | S84: 0 | T84: 0 | U84: 0 | V84: 0 | W84: 0 | X84: 0 | Y84: 0 | Z84: 0 | AA84: 0 | AB84: 0 | AC84: 0 | AD84: 0 | AE84: 0 | AF84: 0 | AG84: 0 | AH84: 0 | AI84: 0 | AJ84: 0 | AK84: 0 | AL84: 0 | AM84: 0
A86: Incremental Revenue
A87: Residential
A88: Volume - Potable water (kL/connection) | B88: needed to calculate sewerage discharge volumes | J88: 160 | K88: =J88 -> 160 | L88: 160 | M88: 160 | N88: 160 | O88: 160 | P88: 160 | Q88: 160 | R88: 160 | S88: 160 | T88: 160 | U88: 160 | V88: 160 | W88: 160 | X88: 160 | Y88: 160 | Z88: 160 | AA88: 160 | AB88: 160 | AC88: 160 | AD88: 160 | AE88: 160 | AF88: 160 | AG88: 160 | AH88: 160 | AI88: =AH88 -> 160 | AJ88: =AI88 -> 160 | AK88: =AJ88 -> 160 | AL88: =AK88 -> 160 | AM88: =AL88 -> 160
A89: Volume - Recycled water (kL/connection) | J89: =I89 -> 0 | K89: =J89 -> 0 | L89: =K89 -> 0 | M89: =L89 -> 0 | N89: =M89 -> 0 | O89: =N89 -> 0 | P89: =O89 -> 0 | Q89: =P89 -> 0 | R89: =Q89 -> 0 | S89: =R89 -> 0 | T89: =S89 -> 0 | U89: =T89 -> 0 | V89: =U89 -> 0 | W89: =V89 -> 0 | X89: =W89 -> 0 | Y89: =X89 -> 0 | Z89: =Y89 -> 0 | AA89: =Z89 -> 0 | AB89: =AA89 -> 0 | AC89: =AB89 -> 0 | AD89: =AC89 -> 0 | AE89: =AD89 -> 0 | AF89: =AE89 -> 0 | AG89: =AF89 -> 0 | AH89: =AG89 -> 0 | AI89: 0 | AJ89: 0 | AK89: 0 | AL89: 0 | AM89: 0
A90: Volume - Potable water (kL/annum) | J90: =J88*J62 -> 328286.9146 | K90: =K88*K62 -> 854535.8781 | L90: =L88*L62 -> 1386688.247 | M90: 1922926.204 | N90: 2455834.496 | O90: 2987770.886 | P90: 3521687.077 | Q90: 4056395.188 | R90: 4586657.747 | S90: 5109721.032 | T90: 5632064.389 | U90: 6155955.59 | V90: 6681862.588 | W90: 7216318.724 | X90: 7750756.863 | Y90: 8281775.346 | Z90: 8816141.491 | AA90: 9347015.988 | AB90: 9879644.834 | AC90: 10420694.07 | AD90: 10970298.05 | AE90: 11528592.04 | AF90: 12095713.43 | AG90: 12671801.79 | AH90: 13256998.92 | AI90: =AI88*AI62 -> 13851448.83 | AJ90: 14455297.81 | AK90: 15068694.49 | AL90: 15691789.83 | AM90: 16324737.17
A91: Volume - Recycled water (kL/annum) | J91: =J89*Connections!O60 -> 0 | K91: =K89*Connections!P60 -> 0 | L91: =L89*Connections!Q60 -> 0 | M91: =M89*Connections!R60 -> 0 | N91: =N89*Connections!S60 -> 0 | O91: =O89*Connections!T60 -> 0 | P91: =P89*Connections!U60 -> 0 | Q91: =Q89*Connections!V60 -> 0 | R91: =R89*Connections!W60 -> 0 | S91: =S89*Connections!X60 -> 0 | T91: =T89*Connections!Y60 -> 0 | U91: =U89*Connections!Z60 -> 0 | V91: =V89*Connections!AA60 -> 0 | W91: =W89*Connections!AB60 -> 0 | X91: =X89*Connections!AC60 -> 0 | Y91: =Y89*Connections!AD60 -> 0 | Z91: =Z89*Connections!AE60 -> 0 | AA91: =AA89*Connections!AF60 -> 0 | AB91: =AB89*Connections!AG60 -> 0 | AC91: =AC89*Connections!AH60 -> 0 | AD91: =AD89*Connections!AI60 -> 0 | AE91: =AE89*Connections!AJ60 -> 0 | AF91: =AF89*Connections!AK60 -> 0 | AG91: =AG89*Connections!AL60 -> 0 | AH91: =AH89*Connections!AM60 -> 0 | AI91: =AI89*Connections!AN60 -> 0 | AJ91: =AJ89*Connections!AO60 -> 0 | AK91: =AK89*Connections!AP60 -> 0 | AL91: =AL89*Connections!AQ60 -> 0 | AM91: =AM89*Connections!AR60 -> 0
A92: Revenue - Potable water volume | J92: =(J88*J$73)/1000000 -> 0 | K92: 0 | L92: 0 | M92: 0 | N92: 0 | O92: 0 | P92: 0 | Q92: 0 | R92: 0 | S92: 0 | T92: 0 | U92: 0 | V92: 0 | W92: 0 | X92: 0 | Y92: 0 | Z92: 0 | AA92: 0 | AB92: 0 | AC92: 0 | AD92: 0 | AE92: 0 | AF92: 0 | AG92: 0 | AH92: 0 | AI92: =(AI88*AI$73)/1000000 -> 0 | AJ92: 0 | AK92: 0 | AL92: 0 | AM92: 0
A93: Revenue - Water Service Charges | J93: =(J62*J$74)/1000000 -> 0 | K93: 0 | L93: 0 | M93: 0 | N93: 0 | O93: 0 | P93: 0 | Q93: 0 | R93: 0 | S93: 0 | T93: 0 | U93: 0 | V93: 0 | W93: 0 | X93: 0 | Y93: 0 | Z93: 0 | AA93: 0 | AB93: 0 | AC93: 0 | AD93: 0 | AE93: 0 | AF93: 0 | AG93: 0 | AH93: 0 | AI93: =(AI62*AI$74)/1000000 -> 0 | AJ93: 0 | AK93: 0 | AL93: 0 | AM93: 0
A94: Revenue - Sewerage Service Charges | C94: /connection | J94: =(J62*J$75)/1000000 -> 1.199006402 | K94: =(K62*K$75)/1000000 -> 3.121032069 | L94: 5.064618817 | M94: 7.02312741 | N94: 8.969475027 | O94: 10.92951435 | P94: 12.90297872 | Q94: 14.88555802 | R94: 16.85803066 | S94: 18.81019677 | T94: 20.76583522 | U94: 22.73332256 | V94: 24.71443122 | W94: 26.73341437 | X94: 28.75864904 | Y94: 30.72895651 | Z94: 32.71168526 | AA94: 34.68145848 | AB94: 36.6577411 | AC94: 38.665267 | AD94: 40.70453469 | AE94: 42.77604603 | AF94: 44.88031085 | AG94: 47.01784702 | AH94: 49.18918062 | AI94: =(AI62*AI$75)/1000000 -> 51.39484602 | AJ94: 53.63538606 | AK94: 55.91135215 | AL94: 58.22330443 | AM94: =(AM62*AM$75)/1000000 -> 60.5718119 | AT94: =(($P$3*(AM97+AM103))/1000000) -> 4.623334504
A95: Revenue - Recycled water volume | J95: =(J91*J$76)/1000000 -> 0 | K95: 0 | L95: 0 | M95: 0 | N95: 0 | O95: 0 | P95: 0 | Q95: 0 | R95: 0 | S95: 0 | T95: 0 | U95: 0 | V95: 0 | W95: 0 | X95: 0 | Y95: 0 | Z95: 0 | AA95: 0 | AB95: 0 | AC95: 0 | AD95: 0 | AE95: 0 | AF95: 0 | AG95: 0 | AH95: 0 | AI95: =(AI91*AI$76)/1000000 -> 0 | AJ95: 0 | AK95: 0 | AL95: 0 | AM95: 0 | AQ95: =P3 -> 0.2242533937 | AR95: =AQ95*(AR97+AR103)/1000000 -> 1.305300516 | AS95: =AQ95*(AS97+AS103)/1000000 -> 1.80051615 | AT95: =AQ95*(AT97+AT103)/1000000 -> 3.105816666
A96: Total residential revenue | J96: =SUM(J92:J95) -> 1.199006402 | K96: =SUM(K92:K95) -> 3.121032069 | L96: 5.064618817 | M96: 7.02312741 | N96: 8.969475027 | O96: 10.92951435 | P96: 12.90297872 | Q96: =SUM(Q92:Q95) -> 14.88555802 | R96: 16.85803066 | S96: 18.81019677 | T96: 20.76583522 | U96: 22.73332256 | V96: 24.71443122 | W96: 26.73341437 | X96: 28.75864904 | Y96: 30.72895651 | Z96: 32.71168526 | AA96: 34.68145848 | AB96: 36.6577411 | AC96: 38.665267 | AD96: 40.70453469 | AE96: 42.77604603 | AF96: 44.88031085 | AG96: 47.01784702 | AH96: 49.18918062 | AI96: =SUM(AI92:AI95) -> 51.39484602 | AJ96: 53.63538606 | AK96: 55.91135215 | AL96: 58.22330443 | AM96: 60.5718119
A97: Sewerage discharge volume (for incremental Opex calc) | B97: 0.95 | J97: =J90*$B$97 -> 311872.5688 | K97: =K90*$B$97 -> 811809.0842 | L97: 1317353.834 | M97: 1826779.893 | N97: 2333042.771 | O97: 2838382.342 | P97: 3345602.723 | Q97: 3853575.429 | R97: 4357324.86 | S97: 4854234.98 | T97: 5350461.169 | U97: 5848157.811 | V97: 6347769.459 | W97: 6855502.788 | X97: 7363219.02 | Y97: 7867686.578 | Z97: 8375334.416 | AA97: 8879665.189 | AB97: 9385662.593 | AC97: 9899659.37 | AD97: 10421783.15 | AE97: 10952162.44 | AF97: 11490927.76 | AG97: 12038211.71 | AH97: 12594148.97 | AI97: 13158876.39 | AJ97: 13732532.92 | AK97: 14315259.77 | AL97: 14907200.34 | AM97: 15508500.31 | AR97: =[6]SEWER_NWGGA!$AM97 -> 5820650 | AS97: =[6]SEWER_st!$AM97 -> 4553782.173 | AT97: =SUM(AR97:AS97) -> 10374432.17
A99: Non-residential
A100: Volume - Potable water (kL/connection) | J100: 781 | K100: =J100 -> 781 | L100: 781 | M100: 781 | N100: 781 | O100: 781 | P100: 781 | Q100: 781 | R100: 781 | S100: 781 | T100: 781 | U100: 781 | V100: 781 | W100: 781 | X100: 781 | Y100: 781 | Z100: 781 | AA100: 781 | AB100: 781 | AC100: 781 | AD100: 781 | AE100: 781 | AF100: 781 | AG100: 781 | AH100: 781 | AI100: =AH100 -> 781 | AJ100: =AI100 -> 781 | AK100: =AJ100 -> 781 | AL100: =AK100 -> 781 | AM100: =AL100 -> 781
A101: Volume - Recycled water (kL/connection)
A102: Volume - Potable water (kL/annum) | J102: =J100*J68 -> 108128.4796 | K102: 281460.0922 | L102: 456736.1205 | M102: 633357.8267 | N102: 808882.8351 | O102: 984087.7262 | P102: 1159944.708 | Q102: 1336062.526 | R102: 1510716.104 | S102: 1682998.444 | T102: 1855043.659 | U102: 2027598.691 | V102: 2200817.67 | W102: 2376852.495 | X102: 2552881.391 | Y102: 2727783.95 | Z102: 2903789.134 | AA102: 3078644.267 | AB102: 3254077.234 | AC102: 3432283.641 | AD102: 3613307.74 | AE102: 3797194.081 | AF102: 3983987.922 | AG102: 4173735.233 | AH102: 4366482.713 | AI102: =AI100*AI68 -> 4562277.799 | AJ102: 4761168.677 | AK102: 4963204.297 | AL102: 5168434.381 | AM102: 5376909.439
A103: Sewerage discharge volume (for revenue and incremental Opex calc) | B103: 0.95 | J103: =$B$103*J102 -> 102722.0556 | K103: 267387.0876 | L103: 433899.3145 | M103: 601689.9354 | N103: 768438.6933 | O103: 934883.3399 | P103: 1101947.473 | Q103: 1269259.4 | R103: 1435180.299 | S103: 1598848.522 | T103: 1762291.476 | U103: 1926218.757 | V103: 2090776.787 | W103: 2258009.87 | X103: 2425237.322 | Y103: 2591394.752 | Z103: 2758599.677 | AA103: 2924712.054 | AB103: 3091373.372 | AC103: 3260669.459 | AD103: 3432642.353 | AE103: 3607334.377 | AF103: 3784788.526 | AG103: 3965048.471 | AH103: 4148158.577 | AI103: =$B$103*AI102 -> 4334163.909 | AJ103: 4523110.243 | AK103: 4715044.082 | AL103: 4910012.662 | AM103: 5108063.967 | AR103: =[6]SEWER_NWGGA!$AM103 -> 0 | AS103: =[6]SEWER_st!$AM103 -> 3475153.848 | AT103: =SUM(AR103:AS103) -> 3475153.848
A104: Volume - Recycled water (kL/annum)
A105: Revenue - Potable water | J105: =(J102*$E$80)/1000000 -> 0 | K105: 0 | L105: 0 | M105: 0 | N105: 0 | O105: 0 | P105: 0 | Q105: 0 | R105: 0 | S105: 0 | T105: 0 | U105: 0 | V105: 0 | W105: 0 | X105: 0 | Y105: 0 | Z105: 0 | AA105: 0 | AB105: 0 | AC105: 0 | AD105: 0 | AE105: 0 | AF105: 0 | AG105: 0 | AH105: 0 | AI105: =(AI102*$E$80)/1000000 -> 0 | AJ105: 0 | AK105: 0 | AL105: 0 | AM105: 0
A106: Revenue - Sewerage discharge volume | J106: =(J103*J$82)/1000000 -> 0.2037389251 | K106: 0.5303355496 | L106: 0.8605959004 | M106: 1.193391818 | N106: 1.524121304 | O106: 1.857177328 | P106: 2.192514578 | Q106: 2.529400666 | R106: 2.864569398 | S106: 3.196287581 | T106: 3.528595795 | U106: 3.862917409 | V106: 4.1995536 | W106: 4.542625545 | X106: 4.886759765 | Y106: 5.221560586 | Z106: 5.558472068 | AA106: 5.893182107 | AB106: 6.228998242 | AC106: 6.570123335 | AD106: 6.91664209 | AE106: 7.268639789 | AF106: 7.626203061 | AG106: 7.989419906 | AH106: 8.358379715 | AI106: =(AI103*AI$82)/1000000 -> 8.733173292 | AJ106: 9.113892876 | AK106: 9.500632167 | AL106: 9.893486344 | AM106: 10.29255209
A107: Revenue - Service Charges | C107: /connection | J107: =(J68*J$83)/1000000 -> 0.04895271167 | K107: =(K68*K$83)/1000000 -> 0.1274246599 | L107: 0.2067768982 | M107: 0.2867383616 | N107: 0.3662033199 | O107: 0.4462272793 | P107: 0.5267993531 | Q107: 0.607743569 | R107: 0.6882751527 | S107: 0.767977667 | T107: 0.8478219489 | U107: 0.9281499941 | V107: 1.009034167 | W107: 1.091464669 | X107: 1.174150407 | Y107: 1.254593592 | Z107: 1.335543909 | AA107: 1.415965282 | AB107: 1.496652418 | AC107: 1.578615147 | AD107: 1.661873821 | AE107: 1.74644893 | AF107: 1.83236129 | AG107: 1.919632043 | AH107: 2.008282669 | AI107: 2.098334984 | AJ107: 2.189811151 | AK107: 2.282733684 | AL107: 2.377125452 | AM107: 2.473009685
A108: Revenue - Recycled water volume | J108: =(J104*J$84)/1000000 -> 0 | K108: 0 | L108: 0 | M108: 0 | N108: 0 | O108: 0 | P108: 0 | Q108: 0 | R108: 0 | S108: 0 | T108: 0 | U108: 0 | V108: 0 | W108: 0 | X108: 0 | Y108: 0 | Z108: 0 | AA108: 0 | AB108: 0 | AC108: 0 | AD108: 0 | AE108: 0 | AF108: 0 | AG108: 0 | AH108: 0 | AI108: =(AI104*AI$84)/1000000 -> 0 | AJ108: 0 | AK108: 0 | AL108: 0 | AM108: 0
A109: Total Non-residential revenue | J109: =SUM(J105:J108) -> 0.2526916368 | K109: 0.6577602096 | L109: 1.067372799 | M109: 1.480130179 | N109: 1.890324624 | O109: 2.303404607 | P109: 2.719313931 | Q109: 3.137144235 | R109: 3.55284455 | S109: 3.964265248 | T109: 4.376417744 | U109: 4.791067403 | V109: 5.208587767 | W109: 5.634090214 | X109: 6.060910172 | Y109: 6.476154178 | Z109: 6.894015977 | AA109: 7.309147389 | AB109: 7.72565066 | AC109: 8.148738482 | AD109: 8.578515911 | AE109: 9.015088719 | AF109: 9.458564351 | AG109: 9.90905195 | AH109: 10.36666238 | AI109: =SUM(AI105:AI108) -> 10.83150828 | AJ109: 11.30370403 | AK109: 11.78336585 | AL109: 12.2706118 | AM109: 12.76556178
A111: Incremental tariff revenue | J111: =J109+J96 -> 1.451698038 | K111: =K109+K96 -> 3.778792279 | L111: =L109+L96 -> 6.131991616 | M111: 8.503257589 | N111: 10.85979965 | O111: 13.23291895 | P111: 15.62229265 | Q111: 18.02270225 | R111: 20.41087521 | S111: 22.77446202 | T111: 25.14225296 | U111: 27.52438996 | V111: 29.92301898 | W111: 32.36750459 | X111: 34.81955921 | Y111: 37.20511069 | Z111: 39.60570123 | AA111: 41.99060587 | AB111: 44.38339176 | AC111: 46.81400549 | AD111: 49.2830506 | AE111: 51.79113475 | AF111: 54.3388752 | AG111: 56.92689897 | AH111: 59.555843 | AI111: =AI109+AI96 -> 62.22635429 | AJ111: 64.93909008 | AK111: 67.694718 | AL111: 70.49391623 | AM111: 73.33737368 | AO111: =AM111 -> 73.33737368
A112: Capital contributions | J112: =$B$7*J59/1000000 -> 1.416029008 | K112: =$B$7*K59/1000000 -> 1.420298832 | L112: =$B$7*L59/1000000 -> 1.443200617 | M112: 1.447082275 | N112: 1.430391144 | O112: 1.436213632 | P112: 1.441259788 | Q112: 1.441647953 | R112: 1.422239661 | S112: 1.402831369 | T112: 1.411371017 | U112: 1.412923681 | V112: 1.420686998 | W112: 1.452904763 | X112: 1.433496471 | Y112: 1.430391144 | Z112: 1.446694109 | AA112: 1.421851495 | AB112: 1.44432425 | AC112: 1.467161026 | AD112: 1.490358883 | AE112: 1.513923531 | AF112: 1.537860768 | AG112: 1.562176487 | AH112: 1.586876671 | AI112: =$B$7*AI59/1000000 -> 1.611967399 | AJ112: 1.637454846 | AK112: 1.663345285 | AL112: 1.689645089 | AM112: 1.716360728 | AO112: =SUM(J112:AN112) -> 44.65296892
A113: Total revenue | J113: =SUM(J111:J112) -> 2.867727046 | K113: =SUM(K111:K112) -> 5.199091111 | L113: 7.575192232 | M113: 9.950339864 | N113: 12.2901908 | O113: 14.66913258 | P113: 17.06355243 | Q113: 19.46435021 | R113: 21.83311487 | S113: 24.17729339 | T113: 26.55362398 | U113: 28.93731364 | V113: 31.34370598 | W113: 33.82040935 | X113: 36.25305568 | Y113: 38.63550183 | Z113: 41.05239534 | AA113: 43.41245737 | AB113: 45.82771601 | AC113: 48.28116651 | AD113: 50.77340948 | AE113: 53.30505828 | AF113: 55.87673597 | AG113: 58.48907546 | AH113: 61.14271967 | AI113: =SUM(AI111:AI112) -> 63.83832169 | AJ113: 66.57654493 | AK113: 69.35806329 | AL113: 72.18356132 | AM113: 75.05373441
A115: Incremental Net Tax
A117: Gifted Assets | J117: =J52 -> 17.18201023 | K117: =K52 -> 17.23382002 | L117: 17.5117089 | M117: 17.5588087 | N117: 17.35627953 | O117: 17.42692924 | P117: 17.48815899 | Q117: 17.49286897 | R117: 17.25736993 | S117: 17.02187088 | T117: 17.12549046 | U117: 17.14433039 | V117: 17.23853 | W117: 17.62945842 | X117: 17.39395937 | Y117: 17.35627953 | Z117: 17.55409872 | AA117: 17.25265995 | AB117: 17.525343 | AC117: 17.80244305 | AD117: 18.08392445 | AE117: 18.36985645 | AF117: 18.66030944 | AG117: 18.9553549 | AH117: 19.25506543 | AI117: =AI52 -> 19.55951481 | AJ117: 19.86877795 | AK117: 20.18293097 | AL117: 20.50205119 | AM117: 20.82621715
A118: Incremental Tariff Revenue | J118: =J111 -> 1.451698038 | K118: =K111 -> 3.778792279 | L118: 6.131991616 | M118: 8.503257589 | N118: 10.85979965 | O118: 13.23291895 | P118: 15.62229265 | Q118: 18.02270225 | R118: 20.41087521 | S118: 22.77446202 | T118: 25.14225296 | U118: 27.52438996 | V118: 29.92301898 | W118: 32.36750459 | X118: 34.81955921 | Y118: 37.20511069 | Z118: 39.60570123 | AA118: 41.99060587 | AB118: 44.38339176 | AC118: 46.81400549 | AD118: 49.2830506 | AE118: 51.79113475 | AF118: 54.3388752 | AG118: 56.92689897 | AH118: 59.555843 | AI118: 62.22635429 | AJ118: 64.93909008 | AK118: 67.694718 | AL118: 70.49391623 | AM118: 73.33737368
A119: Incremental O&M | J119: =-J42 -> -0.3518196278 | K119: -0.7698504188 | L119: -1.206337783 | M119: -1.644389445 | N119: -2.10259683 | O119: -2.617476127 | P119: -3.187731256 | Q119: -3.669634245 | R119: -4.200322484 | S119: -3.055594842 | T119: -3.390963052 | U119: -3.698872283 | V119: -4.299989084 | W119: -4.711158768 | X119: -5.118225059 | Y119: -5.41751457 | Z119: -5.718731379 | AA119: -6.013883731 | AB119: -6.310882713 | AC119: -6.707006404 | AD119: -6.98534297 | AE119: -7.267555999 | AF119: -7.553706783 | AG119: -7.843857582 | AH119: -8.138071643 | AI119: =-AI42 -> -8.436413212 | AJ119: -8.738947551 | AK119: -9.045740952 | AL119: -9.356860758 | AM119: -9.672375374
A120: Tax Depreciation | I120: =-I55-I20 -> 0 | J120: -0.5382426939 | K120: -0.8802617044 | L120: -1.279858208 | M120: -1.675944372 | N120: -2.160083285 | O120: -2.869126471 | P120: -3.791215192 | Q120: -4.363747002 | R120: -5.139746518 | S120: =-S55-S20 -> -5.4286092 | T120: -6.077288925 | U120: -6.61608194 | V120: -8.306045091 | W120: -9.236919906 | X120: -10.15288942 | Y120: -10.64871505 | Z120: -11.14736667 | AA120: -11.62760944 | AB120: -12.11174769 | AC120: -12.97516257 | AD120: -13.36403409 | AE120: -13.75699034 | AF120: -14.15409592 | AG120: -14.55541644 | AH120: -14.96101854 | AI120: =-AI55-AI20 -> -15.37096991 | AJ120: -15.78533933 | AK120: -16.20419665 | AL120: -16.62761283 | AM120: -17.05565995
A121: Other Benefits (Taxable Income)
A122: Capital contributions | J122: =J112 -> 1.416029008 | K122: 1.420298832 | L122: 1.443200617 | M122: 1.447082275 | N122: 1.430391144 | O122: 1.436213632 | P122: 1.441259788 | Q122: 1.441647953 | R122: 1.422239661 | S122: 1.402831369 | T122: 1.411371017 | U122: 1.412923681 | V122: 1.420686998 | W122: 1.452904763 | X122: 1.433496471 | Y122: 1.430391144 | Z122: 1.446694109 | AA122: 1.421851495 | AB122: 1.44432425 | AC122: 1.467161026 | AD122: 1.490358883 | AE122: 1.513923531 | AF122: 1.537860768 | AG122: 1.562176487 | AH122: 1.586876671 | AI122: 1.611967399 | AJ122: 1.637454846 | AK122: 1.663345285 | AL122: 1.689645089 | AM122: 1.716360728
A123: Change in net taxable income | I123: =SUM(I117:I122) -> 0 | J123: 19.15967496 | K123: 20.78279901 | L123: 22.60070514 | M123: 24.18881475 | N123: 25.38379021 | O123: 26.60945923 | P123: 27.57276498 | Q123: 28.92383793 | R123: 29.7504158 | S123: 32.71496023 | T123: 34.21086247 | U123: 35.76668981 | V123: 35.97620181 | W123: 37.50178909 | X123: 38.37590058 | Y123: 39.92555174 | Z123: 41.74039602 | AA123: 43.02362414 | AB123: 44.9304286 | AC123: 46.40144059 | AD123: 48.50795687 | AE123: 50.65036839 | AF123: 52.8292427 | AG123: 55.04515633 | AH123: 57.29869492 | AI123: 59.59045337 | AJ123: 61.921036 | AK123: 64.29105666 | AL123: 66.70113892 | AM123: 69.15191623
A125: Corporate tax rate | I125: ='WATER&RW_st'!I125 -> 0 | J125: 0.3 | K125: =J125 -> 0.3 | L125: =K125 -> 0.3 | M125: 0.3 | N125: 0.3 | O125: 0.3 | P125: 0.3 | Q125: 0.3 | R125: 0.3 | S125: 0.3 | T125: 0.3 | U125: 0.3 | V125: 0.3 | W125: 0.3 | X125: 0.3 | Y125: 0.3 | Z125: 0.3 | AA125: 0.3 | AB125: 0.3 | AC125: 0.3 | AD125: 0.3 | AE125: 0.3 | AF125: 0.3 | AG125: 0.3 | AH125: 0.3 | AI125: 0.3 | AJ125: 0.3 | AK125: 0.3 | AL125: 0.3 | AM125: 0.3
A126: Change in tax | I126: =-I123*I125 -> 0 | J126: =-J123*J125 -> -5.747902487 | K126: =-K123*K125 -> -6.234839703 | L126: -6.780211541 | M126: -7.256644426 | N126: -7.615137062 | O126: -7.982837768 | P126: -8.271829493 | Q126: -8.677151379 | R126: -8.925124739 | S126: -9.814488069 | T126: -10.26325874 | U126: -10.73000694 | V126: -10.79286054 | W126: -11.25053673 | X126: -11.51277017 | Y126: -11.97766552 | Z126: -12.52211881 | AA126: -12.90708724 | AB126: -13.47912858 | AC126: -13.92043218 | AD126: -14.55238706 | AE126: -15.19511052 | AF126: -15.84877281 | AG126: -16.5135469 | AH126: -17.18960848 | AI126: -17.87713601 | AJ126: -18.5763108 | AK126: -19.287317 | AL126: -20.01034168 | AM126: -20.74557487
A128: NCC Calculation
C130: NPV
A131: Incremental CAPEX | C131: =NPV($B$3,J131:AM131)+I131 -> -460.8037761 | I131: =-I17 -> 0 | J131: -20.49497834 | K131: -6.707510711 | L131: -10.46004637 | M131: -10.16722274 | N131: -16.53344441 | O131: -32.20609378 | P131: -47.05805148 | Q131: -22.58435774 | R131: -37.06259618 | S131: -3.198516858 | T131: -28.28209032 | U131: -20.57118065 | V131: -101.0588906 | W131: -47.53177862 | X131: -46.72390648 | Y131: -17.35151462 | Z131: -17.35151462 | AA131: -16.36433428 | AB131: -16.36433428 | AC131: -42.63659891 | AD131: -9.137081374 | AE131: -9.137081374 | AF131: -9.137081374 | AG131: -9.137081374 | AH131: -9.137081374 | AI131: -9.137081374 | AJ131: -9.137081374 | AK131: -9.137081374 | AL131: -9.137081374 | AM131: -9.137081374 | AN131: =AM131/$B$3 -> -337.1616743
A132: Government Contributions (Not Taxable Income) | C132: =NPV($B$3,J132:AM132)+I132 -> 0 | I132: =I22 -> 0 | J132: 0 | K132: 0 | L132: 0 | M132: 0 | N132: 0 | O132: 0 | P132: 0 | Q132: 0 | R132: 0 | S132: 0 | T132: 0 | U132: 0 | V132: 0 | W132: 0 | X132: 0 | Y132: 0 | Z132: 0 | AA132: 0 | AB132: 0 | AC132: 0 | AD132: 0 | AE132: 0 | AF132: 0 | AG132: 0 | AH132: 0 | AI132: 0 | AJ132: 0 | AK132: 0 | AL132: 0 | AM132: 0 | AN132: =AM132/$B$3 -> 0
A133: Incremental Tariff Revenue | C133: =NPV($B$3,J133:AM133)+I133 -> 641.6271623 | I133: =I111 -> 0 | J133: 1.451698038 | K133: 3.778792279 | L133: 6.131991616 | M133: 8.503257589 | N133: 10.85979965 | O133: 13.23291895 | P133: 15.62229265 | Q133: 18.02270225 | R133: 20.41087521 | S133: 22.77446202 | T133: 25.14225296 | U133: 27.52438996 | V133: 29.92301898 | W133: 32.36750459 | X133: 34.81955921 | Y133: 37.20511069 | Z133: 39.60570123 | AA133: 41.99060587 | AB133: 44.38339176 | AC133: 46.81400549 | AD133: 49.2830506 | AE133: 51.79113475 | AF133: 54.3388752 | AG133: 56.92689897 | AH133: 59.555843 | AI133: 62.22635429 | AJ133: 64.93909008 | AK133: 67.694718 | AL133: 70.49391623 | AM133: 73.33737368 | AN133: =AM133/$B$3 -> 2706.17615
A134: Incremental O&M | C134: =NPV($B$3,J134:AM134)+I134 -> -94.27999685 | I134: =-I42 -> 0 | J134: -0.3518196278 | K134: -0.7698504188 | L134: -1.206337783 | M134: -1.644389445 | N134: -2.10259683 | O134: -2.617476127 | P134: -3.187731256 | Q134: -3.669634245 | R134: -4.200322484 | S134: -3.055594842 | T134: -3.390963052 | U134: -3.698872283 | V134: -4.299989084 | W134: -4.711158768 | X134: -5.118225059 | Y134: -5.41751457 | Z134: -5.718731379 | AA134: -6.013883731 | AB134: -6.310882713 | AC134: -6.707006404 | AD134: -6.98534297 | AE134: -7.267555999 | AF134: -7.553706783 | AG134: -7.843857582 | AH134: -8.138071643 | AI134: -8.436413212 | AJ134: -8.738947551 | AK134: -9.045740952 | AL134: -9.356860758 | AM134: -9.672375374 | AN134: =AM134/$B$3 -> -356.9142205
C135: =NPV($B$3,J135:AM135)+I135 -> 0 | AN135: =AM135/$B$3 -> 0
A136: Tax | C136: =NPV($B$3,J136:AM136)+I136 -> -233.0308426 | I136: =I126 -> 0 | J136: =J126 -> -5.747902487 | K136: =K126 -> -6.234839703 | L136: -6.780211541 | M136: -7.256644426 | N136: -7.615137062 | O136: -7.982837768 | P136: -8.271829493 | Q136: -8.677151379 | R136: -8.925124739 | S136: -9.814488069 | T136: -10.26325874 | U136: -10.73000694 | V136: -10.79286054 | W136: -11.25053673 | X136: -11.51277017 | Y136: -11.97766552 | Z136: -12.52211881 | AA136: -12.90708724 | AB136: -13.47912858 | AC136: -13.92043218 | AD136: -14.55238706 | AE136: -15.19511052 | AF136: -15.84877281 | AG136: -16.5135469 | AH136: -17.18960848 | AI136: -17.87713601 | AJ136: -18.5763108 | AK136: -19.287317 | AL136: -20.01034168 | AM136: -20.74557487 | AN136: =AM136/$B$3 -> -765.5193678
A137: Value of Franking Credits | C137: =NPV($B$3,J137:AM137)+I137 -> 116.5154213 | I137: =-I136*$B$4 -> 0 | J137: 2.873951244 | K137: 3.117419852 | L137: 3.39010577 | M137: 3.628322213 | N137: 3.807568531 | O137: 3.991418884 | P137: 4.135914747 | Q137: 4.33857569 | R137: 4.46256237 | S137: 4.907244035 | T137: 5.13162937 | U137: 5.365003471 | V137: 5.396430271 | W137: 5.625268364 | X137: 5.756385086 | Y137: 5.988832761 | Z137: 6.261059403 | AA137: 6.453543621 | AB137: 6.73956429 | AC137: 6.960216088 | AD137: 7.276193531 | AE137: 7.597555259 | AF137: 7.924386406 | AG137: 8.25677345 | AH137: 8.594804238 | AI137: 8.938568006 | AJ137: 9.288155399 | AK137: 9.643658498 | AL137: 10.00517084 | AM137: 10.37278743 | AN137: =AM137/$B$3 -> 382.7596839
A138: Capital contributions | C138: 29.97203191 | I138: =I112 -> 0 | J138: 1.416029008 | K138: 1.420298832 | L138: 1.443200617 | M138: 1.447082275 | N138: 1.430391144 | O138: 1.436213632 | P138: 1.441259788 | Q138: 1.441647953 | R138: 1.422239661 | S138: 1.402831369 | T138: 1.411371017 | U138: 1.412923681 | V138: 1.420686998 | W138: 1.452904763 | X138: 1.433496471 | Y138: 1.430391144 | Z138: 1.446694109 | AA138: 1.421851495 | AB138: 1.44432425 | AC138: 1.467161026 | AD138: 1.490358883 | AE138: 1.513923531 | AF138: 1.537860768 | AG138: 1.562176487 | AH138: 1.586876671 | AI138: 1.611967399 | AJ138: 1.637454846 | AK138: 1.663345285 | AL138: 1.689645089 | AM138: 1.716360728 | AN138: 63.33434422
A139: Net cashflow (for NPV) | C139: 0 | I139: =SUM(I131:I138) -> 0 | J139: -20.85302216 | K139: -5.39568987 | L139: -7.481297687 | M139: -5.489594538 | N139: -10.15341898 | O139: -24.14585621 | P139: -37.31814504 | Q139: -11.12821747 | R139: -23.89236616 | S139: 13.01593765 | T139: -10.25105876 | U139: -0.6977427628 | V139: -79.41160395 | W139: -24.0477964 | X139: -21.34546094 | Y139: 9.87763988 | Z139: 11.72108994 | AA139: 14.58069574 | AB139: 16.41293473 | AC139: -8.022654889 | AD139: 27.37479161 | AE139: 29.30286565 | AF139: 31.26156141 | AG139: 33.25136305 | AH139: 35.27276242 | AI139: 37.3262591 | AJ139: 39.4123606 | AK139: 41.53158246 | AL139: 43.68444835 | AM139: 45.87149022 | AN139: 1692.674916
V144: v144
AE151: Costs | AG151: Revenue
AD152: Incremental Capex | AE152: =O156 -> 460.8037761 | AF152: New Customer Contributions | AG152: =U153 -> 29.97203191
U153: =C138 -> 29.97203191 | AD153: Incremental Opex | AE153: =O166 -> 327.3108394 | AF153: General tariff revenue from new connections | AG153: =U160 -> 758.1425836
U154: =U153/$U$172 -> 0.03803004197 | AE154: =SUM(AE152:AE153) -> 788.1146155 | AG154: =SUM(AG152:AG153) -> 788.1146155
O156: =-C131 -> 460.8037761
O157: =O156/$O$172 -> 0.5846913215
U160: =C133+C137 -> 758.1425836
U161: =U160/$U$172 -> 0.961969958
O166: =-(C134+C136) -> 327.3108394
O167: =O166/$O$172 -> 0.4153086785
O172: =O156+O166 -> 788.1146155 | U172: =U153+U160 -> 788.1146155

Sheet Projected NCC revenue
E3: 2023PS Plain Tariff ($'2022/23) | P3: 2023PS Greenfield / Infill ($2022/23)
G4: 2023-24 | H4: 2024-25 | I4: 2025-26 | J4: 2026-27 | K4: 2027-28 | L4: TOTAL | P4: =L13 -> 69.43964553 | Q4: 2023-24 | R4: 2024-25 | S4: 2025-26 | T4: 2026-27 | U4: 2027-28 | V4: TOTAL
E5: Charge - Water (incl. Recycled Water) - ALL | G5: ='WATER&RW_st'!B7 -> 2944.004888 | H5: =G5 -> 2944.004888 | I5: =H5 -> 2944.004888 | J5: =I5 -> 2944.004888 | K5: =J5 -> 2944.004888 | O5: Charge - Water (incl. Recycled Water) - Greenfield | P5: =1-P9 -> 0.75 | Q5: 3680.00611 | R5: =Q5 -> 3680.00611 | S5: =R5 -> 3680.00611 | T5: =S5 -> 3680.00611 | U5: =T5 -> 3680.00611
E6: Connections - Water (incl. Recycled Water) - ALL | G6: =Connections!O$104 -> 4153.254545 | H6: =Connections!P$104 -> 4165.780613 | I6: =Connections!Q$104 -> 4232.953915 | J6: =Connections!R$104 -> 4244.340885 | K6: =Connections!S$104 -> 4195.384838 | L6: =SUM(G6:K6) -> 20991.7148 | O6: Connections - Water (incl. Recycled Water) - Greenfield | Q6: =G$6*$P5 -> 3114.940909 | R6: =H$6*$P5 -> 3124.33546 | S6: 3174.715436 | T6: 3183.255664 | U6: 3146.538629
E7: Revenue ($'M) - Water (incl. Recycled Water) - ALL | G7: =G6*G5/1000000 -> 12.22720168 | H7: =H6*H5/1000000 -> 12.26407849 | I7: 12.46183702 | J7: 12.49536031 | K7: 12.35123347 | L7: =SUM(G7:K7) -> 61.79971096 | O7: Revenue ($'M) - Water (incl. Recycled Water) - Greenfield | Q7: =Q6*Q5/1000000 -> 11.46300157 | R7: =R6*R5/1000000 -> 11.49757358 | S7: =S6*S5/1000000 -> 11.6829722 | T7: =T6*T5/1000000 -> 11.71440029 | U7: =U6*U5/1000000 -> 11.57928138 | V7: =SUM(Q7:U7) -> 57.93722903
E9: Charge - Sewer - ALL | G9: =IF(SEWER_st!$B$7<0,0,SEWER_st!$B$7) -> 431.3388517 | H9: =G9 -> 431.3388517 | I9: =H9 -> 431.3388517 | J9: 431.3388517 | K9: 431.3388517 | O9: Charge - Water (incl. Recycled Water) - Infill | P9: 0.25 | Q9: =G$5*$P9 -> 736.0012219 | R9: =H$5*$P9 -> 736.0012219 | S9: =I$5*$P9 -> 736.0012219 | T9: 736.0012219 | U9: 736.0012219
E10: Connections - Sewer - ALL | G10: =Connections!O$29 -> 3504.387158 | H10: =Connections!P$29 -> 3514.954115 | I10: =Connections!Q$29 -> 3571.631429 | J10: =Connections!R$29 -> 3581.237753 | K10: =Connections!S$29 -> 3539.930558 | L10: =SUM(G10:K10) -> 17712.14101 | O10: Connections - Water (incl. Recycled Water) - Infill | Q10: =G$6*$P9 -> 1038.313636 | R10: =H$6*$P9 -> 1041.445153 | S10: =I$6*$P9 -> 1058.238479 | T10: =J$6*$P9 -> 1061.085221 | U10: =K$6*$P9 -> 1048.84621
E11: Revenue ($'M) - Sewer - ALL | G11: =G10*G9/1000000 -> 1.511578332 | H11: =H10*H9/1000000 -> 1.516136271 | I11: =I10*I9/1000000 -> 1.540583399 | J11: =J10*J9/1000000 -> 1.54472698 | K11: =K10*K9/1000000 -> 1.526909582 | L11: =SUM(G11:K11) -> 7.639934565 | O11: Revenue ($'M) - Water (incl. Recycled Water) - Infill | Q11: =Q10*Q9/1000000 -> 0.764200105 | R11: =R10*R9/1000000 -> 0.7665049054 | S11: =S10*S9/1000000 -> 0.7788648135 | T11: =T10*T9/1000000 -> 0.7809600194 | U11: =U10*U9/1000000 -> 0.7719520918 | V11: =SUM(Q11:U11) -> 3.862481935
E13: TOTAL ($'M) | G13: =G7+G11 -> 13.73878001 | H13: =H7+H11 -> 13.78021476 | I13: 14.00242041 | J13: 14.04008729 | K13: 13.87814305 | L13: 69.43964553 | O13: Charge - Sewer - Greenfield | P13: =P5 -> 0.75 | Q13: =IF(Q17>0,((Q5/K5)*G9),"") -> 539.1735646 | R13: =Q13 -> 539.1735646 | S13: =R13 -> 539.1735646 | T13: 539.1735646 | U13: 539.1735646
O14: Connections - Sewer - Greenfield | Q14: =G$10*$P13 -> 2628.290368 | R14: =H$10*$P13 -> 2636.215586 | S14: =I$10*$P13 -> 2678.723572 | T14: 2685.928315 | U14: 2654.947919
O15: Revenue ($'M) - Sewer - Greenfield | Q15: =IF(Q13="",0,Q14*Q13/1000000) -> 1.417104687 | R15: =IF(R13="",0,R14*R13/1000000) -> 1.421377755 | S15: 1.444296937 | T15: 1.448181544 | U15: 1.431477733 | V15: =SUM(Q15:U15) -> 7.162438655
O17: Charge - Sewer - Infill | P17: =P9 -> 0.25 | Q17: =G$9*$P17 -> 107.8347129 | R17: =H$9*$P17 -> 107.8347129 | S17: =I$9*$P17 -> 107.8347129 | T17: 107.8347129 | U17: 107.8347129
O18: Connections - Sewer - Infill | Q18: =G$10*$P17 -> 876.0967894 | R18: =H$10*$P17 -> 878.7385286 | S18: =I$10*$P17 -> 892.9078572 | T18: =J$10*$P17 -> 895.3094383 | U18: =K$10*$P17 -> 884.9826395
O19: Revenue ($'M) - Sewer - Infill | Q19: =Q18*Q17/1000000 -> 0.09447364578 | R19: =R18*R17/1000000 -> 0.09475851697 | S19: =S18*S17/1000000 -> 0.09628646245 | T19: =T18*T17/1000000 -> 0.09654543626 | U19: =U18*U17/1000000 -> 0.09543184887 | V19: =SUM(Q19:U19) -> 0.4774959103
O21: TOTAL ($'M) | Q21: =Q7+Q11+Q15+Q19 -> 13.73878001 | R21: 13.78021476 | S21: 14.00242041 | T21: 14.04008729 | U21: 13.87814305 | V21: 69.43964553
P24: 2023PS Greenfield / Infill ($2022/23) using meter sales
Q25: 2023-24 | R25: 2024-25 | S25: 2025-26 | T25: 2026-27 | U25: 2027-28 | V25: TOTAL
O26: Charge - ALL - Greenfield | Q26: =Q5+Q13 -> 4219.179674 | R26: =R5+R13 -> 4219.179674 | S26: 4219.179674 | T26: 4219.179674 | U26: 4219.179674
O27: Connections - ALL - Greenfield | P27: 0.6999929761 | Q27: =G6*$P$27 -> 2907.249009 | R27: =H6*$P$27 -> 2916.017169 | S27: 2963.038009 | T27: 2971.008807 | U27: 2936.739919 | W27: greater due to meter sizes >20 multiplication factor ( 25 | 32 | 40 | 50 | 80 | 100 | 150 )
O28: Revenue ($'M) - Water (incl. Recycled Water) - Greenfield | Q28: =Q27*Q26/1000000 -> 12.26620593 | R28: =R27*R26/1000000 -> 12.30320037 | S28: 12.50158974 | T28: 12.53521997 | U28: 12.39063337 | V28: =SUM(Q28:U28) -> 61.99684938
O30: Charge - ALL - Infill | Q30: =Q9+Q17 -> 843.8359348 | R30: =R9+R17 -> 843.8359348 | S30: 843.8359348 | T30: 843.8359348 | U30: 843.8359348
O31: Connections - ALL - Infill | P31: 0.3000070239 | Q31: =G6*$P$31 -> 1246.005536 | R31: =H6*$P$31 -> 1249.763444 | S31: 1269.915907 | T31: 1273.332077 | U31: 1258.64492
O32: Revenue ($'M) - Water (incl. Recycled Water) - Infill | Q32: =Q31*Q30/1000000 -> 1.051424246 | R32: =R31*R30/1000000 -> 1.054595304 | S32: 1.071600676 | T32: 1.074483364 | U32: 1.062089812 | V32: =SUM(Q32:U32) -> 5.314193402
O34: TOTAL ($'M) | Q34: =Q28+Q32 -> 13.31763017 | R34: =R28+R32 -> 13.35779567 | S34: 13.57319042 | T34: 13.60970334 | U34: 13.45272319 | V34: =V28+V32 -> 67.31104278 | X34: =V34-V48 -> 0.001717443463
O40: Back-calculation (nominal $2022/23)
Q41: 2023-24 | R41: 2024-25 | S41: 2025-26 | T41: 2026-27 | U41: 2027-28 | V41: TOTAL
O42: TOTAL ($'M) | Q42: =[8]NCC!$BB$78/1000000 -> 13.31730225 | R42: =[8]NCC!$BB$90/1000000 -> 13.62460776 | S42: =[8]NCC!$BB$102/1000000 -> 14.12118543 | T42: =[8]NCC!$BB$114/1000000 -> 14.44234934 | U42: =[8]NCC!$BB$126/1000000 -> 14.56128178 | V42: =SUM(Q42:U42) -> 70.06672656
O44: CPI (2% YoY) | Q44: =1 -> 1 | R44: =Q44*(1+2%) -> 1.02 | S44: =R44*(1+2%) -> 1.0404 | T44: 1.061208 | U44: 1.08243216
O46: Back-calculation (real $2022/23)
Q47: 2023-24 | R47: 2024-25 | S47: 2025-26 | T47: 2026-27 | U47: 2027-28 | V47: TOTAL
O48: TOTAL ($'M) | Q48: =Q42/Q44 -> 13.31730225 | R48: =R42/R44 -> 13.35745859 | S48: =S42/S44 -> 13.57284259 | T48: =T42/T44 -> 13.60934835 | U48: =U42/U44 -> 13.45237357 | V48: =SUM(Q48:U48) -> 67.30932534
P52: 2023PS Greenfield / Infill ($2022/23)
Q53: 2023-24 | R53: 2024-25 | S53: 2025-26 | T53: 2026-27 | U53: 2027-28 | V53: TOTAL
O54: Charge - ALL - Greenfield | P54: =1-P58 -> 0.75 | Q54: =[8]NCC!$AE$67 -> 4219 | R54: =[8]NCC!$AE$79/R44 -> 4219 | S54: =[8]NCC!$AE$91/S44 -> 4219 | T54: =[8]NCC!$AE$103/T44 -> 4219 | U54: =[8]NCC!$AE$115/U44 -> 4219
O55: Connections - ALL - Greenfield | Q55: =SUM([8]NCC!$AC$67:$AC$78) -> 2907.246827 | R55: =SUM([8]NCC!$AC$79:$AC$90) -> 2916.013197 | S55: =SUM([8]NCC!$AC$91:$AC$102) -> 2963.032814 | T55: =SUM([8]NCC!$AC$103:$AC$114) -> 2971.00224 | U55: =SUM([8]NCC!$AC$115:$AC$126) -> 2936.733706 | W55: greater due to meter sizes >20 multiplication factor ( 25 | 32 | 40 | 50 | 80 | 100 | 150 )
O56: Revenue ($'M) - Water (incl. Recycled Water) - Greenfield | Q56: =Q55*Q54/1000000 -> 12.26567436 | R56: =R55*R54/1000000 -> 12.30265968 | S56: 12.50103544 | T56: 12.53465845 | U56: 12.39007951 | V56: =SUM(Q56:U56) -> 61.99410744
O58: Charge - ALL - Infill | P58: 0.25 | Q58: =[8]NCC!$AY$67 -> 844 | R58: =[8]NCC!$AY$79/R44 -> 844 | S58: =[8]NCC!$AY$91/S44 -> 844 | T58: =[8]NCC!$AY$103/T44 -> 844 | U58: =[8]NCC!$AY$115/U44 -> 844
O59: Connections - ALL - Infill | Q59: =SUM([8]NCC!$AX$67:$AX$78) -> 1246.004601 | R59: =SUM([8]NCC!$AX$79:$AX$90) -> 1249.761742 | S59: =SUM([8]NCC!$AX$91:$AX$102) -> 1269.91368 | T59: =SUM([8]NCC!$AX$103:$AX$114) -> 1273.329263 | U59: =SUM([8]NCC!$AX$115:$AX$126) -> 1258.642257
O60: Revenue ($'M) - Water (incl. Recycled Water) - Infill | Q60: =Q59*Q58/1000000 -> 1.051627883 | R60: =R59*R58/1000000 -> 1.05479891 | S60: 1.071807146 | T60: 1.074689898 | U60: 1.062294065 | V60: =SUM(Q60:U60) -> 5.315217901
O62: TOTAL ($'M) | Q62: =Q56+Q60 -> 13.31730225 | R62: =R56+R60 -> 13.35745859 | S62: 13.57284259 | T62: 13.60934835 | U62: 13.45237357 | V62: =V56+V60 -> 67.30932534
L65: Greenfield | N65: 0.9992635604 | O65: 20mm | P65: 1 | Q65: =Connections!O$10*$P$5*$N65*$P65 -> 2884.762271 | R65: =Connections!P$10*$P$5*$N65*$P65 -> 2893.462612 | S65: =Connections!Q$10*$P$5*$N65*$P65 -> 2940.119759 | T65: =Connections!R$10*$P$5*$N65*$P65 -> 2948.028906 | U65: =Connections!S$10*$P$5*$N65*$P65 -> 2914.025077
N66: 0.0001982721994 | O66: 25mm | P66: 2 | Q66: =Connections!O$10*$P$5*$N66*$P66 -> 1.144779381 | R66: =Connections!P$10*$P$5*$N66*$P66 -> 1.148231996 | S66: =Connections!Q$10*$P$5*$N66*$P66 -> 1.166747261 | T66: =Connections!R$10*$P$5*$N66*$P66 -> 1.1698859 | U66: =Connections!S$10*$P$5*$N66*$P66 -> 1.156391935
N67: 0.0004815181986 | O67: 32mm | P67: 3 | Q67: =Connections!O$10*$P$5*$N67*$P67 -> 4.170267747 | R67: =Connections!P$10*$P$5*$N67*$P67 -> 4.182845127 | S67: =Connections!Q$10*$P$5*$N67*$P67 -> 4.250293594 | T67: =Connections!R$10*$P$5*$N67*$P67 -> 4.261727209 | U67: =Connections!S$10*$P$5*$N67*$P67 -> 4.212570621
N68: 0 | O68: 40mm | P68: 6 | Q68: =Connections!O$10*$P$5*$N68*$P68 -> 0 | R68: =Connections!P$10*$P$5*$N68*$P68 -> 0 | S68: =Connections!Q$10*$P$5*$N68*$P68 -> 0 | T68: =Connections!R$10*$P$5*$N68*$P68 -> 0 | U68: =Connections!S$10*$P$5*$N68*$P68 -> 0
N69: 2.832459992e-05 | O69: 50mm | P69: 10 | Q69: =Connections!O$10*$P$5*$N69*$P69 -> 0.8176995582 | R69: =Connections!P$10*$P$5*$N69*$P69 -> 0.8201657111 | S69: =Connections!Q$10*$P$5*$N69*$P69 -> 0.8333909008 | T69: =Connections!R$10*$P$5*$N69*$P69 -> 0.835632786 | U69: =Connections!S$10*$P$5*$N69*$P69 -> 0.8259942394
N70: 0 | O70: 80mm | P70: 40 | Q70: =Connections!O$10*$P$5*$N70*$P70 -> 0 | R70: =Connections!P$10*$P$5*$N70*$P70 -> 0 | S70: =Connections!Q$10*$P$5*$N70*$P70 -> 0 | T70: =Connections!R$10*$P$5*$N70*$P70 -> 0 | U70: =Connections!S$10*$P$5*$N70*$P70 -> 0
N71: 0 | O71: 100mm | P71: 70 | Q71: =Connections!O$10*$P$5*$N71*$P71 -> 0 | R71: =Connections!P$10*$P$5*$N71*$P71 -> 0 | S71: =Connections!Q$10*$P$5*$N71*$P71 -> 0 | T71: =Connections!R$10*$P$5*$N71*$P71 -> 0 | U71: =Connections!S$10*$P$5*$N71*$P71 -> 0
N72: 2.832459992e-05 | O72: 150mm | P72: 200 | Q72: =Connections!O$10*$P$5*$N72*$P72 -> 16.35399116 | R72: =Connections!P$10*$P$5*$N72*$P72 -> 16.40331422 | S72: =Connections!Q$10*$P$5*$N72*$P72 -> 16.66781802 | T72: =Connections!R$10*$P$5*$N72*$P72 -> 16.71265572 | U72: =Connections!S$10*$P$5*$N72*$P72 -> 16.51988479
Q73: =SUM(Q65:Q72) -> 2907.249009 | R73: =SUM(R65:R72) -> 2916.017169 | S73: 2963.038009 | T73: 2971.008807 | U73: 2936.739919
Q74: =Q73/Q87 -> 0.6999929761 | R74: =R73/R87 -> 0.6999929761 | S74: =S73/S87 -> 0.6999929761 | T74: =T73/T87 -> 0.6999929761 | U74: =U73/U87 -> 0.6999929761
L76: Infill | N76: 0.7074308063 | O76: 20mm | P76: 1 | Q76: =Connections!O$10*$P$9*$N76*$P76 -> 680.7579036 | R76: =Connections!P$10*$P$9*$N76*$P76 -> 682.8110453 | S76: =Connections!Q$10*$P$9*$N76*$P76 -> 693.8213881 | T76: =Connections!R$10*$P$9*$N76*$P76 -> 695.6878206 | U76: =Connections!S$10*$P$9*$N76*$P76 -> 687.6634592
N77: 0.1230445247 | O77: 25mm | P77: 2 | Q77: =Connections!O$10*$P$9*$N77*$P77 -> 236.8105316 | R77: =Connections!P$10*$P$9*$N77*$P77 -> 237.5247438 | S77: =Connections!Q$10*$P$9*$N77*$P77 -> 241.3548354 | T77: =Connections!R$10*$P$9*$N77*$P77 -> 242.0040984 | U77: =Connections!S$10*$P$9*$N77*$P77 -> 239.2127194
N78: 0.0479843562 | O78: 32mm | P78: 3 | Q78: =Connections!O$10*$P$9*$N78*$P78 -> 138.525476 | R78: =Connections!P$10*$P$9*$N78*$P78 -> 138.9432639 | S78: =Connections!Q$10*$P$9*$N78*$P78 -> 141.1837271 | T78: =Connections!R$10*$P$9*$N78*$P78 -> 141.5635221 | U78: =Connections!S$10*$P$9*$N78*$P78 -> 139.9306678
N79: 0.01459085439 | O79: 40mm | P79: 6 | Q79: =Connections!O$10*$P$9*$N79*$P79 -> 84.24433338 | R79: =Connections!P$10*$P$9*$N79*$P79 -> 84.4984113 | S79: =Connections!Q$10*$P$9*$N79*$P79 -> 85.86095 | T79: =Connections!R$10*$P$9*$N79*$P79 -> 86.09192252 | U79: =Connections!S$10*$P$9*$N79*$P79 -> 85.09890139
N80: 0.007370637786 | O80: 50mm | P80: 10 | Q80: =Connections!O$10*$P$9*$N80*$P80 -> 70.92735972 | R80: =Connections!P$10*$P$9*$N80*$P80 -> 71.14127412 | S80: =Connections!Q$10*$P$9*$N80*$P80 -> 72.28842869 | T80: =Connections!R$10*$P$9*$N80*$P80 -> 72.48289009 | U80: =Connections!S$10*$P$9*$N80*$P80 -> 71.64684138
N81: 0.0009025270758 | O81: 80mm | P81: 40 | Q81: =Connections!O$10*$P$9*$N81*$P81 -> 34.73993129 | R81: =Connections!P$10*$P$9*$N81*$P81 -> 34.84470569 | S81: =Connections!Q$10*$P$9*$N81*$P81 -> 35.40657732 | T81: =Connections!R$10*$P$9*$N81*$P81 -> 35.50182372 | U81: =Connections!S$10*$P$9*$N81*$P81 -> 35.09233047
N82: 0 | O82: 100mm | P82: 70 | Q82: =Connections!O$10*$P$9*$N82*$P82 -> 0 | R82: =Connections!P$10*$P$9*$N82*$P82 -> 0 | S82: =Connections!Q$10*$P$9*$N82*$P82 -> 0 | T82: =Connections!R$10*$P$9*$N82*$P82 -> 0 | U82: =Connections!S$10*$P$9*$N82*$P82 -> 0
N83: 0 | O83: 150mm | P83: 200 | Q83: =Connections!O$10*$P$9*$N83*$P83 -> 0 | R83: =Connections!P$10*$P$9*$N83*$P83 -> 0 | S83: =Connections!Q$10*$P$9*$N83*$P83 -> 0 | T83: =Connections!R$10*$P$9*$N83*$P83 -> 0 | U83: =Connections!S$10*$P$9*$N83*$P83 -> 0
Q84: =SUM(Q76:Q83) -> 1246.005536 | R84: =SUM(R76:R83) -> 1249.763444 | S84: =SUM(S76:S83) -> 1269.915907 | T84: =SUM(T76:T83) -> 1273.332077 | U84: =SUM(U76:U83) -> 1258.64492
Q85: =Q84/Q87 -> 0.3000070239 | R85: =R84/R87 -> 0.3000070239 | S85: =S84/S87 -> 0.3000070239 | T85: =T84/T87 -> 0.3000070239 | U85: =U84/U87 -> 0.3000070239
Q87: =Q73+Q84 -> 4153.254545 | R87: =R73+R84 -> 4165.780613 | S87: =S73+S84 -> 4232.953915 | T87: =T73+T84 -> 4244.340885 | U87: =U73+U84 -> 4195.384838

Sheet cpi
C3: Convert 2017/18 into 2022/23 | G3: FOURTH REG PERIOD | L3: FIFTH REG PERIOD
F4: 2017-18 | G4: 2018-19 | H4: 2019-20 | I4: 2020-21 | J4: 2021-22 | K4: 2022-23 | L4: 2023-24 | M4: 2024-25 | N4: 2025-26 | O4: 2026-27 | P4: 2027-28
D5: Inflation | G5: 0.01900452489 | H5: 0.01332149201 | I5: 0.02191060473 | J5: 0.01114922813 | K5: 0.05089058524 | L5: 0.02 | M5: =L5 -> 0.02 | N5: =M5 -> 0.02 | O5: =N5 -> 0.02 | P5: =O5 -> 0.02
D6: Inflation factor | F6: 1 | G6: =+F6*(1+G5) -> 1.019004525 | H6: =+G6*(1+H5) -> 1.032579186 | I6: 1.05520362 | J6: 1.066968326 | K6: 1.121266968 | L6: =+K6*(1+L5) -> 1.143692308 | M6: =+L6*(1+M5) -> 1.166566154 | N6: =+M6*(1+N5) -> 1.189897477 | O6: =+N6*(1+O5) -> 1.213695426 | P6: =+O6*(1+P5) -> 1.237969335
D8: Example | F8: 100 | K8: 100
D9: 2022/23 dollars | F9: =F8/F6 -> 100 | K9: =K8*K6 -> 112.1266968
C11: Convert 2020/21 into 2022/23 | G11: FOURTH REG PERIOD
F12: 2017-18 | G12: 2018-19 | H12: 2019-20 | I12: 2020-21 | J12: 2021-22 | K12: 2022-23
D13: Inflation | J13: =J5 -> 0.01114922813 | K13: =K5 -> 0.05089058524
D14: Inflation factor | I14: 1 | J14: =+I14*(1+J13) -> 1.011149228 | K14: =+J14*(1+K13) -> 1.062607204
D16: Example | I16: 100 | J16: 100 | K16: 100
D17: 2022/23 dollars | I17: 100 | J17: =J16*J14 -> 101.1149228 | K17: =K16*K14 -> 106.2607204
C19: Convert 2021/22 into 2022/23 | G19: FOURTH REG PERIOD
F20: 2017-18 | G20: 2018-19 | H20: 2019-20 | I20: 2020-21 | J20: 2021-22 | K20: 2022-23
D21: Inflation | K21: =K13 -> 0.05089058524
D22: Inflation factor | J22: 1 | K22: =+J22*(1+K21) -> 1.050890585
D24: Example | J24: 100 | K24: 100
D25: 2022/23 dollars | J25: 100 | K25: =K24*K22 -> 105.0890585

Sheet Connections
B1: Customer Connections Forecasts | O1: 1 | P1: 2 | Q1: 3 | R1: 4 | S1: 5 | T1: 6 | U1: 7 | V1: 8 | W1: 9 | X1: 10 | Y1: 11 | Z1: 12 | AA1: 13 | AB1: 14 | AC1: 15 | AD1: 16 | AE1: 17 | AF1: 18 | AG1: 19 | AH1: 20 | AI1: 21 | AJ1: 22 | AK1: 23 | AL1: 24 | AM1: 25 | AN1: 26 | AO1: 27 | AP1: 28 | AQ1: 29 | AR1: 30
B2: NCC Framework Modelling | G2: THIRD REG PERIOD | L2: FOURTH REG PERIOD | Q2: FIFTH REG PERIOD
B3: Data status | G3: Actual | H3: Actual | I3: Actual | J3: Actual | K3: Actual | L3: Actual | M3: Actual | N3: Forecast | O3: Forecast | P3: Forecast | Q3: Forecast | R3: Forecast | S3: Forecast | T3: Forecast | U3: Forecast | V3: Forecast | W3: Forecast | X3: Forecast | Y3: Forecast | Z3: Forecast | AA3: Forecast | AB3: Forecast | AC3: Forecast | AD3: Forecast | AE3: Forecast | AF3: Forecast | AG3: Forecast | AH3: Forecast | AI3: Forecast | AJ3: Forecast | AK3: Forecast | AL3: Forecast | AM3: Forecast | AN3: Forecast | AO3: Forecast | AP3: Forecast | AQ3: Forecast | AR3: Forecast | AS3: Forecast | AT3: Forecast
B4: FY | D4: 2012-13 | E4: 2013-14 | F4: 2014-15 | G4: 2015-16 | H4: 2016-17 | I4: 2017-18 | J4: 2018-19 | K4: 2019-20 | L4: 2020-21 | M4: 2021-22 | N4: 2022-23 | O4: 2023-24 | P4: 2024-25 | Q4: 2025-26 | R4: 2026-27 | S4: 2027-28 | T4: 2028-29 | U4: 2029-30 | V4: 2030-31 | W4: 2031-32 | X4: 2032-33 | Y4: 2033-34 | Z4: 2034-35 | AA4: 2035-36 | AB4: 2036-37 | AC4: 2037-38 | AD4: 2038-39 | AE4: 2039-40 | AF4: 2040-41 | AG4: 2041-42 | AH4: 2042-43 | AI4: 2043-44 | AJ4: 2044-45 | AK4: 2045-46 | AL4: 2046-47 | AM4: 2047-48 | AN4: 2048-49 | AO4: 2049-50 | AP4: 2050-51 | AQ4: 2051-52 | AR4: 2052-53 | AS4: 2053-54 | AT4: 2054-55
B5: Water
B6: YoY change (RES&NRES) | H6: =H9/G9-1 -> 0.01880886024 | I6: =I9/H9-1 -> 0.02491151647 | J6: =J9/I9-1 -> 0.02268055582 | K6: =K9/J9-1 -> 0.02541204119 | L6: =L9/K9-1 -> 0.02988468312 | M6: =M9/L9-1 -> 0.02197248754 | N6: 0.02206904891 | O6: 0.02158070716 | P6: 0.02118853034 | Q6: 0.02108346814 | R6: 0.02070367892 | S6: 0.02004976982 | T6: 0.01974814942 | U6: 0.01942714534 | V6: 0.01906620091 | W6: 0.01845216327 | X6: 0.01787324569 | Y6: 0.01766220248 | Z6: 0.01737838963 | AA6: 0.01717068501 | AB6: 0.01726330215 | AC6: 0.01674370846 | AD6: 0.01643199085 | AE6: =AE9/AD9-1 -> 0.01635097689 | AF6: 0.01581139135 | AG6: =AG9/AF9-1 -> 0.01581139135 | AH6: 0.01581139135 | AI6: 0.01581139135 | AJ6: 0.01581139135 | AK6: =AK9/AJ9-1 -> 0.01581139135 | AL6: 0.01581139135 | AM6: 0.01581139135 | AN6: 0.01581139135 | AO6: 0.01581139135 | AP6: 0.01581139135 | AQ6: 0.01581139135 | AR6: 0.01581139135 | AS6: 0.01581139135 | AT6: =AT9/AS9-1 -> 0.01581139135
A7: =K7/K9 -> 0.9237835034 | B7: Residential Customers (RES)* | G7: 139492 | H7: 142232 | I7: 145927 | J7: 149288 | K7: 153167 | L7: 157932 | M7: 161592 | N7: =[9]BW_DWE_FORECASTS!K$116 -> 165158.1818 | O7: =[9]BW_DWE_FORECASTS!L$116 -> 168722.4039 | P7: =[9]BW_DWE_FORECASTS!M$116 -> 172297.3693 | Q7: =[9]BW_DWE_FORECASTS!N$116 -> 175929.9744 | R7: =[9]BW_DWE_FORECASTS!O$116 -> 179572.3467 | S7: =[9]BW_DWE_FORECASTS!P$116 -> 183172.7006 | T7: =[9]BW_DWE_FORECASTS!Q$116 -> 186796.6607 | U7: =[9]BW_DWE_FORECASTS!R$116 -> 190431.867 | V7: =[9]BW_DWE_FORECASTS!S$116 -> 194068.6054 | W7: =[9]BW_DWE_FORECASTS!T$116 -> 197655.3842 | X7: =[9]BW_DWE_FORECASTS!U$116 -> 201193.4844 | Y7: =[9]BW_DWE_FORECASTS!V$116 -> 204752.1661 | Z7: =[9]BW_DWE_FORECASTS!W$116 -> 208315.2775 | AA7: =[9]BW_DWE_FORECASTS!X$116 -> 211897.0894 | AB7: =[9]BW_DWE_FORECASTS!Y$116 -> 215560.2218 | AC7: =[9]BW_DWE_FORECASTS!Z$116 -> 219174.0892 | AD7: =[9]BW_DWE_FORECASTS!AA$116 -> 222779.7974 | AE7: =[9]BW_DWE_FORECASTS!AB$116 -> 226427.1028 | AF7: =[9]BW_DWE_FORECASTS!AC$116 -> 230011.0097 | AG7: =AF7*(1+$AF$6) -> 233647.8038 | AH7: =AG7*(1+AG6) -> 237342.1007 | AI7: =AH7*(1+AH6) -> 241094.8095 | AJ7: 244906.8539 | AK7: 248779.172 | AL7: 252712.7169 | AM7: 256708.4565 | AN7: 260767.3744 | AO7: 264890.4694 | AP7: 269078.7563 | AQ7: 273333.2658 | AR7: 277655.045 | AS7: 282045.1576 | AT7: 286504.684
A8: =K8/K9 -> 0.07621649659 | B8: Non-Residential Customers (NRES) | G8: 11926 | H8: 12034 | I8: 12182 | J8: 12407 | K8: 12637 | L8: 12827 | M8: 12919 | N8: =[9]BW_DWE_FORECASTS!K$124 -> 13204.11004 | O8: =[9]BW_DWE_FORECASTS!L$124 -> 13489.07225 | P8: =[9]BW_DWE_FORECASTS!M$124 -> 13774.90023 | Q8: =[9]BW_DWE_FORECASTS!N$124 -> 14065.34393 | R8: =[9]BW_DWE_FORECASTS!O$124 -> 14356.57369 | S8: =[9]BW_DWE_FORECASTS!P$124 -> 14644.44999 | T8: =[9]BW_DWE_FORECASTS!Q$124 -> 14927.01257 | U8: =[9]BW_DWE_FORECASTS!R$124 -> 15210.72139 | V8: =[9]BW_DWE_FORECASTS!S$124 -> 15494.80592 | W8: =[9]BW_DWE_FORECASTS!T$124 -> 15774.92533 | X8: =[9]BW_DWE_FORECASTS!U$124 -> 16051.51752 | Y8: =[9]BW_DWE_FORECASTS!V$124 -> 16329.86103 | Z8: =[9]BW_DWE_FORECASTS!W$124 -> 16608.79929 | AA8: =[9]BW_DWE_FORECASTS!X$124 -> 16889.0878 | AB8: =[9]BW_DWE_FORECASTS!Y$124 -> 17175.56032 | AC8: =[9]BW_DWE_FORECASTS!Z$124 -> 17458.55298 | AD8: =[9]BW_DWE_FORECASTS!AA$124 -> 17741.19027 | AE8: =[9]BW_DWE_FORECASTS!AB$124 -> 18026.63794 | AF8: =[9]BW_DWE_FORECASTS!AC$124 -> 18307.88479 | AG8: =AF8*(1+$AF$6) -> 18597.35792 | AH8: =AG8*(1+AG6) -> 18891.40802 | AI8: =AH8*(1+AH6) -> 19190.10747 | AJ8: 19493.52976 | AK8: 19801.74959 | AL8: 20114.8428 | AM8: 20432.88646 | AN8: 20755.95882 | AO8: 21084.13941 | AP8: 21417.50899 | AQ8: 21756.1496 | AR8: 22100.1446 | AS8: 22449.57863 | AT8: 22804.53771
B9: TOTAL Customers | G9: =G7+G8 -> 151418 | H9: =H7+H8 -> 154266 | I9: 158109 | J9: 161695 | K9: 165804 | L9: 170759 | M9: 174511 | N9: 178362.2918 | O9: 182211.4762 | P9: 186072.2696 | Q9: 189995.3183 | R9: 193928.9204 | S9: 197817.1506 | T9: 201723.6733 | U9: 205642.5884 | V9: 209563.4113 | W9: 213430.3096 | X9: 217245.0019 | Y9: 221082.0272 | Z9: 224924.0768 | AA9: 228786.1772 | AB9: 232735.7821 | AC9: 236632.6422 | AD9: 240520.9876 | AE9: 244453.7407 | AF9: 248318.8945 | AG9: =AG7+AG8 -> 252245.1617 | AH9: 256233.5087 | AI9: 260284.917 | AJ9: 264400.3837 | AK9: 268580.9216 | AL9: 272827.5597 | AM9: 277141.343 | AN9: 281523.3332 | AO9: 285974.6088 | AP9: 290496.2653 | AQ9: 295089.4154 | AR9: 299755.1896 | AS9: 304494.7362 | AT9: 309309.2217
B10: Change in Customers (TOTAL) | H10: =(H7-G7)+(H8-G8) -> 2848 | I10: 3843 | J10: =(J7-I7)+(J8-I8) -> 3586 | K10: =(K7-J7)+(K8-J8) -> 4109 | L10: 4955 | M10: 3752 | N10: 3851.291795 | O10: 3849.184387 | P10: 3860.793391 | Q10: 3923.048767 | R10: 3933.602068 | S10: =(S7-R7)+(S8-R8) -> 3888.230216 | T10: 3906.522647 | U10: 3918.91512 | V10: 3920.822907 | W10: 3866.898282 | X10: 3814.692361 | Y10: 3837.025213 | Z10: 3842.049609 | AA10: 3862.100472 | AB10: 3949.604904 | AC10: 3896.860084 | AD10: 3888.345413 | AE10: 3932.75311 | AF10: 3865.153761 | AG10: =(AG7-AF7)+(AG8-AF8) -> 3926.26722 | AH10: =(AH7-AG7)+(AH8-AG8) -> 3988.346967 | AI10: 4051.408282 | AJ10: 4115.466684 | AK10: 4180.537938 | AL10: 4246.638059 | AM10: 4313.783316 | AN10: 4381.990232 | AO10: 4451.275594 | AP10: 4521.656455 | AQ10: 4593.150134 | AR10: 4665.774229 | AS10: 4739.546611 | AT10: 4814.485437
B11: Change in RES Customers (TOTAL) | H11: =H7-G7 -> 2740 | I11: 3695 | J11: =J7-I7 -> 3361 | K11: =K7-J7 -> 3879 | L11: 4765 | M11: 3660 | N11: 3566.181752 | O11: =O7-N7 -> 3564.22218 | P11: =P7-O7 -> 3574.965411 | Q11: 3632.605066 | R11: 3642.37231 | S11: 3600.353914 | T11: 3623.960064 | U11: =U7-T7 -> 3635.206304 | V11: 3636.738378 | W11: 3586.77887 | X11: 3538.100173 | Y11: =Y7-X7 -> 3558.681704 | Z11: 3563.111342 | AA11: 3581.811965 | AB11: 3663.132381 | AC11: 3613.867428 | AD11: 3605.708128 | AE11: 3647.305435 | AF11: 3583.906916 | AG11: 3636.794088 | AH11: 3694.296863 | AI11: 3752.708837 | AJ11: 3812.044385 | AK11: 3872.31811 | AL11: 3933.544847 | AM11: 3995.739664 | AN11: 4058.917868 | AO11: 4123.095007 | AP11: 4188.286875 | AQ11: 4254.509518 | AR11: 4321.779233 | AS11: 4390.112576 | AT11: 4459.526364
B12: Change in NRES Customers (TOTAL) | H12: =H8-G8 -> 108 | I12: 148 | J12: =J8-I8 -> 225 | K12: =K8-J8 -> 230 | L12: 190 | M12: 92 | N12: 285.1100429 | O12: =O8-N8 -> 284.9622071 | P12: 285.8279795 | Q12: 290.4437014 | R12: 291.2297579 | S12: 287.8763025 | T12: 282.5625835 | U12: =U8-T8 -> 283.7088156 | V12: 284.0845289 | W12: 280.1194112 | X12: 276.592188 | Y12: =Y8-X8 -> 278.3435088 | Z12: 278.9382667 | AA12: 280.2885076 | AB12: 286.4725233 | AC12: 282.9926559 | AD12: 282.6372848 | AE12: 285.4476746 | AF12: 281.2468453 | AG12: =AG8-AF8 -> 289.4731311 | AH12: 294.050104 | AI12: 298.6994453 | AJ12: 303.4222991 | AK12: 308.2198278 | AL12: 313.0932121 | AM12: 318.0436514 | AN12: 323.0723641 | AO12: 328.1805877 | AP12: 333.3695794 | AQ12: 338.6406162 | AR12: 343.9949956 | AS12: 349.4340351 | AT12: 354.9590733
B13: RES Post CWIP customer growth adjustment | J13: 0 | K13: 0 | L13: 0 | M13: 0 | N13: 0 | O13: 0 | P13: 0 | Q13: 0 | R13: 0 | S13: 0 | T13: =(T11*(1-T23)) -> 0 | U13: 0 | V13: 0 | W13: 0 | X13: 0 | Y13: =(Y11*(1-Y23)) -> 0 | Z13: 0 | AA13: 0 | AB13: 0 | AC13: 0 | AD13: 0 | AE13: 0 | AF13: 0 | AG13: 0 | AH13: 0 | AI13: 0 | AJ13: 0 | AK13: 0 | AL13: 0 | AM13: 0 | AN13: 0 | AO13: 0 | AP13: 0 | AQ13: 0 | AR13: 0 | AS13: 0 | AT13: 0
B14: NRES Post CWIP customer growth adjustment | J14: 0 | K14: 0 | L14: 0 | M14: 0 | N14: 0 | O14: 0 | P14: 0 | Q14: 0 | R14: 0 | S14: 0 | T14: =T12*(1-T23) -> 0 | U14: 0 | V14: 0 | W14: 0 | X14: 0 | Y14: =Y12*(1-Y23) -> 0 | Z14: 0 | AA14: 0 | AB14: 0 | AC14: 0 | AD14: 0 | AE14: 0 | AF14: 0 | AG14: 0 | AH14: 0 | AI14: 0 | AJ14: 0 | AK14: 0 | AL14: 0 | AM14: 0 | AN14: 0 | AO14: 0 | AP14: 0 | AQ14: 0 | AR14: 0 | AS14: 0 | AT14: 0
B15: Customer growth outside of Standardised NCC area | J15: 0 | K15: 0 | L15: 0 | M15: 0 | N15: 0 | O15: 0 | P15: 0 | Q15: 0 | R15: 0 | S15: 0
B16: Change in Customers (STANDARD NCC AREA) | J16: =J10-J13-J14-J15 -> 3586 | K16: =K10-K13-K14-K15 -> 4109 | L16: =L10-L13-L14-L15 -> 4955 | M16: 3752 | N16: 3851.291795 | O16: =O10-O13-O14-O15 -> 3849.184387 | P16: 3860.793391 | Q16: 3923.048767 | R16: 3933.602068 | S16: 3888.230216 | T16: =T10-T13-T14-T15 -> 3906.522647 | U16: =U10-U13-U14-U15 -> 3918.91512 | V16: =V10-V13-V14-V15 -> 3920.822907 | W16: 3866.898282 | X16: 3814.692361 | Y16: =Y10-Y13-Y14-Y15 -> 3837.025213 | Z16: 3842.049609 | AA16: 3862.100472 | AB16: 3949.604904 | AC16: 3896.860084 | AD16: 3888.345413 | AE16: 3932.75311 | AF16: 3865.153761 | AG16: =AG10-AG13-AG14-AG15 -> 3926.26722 | AH16: =AH10-AH13-AH14-AH15 -> 3988.346967 | AI16: =AI10-AI13-AI14-AI15 -> 4051.408282 | AJ16: 4115.466684 | AK16: 4180.537938 | AL16: 4246.638059 | AM16: 4313.783316 | AN16: 4381.990232 | AO16: 4451.275594 | AP16: 4521.656455 | AQ16: 4593.150134 | AR16: 4665.774229 | AS16: 4739.546611 | AT16: 4814.485437
B17: Change in RES Customers (STANDARD NCC AREA) | J17: =IF(J11-J13-J15<=0,0,J11-J13-J15) -> 3361 | K17: =IF(K11-K13-K15<=0,0,K11-K13-K15) -> 3879 | L17: 4765 | M17: 3660 | N17: 3566.181752 | O17: =IF(O11-O13-O15<=0,0,O11-O13-O15) -> 3564.22218 | P17: 3574.965411 | Q17: 3632.605066 | R17: 3642.37231 | S17: 3600.353914 | T17: =IF(T11-T13-T15<=0,0,T11-T13-T15) -> 3623.960064 | U17: =IF(U11-U13-U15<=0,0,U11-U13-U15) -> 3635.206304 | V17: 3636.738378 | W17: 3586.77887 | X17: 3538.100173 | Y17: =IF(Y11-Y13-Y15<=0,0,Y11-Y13-Y15) -> 3558.681704 | Z17: 3563.111342 | AA17: 3581.811965 | AB17: 3663.132381 | AC17: 3613.867428 | AD17: 3605.708128 | AE17: 3647.305435 | AF17: 3583.906916 | AG17: 3636.794088 | AH17: =IF(AH11-AH13-AH15<=0,0,AH11-AH13-AH15) -> 3694.296863 | AI17: =IF(AI11-AI13-AI15<=0,0,AI11-AI13-AI15) -> 3752.708837 | AJ17: 3812.044385 | AK17: 3872.31811 | AL17: 3933.544847 | AM17: =IF(AM11-AM13-AM15<=0,0,AM11-AM13-AM15) -> 3995.739664 | AN17: =IF(AN11-AN13-AN15<=0,0,AN11-AN13-AN15) -> 4058.917868 | AO17: 4123.095007 | AP17: 4188.286875 | AQ17: 4254.509518 | AR17: 4321.779233 | AS17: 4390.112576 | AT17: 4459.526364 | AV17: =SUM(O17:AR17) -> 112496.8633
B18: Change in NRES Customers (STANDARD NCC AREA) | J18: =J12-J14 -> 225 | K18: =K12-K14 -> 230 | L18: 190 | M18: 92 | N18: 285.1100429 | O18: 284.9622071 | P18: 285.8279795 | Q18: 290.4437014 | R18: 291.2297579 | S18: 287.8763025 | T18: =T12-T14 -> 282.5625835 | U18: =U12-U14 -> 283.7088156 | V18: 284.0845289 | W18: 280.1194112 | X18: 276.592188 | Y18: =Y12-Y14 -> 278.3435088 | Z18: 278.9382667 | AA18: 280.2885076 | AB18: 286.4725233 | AC18: 282.9926559 | AD18: 282.6372848 | AE18: 285.4476746 | AF18: 281.2468453 | AG18: 289.4731311 | AH18: =AH12-AH14 -> 294.050104 | AI18: 298.6994453 | AJ18: 303.4222991 | AK18: =AK12-AK14 -> 308.2198278 | AL18: =AL12-AL14 -> 313.0932121 | AM18: =AM12-AM14 -> 318.0436514 | AN18: =AN12-AN14 -> 323.0723641 | AO18: 328.1805877 | AP18: 333.3695794 | AQ18: 338.6406162 | AR18: 343.9949956 | AS18: 349.4340351 | AT18: 354.9590733 | AV18: =SUM(O18:AR18) -> 8896.034556
A19: 0.3 | B19: Change in RES Customers (Infill NCC) | J19: =J17*$A$19 -> 1008.3 | K19: 1163.7 | L19: 1429.5 | M19: 1098 | N19: 1069.854526 | O19: 1069.266654 | P19: 1072.489623 | Q19: 1089.78152 | R19: 1092.711693 | S19: 1080.106174 | T19: 1087.188019 | U19: 1090.561891 | V19: 1091.021513 | W19: 1076.033661 | X19: 1061.430052 | Y19: 1067.604511 | Z19: 1068.933403 | AA19: 1074.543589 | AB19: 1098.939714 | AC19: 1084.160228 | AD19: 1081.712438 | AE19: 1094.191631 | AF19: 1075.172075 | AG19: 1091.038227 | AH19: 1108.289059 | AI19: 1125.812651 | AJ19: 1143.613315 | AK19: 1161.695433 | AL19: 1180.063454 | AM19: 1198.721899 | AN19: =AN17*$A$19 -> 1217.67536 | AO19: 1236.928502 | AP19: 1256.486063 | AQ19: 1276.352855 | AR19: 1296.53377 | AS19: 1317.033773 | AT19: 1337.857909 | AW19: =SUM(AV17:AV18) -> 121392.8978
A20: 0.3 | B20: Change in NRES Customers (Infill NCC) | J20: =J18*$A$20 -> 67.5 | K20: 69 | L20: 57 | M20: 27.6 | N20: 85.53301288 | O20: 85.48866214 | P20: 85.74839384 | Q20: 87.13311042 | R20: 87.36892737 | S20: 86.36289076 | T20: 84.76877505 | U20: 85.11264467 | V20: 85.22535867 | W20: 84.03582336 | X20: 82.9776564 | Y20: 83.50305263 | Z20: 83.68148 | AA20: 84.08655229 | AB20: 85.94175698 | AC20: 84.89779677 | AD20: 84.79118545 | AE20: 85.63430237 | AF20: 84.37405359 | AG20: 86.84193932 | AH20: 88.2150312 | AI20: 89.60983358 | AJ20: 91.02668973 | AK20: 92.46594835 | AL20: 93.92796364 | AM20: 95.41309543 | AN20: =AN18*$A$20 -> 96.92170922 | AO20: 98.4541763 | AP20: 100.0108738 | AQ20: 101.5921849 | AR20: 103.1984987 | AS20: 104.8302105 | AT20: 106.487722
A21: 0.7 | B21: Change in RES Customers (Greenfield NCC) | J21: =J17*$A$21 -> 2352.7 | K21: 2715.3 | L21: 3335.5 | M21: 2562 | N21: 2496.327227 | O21: 2494.955526 | P21: 2502.475788 | Q21: 2542.823546 | R21: 2549.660617 | S21: 2520.24774 | T21: 2536.772045 | U21: 2544.644413 | V21: 2545.716865 | W21: 2510.745209 | X21: 2476.670121 | Y21: 2491.077193 | Z21: 2494.177939 | AA21: 2507.268375 | AB21: 2564.192667 | AC21: 2529.7072 | AD21: 2523.99569 | AE21: 2553.113805 | AF21: 2508.734841 | AG21: 2545.755862 | AH21: 2586.007804 | AI21: 2626.896186 | AJ21: 2668.431069 | AK21: 2710.622677 | AL21: 2753.481393 | AM21: 2797.017765 | AN21: =AN17*$A$21 -> 2841.242507 | AO21: 2886.166505 | AP21: 2931.800813 | AQ21: 2978.156663 | AR21: 3025.245463 | AS21: 3073.078803 | AT21: 3121.668455
A22: 0.7 | B22: Change in NRES Customers (Greenfield NCC) | J22: =J18*$A$22 -> 157.5 | K22: 161 | L22: 133 | M22: 64.4 | N22: 199.5770301 | O22: 199.473545 | P22: 200.0795856 | Q22: 203.310591 | R22: 203.8608305 | S22: 201.5134118 | T22: 197.7938084 | U22: 198.5961709 | V22: 198.8591702 | W22: 196.0835879 | X22: 193.6145316 | Y22: 194.8404561 | Z22: 195.2567867 | AA22: 196.2019553 | AB22: 200.5307663 | AC22: 198.0948591 | AD22: 197.8460994 | AE22: 199.8133722 | AF22: 196.8727917 | AG22: 202.6311917 | AH22: 205.8350728 | AI22: 209.0896117 | AJ22: 212.3956094 | AK22: 215.7538795 | AL22: 219.1652485 | AM22: 222.630556 | AN22: =AN18*$A$22 -> 226.1506549 | AO22: 229.7264114 | AP22: 233.3587056 | AQ22: 237.0484314 | AR22: 240.7964969 | AS22: 244.6038245 | AT22: 248.4713513
B23: Cumulative from 2023 (CWIP customer growth adjustment) | I23: 1 | J23: 1 | K23: 1 | L23: 1 | M23: 1 | N23: 1 | O23: 1 | P23: 1 | Q23: 1 | R23: 1 | S23: 1 | T23: 1 | U23: 1 | V23: 1 | W23: 1 | X23: 1 | Y23: 1 | Z23: =Y23 -> 1 | AA23: =Z23 -> 1 | AB23: 1 | AC23: 1 | AD23: 1 | AE23: 1 | AF23: 1 | AG23: 1 | AH23: 1 | AI23: 1 | AJ23: 1 | AK23: 1 | AL23: 1 | AM23: 1 | AN23: 1 | AO23: 1 | AP23: 1 | AQ23: 1 | AR23: 1 | AS23: 1 | AT23: 1
B24: Sewer
B25: YoY change (RES&NRES) | H25: =H28/G28-1 -> 0.0169001409 | I25: =I28/H28-1 -> 0.02556364797 | J25: =J28/I28-1 -> 0.03463105478 | K25: =K28/J28-1 -> 0.02833761759 | L25: =L28/K28-1 -> 0.0320508985 | M25: =M28/L28-1 -> 0.02345430887 | N25: =N28/M28-1 -> 0.02206904891 | O25: =O28/N28-1 -> 0.02158069096 | P25: =P28/O28-1 -> 0.02118850181 | Q25: =Q28/P28-1 -> 0.0210834321 | R25: =R28/Q28-1 -> 0.0207036348 | S25: =S28/R28-1 -> 0.02004972986 | T25: =T28/S28-1 -> 0.01973564898 | U25: =U28/T28-1 -> 0.01942169078 | V25: =V28/U28-1 -> 0.01905680611 | W25: =W28/V28-1 -> 0.01844867954 | X25: =X28/W28-1 -> 0.01786729553 | Y25: =Y28/X28-1 -> 0.01766051592 | Z25: =Z28/Y28-1 -> 0.01737312606 | AA25: =AA28/Z28-1 -> 0.01717028134 | AB25: =AB28/AA28-1 -> 0.01726324722 | AC25: =AC28/AB28-1 -> 0.01674359137 | AD25: =AD28/AC28-1 -> 0.01643218657 | AE25: 0.01635079407 | AF25: 0.01581148804 | AG25: 0.01581139135 | AH25: 0.01581139135 | AI25: 0.01581139135 | AJ25: 0.01581139135 | AK25: =AK28/AJ28-1 -> 0.01581139135 | AL25: =AL28/AK28-1 -> 0.01581139135 | AM25: =AM28/AL28-1 -> 0.01581139135 | AN25: =AN28/AM28-1 -> 0.01581139135 | AO25: =AO28/AN28-1 -> 0.01581139135 | AP25: =AP28/AO28-1 -> 0.01581139135 | AQ25: =AQ28/AP28-1 -> 0.01581139135 | AR25: =AR28/AQ28-1 -> 0.01581139135 | AS25: =AS28/AR28-1 -> 0.01581139135 | AT25: =AT28/AS28-1 -> 0.01581139135
A26: =K26/K28 -> 0.9348810307 | B26: RES Customers* | G26: 126292 | H26: 128566 | I26: 131965 | J26: 136731 | K26: 140622 | L26: 145269 | M26: 148836 | N26: =[9]BW_DWE_FORECASTS!K$142 -> 152120.669 | O26: =[9]BW_DWE_FORECASTS!L$142 -> 155403.5381 | P26: =[9]BW_DWE_FORECASTS!M$142 -> 158696.3063 | Q26: =[9]BW_DWE_FORECASTS!N$142 -> 162042.1691 | R26: =[9]BW_DWE_FORECASTS!O$142 -> 165397.0309 | S26: =[9]BW_DWE_FORECASTS!P$142 -> 168713.1967 | T26: =[9]BW_DWE_FORECASTS!Q$142 -> 172042.8612 | U26: =[9]BW_DWE_FORECASTS!R$142 -> 175384.2244 | V26: =[9]BW_DWE_FORECASTS!S$142 -> 178726.4876 | W26: =[9]BW_DWE_FORECASTS!T$142 -> 182023.7553 | X26: =[9]BW_DWE_FORECASTS!U$142 -> 185276.0275 | Y26: =[9]BW_DWE_FORECASTS!V$142 -> 188548.0977 | Z26: =[9]BW_DWE_FORECASTS!W$142 -> 191823.7676 | AA26: =[9]BW_DWE_FORECASTS!X$142 -> 195117.4357 | AB26: =[9]BW_DWE_FORECASTS!Y$142 -> 198485.7962 | AC26: =[9]BW_DWE_FORECASTS!Z$142 -> 201809.1613 | AD26: =[9]BW_DWE_FORECASTS!AA$142 -> 205125.327 | AE26: =[9]BW_DWE_FORECASTS!AB$142 -> 208479.289 | AF26: =[9]BW_DWE_FORECASTS!AC$142 -> 211775.6568 | AG26: =AF26*(1+$AF$6) -> 215124.1246 | AH26: =AG26*(1+AG$6) -> 218525.5363 | AI26: =AH26*(1+AH$6) -> 221980.7291 | AJ26: 225490.5533 | AK26: 229055.8727 | AL26: 232677.5647 | AM26: 236356.5207 | AN26: 240093.6462 | AO26: 243889.8608 | AP26: 247746.0988 | AQ26: 251663.3093 | AR26: 255642.4564 | AS26: 259684.5193 | AT26: 263790.4929
A27: =K27/K28 -> 0.06511896927 | B27: NRES Customers | G27: 9269 | H27: 9286 | I27: 9411 | J27: 9541 | K27: 9795 | L27: 9969 | M27: 10043 | N27: =[9]BW_DWE_FORECASTS!K$152 -> 10264.63946 | O27: =[9]BW_DWE_FORECASTS!L$152 -> 10486.15747 | P27: =[9]BW_DWE_FORECASTS!M$152 -> 10708.34344 | Q27: =[9]BW_DWE_FORECASTS!N$152 -> 10934.11207 | R27: =[9]BW_DWE_FORECASTS!O$152 -> 11160.48793 | S27: =[9]BW_DWE_FORECASTS!P$152 -> 11384.2527 | T27: =[9]BW_DWE_FORECASTS!Q$152 -> 11608.92831 | U27: =[9]BW_DWE_FORECASTS!R$152 -> 11834.39333 | V27: =[9]BW_DWE_FORECASTS!S$152 -> 12059.91907 | W27: =[9]BW_DWE_FORECASTS!T$152 -> 12282.40865 | X27: =[9]BW_DWE_FORECASTS!U$152 -> 12501.86208 | Y27: =[9]BW_DWE_FORECASTS!V$152 -> 12722.65141 | Z27: =[9]BW_DWE_FORECASTS!W$152 -> 12943.68364 | AA27: =[9]BW_DWE_FORECASTS!X$152 -> 13165.93033 | AB27: =[9]BW_DWE_FORECASTS!Y$152 -> 13393.21704 | AC27: =[9]BW_DWE_FORECASTS!Z$152 -> 13617.46759 | AD27: =[9]BW_DWE_FORECASTS!AA$152 -> 13841.23236 | AE27: =[9]BW_DWE_FORECASTS!AB$152 -> 14067.5475 | AF27: =[9]BW_DWE_FORECASTS!AC$152 -> 14289.97636 | AG27: =AF27*(1+$AF$6) -> 14515.92077 | AH27: =AG27*(1+AG$6) -> 14745.43767 | AI27: =AH27*(1+AH$6) -> 14978.58356 | AJ27: 15215.4158 | AK27: 15455.9927 | AL27: 15700.37345 | AM27: 15948.6182 | AN27: 16200.78804 | AO27: 16456.94504 | AP27: 16717.15224 | AQ27: 16981.47367 | AR27: 17249.9744 | AS27: 17522.7205 | AT27: 17799.77909
B28: TOTAL Customers | G28: =G26+G27 -> 135561 | H28: 137852 | I28: 141376 | J28: 146272 | K28: 150417 | L28: 155238 | M28: 158879 | N28: 162385.3084 | O28: 165889.6956 | P28: 169404.6497 | Q28: 172976.2811 | R28: 176557.5189 | S28: 180097.4494 | T28: 183651.7895 | U28: 187218.6177 | V28: 190786.4066 | W28: 194306.1639 | X28: 197777.8896 | Y28: 201270.7491 | Z28: 204767.4512 | AA28: 208283.366 | AB28: 211879.0132 | AC28: 215426.6288 | AD28: 218966.5594 | AE28: 222546.8365 | AF28: 226065.6332 | AG28: 229640.0454 | AH28: 233270.974 | AI28: 236959.3127 | AJ28: 240705.9691 | AK28: 244511.8654 | AL28: 248377.9381 | AM28: 252305.1389 | AN28: 256294.4342 | AO28: 260346.8058 | AP28: 264463.251 | AQ28: 268644.783 | AR28: 272892.4308 | AS28: 277207.2398 | AT28: 281590.272
B29: Change in Customers (TOTAL) | H29: =(H26-G26)+(H27-G27) -> 2291 | I29: 3524 | J29: 4896 | K29: 4145 | L29: =(L26-K26)+(L27-K27) -> 4821 | M29: =(M26-L26)+(M27-L27) -> 3641 | N29: 3506.308423 | O29: =(O26-N26)+(O27-N27) -> 3504.387158 | P29: 3514.954115 | Q29: 3571.631429 | R29: 3581.237753 | S29: 3539.930558 | T29: 3554.340045 | U29: 3566.828267 | V29: 3567.788899 | W29: 3519.757277 | X29: 3471.725655 | Y29: 3492.859568 | Z29: 3496.702098 | AA29: 3515.914747 | AB29: 3595.64724 | AC29: 3547.615618 | AD29: 3539.930558 | AE29: 3580.277121 | AF29: 3518.796644 | AG29: 3574.412196 | AH29: 3630.928626 | AI29: 3688.338659 | AJ29: 3746.656425 | AK29: 3805.896276 | AL29: 3866.072792 | AM29: 3927.200782 | AN29: 3989.29529 | AO29: 4052.371599 | AP29: 4116.445232 | AQ29: 4181.531959 | AR29: 4247.647797 | AS29: 4314.809019 | AT29: 4383.032153
B30: Change in RES Customers (TOTAL) | H30: =H26-G26 -> 2274 | I30: 3399 | J30: 4766 | K30: 3891 | L30: 4647 | M30: 3567 | N30: 3284.668964 | O30: 3282.869146 | P30: 3292.768148 | Q30: 3345.862797 | R30: 3354.86189 | S30: 3316.16579 | T30: 3329.66443 | U30: 3341.36325 | V30: 3342.26316 | W30: 3297.267695 | X30: 3252.272229 | Y30: 3272.070234 | Z30: 3275.669871 | AA30: 3293.668057 | AB30: 3368.36053 | AC30: 3323.365064 | AD30: 3316.16579 | AE30: 3353.961981 | AF30: 3296.367785 | AG30: 3348.467787 | AH30: 3401.411722 | AI30: 3455.192774 | AJ30: 3509.824179 | AK30: 3565.319383 | AL30: 3621.692043 | AM30: 3678.956033 | AN30: 3737.125446 | AO30: 3796.214599 | AP30: 3856.238034 | AQ30: 3917.210523 | AR30: 3979.147071 | AS30: 4042.062923 | AT30: 4105.973561
B31: Change in N-RES Customers (TOTAL) | H31: =H27-G27 -> 17 | I31: 125 | J31: 130 | K31: 254 | L31: 174 | M31: 74 | N31: 221.6394583 | O31: 221.518012 | P31: 222.1859665 | Q31: 225.7686317 | R31: 226.3758631 | S31: 223.7647681 | T31: 224.6756152 | U31: 225.465016 | V31: 225.5257392 | W31: 222.4895822 | X31: 219.4534252 | Y31: 220.7893343 | Z31: 221.0322269 | AA31: 222.2466896 | AB31: 227.2867102 | AC31: 224.2505532 | AD31: 223.7647681 | AE31: 226.31514 | AF31: 222.4288591 | AG31: 225.9444085 | AH31: 229.516904 | AI31: 233.1458856 | AJ31: 236.8322464 | AK31: 240.5768938 | AL31: 244.3807492 | AM31: 248.2447488 | AN31: 252.1698437 | AO31: 256.1569998 | AP31: 260.2071984 | AQ31: 264.3214362 | AR31: 268.5007259 | AS31: 272.7460959 | AT31: 277.0585912
B32: RES Post CWIP customer growth adjustment | H32: 0 | I32: 0 | J32: 0 | K32: 0 | L32: 0 | M32: 0 | N32: 0 | O32: 0 | P32: 0 | Q32: 0 | R32: 0 | S32: 0 | T32: =T30*(1-T23) -> 0 | U32: 0 | V32: 0 | W32: 0 | X32: 0 | Y32: 0 | Z32: 0 | AA32: 0 | AB32: 0 | AC32: 0 | AD32: 0 | AE32: 0 | AF32: 0 | AG32: 0 | AH32: 0 | AI32: 0 | AJ32: 0 | AK32: 0 | AL32: 0 | AM32: 0 | AN32: =AN30*(1-AN23) -> 0 | AO32: 0 | AP32: 0 | AQ32: 0 | AR32: 0 | AS32: 0 | AT32: 0
B33: NRES Post CWIP customer growth adjustment | H33: 0 | I33: 0 | J33: 0 | K33: 0 | L33: 0 | M33: 0 | N33: 0 | O33: 0 | P33: 0 | Q33: 0 | R33: 0 | S33: 0 | T33: =T31*(1-T23) -> 0 | U33: 0 | V33: 0 | W33: 0 | X33: 0 | Y33: =Y31*(1-Y23) -> 0 | Z33: 0 | AA33: 0 | AB33: 0 | AC33: 0 | AD33: 0 | AE33: 0 | AF33: 0 | AG33: 0 | AH33: 0 | AI33: 0 | AJ33: 0 | AK33: 0 | AL33: 0 | AM33: 0 | AN33: =AN31*(1-AN23) -> 0 | AO33: 0 | AP33: 0 | AQ33: 0 | AR33: 0 | AS33: 0 | AT33: 0
B34: Customer growth outside of Standardised NCC area | H34: 0 | I34: 0 | J34: 0 | K34: 0 | L34: 0 | M34: 0 | N34: 0 | O34: 0 | P34: 0 | Q34: 0 | R34: 0 | S34: 0 | T34: =T15 -> 0 | U34: =U15 -> 0 | V34: 0 | W34: 0 | X34: 0 | Y34: 0 | Z34: 0 | AA34: 0 | AB34: 0 | AC34: 0 | AD34: 0 | AE34: 0 | AF34: 0 | AG34: 0 | AH34: 0 | AI34: 0 | AJ34: 0 | AK34: 0 | AL34: 0 | AM34: 0 | AN34: 0 | AO34: 0 | AP34: 0 | AQ34: 0 | AR34: 0 | AS34: 0 | AT34: 0
B35: Change in Customers (STANDARD NCC AREA) | J35: =J29-J32-J33-J34 -> 4896 | K35: =K29-K32-K33-K34 -> 4145 | L35: 4821 | M35: 3641 | N35: 3506.308423 | O35: 3504.387158 | P35: 3514.954115 | Q35: 3571.631429 | R35: 3581.237753 | S35: 3539.930558 | T35: 3554.340045 | U35: 3566.828267 | V35: 3567.788899 | W35: 3519.757277 | X35: 3471.725655 | Y35: 3492.859568 | Z35: 3496.702098 | AA35: 3515.914747 | AB35: 3595.64724 | AC35: 3547.615618 | AD35: 3539.930558 | AE35: 3580.277121 | AF35: 3518.796644 | AG35: 3574.412196 | AH35: 3630.928626 | AI35: 3688.338659 | AJ35: =AJ29-AJ32-AJ33-AJ34 -> 3746.656425 | AK35: =AK29-AK32-AK33-AK34 -> 3805.896276 | AL35: 3866.072792 | AM35: 3927.200782 | AN35: 3989.29529 | AO35: 4052.371599 | AP35: 4116.445232 | AQ35: 4181.531959 | AR35: 4247.647797 | AS35: 4314.809019 | AT35: 4383.032153
B36: Change in RES Customers (STANDARD NCC AREA) | J36: =IF(J30-J32-J34<=0,0,J30-J32-J34) -> 4766 | K36: =IF(K30-K32-K34<=0,0,K30-K32-K34) -> 3891 | L36: 4647 | M36: 3567 | N36: 3284.668964 | O36: 3282.869146 | P36: 3292.768148 | Q36: 3345.862797 | R36: 3354.86189 | S36: 3316.16579 | T36: 3329.66443 | U36: 3341.36325 | V36: 3342.26316 | W36: 3297.267695 | X36: 3252.272229 | Y36: 3272.070234 | Z36: 3275.669871 | AA36: 3293.668057 | AB36: 3368.36053 | AC36: 3323.365064 | AD36: 3316.16579 | AE36: 3353.961981 | AF36: 3296.367785 | AG36: 3348.467787 | AH36: =IF(AH30-AH32-AH34<=0,0,AH30-AH32-AH34) -> 3401.411722 | AI36: =IF(AI30-AI32-AI34<=0,0,AI30-AI32-AI34) -> 3455.192774 | AJ36: 3509.824179 | AK36: =IF(AK30-AK32-AK34<=0,0,AK30-AK32-AK34) -> 3565.319383 | AL36: 3621.692043 | AM36: 3678.956033 | AN36: 3737.125446 | AO36: 3796.214599 | AP36: 3856.238034 | AQ36: 3917.210523 | AR36: 3979.147071 | AS36: 4042.062923 | AT36: 4105.973561 | AV36: =SUM(O36:AR36) -> 103521.7874
B37: Change in NRES Customers (STANDARD NCC AREA) | J37: =J31-J33 -> 130 | K37: =K31-K33 -> 254 | L37: 174 | M37: 74 | N37: 221.6394583 | O37: 221.518012 | P37: 222.1859665 | Q37: 225.7686317 | R37: 226.3758631 | S37: 223.7647681 | T37: 224.6756152 | U37: 225.465016 | V37: 225.5257392 | W37: 222.4895822 | X37: 219.4534252 | Y37: 220.7893343 | Z37: 221.0322269 | AA37: 222.2466896 | AB37: 227.2867102 | AC37: 224.2505532 | AD37: 223.7647681 | AE37: 226.31514 | AF37: 222.4288591 | AG37: 225.9444085 | AH37: 229.516904 | AI37: 233.1458856 | AJ37: 236.8322464 | AK37: 240.5768938 | AL37: 244.3807492 | AM37: 248.2447488 | AN37: =AN31-AN33 -> 252.1698437 | AO37: 256.1569998 | AP37: 260.2071984 | AQ37: 264.3214362 | AR37: 268.5007259 | AS37: 272.7460959 | AT37: 277.0585912 | AV37: =SUM(O37:AR37) -> 6985.334941
B38: *Adjustment to remove Fyansford Customers | D38: 35 | E38: 35 | F38: 35 | G38: 50 | H38: 50 | I38: 50 | J38: 50 | K38: 50 | L38: 80 | M38: 80 | N38: 80 | O38: 80 | P38: 80 | Q38: 100 | R38: 100 | S38: 100 | T38: 100 | U38: 100 | V38: 120 | W38: 120 | X38: 120 | Y38: 120 | Z38: 120 | AA38: 120 | AB38: 25 | AC38: 0 | AD38: 0 | AE38: 0 | AF38: 0 | AG38: 0 | AH38: 0 | AI38: 0 | AJ38: 0 | AK38: 0 | AL38: 0 | AM38: 0 | AN38: 0 | AO38: 0 | AP38: 0 | AQ38: 0 | AR38: 0 | AS38: 0 | AT38: 0 | AW38: =SUM(AV36:AV37) -> 110507.1224
A39: 0.3 | B39: Change in RES Customers (Infill NCC) | J39: =J36*$A$19 -> 1429.8 | K39: =K36*$A$19 -> 1167.3 | L39: 1394.1 | M39: 1070.1 | N39: 985.4006893 | O39: 984.8607437 | P39: 987.8304444 | Q39: 1003.758839 | R39: 1006.458567 | S39: 994.849737 | T39: 998.8993289 | U39: 1002.408975 | V39: 1002.678948 | W39: 989.1803084 | X39: 975.6816688 | Y39: 981.6210702 | Z39: 982.7009614 | AA39: 988.1004172 | AB39: 1010.508159 | AC39: 997.0095193 | AD39: 994.849737 | AE39: 1006.188594 | AF39: 988.9103356 | AG39: 1004.540336 | AH39: 1020.423517 | AI39: 1036.557832 | AJ39: 1052.947254 | AK39: 1069.595815 | AL39: 1086.507613 | AM39: 1103.68681 | AN39: =AN36*$A$19 -> 1121.137634 | AO39: 1138.86438 | AP39: 1156.87141 | AQ39: 1175.163157 | AR39: 1193.744121 | AS39: 1212.618877 | AT39: 1231.792068
A40: 0.3 | B40: Change in NRES Customers (Infill NCC) | J40: =J37*$A$20 -> 39 | K40: =K37*$A$20 -> 76.2 | L40: 52.2 | M40: 22.2 | N40: 66.49183748 | O40: 66.45540359 | P40: 66.65578995 | Q40: 67.73058952 | R40: 67.91275893 | S40: 67.12943044 | T40: 67.40268456 | U40: 67.63950481 | V40: 67.65772175 | W40: 66.74687466 | X40: 65.83602757 | Y40: 66.23680029 | Z40: 66.30966806 | AA40: 66.67400689 | AB40: 68.18601306 | AC40: 67.27516597 | AD40: 67.12943044 | AE40: 67.89454199 | AF40: 66.72865772 | AG40: 67.78332256 | AH40: 68.8550712 | AI40: 69.94376568 | AJ40: 71.04967393 | AK40: 72.17306813 | AL40: 73.31422475 | AM40: 74.47342465 | AN40: =AN37*$A$20 -> 75.65095311 | AO40: 76.84709994 | AP40: 78.06215951 | AQ40: 79.29643086 | AR40: 80.55021776 | AS40: 81.82382878 | AT40: 83.11757736
A41: 0.7 | B41: Change in RES Customers (Greenfield NCC) | J41: =J36*$A$21 -> 3336.2 | K41: =K36*$A$21 -> 2723.7 | L41: 3252.9 | M41: 2496.9 | N41: 2299.268275 | O41: 2298.008402 | P41: 2304.937704 | Q41: 2342.103958 | R41: 2348.403323 | S41: 2321.316053 | T41: 2330.765101 | U41: 2338.954275 | V41: 2339.584212 | W41: 2308.087386 | X41: 2276.59056 | Y41: 2290.449164 | Z41: 2292.96891 | AA41: 2305.56764 | AB41: 2357.852371 | AC41: 2326.355545 | AD41: 2321.316053 | AE41: 2347.773387 | AF41: 2307.45745 | AG41: 2343.927451 | AH41: 2380.988205 | AI41: 2418.634942 | AJ41: 2456.876925 | AK41: 2495.723568 | AL41: 2535.18443 | AM41: 2575.269223 | AN41: =AN36*$A$21 -> 2615.987812 | AO41: 2657.35022 | AP41: 2699.366624 | AQ41: 2742.047366 | AR41: 2785.40295 | AS41: 2829.444046 | AT41: 2874.181493
A42: 0.7 | B42: Change in NRES Customers (Greenfield NCC) | J42: =J37*$A$22 -> 91 | K42: =K37*$A$22 -> 177.8 | L42: 121.8 | M42: 51.8 | N42: 155.1476208 | O42: 155.0626084 | P42: 155.5301766 | Q42: 158.0380422 | R42: 158.4631042 | S42: 156.6353377 | T42: 157.2729306 | U42: 157.8255112 | V42: 157.8680174 | W42: 155.7427075 | X42: 153.6173977 | Y42: 154.552534 | Z42: 154.7225588 | AA42: 155.5726827 | AB42: 159.1006971 | AC42: 156.9753873 | AD42: 156.6353377 | AE42: 158.420598 | AF42: 155.7002013 | AG42: 158.161086 | AH42: 160.6618328 | AI42: 163.2021199 | AJ42: 165.7825725 | AK42: 168.4038256 | AL42: 171.0665244 | AM42: 173.7713242 | AN42: =AN37*$A$22 -> 176.5188906 | AO42: 179.3098999 | AP42: 182.1450389 | AQ42: 185.0250053 | AR42: 187.9505081 | AS42: 190.9222671 | AT42: 193.9410138
B43: Recyled Water
A44: =K44/K55 -> 0.9898670878 | B44: Class A RES | H44: ='[10]Recycled Water'!$I$18 -> 3665 | I44: ='[11]Recycled Water'!$I$19 -> 4832 | J44: ='[12]Recycled Water'!$I$18 -> 6138 | K44: ='[13]Recycled Water'!$I$19 -> 7522 | L44: ='[14]Recycled Water'!$I$19 -> 9757 | M44: ='[15]Recycled Water'!$I$19 -> 11247 | N44: =SUM(N45:N48) -> 12759.89714 | O44: =SUM(O45:O48) -> 14272.79428 | P44: 15785.69142 | Q44: 17298.58857 | R44: 18811.48571 | S44: 20324.38285 | T44: 21837.27999 | U44: 23350.17713 | V44: 24863.07427 | W44: 26375.97141 | X44: 27888.86855 | Y44: 29401.7657 | Z44: =SUM(Z45:Z48) -> 30914.66284 | AA44: =SUM(AA45:AA48) -> 32427.55998 | AB44: =SUM(AB45:AB48) -> 33940.45712 | AC44: =SUM(AC45:AC48) -> 35453.35426 | AD44: =SUM(AD45:AD48) -> 36966.2514 | AE44: =SUM(AE45:AE48) -> 38479.14854 | AF44: =SUM(AF45:AF48) -> 39992.04569 | AG44: =SUM(AG45:AG48) -> 41504.94283 | AH44: =SUM(AH45:AH48) -> 43017.83997 | AI44: =SUM(AI45:AI48) -> 44530.73711 | AJ44: =SUM(AJ45:AJ48) -> 46043.63425 | AK44: =SUM(AK45:AK48) -> 47556.53139 | AL44: =SUM(AL45:AL48) -> 49069.42853 | AM44: =SUM(AM45:AM48) -> 50582.32567 | AN44: =SUM(AN45:AN48) -> 52095.22282 | AO44: =SUM(AO45:AO48) -> 53608.11996 | AP44: =SUM(AP45:AP48) -> 55121.0171 | AQ44: =SUM(AQ45:AQ48) -> 56633.91424 | AR44: =SUM(AR45:AR48) -> 58146.81138 | AS44: =SUM(AS45:AS48) -> 59659.70852 | AT44: =SUM(AT45:AT48) -> 61172.60566
B45: Armstrong Creek | H45: ='[10]Recycled Water'!$I$8 -> 2115 | I45: ='[11]Recycled Water'!$I$9 -> 2572 | J45: ='[12]Recycled Water'!$I$8 -> 3241 | K45: ='[13]Recycled Water'!$I$8 -> 3731 | L45: ='[14]Recycled Water'!$I$8 -> 4542 | M45: ='[15]Recycled Water'!$I$8 -> 5210 | N45: =M45+(M45/M$55*N$58) -> 5910.826363 | O45: =N45+(N45/N$55*O$58) -> 6611.652726 | P45: 7312.479089 | Q45: 8013.305453 | R45: 8714.131816 | S45: 9414.958179 | T45: 10115.78454 | U45: 10816.61091 | V45: 11517.43727 | W45: 12218.26363 | X45: 12919.08999 | Y45: 13619.91636 | Z45: =Y45+(Y45/Y$55*Z$58) -> 14320.74272 | AA45: 15021.56908 | AB45: 15722.39545 | AC45: 16423.22181 | AD45: 17124.04817 | AE45: 17824.87454 | AF45: 18525.7009 | AG45: 19226.52726 | AH45: 19927.35363 | AI45: 20628.17999 | AJ45: 21329.00635 | AK45: 22029.83272 | AL45: 22730.65908 | AM45: 23431.48544 | AN45: 24132.31181 | AO45: 24833.13817 | AP45: 25533.96453 | AQ45: 26234.79089 | AR45: 26935.61726 | AS45: 27636.44362 | AT45: 28337.26998
B46: Charlemont | H46: ='[10]Recycled Water'!$I$11 -> 150 | I46: ='[11]Recycled Water'!$I$12 -> 382 | J46: ='[12]Recycled Water'!$I$11 -> 535 | K46: ='[13]Recycled Water'!$I$12 -> 766 | L46: ='[14]Recycled Water'!$I$12 -> 1187 | M46: ='[15]Recycled Water'!$I$12 -> 1397 | N46: =M46+(M46/M$55*N$58) -> 1584.918317 | O46: 1772.836633 | P46: 1960.75495 | Q46: 2148.673266 | R46: 2336.591583 | S46: 2524.509899 | T46: 2712.428216 | U46: 2900.346533 | V46: 3088.264849 | W46: 3276.183166 | X46: 3464.101482 | Y46: 3652.019799 | Z46: =Y46+(Y46/Y$55*Z$58) -> 3839.938115 | AA46: 4027.856432 | AB46: 4215.774749 | AC46: 4403.693065 | AD46: 4591.611382 | AE46: 4779.529698 | AF46: 4967.448015 | AG46: 5155.366331 | AH46: 5343.284648 | AI46: 5531.202965 | AJ46: 5719.121281 | AK46: 5907.039598 | AL46: 6094.957914 | AM46: 6282.876231 | AN46: 6470.794547 | AO46: 6658.712864 | AP46: 6846.631181 | AQ46: 7034.549497 | AR46: 7222.467814 | AS46: 7410.38613 | AT46: 7598.304447
B47: Mount Duneed | H47: ='[10]Recycled Water'!$I$14 -> 908 | I47: ='[11]Recycled Water'!$I$15 -> 1118 | J47: ='[12]Recycled Water'!$I$14 -> 1298 | K47: ='[13]Recycled Water'!$I$15 -> 1648 | L47: ='[14]Recycled Water'!$I$15 -> 2348 | M47: ='[15]Recycled Water'!$I$15 -> 2813 | N47: =M47+(M47/M$55*N$58) -> 3191.39243 | O47: 3569.78486 | P47: 3948.17729 | Q47: 4326.569719 | R47: 4704.962149 | S47: 5083.354579 | T47: 5461.747009 | U47: 5840.139439 | V47: 6218.531869 | W47: 6596.924299 | X47: 6975.316728 | Y47: 7353.709158 | Z47: =Y47+(Y47/Y$55*Z$58) -> 7732.101588 | AA47: 8110.494018 | AB47: 8488.886448 | AC47: 8867.278878 | AD47: 9245.671308 | AE47: 9624.063737 | AF47: 10002.45617 | AG47: 10380.8486 | AH47: 10759.24103 | AI47: 11137.63346 | AJ47: 11516.02589 | AK47: 11894.41832 | AL47: 12272.81075 | AM47: 12651.20318 | AN47: 13029.59561 | AO47: 13407.98804 | AP47: 13786.38047 | AQ47: 14164.7729 | AR47: 14543.16533 | AS47: 14921.55776 | AT47: 15299.95019
B48: Torquay | H48: ='[10]Recycled Water'!$I$16 -> 492 | I48: ='[11]Recycled Water'!$I$17 -> 760 | J48: ='[12]Recycled Water'!$I$16 -> 1064 | K48: ='[13]Recycled Water'!$I$17 -> 1377 | L48: ='[14]Recycled Water'!$I$17 -> 1680 | M48: ='[15]Recycled Water'!$I$17 -> 1827 | N48: =M48+(M48/M$55*N$58) -> 2072.760032 | O48: 2318.520064 | P48: 2564.280095 | Q48: 2810.040127 | R48: 3055.800159 | S48: 3301.560191 | T48: 3547.320222 | U48: 3793.080254 | V48: 4038.840286 | W48: 4284.600318 | X48: 4530.360349 | Y48: 4776.120381 | Z48: =Y48+(Y48/Y$55*Z$58) -> 5021.880413 | AA48: 5267.640445 | AB48: 5513.400476 | AC48: 5759.160508 | AD48: 6004.92054 | AE48: 6250.680572 | AF48: 6496.440603 | AG48: 6742.200635 | AH48: 6987.960667 | AI48: 7233.720699 | AJ48: 7479.480731 | AK48: 7725.240762 | AL48: 7971.000794 | AM48: 8216.760826 | AN48: 8462.520858 | AO48: 8708.280889 | AP48: 8954.040921 | AQ48: 9199.800953 | AR48: 9445.560985 | AS48: 9691.321016 | AT48: 9937.081048
A49: =K49/K55 -> 0.006448216871 | B49: Class A NRES | H49: ='[10]Recycled Water'!$J$18 -> 12 | I49: ='[11]Recycled Water'!$J$19 -> 13 | J49: ='[12]Recycled Water'!$J$18 -> 17 | K49: ='[13]Recycled Water'!$J$19 -> 49 | L49: =SUM(L50:L53) -> 54 | M49: =SUM(M50:M53) -> 56 | N49: =SUM(N50:N53) -> 63.53287454 | O49: =SUM(O50:O53) -> 71.06574907 | P49: 78.59862361 | Q49: 86.13149815 | R49: 93.66437268 | S49: 101.1972472 | T49: 108.7301218 | U49: 116.2629963 | V49: 123.7958708 | W49: 131.3287454 | X49: 138.8616199 | Y49: 146.3944944 | Z49: =SUM(Z50:Z53) -> 153.927369 | AA49: =SUM(AA50:AA53) -> 161.4602435 | AB49: =SUM(AB50:AB53) -> 168.9931181 | AC49: =SUM(AC50:AC53) -> 176.5259926 | AD49: =SUM(AD50:AD53) -> 184.0588671 | AE49: =SUM(AE50:AE53) -> 191.5917417 | AF49: =SUM(AF50:AF53) -> 199.1246162 | AG49: =SUM(AG50:AG53) -> 206.6574907 | AH49: =SUM(AH50:AH53) -> 214.1903653 | AI49: =SUM(AI50:AI53) -> 221.7232398 | AJ49: =SUM(AJ50:AJ53) -> 229.2561143 | AK49: =SUM(AK50:AK53) -> 236.7889889 | AL49: =SUM(AL50:AL53) -> 244.3218634 | AM49: =SUM(AM50:AM53) -> 251.854738 | AN49: =SUM(AN50:AN53) -> 259.3876125 | AO49: =SUM(AO50:AO53) -> 266.920487 | AP49: =SUM(AP50:AP53) -> 274.4533616 | AQ49: =SUM(AQ50:AQ53) -> 281.9862361 | AR49: =SUM(AR50:AR53) -> 289.5191106 | AS49: =SUM(AS50:AS53) -> 297.0519852 | AT49: =SUM(AT50:AT53) -> 304.5848597
B50: Armstrong Creek | H50: ='[10]Recycled Water'!$J$8 -> 6 | I50: ='[11]Recycled Water'!$J$9 -> 7 | J50: ='[12]Recycled Water'!$J$8 -> 9 | K50: ='[13]Recycled Water'!$J$8 -> 37 | L50: ='[14]Recycled Water'!$J$8 -> 40 | M50: ='[15]Recycled Water'!$J$8 -> 40 | N50: =M50+(M50/M$55*N$58) -> 45.38062467 | O50: 50.76124934 | P50: 56.14187401 | Q50: 61.52249868 | R50: 66.90312335 | S50: 72.28374801 | T50: 77.66437268 | U50: 83.04499735 | V50: 88.42562202 | W50: 93.80624669 | X50: 99.18687136 | Y50: 104.567496 | Z50: =Y50+(Y50/Y$55*Z$58) -> 109.9481207 | AA50: 115.3287454 | AB50: 120.70937 | AC50: 126.0899947 | AD50: 131.4706194 | AE50: 136.851244 | AF50: 142.2318687 | AG50: 147.6124934 | AH50: 152.9931181 | AI50: 158.3737427 | AJ50: 163.7543674 | AK50: 169.1349921 | AL50: 174.5156167 | AM50: 179.8962414 | AN50: 185.2768661 | AO50: 190.6574907 | AP50: 196.0381154 | AQ50: 201.4187401 | AR50: 206.7993647 | AS50: 212.1799894 | AT50: 217.5606141
B51: Charlemont | H51: ='[10]Recycled Water'!$J$11 -> 0 | I51: ='[11]Recycled Water'!$J$12 -> 0 | J51: ='[12]Recycled Water'!$J$11 -> 0 | K51: ='[13]Recycled Water'!$J$12 ->  | L51: ='[14]Recycled Water'!$J$12 -> 0 | M51: ='[15]Recycled Water'!$J$12 -> 0 | N51: =M51+(M51/M$55*N$58) -> 0 | O51: 0 | P51: 0 | Q51: 0 | R51: 0 | S51: 0 | T51: 0 | U51: 0 | V51: 0 | W51: 0 | X51: 0 | Y51: 0 | Z51: =Y51+(Y51/Y$55*Z$58) -> 0 | AA51: 0 | AB51: 0 | AC51: 0 | AD51: 0 | AE51: 0 | AF51: 0 | AG51: 0 | AH51: 0 | AI51: 0 | AJ51: 0 | AK51: 0 | AL51: 0 | AM51: 0 | AN51: 0 | AO51: 0 | AP51: 0 | AQ51: 0 | AR51: 0 | AS51: 0 | AT51: 0
B52: Mount Duneed | H52: ='[10]Recycled Water'!$J$14 -> 2 | I52: ='[11]Recycled Water'!$J$15 -> 1 | J52: ='[12]Recycled Water'!$J$14 -> 2 | K52: ='[13]Recycled Water'!$J$15 -> 4 | L52: ='[14]Recycled Water'!$J$15 -> 6 | M52: ='[15]Recycled Water'!$J$15 -> 6 | N52: =M52+(M52/M$55*N$58) -> 6.8070937 | O52: 7.614187401 | P52: 8.421281101 | Q52: 9.228374801 | R52: 10.0354685 | S52: 10.8425622 | T52: 11.6496559 | U52: 12.4567496 | V52: 13.2638433 | W52: 14.070937 | X52: 14.8780307 | Y52: 15.6851244 | Z52: =Y52+(Y52/Y$55*Z$58) -> 16.4922181 | AA52: 17.29931181 | AB52: 18.10640551 | AC52: 18.91349921 | AD52: 19.72059291 | AE52: 20.52768661 | AF52: 21.33478031 | AG52: 22.14187401 | AH52: 22.94896771 | AI52: 23.75606141 | AJ52: 24.56315511 | AK52: 25.37024881 | AL52: 26.17734251 | AM52: 26.98443621 | AN52: 27.79152991 | AO52: 28.59862361 | AP52: 29.40571731 | AQ52: 30.21281101 | AR52: 31.01990471 | AS52: 31.82699841 | AT52: 32.63409211
B53: Torquay | H53: ='[10]Recycled Water'!$J$16 -> 4 | I53: ='[11]Recycled Water'!$J$17 -> 5 | J53: ='[12]Recycled Water'!$J$16 -> 6 | K53: ='[13]Recycled Water'!$J$17 -> 8 | L53: ='[14]Recycled Water'!$J$17 -> 8 | M53: ='[15]Recycled Water'!$J$17 -> 10 | N53: =M53+(M53/M$55*N$58) -> 11.34515617 | O53: 12.69031233 | P53: 14.0354685 | Q53: 15.38062467 | R53: 16.72578084 | S53: 18.070937 | T53: 19.41609317 | U53: 20.76124934 | V53: 22.10640551 | W53: 23.45156167 | X53: 24.79671784 | Y53: =X53+(X53/X$55*Y$58) -> 26.14187401 | Z53: =Y53+(Y53/Y$55*Z$58) -> 27.48703017 | AA53: 28.83218634 | AB53: 30.17734251 | AC53: 31.52249868 | AD53: 32.86765484 | AE53: 34.21281101 | AF53: 35.55796718 | AG53: 36.90312335 | AH53: 38.24827951 | AI53: 39.59343568 | AJ53: 40.93859185 | AK53: 42.28374801 | AL53: 43.62890418 | AM53: 44.97406035 | AN53: 46.31921652 | AO53: 47.66437268 | AP53: 49.00952885 | AQ53: 50.35468502 | AR53: 51.69984119 | AS53: 53.04499735 | AT53: 54.39015352
A54: =K54/K55 -> 0.003684695355 | B54: Class C NRES | H54: ='[10]Recycled Water'!$L$18 -> 34 | I54: ='[11]Recycled Water'!$L$19 -> 23 | J54: ='[12]Recycled Water'!$L$18 -> 32 | K54: ='[13]Recycled Water'!$L$19 -> 28 | L54: ='[14]Recycled Water'!$L$19 -> 28 | M54: ='[15]Recycled Water'!$L$19 -> 31 | N54: =M54+(M54/M$55*N$58) -> 35.16998412 | O54: =N54+(N54/N$55*O$58) -> 39.33996824 | P54: 43.50995236 | Q54: 47.67993647 | R54: 51.84992059 | S54: 56.01990471 | T54: 60.18988883 | U54: 64.35987295 | V54: 68.52985707 | W54: 72.69984119 | X54: 76.8698253 | Y54: 81.03980942 | Z54: =Y54+(Y54/Y$55*Z$58) -> 85.20979354 | AA54: 89.37977766 | AB54: 93.54976178 | AC54: 97.7197459 | AD54: 101.88973 | AE54: 106.0597141 | AF54: 110.2296983 | AG54: 114.3996824 | AH54: 118.5696665 | AI54: 122.7396506 | AJ54: 126.9096347 | AK54: 131.0796188 | AL54: 135.249603 | AM54: 139.4195871 | AN54: 143.5895712 | AO54: 147.7595553 | AP54: 151.9295394 | AQ54: 156.0995236 | AR54: 160.2695077 | AS54: 164.4394918 | AT54: 168.6094759
B55: Total RW Customers | H55: =H44+H49+H54 -> 3711 | I55: =I44+I49+I54 -> 4868 | J55: =J44+J49+J54 -> 6187 | K55: =K44+K49+K54 -> 7599 | L55: =L44+L49+L54 -> 9839 | M55: =M44+M49+M54 -> 11334 | N55: =N44+N49+N54 -> 12858.6 | O55: =O44+O49+O54 -> 14383.2 | P55: 15907.8 | Q55: 17432.4 | R55: 18957 | S55: 20481.6 | T55: 22006.2 | U55: 23530.8 | V55: 25055.4 | W55: 26580 | X55: 28104.6 | Y55: =Y44+Y49+Y54 -> 29629.2 | Z55: =Z44+Z49+Z54 -> 31153.8 | AA55: 32678.4 | AB55: 34203 | AC55: 35727.6 | AD55: 37252.2 | AE55: 38776.8 | AF55: 40301.4 | AG55: 41826 | AH55: 43350.6 | AI55: 44875.2 | AJ55: 46399.8 | AK55: 47924.4 | AL55: 49449 | AM55: 50973.6 | AN55: 52498.2 | AO55: 54022.8 | AP55: 55547.4 | AQ55: 57072 | AR55: 58596.6 | AS55: 60121.2 | AT55: 61645.8
B56: YOY change | I56: =(I55-H55)/H55 -> 0.3117758017 | J56: =(J55-I55)/I55 -> 0.2709531635 | K56: 0.2282204623 | L56: 0.2947756284 | M56: 0.151946336 | N56: 0.1345156167 | O56: =(O55-N55)/N55 -> 0.1185665625 | P56: =(P55-O55)/O55 -> 0.1059986651 | Q56: =(Q55-P55)/P55 -> 0.09583977671 | R56: =(R55-Q55)/Q55 -> 0.08745783713 | S56: =(S55-R55)/R55 -> 0.08042411774 | T56: =(T55-S55)/S55 -> 0.07443754394 | U56: =(U55-T55)/T55 -> 0.0692804755 | V56: =(V55-U55)/U55 -> 0.06479167729 | W56: =(W55-V55)/V55 -> 0.06084915827 | X56: =(X55-W55)/W55 -> 0.05735891648 | Y56: =(Y55-X55)/X55 -> 0.05424734741 | Z56: =(Z55-Y55)/Y55 -> 0.05145599611 | AA56: =(AA55-Z55)/Z55 -> 0.04893785028 | AB56: =(AB55-AA55)/AA55 -> 0.04665467098 | AC56: =(AC55-AB55)/AB55 -> 0.04457503728 | AD56: =(AD55-AC55)/AC55 -> 0.04267289155 | AE56: =(AE55-AD55)/AD55 -> 0.04092644193 | AF56: =(AF55-AE55)/AE55 -> 0.03931732376 | AG56: =(AG55-AF55)/AF55 -> 0.03782995132 | AH56: =(AH55-AG55)/AG55 -> 0.03645101133 | AI56: =(AI55-AH55)/AH55 -> 0.0351690634 | AJ56: =(AJ55-AI55)/AI55 -> 0.03397422184 | AK56: =(AK55-AJ55)/AJ55 -> 0.03285790025 | AL56: =(AL55-AK55)/AK55 -> 0.03181260485 | AM56: =(AM55-AL55)/AL55 -> 0.03083176606 | AN56: =(AN55-AM55)/AM55 -> 0.02990960026 | AO56: =(AO55-AN55)/AN55 -> 0.02904099569 | AP56: =(AP55-AO55)/AO55 -> 0.02822141762 | AQ56: =(AQ55-AP55)/AP55 -> 0.02744682919 | AR56: =(AR55-AQ55)/AQ55 -> 0.02671362489 | AS56: =(AS55-AR55)/AR55 -> 0.02601857446 | AT56: =(AT55-AS55)/AS55 -> 0.02535877527
B57: YOY change | I57: =(I55-H55)*I23 -> 1157 | J57: =(J55-I55)*J23 -> 1319 | K57: =(K55-J55) -> 1412 | L57: =(L55-K55) -> 2240 | M57: =(M55-L55) -> 1495 | N57: =(N55-M55) -> 1524.6 | O57: =(O55-N55) -> 1524.6 | P57: =(P55-O55) -> 1524.6 | Q57: 1524.6 | R57: 1524.6 | S57: 1524.6 | T57: 1524.6 | U57: 1524.6 | V57: 1524.6 | W57: 1524.6 | X57: =(X55-W55) -> 1524.6 | Y57: =(Y55-X55) -> 1524.6 | Z57: =(Z55-Y55) -> 1524.6 | AA57: 1524.6 | AB57: 1524.6 | AC57: 1524.6 | AD57: 1524.6 | AE57: 1524.6 | AF57: 1524.6 | AG57: 1524.6 | AH57: 1524.6 | AI57: 1524.6 | AJ57: 1524.6 | AK57: 1524.6 | AL57: 1524.6 | AM57: 1524.6 | AN57: 1524.6 | AO57: 1524.6 | AP57: 1524.6 | AQ57: 1524.6 | AR57: 1524.6 | AS57: 1524.6 | AT57: 1524.6
B58: YoY change (RES&NRES) x Cumulative from 2023 (CWIP customer growth adjustment) | I58: =(I55-H55)*I23 -> 1157 | J58: =(J55-I55)*J23 -> 1319 | K58: =(K55-J55)*K23 -> 1412 | L58: =(L55-K55)*L23 -> 2240 | M58: =(M55-L55)*M23 -> 1495 | N58: =AVERAGE($I$58:$M$58)*N23 -> 1524.6 | O58: =AVERAGE($I$58:$M$58)*O23 -> 1524.6 | P58: =AVERAGE($I$58:$M$58)*P23 -> 1524.6 | Q58: =AVERAGE($I$58:$M$58)*Q23 -> 1524.6 | R58: 1524.6 | S58: 1524.6 | T58: 1524.6 | U58: 1524.6 | V58: 1524.6 | W58: 1524.6 | X58: 1524.6 | Y58: 1524.6 | Z58: 1524.6 | AA58: 1524.6 | AB58: 1524.6 | AC58: 1524.6 | AD58: 1524.6 | AE58: 1524.6 | AF58: 1524.6 | AG58: 1524.6 | AH58: 1524.6 | AI58: 1524.6 | AJ58: 1524.6 | AK58: 1524.6 | AL58: 1524.6 | AM58: 1524.6 | AN58: 1524.6 | AO58: 1524.6 | AP58: 1524.6 | AQ58: 1524.6 | AR58: 1524.6 | AS58: 1524.6 | AT58: 1524.6
B59: New RW Customers (Cumulative) | O59: =N59+O58 -> 1524.6 | P59: =O59+P58 -> 3049.2 | Q59: =P59+Q58 -> 4573.8 | R59: 6098.4 | S59: =R59+S58 -> 7623 | T59: 9147.6 | U59: 10672.2 | V59: 12196.8 | W59: 13721.4 | X59: 15246 | Y59: 16770.6 | Z59: 18295.2 | AA59: 19819.8 | AB59: 21344.4 | AC59: 22869 | AD59: 24393.6 | AE59: 25918.2 | AF59: 27442.8 | AG59: =AF59+AG58 -> 28967.4 | AH59: =AG59+AH58 -> 30492 | AI59: 32016.6 | AJ59: 33541.2 | AK59: 35065.8 | AL59: 36590.4 | AM59: 38115 | AN59: 39639.6 | AO59: 41164.2 | AP59: 42688.8 | AQ59: 44213.4 | AR59: 45738 | AS59: 47262.6 | AT59: =AS59+AT58 -> 48787.2
B60: Residential Customers (RES)* | O60: =O59*$A$44 -> 1509.151362 | P60: =P59*$A$44 -> 3018.302724 | Q60: 4527.454086 | R60: 6036.605448 | S60: 7545.75681 | T60: 9054.908172 | U60: 10564.05953 | V60: 12073.2109 | W60: 13582.36226 | X60: 15091.51362 | Y60: 16600.66498 | Z60: 18109.81634 | AA60: 19618.96771 | AB60: 21128.11907 | AC60: 22637.27043 | AD60: 24146.42179 | AE60: 25655.57315 | AF60: 27164.72452 | AG60: 28673.87588 | AH60: 30183.02724 | AI60: 31692.1786 | AJ60: 33201.32996 | AK60: 34710.48133 | AL60: 36219.63269 | AM60: 37728.78405 | AN60: 39237.93541 | AO60: 40747.08677 | AP60: 42256.23814 | AQ60: 43765.3895 | AR60: 45274.54086 | AS60: 46783.69222 | AT60: 48292.84358
B61: Non-Residential Customers (NRES) | O61: =O59*($A$49+$A$54) -> 15.44863798 | P61: =P59*($A$49+$A$54) -> 30.89727596 | Q61: 46.34591394 | R61: 61.79455191 | S61: 77.24318989 | T61: 92.69182787 | U61: 108.1404659 | V61: 123.5891038 | W61: 139.0377418 | X61: 154.4863798 | Y61: 169.9350178 | Z61: 185.3836557 | AA61: 200.8322937 | AB61: 216.2809317 | AC61: 231.7295697 | AD61: 247.1782077 | AE61: 262.6268456 | AF61: 278.0754836 | AG61: 293.5241216 | AH61: 308.9727596 | AI61: 324.4213976 | AJ61: 339.8700355 | AK61: 355.3186735 | AL61: 370.7673115 | AM61: 386.2159495 | AN61: 401.6645874 | AO61: 417.1132254 | AP61: 432.5618634 | AQ61: 448.0105014 | AR61: 463.4591394 | AS61: 478.9077773 | AT61: 494.3564153
O62: =O59-N59 -> 1524.6 | P62: =P59-O59 -> 1524.6 | Q62: =Q59-P59 -> 1524.6 | R62: 1524.6 | S62: 1524.6 | T62: 1524.6 | U62: 1524.6 | V62: 1524.6 | W62: 1524.6 | X62: 1524.6 | Y62: 1524.6 | Z62: =Z59-Y59 -> 1524.6 | AA62: 1524.6 | AB62: 1524.6 | AC62: 1524.6 | AD62: 1524.6 | AE62: =AE59-AD59 -> 1524.6 | AF62: 1524.6 | AG62: =AG59-AF59 -> 1524.6 | AH62: =AH59-AG59 -> 1524.6 | AI62: =AI59-AH59 -> 1524.6 | AJ62: 1524.6 | AK62: 1524.6 | AL62: 1524.6 | AM62: 1524.6 | AN62: 1524.6 | AO62: 1524.6 | AP62: =AP59-AO59 -> 1524.6 | AQ62: =AQ59-AP59 -> 1524.6 | AR62: =AR59-AQ59 -> 1524.6 | AS62: =AS59-AR59 -> 1524.6 | AT62: =AT59-AS59 -> 1524.6
A64: 0.375 | B64: Change in Customer Forecasts (adjusted by 37.5% for quarterly customer breakdown)
B65: Water
B66: =B11 -> Change in RES Customers (TOTAL) | D66: =D11*(1-$A$64) -> 0 | E66: 0 | F66: 0 | G66: 0 | H66: 1712.5 | I66: 2309.375 | J66: 2100.625 | K66: 2424.375 | L66: 2978.125 | M66: 2287.5 | N66: 2228.863595 | O66: 2227.638862 | P66: 2234.353382 | Q66: 2270.378166 | R66: 2276.482694 | S66: 2250.221196 | T66: 2264.97504 | U66: 2272.00394 | V66: 2272.961486 | W66: 2241.736794 | X66: 2211.312608 | Y66: 2224.176065 | Z66: 2226.944589 | AA66: 2238.632478 | AB66: 2289.457738 | AC66: 2258.667142 | AD66: 2253.56758 | AE66: 2279.565897 | AF66: 2239.941822 | AG66: 2272.996305 | AH66: 2308.935539 | AI66: 2345.443023 | AJ66: 2382.52774 | AK66: 2420.198819 | AL66: 2458.465529 | AM66: 2497.33729 | AN66: 2536.823667 | AO66: 2576.934379 | AP66: 2617.679297 | AQ66: 2659.068449 | AR66: 2701.112021 | AS66: 2743.82036 | AT66: 2787.203977
B67: =B12 -> Change in NRES Customers (TOTAL) | D67: =D12*(1-$A$64) -> 0 | E67: 0 | F67: 0 | G67: 0 | H67: 67.5 | I67: 92.5 | J67: 140.625 | K67: 143.75 | L67: 118.75 | M67: 57.5 | N67: 178.1937768 | O67: 178.1013795 | P67: 178.6424872 | Q67: 181.5273134 | R67: 182.0185987 | S67: 179.9226891 | T67: 176.6016147 | U67: 177.3180097 | V67: 177.5528306 | W67: 175.074632 | X67: 172.8701175 | Y67: 173.964693 | Z67: 174.3364167 | AA67: 175.1803173 | AB67: 179.045327 | AC67: 176.8704099 | AD67: 176.648303 | AE67: 178.4047966 | AF67: 175.7792783 | AG67: 180.9207069 | AH67: 183.781315 | AI67: 186.6871533 | AJ67: 189.6389369 | AK67: 192.6373924 | AL67: 195.6832576 | AM67: 198.7772822 | AN67: 201.9202276 | AO67: 205.1128673 | AP67: 208.3559871 | AQ67: 211.6503852 | AR67: 214.9968722 | AS67: 218.3962719 | AT67: 221.8494208
B68: =B10 -> Change in Customers (TOTAL) | D68: =D10*(1-$A$64) -> 0 | E68: 0 | F68: 0 | G68: 0 | H68: 1780 | I68: 2401.875 | J68: 2241.25 | K68: 2568.125 | L68: 3096.875 | M68: 2345 | N68: 2407.057372 | O68: 2405.740242 | P68: 2412.995869 | Q68: 2451.905479 | R68: 2458.501293 | S68: 2430.143885 | T68: 2441.576655 | U68: 2449.32195 | V68: 2450.514317 | W68: 2416.811426 | X68: 2384.182725 | Y68: 2398.140758 | Z68: 2401.281005 | AA68: 2413.812795 | AB68: 2468.503065 | AC68: 2435.537552 | AD68: 2430.215883 | AE68: 2457.970694 | AF68: 2415.721101 | AG68: 2453.917012 | AH68: 2492.716854 | AI68: 2532.130176 | AJ68: 2572.166677 | AK68: 2612.836211 | AL68: 2654.148787 | AM68: 2696.114572 | AN68: 2738.743895 | AO68: 2782.047246 | AP68: 2826.035284 | AQ68: 2870.718834 | AR68: 2916.108893 | AS68: 2962.216632 | AT68: 3009.053398
B69: Sewer
B70: =B26 -> RES Customers* | D70: =D30*(1-$A$64) -> 0 | E70: 0 | F70: 0 | G70: 0 | H70: 1421.25 | I70: 2124.375 | J70: 2978.75 | K70: 2431.875 | L70: 2904.375 | M70: 2229.375 | N70: 2052.918103 | O70: 2051.793216 | P70: 2057.980093 | Q70: 2091.164248 | R70: 2096.788681 | S70: 2072.603619 | T70: 2081.040268 | U70: 2088.352032 | V70: 2088.914475 | W70: 2060.792309 | X70: 2032.670143 | Y70: 2045.043896 | Z70: 2047.29367 | AA70: 2058.542536 | AB70: 2105.225331 | AC70: 2077.103165 | AD70: 2072.603619 | AE70: 2096.226238 | AF70: 2060.229866 | AG70: 2092.792367 | AH70: 2125.882326 | AI70: 2159.495484 | AJ70: 2193.640112 | AK70: 2228.324614 | AL70: 2263.557527 | AM70: 2299.34752 | AN70: 2335.703404 | AO70: 2372.634125 | AP70: 2410.148771 | AQ70: 2448.256577 | AR70: 2486.96692 | AS70: 2526.289327 | AT70: 2566.233476
B71: =B27 -> NRES Customers | D71: =D31*(1-$A$64) -> 0 | E71: 0 | F71: 0 | G71: 0 | H71: 10.625 | I71: 78.125 | J71: 81.25 | K71: 158.75 | L71: 108.75 | M71: 46.25 | N71: 138.5246614 | O71: 138.4487575 | P71: 138.8662291 | Q71: 141.1053948 | R71: 141.4849144 | S71: 139.8529801 | T71: 140.4222595 | U71: 140.915635 | V71: 140.953587 | W71: 139.0559889 | X71: 137.1583908 | Y71: 137.9933339 | Z71: 138.1451418 | AA71: 138.904181 | AB71: 142.0541939 | AC71: 140.1565958 | AD71: 139.8529801 | AE71: 141.4469625 | AF71: 139.0180369 | AG71: 141.2152553 | AH71: 143.448065 | AI71: 145.7161785 | AJ71: 148.020154 | AK71: 150.3605586 | AL71: 152.7379682 | AM71: 155.152968 | AN71: 157.6061523 | AO71: 160.0981249 | AP71: 162.629499 | AQ71: 165.2008976 | AR71: 167.8129537 | AS71: 170.46631 | AT71: 173.1616195
B72: =B28 -> TOTAL Customers | D72: =D29*(1-$A$64) -> 0 | E72: 0 | F72: 0 | G72: 0 | H72: 1431.875 | I72: 2202.5 | J72: 3060 | K72: 2590.625 | L72: 3013.125 | M72: 2275.625 | N72: 2191.442764 | O72: 2190.241974 | P72: 2196.846322 | Q72: 2232.269643 | R72: 2238.273596 | S72: 2212.456599 | T72: 2221.462528 | U72: 2229.267667 | V72: 2229.868062 | W72: 2199.848298 | X72: 2169.828534 | Y72: 2183.03723 | Z72: 2185.438811 | AA72: 2197.446717 | AB72: 2247.279525 | AC72: 2217.259761 | AD72: 2212.456599 | AE72: 2237.6732 | AF72: 2199.247903 | AG72: 2234.007622 | AH72: 2269.330391 | AI72: 2305.211662 | AJ72: 2341.660266 | AK72: 2378.685173 | AL72: 2416.295495 | AM72: 2454.500489 | AN72: 2493.309556 | AO72: 2532.732249 | AP72: 2572.77827 | AQ72: 2613.457474 | AR72: 2654.779873 | AS72: 2696.755637 | AT72: 2739.395095
B74: Total RW Customers | D74: =D55*(1-$A$64) -> 0 | E74: 0 | F74: 0 | G74: 0 | H74: 2319.375 | I74: 3042.5 | J74: =J55*(1-$A$64) -> 3866.875 | K74: 4749.375 | L74: 6149.375 | M74: 7083.75 | N74: 8036.625 | O74: 8989.5 | P74: 9942.375 | Q74: 10895.25 | R74: 11848.125 | S74: 12801 | T74: 13753.875 | U74: 14706.75 | V74: 15659.625 | W74: 16612.5 | X74: 17565.375 | Y74: 18518.25 | Z74: 19471.125 | AA74: 20424 | AB74: 21376.875 | AC74: 22329.75 | AD74: 23282.625 | AE74: 24235.5 | AF74: 25188.375 | AG74: 26141.25 | AH74: 27094.125 | AI74: 28047 | AJ74: 28999.875 | AK74: 29952.75 | AL74: 30905.625 | AM74: 31858.5 | AN74: 32811.375 | AO74: =AO55*(1-$A$64) -> 33764.25 | AP74: 34717.125 | AQ74: 35670 | AR74: 36622.875 | AS74: 37575.75 | AT74: 38528.625
B75: New RW Customers | D75: =D59*(1-$A$64) -> 0 | E75: 0 | F75: 0 | G75: 0 | H75: 0 | I75: 0 | J75: =J59*(1-$A$64) -> 0 | K75: 0 | L75: 0 | M75: 0 | N75: 0 | O75: 952.875 | P75: 1905.75 | Q75: 2858.625 | R75: 3811.5 | S75: 4764.375 | T75: 5717.25 | U75: 6670.125 | V75: 7623 | W75: 8575.875 | X75: 9528.75 | Y75: 10481.625 | Z75: 11434.5 | AA75: 12387.375 | AB75: 13340.25 | AC75: 14293.125 | AD75: 15246 | AE75: 16198.875 | AF75: 17151.75 | AG75: 18104.625 | AH75: 19057.5 | AI75: 20010.375 | AJ75: 20963.25 | AK75: 21916.125 | AL75: 22869 | AM75: 23821.875 | AN75: 24774.75 | AO75: 25727.625 | AP75: 26680.5 | AQ75: 27633.375 | AR75: 28586.25 | AS75: 29539.125 | AT75: 30492
B77: Adjustment for larger meter sizes, land development department
O78: =O$16*'Projected NCC revenue'!$P$5 -> 2886.88829 | P78: =P$16*'Projected NCC revenue'!$P$5 -> 2895.595043 | Q78: =Q$16*'Projected NCC revenue'!$P$5 -> 2942.286575 | R78: =R$16*'Projected NCC revenue'!$P$5 -> 2950.201551 | S78: =S$16*'Projected NCC revenue'!$P$5 -> 2916.172662 | T78: =T$16*'Projected NCC revenue'!$P$5 -> 2929.891986 | U78: =U$16*'Projected NCC revenue'!$P$5 -> 2939.18634 | V78: =V$16*'Projected NCC revenue'!$P$5 -> 2940.61718 | W78: =W$16*'Projected NCC revenue'!$P$5 -> 2900.173711 | X78: =X$16*'Projected NCC revenue'!$P$5 -> 2861.019271 | Y78: =Y$16*'Projected NCC revenue'!$P$5 -> 2877.768909 | Z78: =Z$16*'Projected NCC revenue'!$P$5 -> 2881.537207 | AA78: =AA$16*'Projected NCC revenue'!$P$5 -> 2896.575354 | AB78: =AB$16*'Projected NCC revenue'!$P$5 -> 2962.203678 | AC78: =AC$16*'Projected NCC revenue'!$P$5 -> 2922.645063 | AD78: =AD$16*'Projected NCC revenue'!$P$5 -> 2916.25906 | AE78: =AE$16*'Projected NCC revenue'!$P$5 -> 2949.564832 | AF78: =AF$16*'Projected NCC revenue'!$P$5 -> 2898.865321 | AG78: =AG$16*'Projected NCC revenue'!$P$5 -> 2944.700415 | AH78: =AH$16*'Projected NCC revenue'!$P$5 -> 2991.260225 | AI78: =AI$16*'Projected NCC revenue'!$P$5 -> 3038.556211 | AJ78: =AJ$16*'Projected NCC revenue'!$P$5 -> 3086.600013 | AK78: =AK$16*'Projected NCC revenue'!$P$5 -> 3135.403453 | AL78: =AL$16*'Projected NCC revenue'!$P$5 -> 3184.978544 | AM78: =AM$16*'Projected NCC revenue'!$P$5 -> 3235.337487 | AN78: =AN$16*'Projected NCC revenue'!$P$5 -> 3286.492674 | AO78: =AO$16*'Projected NCC revenue'!$P$5 -> 3338.456696 | AP78: =AP$16*'Projected NCC revenue'!$P$5 -> 3391.242341 | AQ78: =AQ$16*'Projected NCC revenue'!$P$5 -> 3444.862601 | AR78: =AR$16*'Projected NCC revenue'!$P$5 -> 3499.330671
A79: Greenfield | B79: 20mm | C79: 0.9992635604 | D79: 1 | O79: =O$78*$C79*$D79 -> 2884.762271 | P79: 2893.462612 | Q79: 2940.119759 | R79: 2948.028906 | S79: 2914.025077 | T79: 2927.734297 | U79: 2937.021807 | V79: 2938.451593 | W79: 2898.037908 | X79: 2858.912303 | Y79: =Y$78*$C79*$D79 -> 2875.649606 | Z79: 2879.415128 | AA79: 2894.442201 | AB79: 2960.022194 | AC79: 2920.492711 | AD79: 2914.111411 | AE79: 2947.392656 | AF79: 2896.730481 | AG79: 2942.531821 | AH79: 2989.057343 | AI79: =AI$78*$C79*$D79 -> 3036.318498 | AJ79: 3084.326918 | AK79: 3133.094418 | AL79: 3182.633 | AM79: 3232.954856 | AN79: 3284.07237 | AO79: 3335.998124 | AP79: 3388.744896 | AQ79: 3442.325668 | AR79: 3496.753626
B80: 25mm | C80: 0.0001982721994 | D80: 2 | O80: 1.144779381 | P80: 1.148231996 | Q80: 1.166747261 | R80: 1.1698859 | S80: 1.156391935 | T80: 1.161832256 | U80: 1.16551788 | V80: 1.166085272 | W80: 1.150047641 | X80: 1.134521167 | Y80: 1.141163142 | Z80: 1.142657439 | AA80: 1.148620732 | AB80: 1.174645277 | AC80: 1.158958529 | AD80: 1.156426196 | AE80: 1.169633413 | AF80: 1.149528806 | AG80: 1.167704456 | AH80: 1.186167488 | AI80: 1.204922446 | AJ80: 1.223973946 | AK80: 1.243326677 | AL80: 1.262985402 | AM80: 1.282954959 | AN80: 1.303240262 | AO80: 1.323846303 | AP80: 1.344778155 | AQ80: 1.366040969 | AR80: 1.387639977
B81: 32mm | C81: 0.0004815181986 | D81: 3 | O81: 4.170267747 | P81: 4.182845127 | Q81: 4.250293594 | R81: 4.261727209 | S81: 4.212570621 | T81: 4.232388933 | U81: 4.245815135 | V81: 4.247882062 | W81: 4.189459263 | X81: 4.132898535 | Y81: 4.157094303 | Z81: 4.162537814 | AA81: 4.18426124 | AB81: 4.279064937 | AC81: 4.221920357 | AD81: 4.212695427 | AE81: 4.260807434 | AF81: 4.187569221 | AG81: 4.253780517 | AH81: 4.321038705 | AI81: 4.389360339 | AJ81: 4.458762233 | AK81: 4.529261468 | AL81: 4.600875394 | AM81: 4.673621635 | AN81: 4.747518096 | AO81: 4.822582962 | AP81: 4.898834709 | AQ81: 4.976292101 | AR81: 5.054974203
B82: 40mm | C82: 0 | D82: 6 | O82: 0 | P82: 0 | Q82: 0 | R82: 0 | S82: 0 | T82: 0 | U82: 0 | V82: 0 | W82: 0 | X82: 0 | Y82: 0 | Z82: 0 | AA82: 0 | AB82: 0 | AC82: 0 | AD82: 0 | AE82: 0 | AF82: 0 | AG82: 0 | AH82: 0 | AI82: 0 | AJ82: 0 | AK82: 0 | AL82: 0 | AM82: 0 | AN82: 0 | AO82: 0 | AP82: 0 | AQ82: 0 | AR82: 0
B83: 50mm | C83: 2.832459992e-05 | D83: 10 | O83: 0.8176995582 | P83: 0.8201657111 | Q83: 0.8333909008 | R83: 0.835632786 | S83: 0.8259942394 | T83: 0.8298801828 | U83: 0.8325127716 | V83: 0.8329180513 | W83: 0.8214626005 | X83: 0.8103722619 | Y83: 0.8151165301 | Z83: 0.8161838852 | AA83: 0.8204433803 | AB83: 0.8390323406 | AC83: 0.827827521 | AD83: 0.8260187111 | AE83: 0.835452438 | AF83: 0.8210920041 | AG83: 0.8340746111 | AH83: 0.8472624912 | AI83: 0.8606588901 | AJ83: 0.8742671046 | AK83: 0.8880904839 | AL83: 0.9021324301 | AM83: 0.916396399 | AN83: 0.9308859011 | AO83: 0.9456045024 | AP83: 0.9605558252 | AQ83: 0.9757435493 | AR83: 0.9911714124
B84: 80mm | C84: 0 | D84: 40 | O84: 0 | P84: 0 | Q84: 0 | R84: 0 | S84: 0 | T84: 0 | U84: 0 | V84: 0 | W84: 0 | X84: 0 | Y84: 0 | Z84: 0 | AA84: 0 | AB84: 0 | AC84: 0 | AD84: 0 | AE84: 0 | AF84: 0 | AG84: 0 | AH84: 0 | AI84: 0 | AJ84: 0 | AK84: 0 | AL84: 0 | AM84: 0 | AN84: 0 | AO84: 0 | AP84: 0 | AQ84: 0 | AR84: 0
B85: 100mm | C85: 0 | D85: 70 | O85: 0 | P85: 0 | Q85: 0 | R85: 0 | S85: 0 | T85: 0 | U85: 0 | V85: 0 | W85: 0 | X85: 0 | Y85: 0 | Z85: 0 | AA85: 0 | AB85: 0 | AC85: 0 | AD85: 0 | AE85: 0 | AF85: 0 | AG85: 0 | AH85: 0 | AI85: 0 | AJ85: 0 | AK85: 0 | AL85: 0 | AM85: 0 | AN85: 0 | AO85: 0 | AP85: 0 | AQ85: 0 | AR85: 0
B86: 150mm | C86: 2.832459992e-05 | D86: 200 | O86: 16.35399116 | P86: 16.40331422 | Q86: 16.66781802 | R86: 16.71265572 | S86: 16.51988479 | T86: 16.59760366 | U86: 16.65025543 | V86: 16.65836103 | W86: 16.42925201 | X86: 16.20744524 | Y86: 16.3023306 | Z86: 16.3236777 | AA86: 16.40886761 | AB86: 16.78064681 | AC86: 16.55655042 | AD86: 16.52037422 | AE86: 16.70904876 | AF86: 16.42184008 | AG86: 16.68149222 | AH86: 16.94524982 | AI86: 17.2131778 | AJ86: 17.48534209 | AK86: 17.76180968 | AL86: 18.0426486 | AM86: 18.32792798 | AN86: 18.61771802 | AO86: 18.91209005 | AP86: 19.2111165 | AQ86: 19.51487099 | AR86: 19.82342825
B87: total lots Greenfield | O87: =SUM(O79:O86) -> 2907.249009 | P87: =SUM(P79:P86) -> 2916.017169 | Q87: 2963.038009 | R87: 2971.008807 | S87: 2936.739919 | T87: =SUM(T79:T86) -> 2950.556002 | U87: =SUM(U79:U86) -> 2959.915908 | V87: =SUM(V79:V86) -> 2961.35684 | W87: =SUM(W79:W86) -> 2920.62813 | X87: =SUM(X79:X86) -> 2881.19754 | Y87: =SUM(Y79:Y86) -> 2898.065311 | Z87: =SUM(Z79:Z86) -> 2901.860185 | AA87: =SUM(AA79:AA86) -> 2917.004394 | AB87: =SUM(AB79:AB86) -> 2983.095584 | AC87: =SUM(AC79:AC86) -> 2943.257968 | AD87: =SUM(AD79:AD86) -> 2936.826926 | AE87: =SUM(AE79:AE86) -> 2970.367598 | AF87: =SUM(AF79:AF86) -> 2919.310512 | AG87: =SUM(AG79:AG86) -> 2965.468872 | AH87: =SUM(AH79:AH86) -> 3012.357061 | AI87: =SUM(AI79:AI86) -> 3059.986618 | AJ87: =SUM(AJ79:AJ86) -> 3108.369264 | AK87: =SUM(AK79:AK86) -> 3157.516907 | AL87: =SUM(AL79:AL86) -> 3207.441642 | AM87: =SUM(AM79:AM86) -> 3258.155757 | AN87: =SUM(AN79:AN86) -> 3309.671733 | AO87: =SUM(AO79:AO86) -> 3362.002248 | AP87: =SUM(AP79:AP86) -> 3415.160181 | AQ87: =SUM(AQ79:AQ86) -> 3469.158615 | AR87: =SUM(AR79:AR86) -> 3524.01084
O90: =O$16*'Projected NCC revenue'!$P$9 -> 962.2960967 | P90: =P$16*'Projected NCC revenue'!$P$9 -> 965.1983477 | Q90: =Q$16*'Projected NCC revenue'!$P$9 -> 980.7621918 | R90: =R$16*'Projected NCC revenue'!$P$9 -> 983.400517 | S90: =S$16*'Projected NCC revenue'!$P$9 -> 972.057554 | T90: =T$16*'Projected NCC revenue'!$P$9 -> 976.6306618 | U90: =U$16*'Projected NCC revenue'!$P$9 -> 979.72878 | V90: =V$16*'Projected NCC revenue'!$P$9 -> 980.2057267 | W90: =W$16*'Projected NCC revenue'!$P$9 -> 966.7245704 | X90: =X$16*'Projected NCC revenue'!$P$9 -> 953.6730902 | Y90: =Y$16*'Projected NCC revenue'!$P$9 -> 959.2563032 | Z90: =Z$16*'Projected NCC revenue'!$P$9 -> 960.5124022 | AA90: =AA$16*'Projected NCC revenue'!$P$9 -> 965.5251181 | AB90: =AB$16*'Projected NCC revenue'!$P$9 -> 987.4012261 | AC90: =AC$16*'Projected NCC revenue'!$P$9 -> 974.215021 | AD90: =AD$16*'Projected NCC revenue'!$P$9 -> 972.0863532 | AE90: =AE$16*'Projected NCC revenue'!$P$9 -> 983.1882775 | AF90: =AF$16*'Projected NCC revenue'!$P$9 -> 966.2884402 | AG90: =AG$16*'Projected NCC revenue'!$P$9 -> 981.5668049 | AH90: =AH$16*'Projected NCC revenue'!$P$9 -> 997.0867418 | AI90: =AI$16*'Projected NCC revenue'!$P$9 -> 1012.85207 | AJ90: =AJ$16*'Projected NCC revenue'!$P$9 -> 1028.866671 | AK90: =AK$16*'Projected NCC revenue'!$P$9 -> 1045.134484 | AL90: =AL$16*'Projected NCC revenue'!$P$9 -> 1061.659515 | AM90: =AM$16*'Projected NCC revenue'!$P$9 -> 1078.445829 | AN90: =AN$16*'Projected NCC revenue'!$P$9 -> 1095.497558 | AO90: =AO$16*'Projected NCC revenue'!$P$9 -> 1112.818899 | AP90: =AP$16*'Projected NCC revenue'!$P$9 -> 1130.414114 | AQ90: =AQ$16*'Projected NCC revenue'!$P$9 -> 1148.287534 | AR90: =AR$16*'Projected NCC revenue'!$P$9 -> 1166.443557
A91: Infill | B91: 20mm | C91: 0.7074308063 | D91: 1 | O91: =O$90*$C91*$D91 -> 680.7579036 | P91: 682.8110453 | Q91: 693.8213881 | R91: 695.6878206 | S91: 687.6634592 | T91: 690.8986165 | U91: 693.0903207 | V91: 693.4277275 | W91: 683.8907423 | X91: 674.6577231 | Y91: =Y$90*$C91*$D91 -> 678.6074599 | Z91: 679.4960631 | AA91: 683.0422127 | AB91: 698.5180455 | AC91: 689.1897178 | AD91: 687.6838326 | AE91: 695.5376758 | AF91: 683.5822103 | AG91: 694.3905962 | AH91: 705.3698776 | AI91: =AI$90*$C91*$D91 -> 716.5227568 | AJ91: 727.8519785 | AK91: 739.360331 | AL91: 751.0506465 | AM91: 762.9258022 | AN91: 774.9887207 | AO91: 787.2423706 | AP91: 799.6897678 | AQ91: 812.3339757 | AR91: 825.1781061
B92: 25mm | C92: 0.1230445247 | D92: 2 | O92: 236.8105316 | P92: 237.5247438 | Q92: 241.3548354 | R92: 242.0040984 | S92: 239.2127194 | T92: 240.3381111 | U92: 241.1005241 | V92: 241.2178954 | W92: 237.9003305 | X92: 234.6885041 | Y92: 236.0624717 | Z92: 236.3715839 | AA92: 237.6051584 | AB92: 242.9886291 | AC92: 239.7436484 | AD92: 239.2198065 | AE92: 241.9518685 | AF92: 237.7930036 | AG92: 241.5528419 | AH92: 245.3721284 | AI92: 249.2518031 | AJ92: 253.1928209 | AK92: 257.1961517 | AL92: 261.2627807 | AM92: 265.3937088 | AN92: 269.5899526 | AO92: 273.8525448 | AP92: 278.1825346 | AQ92: 282.5809875 | AR92: 287.0489861
B93: 32mm | C93: 0.0479843562 | D93: 3 | O93: 138.525476 | P93: 138.9432639 | Q93: 141.1837271 | R93: 141.5635221 | S93: 139.9306678 | T93: 140.5889807 | U93: 141.0349643 | V93: 141.1036222 | W93: 139.1629684 | X93: 137.2841678 | Y93: 138.0878884 | Z93: 138.2687077 | AA93: 138.9903036 | AB93: 142.1394364 | AC93: 140.2412417 | AD93: 139.9348135 | AE93: 141.5329695 | AF93: 139.1001861 | AG93: 141.2995536 | AH93: 143.5336961 | AI93: 145.8031636 | AJ93: 148.1085144 | AK93: 150.4503161 | AL93: 152.829145 | AM93: 155.2455864 | AN93: 157.7002351 | AO93: 160.1936952 | AP93: 162.7265804 | AQ93: 165.2995141 | AR93: 167.9131294
B94: 40mm | C94: 0.01459085439 | D94: 6 | O94: 84.24433338 | P94: 84.4984113 | Q94: 85.86095 | R94: 86.09192252 | S94: 85.09890139 | T94: 85.49925469 | U94: 85.77047984 | V94: 85.8122342 | W94: 84.63202466 | X94: 83.48943118 | Y94: 83.97821427 | Z94: 84.08817961 | AA94: 84.52701846 | AB94: 86.4421651 | AC94: 85.28777711 | AD94: 85.10142262 | AE94: 86.07334198 | AF94: 84.59384359 | AG94: 85.93138996 | AH94: 87.29008479 | AI94: 88.67026249 | AJ94: 90.07226271 | AK94: 91.4964305 | AL94: 92.94311637 | AM94: 94.41267636 | AN94: 95.90547213 | AO94: 97.42187108 | AP94: 98.96224641 | AQ94: 100.5269772 | AR94: 102.1164486
B95: 50mm | C95: 0.007370637786 | D95: 10 | O95: 70.92735972 | P95: 71.14127412 | Q95: 72.28842869 | R95: 72.48289009 | S95: 71.64684138 | T95: 71.98390859 | U95: 72.21225966 | V95: 72.24741367 | W95: 71.25376647 | X95: 70.29178914 | Y95: 70.70330754 | Z95: 70.79589005 | AA95: 71.16535919 | AB95: 72.77776787 | AC95: 71.80586045 | AD95: 71.64896406 | AE95: 72.46724668 | AF95: 71.22162089 | AG95: 72.34773381 | AH95: 73.49165215 | AI95: 74.65365742 | AJ95: 75.83403561 | AK95: 77.03307723 | AL95: 78.25107736 | AM95: 79.48833576 | AN95: 80.74515695 | AO95: 82.02185022 | AP95: 83.3187298 | AQ95: 84.63611484 | AR95: 85.97432957
B96: 80mm | C96: 0.0009025270758 | D96: 40 | O96: 34.73993129 | P96: 34.84470569 | Q96: 35.40657732 | R96: 35.50182372 | S96: 35.09233047 | T96: 35.25742462 | U96: 35.36927004 | V96: 35.38648833 | W96: 34.89980399 | X96: 34.42863141 | Y96: 34.63019145 | Z96: 34.67553799 | AA96: 34.85650246 | AB96: 35.64625365 | AC96: 35.17021736 | AD96: 35.09337015 | AE96: 35.49416164 | AF96: 34.88405921 | AG96: 35.43562473 | AH96: 35.99591126 | AI96: 36.56505669 | AJ96: 37.14320112 | AK96: 37.7304868 | AL96: 38.3270583 | AM96: 38.93306242 | AN96: 39.5486483 | AO96: 40.17396746 | AP96: 40.80917378 | AQ96: 41.4544236 | AR96: 42.10987571
B97: 100mm | C97: 0 | D97: 70 | O97: 0 | P97: 0 | Q97: 0 | R97: 0 | S97: 0 | T97: 0 | U97: 0 | V97: 0 | W97: 0 | X97: 0 | Y97: 0 | Z97: 0 | AA97: 0 | AB97: 0 | AC97: 0 | AD97: 0 | AE97: 0 | AF97: 0 | AG97: 0 | AH97: 0 | AI97: 0 | AJ97: 0 | AK97: 0 | AL97: 0 | AM97: 0 | AN97: 0 | AO97: 0 | AP97: 0 | AQ97: 0 | AR97: 0
B98: 150mm | C98: 0 | D98: 200 | O98: 0 | P98: 0 | Q98: 0 | R98: 0 | S98: 0 | T98: 0 | U98: 0 | V98: 0 | W98: 0 | X98: 0 | Y98: 0 | Z98: 0 | AA98: 0 | AB98: 0 | AC98: 0 | AD98: 0 | AE98: 0 | AF98: 0 | AG98: 0 | AH98: 0 | AI98: 0 | AJ98: 0 | AK98: 0 | AL98: 0 | AM98: 0 | AN98: 0 | AO98: 0 | AP98: 0 | AQ98: 0 | AR98: 0
B99: total lots Infill | O99: =SUM(O91:O98) -> 1246.005536 | P99: =SUM(P91:P98) -> 1249.763444 | Q99: 1269.915907 | R99: 1273.332077 | S99: 1258.64492 | T99: =SUM(T91:T98) -> 1264.566296 | U99: =SUM(U91:U98) -> 1268.577819 | V99: =SUM(V91:V98) -> 1269.195381 | W99: =SUM(W91:W98) -> 1251.739636 | X99: =SUM(X91:X98) -> 1234.840247 | Y99: =SUM(Y91:Y98) -> 1242.069533 | Z99: =SUM(Z91:Z98) -> 1243.695962 | AA99: =SUM(AA91:AA98) -> 1250.186555 | AB99: =SUM(AB91:AB98) -> 1278.512298 | AC99: =SUM(AC91:AC98) -> 1261.438463 | AD99: =SUM(AD91:AD98) -> 1258.682209 | AE99: =SUM(AE91:AE98) -> 1273.057264 | AF99: =SUM(AF91:AF98) -> 1251.174924 | AG99: =SUM(AG91:AG98) -> 1270.95774 | AH99: =SUM(AH91:AH98) -> 1291.05335 | AI99: =SUM(AI91:AI98) -> 1311.4667 | AJ99: =SUM(AJ91:AJ98) -> 1332.202813 | AK99: =SUM(AK91:AK98) -> 1353.266793 | AL99: =SUM(AL91:AL98) -> 1374.663824 | AM99: =SUM(AM91:AM98) -> 1396.399172 | AN99: =SUM(AN91:AN98) -> 1418.478186 | AO99: =SUM(AO91:AO98) -> 1440.906299 | AP99: =SUM(AP91:AP98) -> 1463.689033 | AQ99: =SUM(AQ91:AQ98) -> 1486.831993 | AR99: =SUM(AR91:AR98) -> 1510.340875
B101: total water connections (new lots) | O101: =O87+O99 -> 4153.254545 | P101: =P87+P99 -> 4165.780613 | Q101: 4232.953915 | R101: 4244.340885 | S101: 4195.384838 | T101: 4215.122298 | U101: 4228.493727 | V101: 4230.552221 | W101: 4172.367766 | X101: 4116.037787 | Y101: 4140.134844 | Z101: 4145.556148 | AA101: 4167.190949 | AB101: 4261.607881 | AC101: 4204.696431 | AD101: 4195.509135 | AE101: 4243.424862 | AF101: 4170.485435 | AG101: 4236.426613 | AH101: 4303.410412 | AI101: 4371.453318 | AJ101: 4440.572077 | AK101: 4510.7837 | AL101: 4582.105466 | AM101: 4654.554929 | AN101: 4728.149918 | AO101: 4802.908547 | AP101: 4878.849214 | AQ101: 4955.990608 | AR101: 5034.351715
B102: Change in RES Customers (TOTAL) | O102: =(O17/O16)*O101 -> 3845.781464 | P102: =(P17/P16)*P101 -> 3857.373368 | Q102: 3919.566324 | R102: 3930.105142 | S102: 3884.76746 | T102: 3910.238402 | U102: 3922.37305 | V102: 3924.026151 | W102: 3870.120043 | X102: 3817.595923 | Y102: 3839.803313 | Z102: 3844.582875 | AA102: 3864.760772 | AB102: 3952.505175 | AC102: 3899.348488 | AD102: 3890.544636 | AE102: 3935.427964 | AF102: 3867.021215 | AG102: 3924.086263 | AH102: 3986.131527 | AI102: 4049.157812 | AJ102: 4113.180631 | AK102: 4178.21574 | AL102: 4244.279144 | AM102: 4311.387102 | AN102: 4379.556131 | AO102: 4448.803007 | AP102: 4519.144772 | AQ102: 4590.598739 | AR102: 4663.182492
B103: Change in NRES Customers (TOTAL) | O103: =(O18/O16)*O101 -> 307.4730808 | P103: =(P18/P16)*P101 -> 308.4072456 | Q103: 313.3875911 | R103: 314.2357429 | S103: 310.617378 | T103: 304.8838965 | U103: 306.1206763 | V103: 306.5260695 | W103: 302.2477234 | X103: 298.4418636 | Y103: 300.3315317 | Z103: 300.9732731 | AA103: 302.4301777 | AB103: 309.1027058 | AC103: 305.3479429 | AD103: 304.9644989 | AE103: 307.9968982 | AF103: 303.4642202 | AG103: 312.3403496 | AH103: 317.2788851 | AI103: 322.2955057 | AJ103: 327.3914461 | AK103: 332.5679604 | AL103: 337.8263226 | AM103: 343.1678267 | AN103: 348.5937876 | AO103: 354.1055403 | AP103: 359.7044416 | AQ103: 365.3918693 | AR103: 371.1692232
O104: =SUM(O102:O103) -> 4153.254545 | P104: =SUM(P102:P103) -> 4165.780613 | Q104: 4232.953915 | R104: 4244.340885 | S104: 4195.384838 | T104: 4215.122298 | U104: 4228.493727 | V104: 4230.552221 | W104: 4172.367766 | X104: 4116.037787 | Y104: 4140.134844 | Z104: 4145.556148 | AA104: 4167.190949 | AB104: 4261.607881 | AC104: 4204.696431 | AD104: 4195.509135 | AE104: 4243.424862 | AF104: 4170.485435 | AG104: 4236.426613 | AH104: 4303.410412 | AI104: 4371.453318 | AJ104: 4440.572077 | AK104: 4510.7837 | AL104: 4582.105466 | AM104: 4654.554929 | AN104: 4728.149918 | AO104: 4802.908547 | AP104: 4878.849214 | AQ104: 4955.990608 | AR104: 5034.351715

Sheet Tariffs
J5: 1 | K5: 2 | L5: 3 | M5: 4 | N5: 5 | O5: 6 | P5: 7 | Q5: 8 | R5: 9 | S5: 10 | T5: 11 | U5: 12 | V5: 13 | W5: 14 | X5: 15 | Y5: 16 | Z5: 17 | AA5: 18 | AB5: 19 | AC5: 20 | AD5: 21 | AE5: 22 | AF5: 23 | AG5: 24 | AH5: 25 | AI5: 26 | AJ5: 27 | AK5: 28 | AL5: 29 | AM5: 30
E6: Actual | F6: Actual | G6: Actual | H6: Actual | I6: Actual | J6: Forecast | K6: Forecast | L6: Forecast | M6: Forecast | N6: Forecast | O6: Forecast | P6: Forecast | Q6: Forecast | R6: Forecast | S6: Forecast | T6: Forecast | U6: Forecast | V6: Forecast | W6: Forecast | X6: Forecast | Y6: Forecast | Z6: Forecast | AA6: Forecast | AB6: Forecast | AC6: Forecast | AD6: Forecast | AE6: Forecast | AF6: Forecast | AG6: Forecast | AH6: Forecast | AI6: Forecast | AJ6: Forecast | AK6: Forecast | AL6: Forecast | AM6: Forecast | AN6: Forecast
A7: Incremental tariffs
A8: Residential | E8: 2018-19 | F8: 2019-20 | G8: 2020-21 | H8: 2021-22 | I8: 2022-23 | J8: 2023-24 | K8: 2024-25 | L8: 2025-26 | M8: 2026-27 | N8: 2027-28 | O8: 2028-29 | P8: 2029-30 | Q8: 2030-31 | R8: 2031-32 | S8: 2032-33 | T8: 2033-34 | U8: 2034-35 | V8: 2035-36 | W8: 2036-37 | X8: 2037-38 | Y8: 2038-39 | Z8: 2039-40 | AA8: 2040-41 | AB8: 2041-42 | AC8: 2042-43 | AD8: 2043-44 | AE8: 2044-45 | AF8: 2045-46 | AG8: 2046-47 | AH8: 2047-48 | AI8: 2048-49 | AJ8: 2049-50 | AK8: 2050-51 | AL8: 2051-52 | AM8: 2052-53 | AN8: 2053-54 | AO8: Beyond
A9: Price Path | E9: ='[16]2018PS Pricing Schedule'!$M$5 -> 0.01900452489 | F9: ='[16]2018PS Pricing Schedule'!$S$5 -> 0.01332149201 | G9: ='[16]2018PS Pricing Schedule'!$Y$5 -> 0.02191060473 | H9: ='[16]2018PS Pricing Schedule'!$AH$5 -> 0.01114922813 | I9: 0.05089058524 | J9: =Summary!J45 -> 0 | K9: =J9 -> 0 | L9: =K9 -> 0 | M9: =L9 -> 0 | N9: =M9 -> 0 | O9: =Summary!K45 -> 0.00158 | P9: =O9 -> 0.00158 | Q9: =P9 -> 0.00158 | R9: =Q9 -> 0.00158 | S9: =R9 -> 0.00158 | T9: =Summary!L45 -> 0.00158 | U9: =T9 -> 0.00158 | V9: =U9 -> 0.00158 | W9: =V9 -> 0.00158 | X9: =W9 -> 0.00158 | Y9: =Summary!M45 -> 0 | Z9: =Y9 -> 0 | AA9: =Z9 -> 0 | AB9: 0 | AC9: 0 | AD9: =AC9 -> 0 | AE9: 0 | AF9: 0 | AG9: 0 | AH9: 0 | AI9: 0 | AJ9: 0 | AK9: 0 | AL9: 0 | AM9: 0 | AN9: 0 | AO9: 0
A10: Water variable | E10: ='[16]2018PS Pricing Schedule'!$M$11 -> 1.9198 | F10: ='[16]2018PS Pricing Schedule'!$S$11 -> 1.9835 | G10: ='[16]2018PS Pricing Schedule'!$Y$11 -> 2.0467 | H10: ='[16]2018PS Pricing Schedule'!$AH$11 -> 2.0897 | I10: 2.2286 | J10: =I10*(1+J$9) -> 2.2286 | K10: 2.2286 | L10: 2.2286 | M10: 2.2286 | N10: 2.2286 | O10: 2.232121188 | P10: =O10*(1+P$9) -> 2.235647939 | Q10: 2.239180263 | R10: 2.242718168 | S10: 2.246261663 | T10: 2.249810756 | U10: 2.253365457 | V10: 2.256925775 | W10: 2.260491717 | X10: 2.264063294 | Y10: 2.264063294 | Z10: 2.264063294 | AA10: 2.264063294 | AB10: 2.264063294 | AC10: 2.264063294 | AD10: 2.264063294 | AE10: 2.264063294 | AF10: 2.264063294 | AG10: 2.264063294 | AH10: 2.264063294 | AI10: 2.264063294 | AJ10: 2.264063294 | AK10: 2.264063294 | AL10: 2.264063294 | AM10: 2.264063294 | AN10: 2.264063294 | AO10: 2.264063294
A11: Water fixed | E11: ='[16]2018PS Pricing Schedule'!$M$10 -> 154.58 | F11: ='[16]2018PS Pricing Schedule'!$S$10 -> 149.79 | G11: ='[16]2018PS Pricing Schedule'!$Y$10 -> 144.64 | H11: ='[16]2018PS Pricing Schedule'!$AH$10 -> 137.35 | I11: 135.11 | J11: =I11*(1+J$9) -> 135.11 | K11: =J11*(1+K$9) -> 135.11 | L11: 135.11 | M11: 135.11 | N11: =M11*(1+N$9) -> 135.11 | O11: =N11*(1+O$9) -> 135.3234738 | P11: =O11*(1+P$9) -> 135.5372849 | Q11: 135.7514338 | R11: 135.9659211 | S11: 136.1807472 | T11: 136.3959128 | U11: 136.6114183 | V11: 136.8272644 | W11: 137.0434515 | X11: 137.2599801 | Y11: 137.2599801 | Z11: 137.2599801 | AA11: 137.2599801 | AB11: 137.2599801 | AC11: 137.2599801 | AD11: 137.2599801 | AE11: 137.2599801 | AF11: 137.2599801 | AG11: 137.2599801 | AH11: 137.2599801 | AI11: 137.2599801 | AJ11: 137.2599801 | AK11: 137.2599801 | AL11: 137.2599801 | AM11: 137.2599801 | AN11: 137.2599801 | AO11: 137.2599801
A12: Sewerage Fixed | E12: ='[17]BW Bill Calculator'!H19 -> 563.58 | F12: ='[17]BW Bill Calculator'!I19 -> 565.34 | G12: ='[17]BW Bill Calculator'!J19 -> 566.91 | H12: ='[16]2018PS Pricing Schedule'!$AH$18 -> 562.53 | I12: 584.37 | J12: =I12*(1+J$9) -> 584.37 | K12: =J12*(1+K$9) -> 584.37 | L12: 584.37 | M12: 584.37 | N12: =M12*(1+N$9) -> 584.37 | O12: =N12*(1+O$9) -> 585.2933046 | P12: =O12*(1+P$9) -> 586.218068 | Q12: 587.1442926 | R12: 588.0719806 | S12: 589.0011343 | T12: 589.9317561 | U12: 590.8638482 | V12: 591.7974131 | W12: 592.732453 | X12: 593.6689703 | Y12: 593.6689703 | Z12: 593.6689703 | AA12: 593.6689703 | AB12: 593.6689703 | AC12: 593.6689703 | AD12: 593.6689703 | AE12: 593.6689703 | AF12: 593.6689703 | AG12: 593.6689703 | AH12: 593.6689703 | AI12: 593.6689703 | AJ12: 593.6689703 | AK12: 593.6689703 | AL12: 593.6689703 | AM12: 593.6689703 | AN12: 593.6689703 | AO12: 593.6689703
A14: Non-residential
A15: Price Path | J15: =J9 -> 0 | K15: =J15 -> 0 | L15: =K15 -> 0 | M15: =L15 -> 0 | N15: =M15 -> 0 | O15: =O9 -> 0.00158 | P15: =O15 -> 0.00158 | Q15: =P15 -> 0.00158 | R15: =Q15 -> 0.00158 | S15: =R15 -> 0.00158 | T15: =T9 -> 0.00158 | U15: =T15 -> 0.00158 | V15: =U15 -> 0.00158 | W15: =V15 -> 0.00158 | X15: =W15 -> 0.00158 | Y15: =Y9 -> 0 | Z15: =Y15 -> 0 | AA15: =Z15 -> 0 | AB15: 0 | AC15: 0 | AD15: =AD9 -> 0 | AE15: 0 | AF15: 0 | AG15: 0 | AH15: 0 | AI15: 0 | AJ15: 0 | AK15: 0 | AL15: 0 | AM15: 0 | AN15: 0 | AO15: 0
A16: Water variable | E16: ='[16]2018PS Pricing Schedule'!$M$15 -> 2.302 | F16: ='[16]2018PS Pricing Schedule'!$S$15 -> 2.2699 | G16: ='[16]2018PS Pricing Schedule'!$Y$15 -> 2.2375 | H16: ='[16]2018PS Pricing Schedule'!$AH$15 -> 2.1825 | I16: 2.2286 | J16: =I16*(1+J$15) -> 2.2286 | K16: =J16*(1+K$15) -> 2.2286 | L16: =K16*(1+L$15) -> 2.2286 | M16: =L16*(1+M$15) -> 2.2286 | N16: =M16*(1+N$15) -> 2.2286 | O16: =N16*(1+O$15) -> 2.232121188 | P16: =O16*(1+P$15) -> 2.235647939 | Q16: 2.239180263 | R16: 2.242718168 | S16: 2.246261663 | T16: 2.249810756 | U16: 2.253365457 | V16: 2.256925775 | W16: 2.260491717 | X16: 2.264063294 | Y16: 2.264063294 | Z16: 2.264063294 | AA16: 2.264063294 | AB16: 2.264063294 | AC16: 2.264063294 | AD16: 2.264063294 | AE16: 2.264063294 | AF16: 2.264063294 | AG16: 2.264063294 | AH16: 2.264063294 | AI16: 2.264063294 | AJ16: 2.264063294 | AK16: 2.264063294 | AL16: 2.264063294 | AM16: 2.264063294 | AN16: 2.264063294 | AO16: 2.264063294
A17: Water fixed | E17: ='[16]2018PS Pricing Schedule'!$M$14 -> 174.96 | F17: ='[16]2018PS Pricing Schedule'!$S$14 -> 163.04 | G17: ='[16]2018PS Pricing Schedule'!$Y$14 -> 151.88 | H17: ='[16]2018PS Pricing Schedule'!$AH$14 -> 140 | I17: 135.11 | J17: =I17*(1+J$15) -> 135.11 | K17: =J17*(1+K$15) -> 135.11 | L17: 135.11 | M17: 135.11 | N17: 135.11 | O17: =N17*(1+O$15) -> 135.3234738 | P17: =O17*(1+P$15) -> 135.5372849 | Q17: 135.7514338 | R17: 135.9659211 | S17: 136.1807472 | T17: 136.3959128 | U17: 136.6114183 | V17: 136.8272644 | W17: 137.0434515 | X17: 137.2599801 | Y17: 137.2599801 | Z17: 137.2599801 | AA17: 137.2599801 | AB17: 137.2599801 | AC17: 137.2599801 | AD17: 137.2599801 | AE17: 137.2599801 | AF17: 137.2599801 | AG17: 137.2599801 | AH17: 137.2599801 | AI17: 137.2599801 | AJ17: 137.2599801 | AK17: 137.2599801 | AL17: 137.2599801 | AM17: 137.2599801 | AN17: 137.2599801 | AO17: 137.2599801
A18: Sewerage Variable | E18: ='[16]2018PS Pricing Schedule'!$M$22 -> 1.9131 | F18: ='[16]2018PS Pricing Schedule'!$S$22 -> 1.919 | G18: ='[16]2018PS Pricing Schedule'!$Y$22 -> 1.9243 | H18: ='[16]2018PS Pricing Schedule'!$AH$22 -> 1.9094 | I18: 1.9834 | J18: =I18*(1+J$15) -> 1.9834 | K18: =J18*(1+K$15) -> 1.9834 | L18: 1.9834 | M18: 1.9834 | N18: 1.9834 | O18: =N18*(1+O$15) -> 1.986533772 | P18: =O18*(1+P$15) -> 1.989672495 | Q18: 1.992816178 | R18: 1.995964827 | S18: 1.999118452 | T18: 2.002277059 | U18: 2.005440657 | V18: 2.008609253 | W18: 2.011782856 | X18: 2.014961473 | Y18: 2.014961473 | Z18: 2.014961473 | AA18: 2.014961473 | AB18: 2.014961473 | AC18: 2.014961473 | AD18: 2.014961473 | AE18: 2.014961473 | AF18: 2.014961473 | AG18: 2.014961473 | AH18: 2.014961473 | AI18: 2.014961473 | AJ18: 2.014961473 | AK18: 2.014961473 | AL18: 2.014961473 | AM18: 2.014961473 | AN18: 2.014961473 | AO18: 2.014961473
A19: Sewerage Fixed | E19: ='[16]2018PS Pricing Schedule'!$M$21 -> 341 | F19: ='[16]2018PS Pricing Schedule'!$S$21 -> 342.06 | G19: ='[16]2018PS Pricing Schedule'!$Y$21 -> 343.01 | H19: ='[16]2018PS Pricing Schedule'!$AH$21 -> 340.36 | I19: 353.58 | J19: =I19*(1+J$15) -> 353.58 | K19: =J19*(1+K$15) -> 353.58 | L19: 353.58 | M19: 353.58 | N19: 353.58 | O19: =N19*(1+O$15) -> 354.1386564 | P19: =O19*(1+P$15) -> 354.6981955 | Q19: 355.2586186 | R19: 355.8199272 | S19: 356.3821227 | T19: 356.9452065 | U19: 357.5091799 | V19: 358.0740444 | W19: 358.6398014 | X19: 359.2064523 | Y19: 359.2064523 | Z19: 359.2064523 | AA19: 359.2064523 | AB19: 359.2064523 | AC19: 359.2064523 | AD19: 359.2064523 | AE19: 359.2064523 | AF19: 359.2064523 | AG19: 359.2064523 | AH19: 359.2064523 | AI19: 359.2064523 | AJ19: 359.2064523 | AK19: 359.2064523 | AL19: 359.2064523 | AM19: 359.2064523 | AN19: 359.2064523 | AO19: 359.2064523

Sheet Greenfield Infill Split
A1: Development Type | B1: 2007/08 | C1: 2008/09 | D1: 2009/10 | E1: 2010/11 | F1: 2011/12 | G1: 2012/13 | H1: 2013/14 | I1: 2014/15 | J1: 2015/16 | K1: 2016-17 | L1: 2017/18 | M1: 2018/19 | N1: 2019/20 | O1: 2020/21 | P1: 2021/22 | Q1: Average 2011-2022
A2: Greenfield | B2: 1052 | C2: 1384 | D2: 1176 | E2: 1268 | F2: 2064 | G2: 2072 | H2: 1989 | I2: 1499 | J2: 2298 | K2: 1872 | L2: 3289 | M2: 3919 | N2: 3407 | O2: 3265 | P2: 2678 | Q2: =AVERAGE(F2:P2) -> 2577.454545
A3: Infill | B3: 1150 | C3: 1005 | D3: 812 | E3: 887 | F3: 745 | G3: 793 | H3: 833 | I3: 791 | J3: 761 | K3: 763 | L3: 806 | M3: 882 | N3: 1094 | O3: 1512 | P3: 721 | Q3: =AVERAGE(F3:P3) -> 881.9090909
A4: Total | B4: =SUM(B2:B3) -> 2202 | C4: =SUM(C2:C3) -> 2389 | D4: 1988 | E4: 2155 | F4: 2809 | G4: 2865 | H4: 2822 | I4: 2290 | J4: 3059 | K4: 2635 | L4: =SUM(L2:L3) -> 4095 | M4: =SUM(M2:M3) -> 4801 | N4: 4501 | O4: 4777 | P4: 3399 | Q4: =SUM(Q2:Q3) -> 3459.363636
B5: =B2/B4 -> 0.4777475023 | C5: =C2/C4 -> 0.579321892 | D5: 0.5915492958 | E5: 0.5883990719 | F5: 0.7347810609 | G5: 0.7232111693 | H5: 0.7048192771 | I5: 0.6545851528 | J5: 0.7512258908 | K5: 0.7104364326 | L5: =L2/L4 -> 0.8031746032 | M5: =M2/M4 -> 0.8162882733 | N5: =N2/N4 -> 0.7569429016 | O5: =O2/O4 -> 0.6834833578 | P5: 0.7878787879 | Q5: =Q2/Q4 -> 0.745066092
B6: =B3/B4 -> 0.5222524977 | C6: =C3/C4 -> 0.420678108 | D6: 0.4084507042 | E6: 0.4116009281 | F6: 0.2652189391 | G6: 0.2767888307 | H6: 0.2951807229 | I6: 0.3454148472 | J6: 0.2487741092 | K6: 0.2895635674 | L6: =L3/L4 -> 0.1968253968 | M6: =M3/M4 -> 0.1837117267 | N6: 0.2430570984 | O6: 0.3165166422 | P6: 0.2121212121 | Q6: =Q3/Q4 -> 0.254933908

Sheet B Raes Melways Mar'21 (hidden)
A1: FORMAT XLONE REPORT | B1: DefnSheetName=_defntmp_
A2: * | B2: 1 | C2: 2 | D2: 3 | E2: 4 | F2: 5 | G2: 6 | H2: 7 | I2: 8 | J2: 9 | K2: 10 | L2: 11 | M2: 12 | N2: 13 | O2: 14 | P2: 15 | Q2: 16 | R2: 17 | S2: 18 | T2: 19 | U2: 20 | V2: 21 | W2: 22 | X2: 23 | Y2: 24 | Z2: 25 | AA2: 26 | AB2: 27 | AC2: 28 | AD2: 29 | AE2: 30 | AF2: 31 | AG2: 32 | AH2: 33 | AI2: 34 | AJ2: 35 | AK2: 36 | AL2: 37 | AM2: 38 | AN2: 39 | AO2: 40 | AP2: 41 | AQ2: 42 | AR2: 43 | AS2: 44 | AT2: 45 | AU2: 46 | AV2: 47 | AW2: 48 | AX2: 49 | AY2: 50 | AZ2: 51 | BA2: 52 | BB2: 53 | BC2: 54 | BD2: 55 | BE2: 56 | BF2: 57 | BG2: 58 | BH2: 59 | BI2: 60 | BJ2: 61 | BK2: 62 | BL2: 63 | BM2: 64 | BN2: 65 | BO2: 66 | BP2: 67 | BQ2: 68 | BR2: 69 | BS2: 70 | BT2: 71 | BU2: 72 | BV2: 73 | BW2: 74 | BX2: 75 | BY2: 76 | BZ2: 77 | CA2: 78 | CB2: 79 | CC2: 80 | CD2: 81 | CE2: 82 | CF2: 83 | CG2: 84 | CH2: 85 | CI2: 86 | CJ2: 87 | CK2: 88 | CL2: 89 | CM2: 90 | CN2: 91 | CO2: 92 | CP2: 93 | CQ2: 94 | CR2: 95 | CS2: 96 | CT2: 97 | CU2: 98 | CV2: 99 | CW2: 100 | CX2: 101 | CY2: 102 | CZ2: 103 | DA2: 104 | DB2: 105 | DC2: 106 | DD2: 107 | DE2: 108 | DF2: 109 | DG2: 110 | DH2: 111 | DI2: 112 | DJ2: 113 | DK2: 114 | DL2: 115 | DM2: 116 | DN2: 117 | DO2: 118 | DP2: 119 | DQ2: 120 | DR2: 121 | DS2: 122 | DT2: 123 | DU2: 124 | DV2: 125 | DW2: 126 | DX2: 127 | DY2: 128 | DZ2: 129 | EA2: 130 | EB2: 131 | EC2: 132 | ED2: 133 | EE2: 134 | EF2: 135 | EG2: 136 | EH2: 137 | EI2: 138 | EJ2: 139 | EK2: 140 | EL2: 141 | EM2: 142 | EN2: 143 | EO2: 144 | EP2: 145 | EQ2: 146 | ER2: 147 | ES2: 148 | ET2: 149 | EU2: 150 | EV2: 151 | EW2: 152 | EX2: 153 | EY2: 154 | EZ2: 155 | FA2: 156 | FB2: 157 | FC2: 158 | FD2: 159 | FE2: 160 | FF2: 161 | FG2: 162 | FH2: 163 | FI2: 164 | FJ2: 165 | FK2: 166 | FL2: 167 | FM2: 168 | FN2: 169 | FO2: 170 | FP2: 171 | FQ2: 172 | FR2: 173 | FS2: 174 | FT2: 175 | FU2: 176 | FV2: 177 | FW2: 178 | FX2: 179 | FY2: 180 | FZ2: 181 | GA2: 182 | GB2: 183 | GC2: 184 | GD2: 185 | GE2: 186 | GF2: 187 | GG2: 188 | GH2: 189 | GI2: 190 | GJ2: 191 | GK2: 192 | GL2: 193 | GM2: 194 | GN2: 195 | GO2: 196 | GP2: 197 | GQ2: 198 | GR2: 199 | GS2: 200 | GT2: 201 | GU2: 202 | GV2: 203 | GW2: 204 | GX2: 205 | GY2: 206 | GZ2: 207 | HA2: 208 | HB2: 209 | HC2: 210 | HD2: 211 | HE2: 212 | HF2: 213 | HG2: 214 | HH2: 215 | HI2: 216 | HJ2: 217 | HK2: 218 | HL2: 219 | HM2: 220 | HN2: 221 | HO2: 222 | HP2: 223 | HQ2: 224 | HR2: 225 | HS2: 226 | HT2: 227 | HU2: 228 | HV2: 229 | HW2: 230 | HX2: 231 | HY2: 232 | HZ2: 233 | IA2: 234 | IB2: 235 | IC2: 236 | ID2: 237 | IE2: 238 | IF2: 239 | IG2: 240 | IH2: 241 | II2: 242 | IJ2: 243 | IK2: 244 | IL2: 245 | IM2: 246 | IN2: 247 | IO2: 248 | IP2: 249 | IQ2: 250 | IR2: 251 | IS2: 252 | IT2: 253 | IU2: 254 | IV2: 255 | IW2: 256 | IX2: 257 | IY2: 258 | IZ2: 259
A3: * | B3: March CAPEX Forecasting Report - CWIP Draft 4
A4: * | B4: 9 - March '21 Forecast Reports A18119233 | HY4: 0.020 | HZ4: =$HY$4 -> 0.020 | IA4: =$HY$4 -> 0.020 | IB4: 0.020 | IC4: 0.020 | ID4: 0.020 | IE4: 0.020 | IF4: 0.020 | IG4: 0.020 | IH4: 0.020
A5: SET | FV5: Reporting Date: | HX5: 1 | HY5: =IFERROR((HX5*(HY4+1)),0) -> 1.02 | HZ5: 1.0404 | IA5: 1.061208 | IB5: 1.08243216 | IC5: 1.104080803 | ID5: 1.126162419 | IE5: 1.148685668 | IF5: 1.171659381 | IG5: 1.195092569 | IH5: 1.21899442
A6: SET | EF6: March Milestones | EZ6: February Milestones | FT6: EPMO Analysis | FV6: 2021-03-15 | HI6: Monthly Milestone Variances | HY6: =CONCATENATE(B3,": Nominal Dollars") -> March CAPEX Forecasting Report - CWIP Draft 4: Nominal Dollars
A7: SUPPRESS ZERO | B7: Project ID | C7: Description | D7: Project Manager | E7: Section Leader | F7: Responsible Department | G7: Delivery Department | H7: Project Driver | I7: Business Case Owning Department | J7: Project Type | K7: Business Case Amount | L7: P90 | M7: Life-to-Date Capital Spend to end Prior Financial Year | N7: Life-to-Date Recurrent Spend to end Prior Financial Year | O7: Yr1 Approved Capital Budget | P7: Yr1 Capital Variations | Q7: Yr1 Varied Capital Budget | R7: Yr1 Approved Recurrent Budget | S7: Yr1 Jul Capital Actual | T7: Yr1 Aug Capital Actual | U7: Yr1 Sep Capital Actual | V7: Yr1 Oct Capital Actual | W7: Yr1 Nov Capital Actual | X7: Yr1 Dec Capital Actual | Y7: Yr1 Jan Capital Actual | Z7: Yr1 Feb Capital Actual | AA7: Yr1 Mar Capital Fcast | AB7: Yr1 Apr Capital Fcast | AC7: Yr1 May Capital Fcast | AD7: Yr1 Jun Capital Fcast | AE7: Yr1 Capital Forecast Total | AF7: Yr 1 Capital Difference | AH7: Yr1 Jul Recurrent Fcast | AI7: Yr1 Aug Recurrent Fcast | AJ7: Yr1 Sep Recurrent Fcast | AK7: Yr1 Oct Recurrent Fcast | AL7: Yr1 Nov Recurrent Fcast | AM7: Yr1 Dec Recurrent Fcast | AN7: Yr1 Jan Recurrent Fcast | AO7: Yr1 Feb Recurrent Fcast | AP7: Yr1 Mar Recurrent Fcast | AQ7: Yr1 Apr Recurrent Fcast | AR7: Yr1 May Recurrent Fcast | AS7: Yr1 Jun Recurrent Fcast | AT7: Yr1 Recurrent Forecast Total | AU7: Yr 1 Recurrent Difference | AW7: Yr2 Approved Capital Budget | AX7: Yr2 Capital Variations | AY7: Yr2 Varied Capital Budget | AZ7: Yr2 Approved Recurrent Budget | BA7: Yr2 Jul Capital Forecast | BB7: Yr2 Aug Capital Forecast | BC7: Yr2 Sep Capital Forecast | BD7: Yr2 Oct Capital Forecast | BE7: Yr2 Nov Capital Forecast | BF7: Yr2 Dec Capital Forecast | BG7: Yr2 Jan Capital Forecast | BH7: Yr2 Feb Capital Forecast | BI7: Yr2 Mar Capital Forecast | BJ7: Yr2 Apr Capital Forecast | BK7: Yr2 May Capital Forecast | BL7: Yr2 Jun Capital Forecast | BM7: Yr2 Capital Forecast Total | BN7: Yr 2 Capital Difference | BP7: Yr2 Jul Recurrent Fcast | BQ7: Yr2 Aug Recurrent Fcast | BR7: Yr2 Sep Recurrent Fcast | BS7: Yr2 Oct Recurrent Fcast | BT7: Yr2 Nov Recurrent Fcast | BU7: Yr2 Dec Recurrent Fcast | BV7: Yr2 Jan Recurrent Fcast | BW7: Yr2 Feb Recurrent Fcast | BX7: Yr2 Mar Recurrent Fcast | BY7: Yr2 Apr Recurrent Fcast | BZ7: Yr2 May Recurrent Fcast | CA7: Yr2 Jun Recurrent Fcast | CB7: Yr2 Recurrent Forecast Total | CC7: Yr 2 Recurrent Difference | CE7: Year 3 2022-23 Varied Budget | CF7: Year 3 2022-23 Capital Fcast | CG7: Year 3 2022-23 Budget v Forecast | CH7: Year 4 2023-24 Varied Budget | CI7: Year 4 2023-24 Capital Fcast | CJ7: Year 4 2023-24 Budget v Forecast | CK7: Year 5 2024-25 Varied Budget | CL7: Year 5 2024-25 Capital Fcast | CM7: Year 5 2024-25 Budget v Forecast | CN7: Year 6 2025-26 Varied Budget | CO7: Year 6 2025-26 Capital Fcast | CP7: Year 6 2025-26 Budget v Forecast | CQ7: Year 7 2026-27 Varied Budget | CR7: Year 7 2026-27 Capital Fcast | CS7: Year 7 2026-27 Budget v Forecast | CT7: Year 8 2027-28 Varied Budget | CU7: Year 8 2027-28 Capital Fcast | CV7: Year 8 2027-28 Budget v Forecast | CW7: Year 9 2028-29 Varied Budget | CX7: Year 9 2028-29 Capital Fcast | CY7: Year 9 2028-29 Budget v Forecast | CZ7: Year 10 2029-30 Varied Budget | DA7: Year 10 2029-30 Capital Fcast | DB7: Year 10 2029-30 Budget v Forecast | DC7: Year 11 2030-31 Varied Budget | DD7: Year 11 2030-31 Capital Fcast | DE7: Year 11 2030-31 Budget v Forecast | DF7: Year 12 2031-32 Varied Budget | DG7: Year 12 2031-32 Capital Fcast | DH7: Year 12 2031-32 Budget v Forecast | DI7: Beyond Yr12 Varied Budget | DJ7: Beyond Yr12 Capital Fcast | DK7: Beyond Yr12 Budget v Forecast | DM7: Yr3 Recurrent Fcast | DN7: Yr4 Recurrent Fcast | DO7: Yr5 Recurrent Fcast | DP7: Yr6 Recurrent Fcast | DQ7: Yr7 Recurrent Fcast | DR7: Yr8 Recurrent Fcast | DS7: Yr9 Recurrent Fcast | DT7: Yr10 Recurrent Fcast | DU7: Yr11 Recurrent Fcast | DV7: Yr12 Recurrent Fcast | DW7: Beyond Yr12 Recurrent Fcast | DY7: Total Capital Forecast | DZ7: Total Recurrent Forecast | EA7: Total Project Forecast | EB7: Total Project variance to Business Case | EC7: Total Project variance to P90 | ED7: Expenditure Comment | EF7: Current Phase | EG7: Gate 1: Project Commencement Date | EH7: Consultancy Award Date | EI7: Gate 2: Business Case Approval Date | EJ7: Project Referral Date | EK7: Design Completion Date | EL7: Gate 3: Tender Release Date | EM7: Gate 4: Contract Award Date | EN7: Critical Notification Point 1 | EO7: Critical Notification Point 2 | EP7: Critical Notification Point 3 | EQ7: Gate 5: Complete Construction/Go-live Date | ER7: Practical Completion Date | ES7: End Defect Liability Period | ET7: End Construction/ Go-Live | EU7: Gate 6:Post-Implementation Review | EV7: Project Close-out | EW7: Bank Guarantees Returned | EX7: Milestones Comment | EZ7: Current Phase | FA7: Gate 1: Project Commencement Date | FB7: Consultancy Award Date | FC7: Gate 2: Business Case Approval Date | FD7: Project Referral Date | FE7: Design Completion Date | FF7: Gate 3: Tender Release Date | FG7: Gate 4: Contract Award Date | FH7: Critical Notification Point 1 | FI7: Critical Notification Point 2 | FJ7: Critical Notification Point 3 | FK7: Gate 5: Complete Construction/Go-live Date | FL7: Practical Completion Date | FM7: End Defect Liability Period | FN7: End Construction/ Go-Live | FO7: Gate 6: Post-Implementation Review | FP7: Project Close-out | FQ7: Bank Guarantees Returned | FR7: Milestones Comment | FT7: YTD Spend | FU7: Phase by Department | FV7: Milestone Entered? | FW7: Concat Milestone 0 | FX7: Concat Milestone 1 | FY7: Concat Milestone 2 | FZ7: Concat Milestone 3 | GA7: Concat Milestone 4 | GB7: Concat Milestone 5 | GC7: Concat Milestone 6 | GD7: Concat Milestone 7 | GE7: Concat Milestone 8 | GF7: Concat Milestone 9 | GG7: Concat Milestone 10 | GH7: Concat Milestone 11 | GI7: Concat Milestone 12 | GJ7: Concat Milestone 13 | GK7: Concat Milestone 14 | GL7: Concat Milestone 15 | GM7: Concat Milestone 16 | GN7: Concat Milestone 17 | GO7: Gate 1: Project Commencement Date | GP7: Consultancy Award Date | GQ7: Gate 2: Business Case Approval Date | GR7: Project Referral Date | GS7: Design Completion Date | GT7: Gate 3: Tender Release Date | GU7: Gate 4: Contract Award Date | GV7: Critical Notification Point 1 | GW7: Critical Notification Point 2 | GX7: Critical Notification Point 3 | GY7: Gate 5: Complete Construction/Go-live Date | GZ7: Practical Completion Date | HA7: End Defect Liability Period | HB7: End Construction/ Go-Live | HC7: Gate 6: Post-Implementation Review | HD7: Project Close-out | HE7: Bank Guarantees Returned | HF7: Business Case Long Horizon | HG7: Referrals Long Horizon | HH7: Practical Completion Long Horizon | HI7: Current Phase of Project | HJ7: Gate 1: Project Commencement Date | HK7: Consultancy Award Date | HL7: Gate 2: Business Case Approval Date | HM7: Project Referral Date | HN7: Gate 3: Tender Release Date | HO7: Gate 4: Contract Award Date | HP7: Gate 5: Complete Construction/Go-live Date | HQ7: Practical Completion Date | HR7: End Defect Liability Period | HS7: Gate 6:Post-Implementation Review | HT7: Project Close-out | HU7: Bank Guarantees Returned | HV7: Comment on shift of costs | HW7: Source | HX7: Project Driver | HY7: 21/22 | HZ7: 22/23 | IA7: 23/24 | IB7: 24/25 | IC7: 25/26 | ID7: 26/27 | IE7: 27/28 | IF7: 28/29 | IG7: 29/30 | IH7: 30/31 | II7: 10 Year Total (Nominal $M) | IL7: Business Case Due | IM7: Start Date | IN7: Finish Date | IP7: Prior 01/07/21 | IQ7: FY2022 | IR7: FY2023 | IS7: FY2024 | IT7: FY2025 | IU7: FY2026 | IV7: Post FY2026 | IW7: Funded Amount | IY7: Any Variance to Water Plan | IZ7: Comments
A8: h.FREEZEPANES
A9: REPEAT
A10: * | B10: Water Supply
A11: REPEAT
A12: * | C12: Water Trans and Dist System
A13: *
A14: LIST | B14: W1004 | C14: Distribution-Minor Proj/Improv | D14: Vadhyaphal,Jai | F14: Infrastructure Operations | G14: Infrastructure Operations | H14: RENEWAL | I14: Infrastructure Operations | J14: Non Project | K14: 0 | L14: 0 | M14: 3957243.73 | N14: 0 | O14: 382046.9 | P14: 603867.1 | Q14: 985914 | R14: 0 | S14: 53542.25 | T14: 65236.24 | U14: 157650.65 | V14: 89632.03 | W14: 60171.07 | X14: 74994.74 | Y14: 32627.33 | Z14: 88554.02 | AA14: 107631 | AB14: 87526 | AC14: 74500 | AD14: 72500 | AE14: =SUM(S14:AD14) -> 964565.33 | AF14: -21348.67 | AG14: 0 | AH14: 0 | AI14: 0 | AJ14: 0 | AK14: 0 | AL14: 0 | AM14: 0 | AN14: 0 | AO14: 0 | AP14: 0 | AQ14: 0 | AR14: 0 | AS14: 0 | AT14: 0 | AU14: 0 | AW14: 683090 | AX14: 0 | AY14: 683090 | AZ14: 0 | BA14: 18307.87 | BB14: 50639.54 | BC14: 53846.45 | BD14: 49553.33 | BE14: 51896.69 | BF14: 47937.26 | BG14: 56493.18 | BH14: 40135.78 | BI14: 64480.23 | BJ14: 58552.23 | BK14: 54629 | BL14: 0 | BM14: 546471.56 | BN14: -136618.44 | BO14: Project Delivery | BP14: 0 | BQ14: 0 | BR14: 0 | BS14: 0 | BT14: 0 | BU14: 0 | BV14: 0 | BW14: 0 | BX14: 0 | BY14: 0 | BZ14: 0 | CA14: 0 | CB14: 0 | CC14: =CB14-AZ14 -> 0 | CE14: 683089.99 | CF14: 546472 | CG14: =CF14-CE14 -> -136617.99 | CH14: 988445.69 | CI14: 988445.69 | CJ14: =CI14-CH14 -> 0 | CK14: 942631.37 | CL14: 942631.37 | CM14: =CL14-CK14 -> 0 | CN14: 942631.37 | CO14: 942631.37 | CP14: =CO14-CN14 -> 0 | CQ14: 942631.37 | CR14: 942631.37 | CS14: =CR14-CQ14 -> 0 | CT14: 942631.37 | CU14: 942631.37 | CV14: =CU14-CT14 -> 0 | CW14: 942631.74 | CX14: 942631.74 | CY14: =CX14-CW14 -> 0 | CZ14: 942631.74 | DA14: 942631.74 | DB14: =DA14-CZ14 -> 0 | DC14: 942632 | DD14: 942631.52 | DE14: =DD14-DC14 -> -0.48 | DF14: 942631.52 | DG14: 942631.52 | DH14: =DG14-DF14 -> 0 | DI14: 0 | DJ14: 0 | DK14: =DJ14-DI14 -> 0 | DM14: 0 | DN14: 0 | DO14: 0 | DP14: 0 | DQ14: 0 | DR14: 0 | DS14: 0 | DT14: 0 | DU14: 0 | DV14: 0 | DW14: 0 | DY14: =M14+AE14+BM14+CF14+CI14+CL14+CO14+CR14+CU14+CX14+DA14+DD14+DG14+DJ14 -> 14544250.31 | DZ14: 0 | EA14: =DY14+DZ14 -> 14544250.31 | EB14: =EA14-K14 -> 14544250.31 | EC14: =EA14-L14 -> 14544250.31 | ED14: February 2020 - Green - On track for spend to forecast | EF14: Project Delivery | EZ14: Project Delivery | FT14: =SUM(S14:Z14) -> 622408.33 | FU14: =IF(D14="Molloy,Chris",CONCATENATE(D14,EF14),CONCATENATE(F14,EF14)) -> Infrastructure OperationsProject Delivery | FV14: =IF(SUM(COUNT(EG14:EW14)+COUNTA(EF14,EX14))>0,"Yes","No") -> Yes | FW14: =IF(D14="Molloy,Chris",CONCATENATE(D14,FV14),CONCATENATE(F14,FV14)) -> Infrastructure OperationsYes | FX14: =IF(D14="Molloy,Chris",CONCATENATE(D14,$EG$7,GO14),CONCATENATE(F14,$EG$7,GO14)) -> Infrastructure OperationsGate 1: Project Commencement DateNothing entered | FY14: =IF(D14="Molloy,Chris",CONCATENATE(D14,$EH$7,GP14),CONCATENATE(F14,$EH$7,GP14)) -> Infrastructure OperationsConsultancy Award DateNothing entered | FZ14: =IF(D14="Molloy,Chris",CONCATENATE(D14,$EI$7,GQ14),CONCATENATE(F14,$EI$7,GQ14)) -> Infrastructure OperationsGate 2: Business Case Approval DateNothing entered | GA14: =IF(D14="Molloy,Chris",CONCATENATE(D14,$EJ$7,GR14),CONCATENATE(F14,$EJ$7,GR14)) -> Infrastructure OperationsProject Referral DateNothing entered | GB14: =IF(D14="Molloy,Chris",CONCATENATE(D14,$EK$7,GS14),CONCATENATE(F14,$EK$7,GS14)) -> Infrastructure OperationsDesign Completion DateNothing entered | GC14: =IF(D14="Molloy,Chris",CONCATENATE(D14,$EL$7,GT14),CONCATENATE(F14,$EL$7,GT14)) -> Infrastructure OperationsGate 3: Tender Release DateNothing entered | GD14: =IF(D14="Molloy,Chris",CONCATENATE(D14,$EM$7,GU14),CONCATENATE(F14,$EM$7,GU14)) -> Infrastructure OperationsGate 4: Contract Award DateNothing entered | GE14: =IF(EN14="","No Comment",EN14) -> No Comment | GF14: =IF(EO14="","No Comment",EO14) -> No Comment | GG14: No Comment | GH14: =IF(D14="Molloy,Chris",CONCATENATE(D14,$EQ$7,GY14),CONCATENATE(F14,$EQ$7,GY14)) -> Infrastructure OperationsGate 5: Complete Construction/Go-live DateNothing entered | GI14: =IF(D14="Molloy,Chris",CONCATENATE(D14,$ER$7,GZ14),CONCATENATE(F14,$ER$7,GZ14)) -> Infrastructure OperationsPractical Completion DateNothing entered | GJ14: =IF(D14="Molloy,Chris",CONCATENATE(D14,$ES$7,HA14),CONCATENATE(F14,$ES$7,HA14)) -> Infrastructure OperationsEnd Defect Liability PeriodNothing entered | GK14: =IF(D14="Molloy,Chris",CONCATENATE(D14,$ET$7,HB14),CONCATENATE(F14,$ET$7,HB14)) -> Infrastructure OperationsEnd Construction/ Go-LiveNothing entered | GL14: =IF(D14="Molloy,Chris",CONCATENATE(D14,$EU$7,HC14),CONCATENATE(F14,$EU$7,HC14)) -> Infrastructure OperationsGate 6:Post-Implementation ReviewNothing entered | GM14: =IF(D14="Molloy,Chris",CONCATENATE(D14,$EV$7,HD14),CONCATENATE(F14,$EV$7,HD14)) -> Infrastructure OperationsProject Close-outNothing entered | GN14: =IF(D14="Molloy,Chris",CONCATENATE(D14,$EW$7,HE14),CONCATENATE(F14,$EW$7,HE14)) -> Infrastructure OperationsBank Guarantees ReturnedNothing entered | GO14: =IF(EG14="","Nothing entered",IF(EG14-$FV$6<-60,"Past Date",IF(EG14-$FV$6<0,"Recently Achieved",IF(EG14-$FV$6<60,"Within 60 Days",IF(EG14-$FV$6<90,"Within 90 Days","Over 90 Days"))))) -> Nothing entered | GP14: =IF(EH14="","Nothing entered",IF(EH14-$FV$6<-60,"Past Date",IF(EH14-$FV$6<0,"Recently Achieved",IF(EH14-$FV$6<60,"Within 60 Days",IF(EH14-$FV$6<90,"Within 90 Days","Over 90 Days"))))) -> Nothing entered | GQ14: Nothing entered | GR14: Nothing entered | GS14: Nothing entered | GT14: Nothing entered | GU14: Nothing entered | GV14: =IF(EN14="","Nothing entered",EN14) -> Nothing entered | GW14: =IF(EO14="","Nothing entered",EO14) -> Nothing entered | GX14: Nothing entered | GY14: =IF(EQ14="","Nothing entered",IF(EQ14-$FV$6<-60,"Past Date",IF(EQ14-$FV$6<0,"Recently Achieved",IF(EQ14-$FV$6<60,"Within 60 Days",IF(EQ14-$FV$6<90,"Within 90 Days","Over 90 Days"))))) -> Nothing entered | GZ14: =IF(ER14="","Nothing entered",IF(ER14-$FV$6<-60,"Past Date",IF(ER14-$FV$6<0,"Recently Achieved",IF(ER14-$FV$6<60,"Within 60 Days",IF(ER14-$FV$6<90,"Within 90 Days","Over 90 Days"))))) -> Nothing entered | HA14: Nothing entered | HB14: Nothing entered | HC14: Nothing entered | HD14: Nothing entered | HE14: Nothing entered | HF14: =IF(EI14="","Nothing entered",IF(EI14-$FV$6<-60,"Past Date",IF(EI14-$FV$6<0,"Recently Achieved",IF(EI14-$FV$6<730,"Within 2 Years",IF(EI14-$FV$6<1825,"Within 5 Years","Over 5 Years"))))) -> Nothing entered | HG14: =IF(EJ14="","Nothing entered",IF(EJ14-$FV$6<-60,"Past Date",IF(EJ14-$FV$6<0,"Recently Achieved",IF(EJ14-$FV$6<730,"Within 2 Years",IF(EJ14-$FV$6<1825,"Within 5 Years","Over 5 Years"))))) -> Nothing entered | HH14: =IF(ER14="","Nothing entered",IF(ER14-$FV$6<-60,"Past Date",IF(ER14-$FV$6<0,"Recently Achieved",IF(ER14-$FV$6<730,"Within 2 Years",IF(ER14-$FV$6<1825,"Within 5 Years","Over 5 Years"))))) -> Nothing entered | HI14: =IF(EF14="",CONCATENATE(F14,"NO CURRENT PHASE"),IF(EF14=EZ14,CONCATENATE(F14,"No Change"),CONCATENATE(F14,"New Phase"))) -> Infrastructure OperationsNo Change | HJ14: =IF(EG14="","No Date Supplied",EG14-FA14) -> No Date Supplied | HK14: =IF(EH14="","No Date Supplied",EH14-FB14) -> No Date Supplied | HL14: No Date Supplied | HM14: =IF(EJ14="","No Date Supplied",EJ14-FD14) -> No Date Supplied | HN14: =IF(EL14="","No Date Supplied",EL14-FF14) -> No Date Supplied | HO14: =IF(EM14="","No Date Supplied",EM14-FG14) -> No Date Supplied | HP14: =IF(EQ14="","No Date Supplied",EQ14-FK14) -> No Date Supplied | HQ14: =IF(ER14="","No Date Supplied",ER14-FL14) -> No Date Supplied | HR14: =IF(ES14="","No Date Supplied",ES14-FM14) -> No Date Supplied | HS14: =IF(EU14="","No Date Supplied",EU14-FO14) -> No Date Supplied | HT14: =IF(EV14="","No Date Supplied",EV14-FP14) -> No Date Supplied | HU14: No Date Supplied | HW14: Water | HX14: =H14 -> RENEWAL | HY14: =BM14*$HY$5 -> 557400.9912 | HZ14: =CF14*$HZ$5 -> 568549.4688 | IA14: =CI14*$IA$5 -> 1048946.474 | IB14: =CL14*$IB$5 -> 1020334.51 | IC14: =CO14*$IC$5 -> 1040741.2 | ID14: =CR14*$ID$5 -> 1061556.024 | IE14: =CU14*$IE$5 -> 1082787.145 | IF14: =CX14*$IF$5 -> 1104443.321 | IG14: =DA14*$IG$5 -> 1126532.187 | IH14: =DD14*$IH$5 -> 1149062.563 | II14: =SUM(HY14:IH14) -> 9760353.884 | IJ14: =CONCATENATE(HW14,HX14) -> WaterRENEWAL
A15: LIST | B15: W1010 | C15: Meters - New Replace & Conver | D15: Wilson,Daniel | F15: Customer Centre | G15: Customer Centre | H15: RENEWAL | I15: Customer Centre | J15: Program | K15: 0 | L15: 0 | M15: 6822000.04 | N15: 0 | O15: 489960.68 | P15: 244532.21 | Q15: 734492.89 | R15: 0 | S15: 112644.42 | T15: 108348.47 | U15: 93690.81 | V15: 95624.37 | W15: 114538.92 | X15: 74195.9 | Y15: 127547.7 | Z15: 60161.33 | AA15: -60000 | AB15: 18000 | AC15: 18000 | AD15: 18000 | AE15: =SUM(S15:AD15) -> 780751.92 | AF15: 46259.03 | AG15: 0 | AH15: 0 | AI15: 0 | AJ15: 0 | AK15: 0 | AL15: 0 | AM15: 0 | AN15: 0 | AO15: 0 | AP15: 0 | AQ15: 0 | AR15: 0 | AS15: 0 | AT15: 0 | AU15: 0 | AW15: 748250 | AX15: 1750 | AY15: 750000 | AZ15: 0 | BA15: 62500 | BB15: 62500 | BC15: 62500 | BD15: 62500 | BE15: 62500 | BF15: 62500 | BG15: 62500 | BH15: 62500 | BI15: 62500 | BJ15: 62500 | BK15: 62500 | BL15: 62500 | BM15: 750000 | BN15: 0 | BO15: Project Delivery | BP15: 0 | BQ15: 0 | BR15: 0 | BS15: 0 | BT15: 0 | BU15: 0 | BV15: 0 | BW15: 0 | BX15: 0 | BY15: 0 | BZ15: 0 | CA15: 0 | CB15: 0 | CC15: 0 | CE15: 758500 | CF15: 758500 | CG15: 0 | CH15: 758500 | CI15: 758500 | CJ15: 0 | CK15: 758500 | CL15: 758500 | CM15: 0 | CN15: 779000 | CO15: 779000 | CP15: 0 | CQ15: 779000 | CR15: 779000 | CS15: 0 | CT15: 789250 | CU15: 789250 | CV15: 0 | CW15: 789250 | CX15: 789250 | CY15: 0 | CZ15: 789250 | DA15: 789250 | DB15: 0 | DC15: 0 | DD15: 789250 | DE15: 789250 | DF15: 799500 | DG15: 799500 | DH15: 0 | DI15: 0 | DJ15: 0 | DK15: 0 | DM15: 0 | DN15: 0 | DO15: 0 | DP15: 0 | DQ15: 0 | DR15: 0 | DS15: 0 | DT15: 0 | DU15: 0 | DV15: 0 | DW15: 0 | DY15: =M15+AE15+BM15+CF15+CI15+CL15+CO15+CR15+CU15+CX15+DA15+DD15+DG15+DJ15 -> 16142751.96 | DZ15: 0 | EA15: =DY15+DZ15 -> 16142751.96 | EB15: =EA15-K15 -> 16142751.96 | EC15: =EA15-L15 -> 16142751.96 | EF15: Project Delivery | EX15: Ongoing project | EZ15: Project Delivery | FR15: Ongoing project | FT15: =SUM(S15:Z15) -> 786751.92 | FU15: =IF(D15="Molloy,Chris",CONCATENATE(D15,EF15),CONCATENATE(F15,EF15)) -> Customer CentreProject Delivery | FV15: =IF(SUM(COUNT(EG15:EW15)+COUNTA(EF15,EX15))>0,"Yes","No") -> Yes | FW15: =IF(D15="Molloy,Chris",CONCATENATE(D15,FV15),CONCATENATE(F15,FV15)) -> Customer CentreYes | FX15: =IF(D15="Molloy,Chris",CONCATENATE(D15,$EG$7,GO15),CONCATENATE(F15,$EG$7,GO15)) -> Customer CentreGate 1: Project Commencement DateNothing entered | FY15: =IF(D15="Molloy,Chris",CONCATENATE(D15,$EH$7,GP15),CONCATENATE(F15,$EH$7,GP15)) -> Customer CentreConsultancy Award DateNothing entered | FZ15: =IF(D15="Molloy,Chris",CONCATENATE(D15,$EI$7,GQ15),CONCATENATE(F15,$EI$7,GQ15)) -> Customer CentreGate 2: Business Case Approval DateNothing entered | GA15: =IF(D15="Molloy,Chris",CONCATENATE(D15,$EJ$7,GR15),CONCATENATE(F15,$EJ$7,GR15)) -> Customer CentreProject Referral DateNothing entered | GB15: =IF(D15="Molloy,Chris",CONCATENATE(D15,$EK$7,GS15),CONCATENATE(F15,$EK$7,GS15)) -> Customer CentreDesign Completion DateNothing entered | GC15: =IF(D15="Molloy,Chris",CONCATENATE(D15,$EL$7,GT15),CONCATENATE(F15,$EL$7,GT15)) -> Customer CentreGate 3: Tender Release DateNothing entered | GD15: =IF(D15="Molloy,Chris",CONCATENATE(D15,$EM$7,GU15),CONCATENATE(F15,$EM$7,GU15)) -> Customer CentreGate 4: Contract Award DateNothing entered | GE15: =IF(EN15="","No Comment",EN15) -> No Comment | GF15: No Comment | GG15: No Comment | GH15: =IF(D15="Molloy,Chris",CONCATENATE(D15,$EQ$7,GY15),CONCATENATE(F15,$EQ$7,GY15)) -> Customer CentreGate 5: Complete Construction/Go-live DateNothing entered | GI15: =IF(D15="Molloy,Chris",CONCATENATE(D15,$ER$7,GZ15),CONCATENATE(F15,$ER$7,GZ15)) -> Customer CentrePractical Completion DateNothing entered | GJ15: =IF(D15="Molloy,Chris",CONCATENATE(D15,$ES$7,HA15),CONCATENATE(F15,$ES$7,HA15)) -> Customer CentreEnd Defect Liability PeriodNothing entered | GK15: =IF(D15="Molloy,Chris",CONCATENATE(D15,$ET$7,HB15),CONCATENATE(F15,$ET$7,HB15)) -> Customer CentreEnd Construction/ Go-LiveNothing entered | GL15: =IF(D15="Molloy,Chris",CONCATENATE(D15,$EU$7,HC15),CONCATENATE(F15,$EU$7,HC15)) -> Customer CentreGate 6:Post-Implementation ReviewNothing entered | GM15: =IF(D15="Molloy,Chris",CONCATENATE(D15,$EV$7,HD15),CONCATENATE(F15,$EV$7,HD15)) -> Customer CentreProject Close-outNothing entered | GN15: =IF(D15="Molloy,Chris",CONCATENATE(D15,$EW$7,HE15),CONCATENATE(F15,$EW$7,HE15)) -> Customer CentreBank Guarantees ReturnedNothing entered | GO15: =IF(EG15="","Nothing entered",IF(EG15-$FV$6<-60,"Past Date",IF(EG15-$FV$6<0,"Recently Achieved",IF(EG15-$FV$6<60,"Within 60 Days",IF(EG15-$FV$6<90,"Within 90 Days","Over 90 Days"))))) -> Nothing entered | GP15: Nothing entered | GQ15: Nothing entered | GR15: Nothing entered | GS15: Nothing entered | GT15: Nothing entered | GU15: Nothing entered | GV15: =IF(EN15="","Nothing entered",EN15) -> Nothing entered | GW15: Nothing entered | GX15: Nothing entered | GY15: =IF(EQ15="","Nothing entered",IF(EQ15-$FV$6<-60,"Past Date",IF(EQ15-$FV$6<0,"Recently Achieved",IF(EQ15-$FV$6<60,"Within 60 Days",IF(EQ15-$FV$6<90,"Within 90 Days","Over 90 Days"))))) -> Nothing entered | GZ15: Nothing entered | HA15: Nothing entered | HB15: Nothing entered | HC15: Nothing entered | HD15: Nothing entered | HE15: Nothing entered | HF15: =IF(EI15="","Nothing entered",IF(EI15-$FV$6<-60,"Past Date",IF(EI15-$FV$6<0,"Recently Achieved",IF(EI15-$FV$6<730,"Within 2 Years",IF(EI15-$FV$6<1825,"Within 5 Years","Over 5 Years"))))) -> Nothing entered | HG15: Nothing entered | HH15: =IF(ER15="","Nothing entered",IF(ER15-$FV$6<-60,"Past Date",IF(ER15-$FV$6<0,"Recently Achieved",IF(ER15-$FV$6<730,"Within 2 Years",IF(ER15-$FV$6<1825,"Within 5 Years","Over 5 Years"))))) -> Nothing entered | HI15: =IF(EF15="",CONCATENATE(F15,"NO CURRENT PHASE"),IF(EF15=EZ15,CONCATENATE(F15,"No Change"),CONCATENATE(F15,"New Phase"))) -> Customer CentreNo Change | HJ15: =IF(EG15="","No Date Supplied",EG15-FA15) -> No Date Supplied | HK15: No Date Supplied | HL15: No Date Supplied | HM15: No Date Supplied | HN15: =IF(EL15="","No Date Supplied",EL15-FF15) -> No Date Supplied | HO15: No Date Supplied | HP15: =IF(EQ15="","No Date Supplied",EQ15-FK15) -> No Date Supplied | HQ15: No Date Supplied | HR15: No Date Supplied | HS15: =IF(EU15="","No Date Supplied",EU15-FO15) -> No Date Supplied | HT15: No Date Supplied | HU15: No Date Supplied | HW15: Water | HX15: =H15 -> RENEWAL | HY15: =BM15*$HY$5 -> 765000 | HZ15: =CF15*$HZ$5 -> 789143.4 | IA15: =CI15*$IA$5 -> 804926.268 | IB15: =CL15*$IB$5 -> 821024.7934 | IC15: =CO15*$IC$5 -> 860078.9457 | ID15: =CR15*$ID$5 -> 877280.5246 | IE15: =CU15*$IE$5 -> 906600.1632 | IF15: =CX15*$IF$5 -> 924732.1665 | IG15: =DA15*$IG$5 -> 943226.8098 | IH15: =DD15*$IH$5 -> 962091.346 | II15: =SUM(HY15:IH15) -> 8654104.417 | IJ15: WaterRENEWAL
A16: LIST | B16: W1011 | C16: Water Meter Replacement Program | D16: Wilson,Daniel | F16: Customer Centre | G16: Customer Centre | H16: RENEWAL | I16: Customer Centre | J16: Program | K16: 0 | L16: 0 | M16: 5898463.4 | N16: 0 | O16: 644520 | P16: 0 | Q16: 644520 | R16: 0 | S16: 14201.45 | T16: 1540 | U16: 81361.66 | V16: 57080.22 | W16: 90493.06 | X16: 86640.73 | Y16: 237.65 | Z16: 8098.64 | AA16: 174500 | AB16: 57000 | AC16: 57000 | AD16: 57000 | AE16: 685153.41 | AF16: 40633.41 | AG16: 0 | AH16: 0 | AI16: 0 | AJ16: 0 | AK16: 0 | AL16: 0 | AM16: 0 | AN16: 0 | AO16: 0 | AP16: 0 | AQ16: 0 | AR16: 0 | AS16: 0 | AT16: 0 | AU16: 0 | AW16: 702125 | AX16: 0 | AY16: 702125 | AZ16: 0 | BA16: 58500 | BB16: 58500 | BC16: 58500 | BD16: 58500 | BE16: 58500 | BF16: 58500 | BG16: 58500 | BH16: 58500 | BI16: 58500 | BJ16: 58500 | BK16: 58500 | BL16: 58500 | BM16: 702000 | BN16: -125 | BO16: Project Delivery | BP16: 0 | BQ16: 0 | BR16: 0 | BS16: 0 | BT16: 0 | BU16: 0 | BV16: 0 | BW16: 0 | BX16: 0 | BY16: 0 | BZ16: 0 | CA16: 0 | CB16: 0 | CC16: 0 | CE16: 702125 | CF16: 702125 | CG16: 0 | CH16: 702125 | CI16: 702125 | CJ16: 0 | CK16: 759320 | CL16: 759320 | CM16: 0 | CN16: 704175 | CO16: 704175 | CP16: 0 | CQ16: 704175 | CR16: 704175 | CS16: 0 | CT16: 791300 | CU16: 791300 | CV16: 0 | CW16: 789250 | CX16: 789250 | CY16: 0 | CZ16: 783100 | DA16: 783100 | DB16: 0 | DC16: 731850 | DD16: 731850 | DE16: 0 | DF16: 674450 | DG16: 674450 | DH16: 0 | DI16: 0 | DJ16: 0 | DK16: 0 | DM16: 0 | DN16: 0 | DO16: 0 | DP16: 0 | DQ16: 0 | DR16: 0 | DS16: 0 | DT16: 0 | DU16: 0 | DV16: 0 | DW16: 0 | DY16: =M16+AE16+BM16+CF16+CI16+CL16+CO16+CR16+CU16+CX16+DA16+DD16+DG16+DJ16 -> 14627486.81 | DZ16: 0 | EA16: =DY16+DZ16 -> 14627486.81 | EB16: =EA16-K16 -> 14627486.81 | EC16: =EA16-L16 -> 14627486.81 | EF16: Project Delivery | EX16: Ongoing project | EZ16: Project Delivery | FR16: Ongoing project | FT16: 339653.41 | FU16: Customer CentreProject Delivery | FV16: Yes | FW16: Customer CentreYes | FX16: Customer CentreGate 1: Project Commencement DateNothing entered | FY16: Customer CentreConsultancy Award DateNothing entered | FZ16: Customer CentreGate 2: Business Case Approval DateNothing entered | GA16: Customer CentreProject Referral DateNothing entered | GB16: Customer CentreDesign Completion DateNothing entered | GC16: Customer CentreGate 3: Tender Release DateNothing entered | GD16: Customer CentreGate 4: Contract Award DateNothing entered | GE16: No Comment | GF16: No Comment | GG16: No Comment | GH16: Customer CentreGate 5: Complete Construction/Go-live DateNothing entered | GI16: Customer CentrePractical Completion DateNothing entered | GJ16: Customer CentreEnd Defect Liability PeriodNothing entered | GK16: Customer CentreEnd Construction/ Go-LiveNothing entered | GL16: Customer CentreGate 6:Post-Implementation ReviewNothing entered | GM16: Customer CentreProject Close-outNothing entered | GN16: Customer CentreBank Guarantees ReturnedNothing entered | GO16: Nothing entered | GP16: Nothing entered | GQ16: Nothing entered | GR16: Nothing entered | GS16: Nothing entered | GT16: Nothing entered | GU16: Nothing entered | GV16: Nothing entered | GW16: Nothing entered | GX16: Nothing entered | GY16: Nothing entered | GZ16: Nothing entered | HA16: Nothing entered | HB16: Nothing entered | HC16: Nothing entered | HD16: Nothing entered | HE16: Nothing entered | HF16: Nothing entered | HG16: Nothing entered | HH16: Nothing entered | HI16: Customer CentreNo Change | HJ16: No Date Supplied | HK16: No Date Supplied | HL16: No Date Supplied | HM16: No Date Supplied | HN16: No Date Supplied | HO16: No Date Supplied | HP16: No Date Supplied | HQ16: No Date Supplied | HR16: No Date Supplied | HS16: No Date Supplied | HT16: No Date Supplied | HU16: No Date Supplied | HW16: Water | HX16: RENEWAL | HY16: 716040 | HZ16: 730490.85 | IA16: 745100.667 | IB16: 821912.3877 | IC16: 777466.0996 | ID16: 793015.4216 | IE16: 908954.9688 | IF16: 924732.1665 | IG16: 935876.9905 | IH16: 892121.0663 | II16: 8245710.618 | IJ16: WaterRENEWAL
A17: LIST | B17: W1017 | C17: Water Main Replace Feeder Main | D17: Moaddeli,Harry | F17: Strategic Asset Management | G17: Strategic Asset Management | H17: RENEWAL | I17: Infrastructure Operations | J17: Program | K17: 0 | L17: 0 | M17: 70164.15 | N17: 0 | O17: 256250 | P17: -243686 | Q17: 12564 | R17: 0 | S17: 0 | T17: 0 | U17: 0 | V17: 0 | W17: 0 | X17: 0 | Y17: 0 | Z17: 0 | AA17: 0 | AB17: 2000 | AC17: 5564 | AD17: 5000 | AE17: 12564 | AF17: 0 | AG17: 0 | AH17: 0 | AI17: 0 | AJ17: 0 | AK17: 0 | AL17: 0 | AM17: 0 | AN17: 0 | AO17: 0 | AP17: 0 | AQ17: 0 | AR17: 0 | AS17: 0 | AT17: 0 | AU17: 0 | AW17: 1342605 | AX17: -630000 | AY17: 712605 | AZ17: 0 | BA17: 1000 | BB17: 3000 | BC17: 3000 | BD17: 25000 | BE17: 35000 | BF17: 45000 | BG17: 60000 | BH17: 60000 | BI17: 100605 | BJ17: 50000 | BK17: 631484 | BL17: 0 | BM17: 1014089 | BN17: 301484 | BO17: Planning | BP17: 0 | BQ17: 0 | BR17: 0 | BS17: 0 | BT17: 0 | BU17: 0 | BV17: 0 | BW17: 0 | BX17: 0 | BY17: 0 | BZ17: 0 | CA17: 0 | CB17: 0 | CC17: 0 | CE17: 997941.03 | CF17: 429556 | CG17: -568385.03 | CH17: 307500 | CI17: 997941 | CJ17: 690441 | CK17: 4496488.45 | CL17: 4496488.45 | CM17: 0 | CN17: 553500 | CO17: 553500 | CP17: 0 | CQ17: 216178 | CR17: 216178 | CS17: 0 | CT17: 393393.97 | CU17: 393393.97 | CV17: 0 | CW17: 1389787.25 | CX17: 1389787.25 | CY17: 0 | CZ17: 102500 | DA17: 102500 | DB17: 0 | DC17: 0 | DD17: 0 | DE17: 0 | DF17: 0 | DG17: 0 | DH17: 0 | DI17: 0 | DJ17: 0 | DK17: 0 | DM17: 0 | DN17: 0 | DO17: 0 | DP17: 0 | DQ17: 0 | DR17: 0 | DS17: 0 | DT17: 0 | DU17: 0 | DV17: 0 | DW17: 0 | DY17: 9676161.82 | DZ17: 0 | EA17: 9676161.82 | EB17: 9676161.82 | EC17: 9676161.82 | ED17: 2020-21 budget was varied to fund South Easter FM Stage 1 W1496 to be completed by BAS by Jun 2021 and Bell Post Hill FM section renewal - to be delivered by BAS in 2020/21 ($186k). Following catastrophic failure of Leopold FM in Bellarine Hwy in Nov 20, condition assessment and failure history assessed a high risk asset. It has severe traffic interruption consequence with high likelihood of failure. Forecast the work to be completed in 21/22 ($1.26Mil), Business case will be submitted by the end of Jun 2021. To minimise the impact on the remaining 3yrs budget, construction of South Eastern FM- Stage 2 is pushed back to next water plan (2023/24) with design ($154k) remains in current water plan in 2022/23. Morgan St to be completed in 2022/23 ($383k). | EF17: Planning | EI17: 2020-11-30 | EJ17: 2020-12-10 | EZ17: Planning | FC17: 2020-11-30 | FD17: 2020-12-10 | FT17: 0 | FU17: Strategic Asset ManagementPlanning | FV17: Yes | FW17: Strategic Asset ManagementYes | FX17: Strategic Asset ManagementGate 1: Project Commencement DateNothing entered | FY17: Strategic Asset ManagementConsultancy Award DateNothing entered | FZ17: Strategic Asset ManagementGate 2: Business Case Approval DatePast Date | GA17: Strategic Asset ManagementProject Referral DatePast Date | GB17: Strategic Asset ManagementDesign Completion DateNothing entered | GC17: Strategic Asset ManagementGate 3: Tender Release DateNothing entered | GD17: Strategic Asset ManagementGate 4: Contract Award DateNothing entered | GE17: No Comment | GF17: No Comment | GG17: No Comment | GH17: Strategic Asset ManagementGate 5: Complete Construction/Go-live DateNothing entered | GI17: Strategic Asset ManagementPractical Completion DateNothing entered | GJ17: Strategic Asset ManagementEnd Defect Liability PeriodNothing entered | GK17: Strategic Asset ManagementEnd Construction/ Go-LiveNothing entered | GL17: Strategic Asset ManagementGate 6:Post-Implementation ReviewNothing entered | GM17: Strategic Asset ManagementProject Close-outNothing entered | GN17: Strategic Asset ManagementBank Guarantees ReturnedNothing entered | GO17: Nothing entered | GP17: Nothing entered | GQ17: Past Date | GR17: Past Date | GS17: Nothing entered | GT17: Nothing entered | GU17: Nothing entered | GV17: Nothing entered | GW17: Nothing entered | GX17: Nothing entered | GY17: Nothing entered | GZ17: Nothing entered | HA17: Nothing entered | HB17: Nothing entered | HC17: Nothing entered | HD17: Nothing entered | HE17: Nothing entered | HF17: Past Date | HG17: Past Date | HH17: Nothing entered | HI17: Strategic Asset ManagementNo Change | HJ17: No Date Supplied | HK17: No Date Supplied | HL17: 0 | HM17: 0 | HN17: No Date Supplied | HO17: No Date Supplied | HP17: No Date Supplied | HQ17: No Date Supplied | HR17: No Date Supplied | HS17: No Date Supplied | HT17: No Date Supplied | HU17: No Date Supplied | HW17: Water | HX17: RENEWAL | HY17: 1034370.78 | HZ17: 446910.0624 | IA17: 1059022.973 | IB17: 4867143.705 | IC17: 611108.7246 | ID17: 243451.5395 | IE17: 451886.0151 | IF17: 1628357.269 | IG17: 122496.9883 | IH17: 0 | II17: 10464748.06 | IJ17: WaterRENEWAL
A18: LIST | B18: W1039 | C18: Bellarine Transfer Main Stage 5B | D18: Price,Sheryne | F18: Asset Planning | G18: Enterprise Project Delivery | H18: GROWTH | I18: Asset Planning | J18: Project | K18: 0 | L18: 0 | M18: 295320.66 | N18: 0 | O18: 0 | P18: 0 | Q18: 0 | R18: 0 | S18: 0 | T18: 0 | U18: 0 | V18: 0 | W18: 0 | X18: 0 | Y18: 0 | Z18: 0 | AA18: 0 | AB18: 0 | AC18: 0 | AD18: 0 | AE18: 0 | AF18: 0 | AG18: 0 | AH18: 0 | AI18: 0 | AJ18: 0 | AK18: 0 | AL18: 0 | AM18: 0 | AN18: 0 | AO18: 0 | AP18: 0 | AQ18: 0 | AR18: 0 | AS18: 0 | AT18: 0 | AU18: 0 | AW18: 0 | AX18: 0 | AY18: 0 | AZ18: 0 | BA18: 0 | BB18: 0 | BC18: 0 | BD18: 0 | BE18: 0 | BF18: 0 | BG18: 0 | BH18: 0 | BI18: 0 | BJ18: 0 | BK18: 0 | BL18: 0 | BM18: 0 | BN18: 0 | BO18: Ideation | BP18: 0 | BQ18: 0 | BR18: 0 | BS18: 0 | BT18: 0 | BU18: 0 | BV18: 0 | BW18: 0 | BX18: 0 | BY18: 0 | BZ18: 0 | CA18: 0 | CB18: 0 | CC18: 0 | CE18: 355168.07 | CF18: 355168.07 | CG18: 0 | CH18: 2457449.64 | CI18: 3457449.64 | CJ18: 1000000 | CK18: 6818704.58 | CL18: 6325341.39 | CM18: -493363.19 | CN18: 506636.81 | CO18: 0 | CP18: -506636.81 | CQ18: 0 | CR18: 0 | CS18: 0 | CT18: 0 | CU18: 0 | CV18: 0 | CW18: 0 | CX18: 0 | CY18: 0 | CZ18: 0 | DA18: 0 | DB18: 0 | DC18: 0 | DD18: 0 | DE18: 0 | DF18: 0 | DG18: 0 | DH18: 0 | DI18: 0 | DJ18: 0 | DK18: 0 | DM18: 0 | DN18: 0 | DO18: 0 | DP18: 0 | DQ18: 0 | DR18: 0 | DS18: 0 | DT18: 0 | DU18: 0 | DV18: 0 | DW18: 0 | DY18: 10433279.76 | DZ18: 0 | EA18: 10433279.76 | EB18: 10433279.76 | EC18: 10433279.76 | EF18: Ideation | EG18: 2023-07-01 | EI18: 2023-06-30 | EJ18: 2023-07-01 | ER18: 2026-06-30 | EZ18: Ideation | FA18: 2023-07-01 | FC18: 2023-06-30 | FD18: 2023-07-01 | FL18: 2026-06-30 | FT18: 0 | FU18: Asset PlanningIdeation | FV18: Yes | FW18: Asset PlanningYes | FX18: Asset PlanningGate 1: Project Commencement DateOver 90 Days | FY18: Asset PlanningConsultancy Award DateNothing entered | FZ18: Asset PlanningGate 2: Business Case Approval DateOver 90 Days | GA18: Asset PlanningProject Referral DateOver 90 Days | GB18: Asset PlanningDesign Completion DateNothing entered | GC18: Asset PlanningGate 3: Tender Release DateNothing entered | GD18: Asset PlanningGate 4: Contract Award DateNothing entered | GE18: No Comment | GF18: No Comment | GG18: No Comment | GH18: Asset PlanningGate 5: Complete Construction/Go-live DateNothing entered | GI18: Asset PlanningPractical Completion DateOver 90 Days | GJ18: Asset PlanningEnd Defect Liability PeriodNothing entered | GK18: Asset PlanningEnd Construction/ Go-LiveNothing entered | GL18: Asset PlanningGate 6:Post-Implementation ReviewNothing entered | GM18: Asset PlanningProject Close-outNothing entered | GN18: Asset PlanningBank Guarantees ReturnedNothing entered | GO18: Over 90 Days | GP18: Nothing entered | GQ18: Over 90 Days | GR18: Over 90 Days | GS18: Nothing entered | GT18: Nothing entered | GU18: Nothing entered | GV18: Nothing entered | GW18: Nothing entered | GX18: Nothing entered | GY18: Nothing entered | GZ18: Over 90 Days | HA18: Nothing entered | HB18: Nothing entered | HC18: Nothing entered | HD18: Nothing entered | HE18: Nothing entered | HF18: Within 5 Years | HG18: Within 5 Years | HH18: Over 5 Years | HI18: Asset PlanningNo Change | HJ18: 0 | HK18: No Date Supplied | HL18: 0 | HM18: 0 | HN18: No Date Supplied | HO18: No Date Supplied | HP18: No Date Supplied | HQ18: 0 | HR18: No Date Supplied | HS18: No Date Supplied | HT18: No Date Supplied | HU18: No Date Supplied | HW18: Water | HX18: GROWTH | HY18: 0 | HZ18: 369516.86 | IA18: 3669073.218 | IB18: 6846752.944 | IC18: 0 | ID18: 0 | IE18: 0 | IF18: 0 | IG18: 0 | IH18: 0 | II18: 10885343.02 | IJ18: WaterGROWTH
A19: LIST | B19: W1083 | C19: Skenes Crk WSI St 4-450kl Tank | D19: Moaddeli,Harry | F19: Strategic Asset Management | G19: Strategic Asset Management | H19: GROWTH | I19: Infrastructure Operations | J19: Project | K19: 0 | L19: 0 | M19: 1131256.52 | N19: 0 | O19: 0 | P19: 14500 | Q19: 14500 | R19: 0 | S19: 0 | T19: 0 | U19: 0 | V19: 0 | W19: 0 | X19: 0 | Y19: 0 | Z19: 0 | AA19: 0 | AB19: 14500 | AC19: 0 | AD19: 0 | AE19: 14500 | AF19: 0 | AG19: 0 | AH19: 0 | AI19: 0 | AJ19: 0 | AK19: 0 | AL19: 0 | AM19: 0 | AN19: 0 | AO19: 0 | AP19: 0 | AQ19: 0 | AR19: 0 | AS19: 0 | AT19: 0 | AU19: 0 | AW19: 0 | AX19: 0 | AY19: 0 | AZ19: 0 | BA19: 0 | BB19: 0 | BC19: 0 | BD19: 0 | BE19: 0 | BF19: 0 | BG19: 0 | BH19: 0 | BI19: 0 | BJ19: 0 | BK19: 0 | BL19: 0 | BM19: 0 | BN19: 0 | BP19: 0 | BQ19: 0 | BR19: 0 | BS19: 0 | BT19: 0 | BU19: 0 | BV19: 0 | BW19: 0 | BX19: 0 | BY19: 0 | BZ19: 0 | CA19: 0 | CB19: 0 | CC19: 0 | CE19: 0 | CF19: 0 | CG19: 0 | CH19: 0 | CI19: 0 | CJ19: 0 | CK19: 0 | CL19: 0 | CM19: 0 | CN19: 0 | CO19: 0 | CP19: 0 | CQ19: 0 | CR19: 0 | CS19: 0 | CT19: 0 | CU19: 0 | CV19: 0 | CW19: 0 | CX19: 0 | CY19: 0 | CZ19: 0 | DA19: 0 | DB19: 0 | DC19: 0 | DD19: 0 | DE19: 0 | DF19: 0 | DG19: 0 | DH19: 0 | DI19: 0 | DJ19: 0 | DK19: 0 | DM19: 0 | DN19: 0 | DO19: 0 | DP19: 0 | DQ19: 0 | DR19: 0 | DS19: 0 | DT19: 0 | DU19: 0 | DV19: 0 | DW19: 0 | DY19: 1145756.52 | DZ19: 0 | EA19: 1145756.52 | EB19: 1145756.52 | EC19: 1145756.52 | ED19: Safety upgrade of access ladder. $9000 was funded from C1006 & $4500 from W1401 | FT19: 0 | FU19: Strategic Asset Management | FV19: No | FW19: Strategic Asset ManagementNo | FX19: Strategic Asset ManagementGate 1: Project Commencement DateNothing entered | FY19: Strategic Asset ManagementConsultancy Award DateNothing entered | FZ19: Strategic Asset ManagementGate 2: Business Case Approval DateNothing entered | GA19: Strategic Asset ManagementProject Referral DateNothing entered | GB19: Strategic Asset ManagementDesign Completion DateNothing entered | GC19: Strategic Asset ManagementGate 3: Tender Release DateNothing entered | GD19: Strategic Asset ManagementGate 4: Contract Award DateNothing entered | GE19: No Comment | GF19: No Comment | GG19: No Comment | GH19: Strategic Asset ManagementGate 5: Complete Construction/Go-live DateNothing entered | GI19: Strategic Asset ManagementPractical Completion DateNothing entered | GJ19: Strategic Asset ManagementEnd Defect Liability PeriodNothing entered | GK19: Strategic Asset ManagementEnd Construction/ Go-LiveNothing entered | GL19: Strategic Asset ManagementGate 6:Post-Implementation ReviewNothing entered | GM19: Strategic Asset ManagementProject Close-outNothing entered | GN19: Strategic Asset ManagementBank Guarantees ReturnedNothing entered | GO19: Nothing entered | GP19: Nothing entered | GQ19: Nothing entered | GR19: Nothing entered | GS19: Nothing entered | GT19: Nothing entered | GU19: Nothing entered | GV19: Nothing entered | GW19: Nothing entered | GX19: Nothing entered | GY19: Nothing entered | GZ19: Nothing entered | HA19: Nothing entered | HB19: Nothing entered | HC19: Nothing entered | HD19: Nothing entered | HE19: Nothing entered | HF19: Nothing entered | HG19: Nothing entered | HH19: Nothing entered | HI19: Strategic Asset ManagementNO CURRENT PHASE | HJ19: No Date Supplied | HK19: No Date Supplied | HL19: No Date Supplied | HM19: No Date Supplied | HN19: No Date Supplied | HO19: No Date Supplied | HP19: No Date Supplied | HQ19: No Date Supplied | HR19: No Date Supplied | HS19: No Date Supplied | HT19: No Date Supplied | HU19: No Date Supplied | HW19: Water | HX19: GROWTH | HY19: 0 | HZ19: 0 | IA19: 0 | IB19: 0 | IC19: 0 | ID19: 0 | IE19: 0 | IF19: 0 | IG19: 0 | IH19: 0 | II19: 0 | IJ19: WaterGROWTH
A20: LIST | B20: W1119 | C20: Canterbury Rd East Railway Crossing | D20: Price,Sheryne | F20: Asset Planning | G20: Enterprise Project Delivery | H20: GROWTH | I20: Asset Planning | J20: Project | K20: 0 | L20: 0 | M20: 0 | N20: 0 | O20: 0 | P20: 0 | Q20: 0 | R20: 0 | S20: 0 | T20: 0 | U20: 0 | V20: 0 | W20: 0 | X20: 0 | Y20: 0 | Z20: 0 | AA20: 0 | AB20: 0 | AC20: 0 | AD20: 0 | AE20: 0 | AF20: 0 | AG20: 0 | AH20: 0 | AI20: 0 | AJ20: 0 | AK20: 0 | AL20: 0 | AM20: 0 | AN20: 0 | AO20: 0 | AP20: 0 | AQ20: 0 | AR20: 0 | AS20: 0 | AT20: 0 | AU20: 0 | AW20: 0 | AX20: 0 | AY20: 0 | AZ20: 0 | BA20: 0 | BB20: 0 | BC20: 0 | BD20: 0 | BE20: 0 | BF20: 0 | BG20: 0 | BH20: 0 | BI20: 0 | BJ20: 0 | BK20: 0 | BL20: 0 | BM20: 0 | BN20: 0 | BO20: Ideation | BP20: 0 | BQ20: 0 | BR20: 0 | BS20: 0 | BT20: 0 | BU20: 0 | BV20: 0 | BW20: 0 | BX20: 0 | BY20: 0 | BZ20: 0 | CA20: 0 | CB20: 0 | CC20: 0 | CE20: 0 | CF20: 0 | CG20: 0 | CH20: 0 | CI20: 0 | CJ20: 0 | CK20: 0 | CL20: 0 | CM20: 0 | CN20: 0 | CO20: 0 | CP20: 0 | CQ20: 140026.47 | CR20: 140026.47 | CS20: 0 | CT20: 543029.47 | CU20: 543029.47 | CV20: 0 | CW20: 0 | CX20: 0 | CY20: 0 | CZ20: 0 | DA20: 0 | DB20: 0 | DC20: 0 | DD20: 0 | DE20: 0 | DF20: 0 | DG20: 0 | DH20: 0 | DI20: 0 | DJ20: 0 | DK20: 0 | DM20: 0 | DN20: 0 | DO20: 0 | DP20: 0 | DQ20: 0 | DR20: 0 | DS20: 0 | DT20: 0 | DU20: 0 | DV20: 0 | DW20: 0 | DY20: 683055.94 | DZ20: 0 | EA20: 683055.94 | EB20: 683055.94 | EC20: 683055.94 | EF20: Ideation | EG20: 2026-06-30 | EI20: 2026-07-01 | EJ20: 2026-07-01 | ER20: 2028-06-30 | EZ20: Ideation | FA20: 2026-06-30 | FC20: 2026-07-01 | FD20: 2026-07-01 | FL20: 2028-06-30 | FT20: 0 | FU20: Asset PlanningIdeation | FV20: Yes | FW20: Asset PlanningYes | FX20: Asset PlanningGate 1: Project Commencement DateOver 90 Days | FY20: Asset PlanningConsultancy Award DateNothing entered | FZ20: Asset PlanningGate 2: Business Case Approval DateOver 90 Days | GA20: Asset PlanningProject Referral DateOver 90 Days | GB20: Asset PlanningDesign Completion DateNothing entered | GC20: Asset PlanningGate 3: Tender Release DateNothing entered | GD20: Asset PlanningGate 4: Contract Award DateNothing entered | GE20: No Comment | GF20: No Comment | GG20: No Comment | GH20: Asset PlanningGate 5: Complete Construction/Go-live DateNothing entered | GI20: Asset PlanningPractical Completion DateOver 90 Days | GJ20: Asset PlanningEnd Defect Liability PeriodNothing entered | GK20: Asset PlanningEnd Construction/ Go-LiveNothing entered | GL20: Asset PlanningGate 6:Post-Implementation ReviewNothing entered | GM20: Asset PlanningProject Close-outNothing entered | GN20: Asset PlanningBank Guarantees ReturnedNothing entered | GO20: Over 90 Days | GP20: Nothing entered | GQ20: Over 90 Days | GR20: Over 90 Days | GS20: Nothing entered | GT20: Nothing entered | GU20: Nothing entered | GV20: Nothing entered | GW20: Nothing entered | GX20: Nothing entered | GY20: Nothing entered | GZ20: Over 90 Days | HA20: Nothing entered | HB20: Nothing entered | HC20: Nothing entered | HD20: Nothing entered | HE20: Nothing entered | HF20: Over 5 Years | HG20: Over 5 Years | HH20: Over 5 Years | HI20: Asset PlanningNo Change | HJ20: 0 | HK20: No Date Supplied | HL20: 0 | HM20: 0 | HN20: No Date Supplied | HO20: No Date Supplied | HP20: No Date Supplied | HQ20: 0 | HR20: No Date Supplied | HS20: No Date Supplied | HT20: No Date Supplied | HU20: No Date Supplied | HW20: Water | HX20: GROWTH | HY20: 0 | HZ20: 0 | IA20: 0 | IB20: 0 | IC20: 0 | ID20: 157692.5482 | IE20: 623770.1693 | IF20: 0 | IG20: 0 | IH20: 0 | II20: 781462.7175 | IJ20: WaterGROWTH
A21: LIST | B21: W1121 | C21: Gheringhap Booster Pump Station Upgrade | D21: Price,Sheryne | F21: Asset Planning | G21: Enterprise Project Delivery | H21: GROWTH | I21: Asset Planning | J21: Project | K21: 0 | L21: 0 | M21: 0 | N21: 0 | O21: 0 | P21: 0 | Q21: 0 | R21: 0 | S21: 0 | T21: 0 | U21: 0 | V21: 0 | W21: 0 | X21: 0 | Y21: 0 | Z21: 0 | AA21: 0 | AB21: 0 | AC21: 0 | AD21: 0 | AE21: 0 | AF21: 0 | AG21: 0 | AH21: 0 | AI21: 0 | AJ21: 0 | AK21: 0 | AL21: 0 | AM21: 0 | AN21: 0 | AO21: 0 | AP21: 0 | AQ21: 0 | AR21: 0 | AS21: 0 | AT21: 0 | AU21: 0 | AW21: 0 | AX21: 0 | AY21: 0 | AZ21: 0 | BA21: 0 | BB21: 0 | BC21: 0 | BD21: 0 | BE21: 0 | BF21: 0 | BG21: 0 | BH21: 0 | BI21: 0 | BJ21: 0 | BK21: 0 | BL21: 0 | BM21: 0 | BN21: 0 | BO21: Ideation | BP21: 0 | BQ21: 0 | BR21: 0 | BS21: 0 | BT21: 0 | BU21: 0 | BV21: 0 | BW21: 0 | BX21: 0 | BY21: 0 | BZ21: 0 | CA21: 0 | CB21: 0 | CC21: 0 | CE21: 0 | CF21: 0 | CG21: 0 | CH21: 0 | CI21: 0 | CJ21: 0 | CK21: 401779.78 | CL21: 401779.78 | CM21: 0 | CN21: 1383908.12 | CO21: 1383908.12 | CP21: 0 | CQ21: 0 | CR21: 0 | CS21: 0 | CT21: 0 | CU21: 0 | CV21: 0 | CW21: 0 | CX21: 0 | CY21: 0 | CZ21: 0 | DA21: 0 | DB21: 0 | DC21: 0 | DD21: 0 | DE21: 0 | DF21: 0 | DG21: 0 | DH21: 0 | DI21: 0 | DJ21: 0 | DK21: 0 | DM21: 0 | DN21: 0 | DO21: 0 | DP21: 0 | DQ21: 0 | DR21: 0 | DS21: 0 | DT21: 0 | DU21: 0 | DV21: 0 | DW21: 0 | DY21: 1785687.9 | DZ21: 0 | EA21: 1785687.9 | EB21: 1785687.9 | EC21: 1785687.9 | EF21: Ideation | EG21: 2024-06-30 | EI21: 2024-05-30 | EJ21: 2024-06-30 | ER21: 2026-06-30 | EZ21: Ideation | FA21: 2024-06-30 | FC21: 2024-05-30 | FD21: 2024-06-30 | FL21: 2026-06-30 | FT21: 0 | FU21: Asset PlanningIdeation | FV21: Yes | FW21: Asset PlanningYes | FX21: Asset PlanningGate 1: Project Commencement DateOver 90 Days | FY21: Asset PlanningConsultancy Award DateNothing entered | FZ21: Asset PlanningGate 2: Business Case Approval DateOver 90 Days | GA21: Asset PlanningProject Referral DateOver 90 Days | GB21: Asset PlanningDesign Completion DateNothing entered | GC21: Asset PlanningGate 3: Tender Release DateNothing entered | GD21: Asset PlanningGate 4: Contract Award DateNothing entered | GE21: No Comment | GF21: No Comment | GG21: No Comment | GH21: Asset PlanningGate 5: Complete Construction/Go-live DateNothing entered | GI21: Asset PlanningPractical Completion DateOver 90 Days | GJ21: Asset PlanningEnd Defect Liability PeriodNothing entered | GK21: Asset PlanningEnd Construction/ Go-LiveNothing entered | GL21: Asset PlanningGate 6:Post-Implementation ReviewNothing entered | GM21: Asset PlanningProject Close-outNothing entered | GN21: Asset PlanningBank Guarantees ReturnedNothing entered | GO21: Over 90 Days | GP21: Nothing entered | GQ21: Over 90 Days | GR21: Over 90 Days | GS21: Nothing entered | GT21: Nothing entered | GU21: Nothing entered | GV21: Nothing entered | GW21: Nothing entered | GX21: Nothing entered | GY21: Nothing entered | GZ21: Over 90 Days | HA21: Nothing entered | HB21: Nothing entered | HC21: Nothing entered | HD21: Nothing entered | HE21: Nothing entered | HF21: Within 5 Years | HG21: Within 5 Years | HH21: Over 5 Years | HI21: Asset PlanningNo Change | HJ21: 0 | HK21: No Date Supplied | HL21: 0 | HM21: 0 | HN21: No Date Supplied | HO21: No Date Supplied | HP21: No Date Supplied | HQ21: 0 | HR21: No Date Supplied | HS21: No Date Supplied | HT21: No Date Supplied | HU21: No Date Supplied | HW21: Water | HX21: GROWTH | HY21: 0 | HZ21: 0 | IA21: 0 | IB21: 434899.3551 | IC21: 1527946.389 | ID21: 0 | IE21: 0 | IF21: 0 | IG21: 0 | IH21: 0 | II21: 1962845.744 | IJ21: WaterGROWTH
A22: LIST | B22: W1122 | C22: Golf Course FM Replacement North Geelong | D22: Price,Sheryne | F22: Asset Planning | G22: Enterprise Project Delivery | H22: GROWTH | I22: Asset Planning | J22: Project | K22: 0 | L22: 0 | M22: 0 | N22: 0 | O22: 0 | P22: 0 | Q22: 0 | R22: 0 | S22: 0 | T22: 0 | U22: 0 | V22: 0 | W22: 0 | X22: 0 | Y22: 0 | Z22: 0 | AA22: 0 | AB22: 0 | AC22: 0 | AD22: 0 | AE22: 0 | AF22: 0 | AG22: 0 | AH22: 0 | AI22: 0 | AJ22: 0 | AK22: 0 | AL22: 0 | AM22: 0 | AN22: 0 | AO22: 0 | AP22: 0 | AQ22: 0 | AR22: 0 | AS22: 0 | AT22: 0 | AU22: 0 | AW22: 0 | AX22: 0 | AY22: 0 | AZ22: 0 | BA22: 0 | BB22: 0 | BC22: 0 | BD22: 0 | BE22: 0 | BF22: 0 | BG22: 0 | BH22: 0 | BI22: 0 | BJ22: 0 | BK22: 0 | BL22: 0 | BM22: 0 | BN22: 0 | BO22: Ideation | BP22: 0 | BQ22: 0 | BR22: 0 | BS22: 0 | BT22: 0 | BU22: 0 | BV22: 0 | BW22: 0 | BX22: 0 | BY22: 0 | BZ22: 0 | CA22: 0 | CB22: 0 | CC22: 0 | CE22: 0 | CF22: 0 | CG22: 0 | CH22: 0 | CI22: 0 | CJ22: 0 | CK22: 86238.04 | CL22: 0 | CM22: -86238.04 | CN22: 334435.33 | CO22: 0 | CP22: -334435.33 | CQ22: 0 | CR22: 86238.04 | CS22: 86238.04 | CT22: 0 | CU22: 334435.33 | CV22: 334435.33 | CW22: 0 | CX22: 0 | CY22: 0 | CZ22: 0 | DA22: 0 | DB22: 0 | DC22: 0 | DD22: 0 | DE22: 0 | DF22: 0 | DG22: 0 | DH22: 0 | DI22: 0 | DJ22: 0 | DK22: 0 | DM22: 0 | DN22: 0 | DO22: 0 | DP22: 0 | DQ22: 0 | DR22: 0 | DS22: 0 | DT22: 0 | DU22: 0 | DV22: 0 | DW22: 0 | DY22: 420673.37 | DZ22: 0 | EA22: 420673.37 | EB22: 420673.37 | EC22: 420673.37 | EF22: Ideation | EG22: 2026-06-30 | EI22: 2026-05-30 | EJ22: 2026-06-30 | ER22: 2028-06-30 | EZ22: Ideation | FA22: 2026-06-30 | FC22: 2026-05-30 | FD22: 2026-06-30 | FL22: 2028-06-30 | FT22: 0 | FU22: Asset PlanningIdeation | FV22: Yes | FW22: Asset PlanningYes | FX22: Asset PlanningGate 1: Project Commencement DateOver 90 Days | FY22: Asset PlanningConsultancy Award DateNothing entered | FZ22: Asset PlanningGate 2: Business Case Approval DateOver 90 Days | GA22: Asset PlanningProject Referral DateOver 90 Days | GB22: Asset PlanningDesign Completion DateNothing entered | GC22: Asset PlanningGate 3: Tender Release DateNothing entered | GD22: Asset PlanningGate 4: Contract Award DateNothing entered | GE22: No Comment | GF22: No Comment | GG22: No Comment | GH22: Asset PlanningGate 5: Complete Construction/Go-live DateNothing entered | GI22: Asset PlanningPractical Completion DateOver 90 Days | GJ22: Asset PlanningEnd Defect Liability PeriodNothing entered | GK22: Asset PlanningEnd Construction/ Go-LiveNothing entered | GL22: Asset PlanningGate 6:Post-Implementation ReviewNothing entered | GM22: Asset PlanningProject Close-outNothing entered | GN22: Asset PlanningBank Guarantees ReturnedNothing entered | GO22: Over 90 Days | GP22: Nothing entered | GQ22: Over 90 Days | GR22: Over 90 Days | GS22: Nothing entered | GT22: Nothing entered | GU22: Nothing entered | GV22: Nothing entered | GW22: Nothing entered | GX22: Nothing entered | GY22: Nothing entered | GZ22: Over 90 Days | HA22: Nothing entered | HB22: Nothing entered | HC22: Nothing entered | HD22: Nothing entered | HE22: Nothing entered | HF22: Over 5 Years | HG22: Over 5 Years | HH22: Over 5 Years | HI22: Asset PlanningNo Change | HJ22: 0 | HK22: No Date Supplied | HL22: 0 | HM22: 0 | HN22: No Date Supplied | HO22: No Date Supplied | HP22: No Date Supplied | HQ22: 0 | HR22: No Date Supplied | HS22: No Date Supplied | HT22: No Date Supplied | HU22: No Date Supplied | HW22: Water | HX22: GROWTH | HY22: 0 | HZ22: 0 | IA22: 0 | IB22: 0 | IC22: 0 | ID22: 97118.03976 | IE22: 384161.0703 | IF22: 0 | IG22: 0 | IH22: 0 | II22: 481279.1101 | IJ22: WaterGROWTH
A23: LIST | B23: W1157 | C23: Batesford Booster Pump Station Upgrade | D23: Price,Sheryne | F23: Asset Planning | G23: Enterprise Project Delivery | H23: GROWTH | I23: Asset Planning | J23: Project | K23: 0 | L23: 0 | M23: 0 | N23: 0 | O23: 0 | P23: 0 | Q23: 0 | R23: 0 | S23: 0 | T23: 0 | U23: 0 | V23: 0 | W23: 0 | X23: 0 | Y23: 0 | Z23: 0 | AA23: 0 | AB23: 0 | AC23: 0 | AD23: 0 | AE23: 0 | AF23: 0 | AG23: 0 | AH23: 0 | AI23: 0 | AJ23: 0 | AK23: 0 | AL23: 0 | AM23: 0 | AN23: 0 | AO23: 0 | AP23: 0 | AQ23: 0 | AR23: 0 | AS23: 0 | AT23: 0 | AU23: 0 | AW23: 394585 | AX23: 0 | AY23: 394585 | AZ23: 0 | BA23: 0 | BB23: 0 | BC23: 0 | BD23: 0 | BE23: 0 | BF23: 0 | BG23: 0 | BH23: 0 | BI23: 0 | BJ23: 0 | BK23: 0 | BL23: 80000 | BM23: 80000 | BN23: =BM23-AY23 -> -314585 | BO23: Ideation | BP23: 0 | BQ23: 0 | BR23: 0 | BS23: 0 | BT23: 0 | BU23: 0 | BV23: 0 | BW23: 0 | BX23: 0 | BY23: 0 | BZ23: 0 | CA23: 0 | CB23: 0 | CC23: 0 | CE23: 1530219.67 | CF23: 1844805 | CG23: 314585.33 | CH23: 0 | CI23: 0 | CJ23: 0 | CK23: 0 | CL23: 0 | CM23: 0 | CN23: 0 | CO23: 0 | CP23: 0 | CQ23: 0 | CR23: 0 | CS23: 0 | CT23: 0 | CU23: 0 | CV23: 0 | CW23: 0 | CX23: 0 | CY23: 0 | CZ23: 0 | DA23: 0 | DB23: 0 | DC23: 0 | DD23: 0 | DE23: 0 | DF23: 0 | DG23: 0 | DH23: 0 | DI23: 0 | DJ23: 0 | DK23: 0 | DM23: 0 | DN23: 0 | DO23: 0 | DP23: 0 | DQ23: 0 | DR23: 0 | DS23: 0 | DT23: 0 | DU23: 0 | DV23: 0 | DW23: 0 | DY23: 1924805 | DZ23: 0 | EA23: 1924805 | EB23: 1924805 | EC23: 1924805 | EF23: Ideation | EG23: 2021-07-30 | EI23: 2021-12-30 | EJ23: 2021-12-30 | ER23: 2023-06-30 | EZ23: Ideation | FA23: 2021-07-30 | FC23: 2021-12-30 | FD23: 2021-12-30 | FL23: 2023-06-30 | FT23: 0 | FU23: Asset PlanningIdeation | FV23: Yes | FW23: Asset PlanningYes | FX23: Asset PlanningGate 1: Project Commencement DateOver 90 Days | FY23: Asset PlanningConsultancy Award DateNothing entered | FZ23: Asset PlanningGate 2: Business Case Approval DateOver 90 Days | GA23: Asset PlanningProject Referral DateOver 90 Days | GB23: Asset PlanningDesign Completion DateNothing entered | GC23: Asset PlanningGate 3: Tender Release DateNothing entered | GD23: Asset PlanningGate 4: Contract Award DateNothing entered | GE23: No Comment | GF23: No Comment | GG23: No Comment | GH23: Asset PlanningGate 5: Complete Construction/Go-live DateNothing entered | GI23: Asset PlanningPractical Completion DateOver 90 Days | GJ23: Asset PlanningEnd Defect Liability PeriodNothing entered | GK23: Asset PlanningEnd Construction/ Go-LiveNothing entered | GL23: Asset PlanningGate 6:Post-Implementation ReviewNothing entered | GM23: Asset PlanningProject Close-outNothing entered | GN23: Asset PlanningBank Guarantees ReturnedNothing entered | GO23: Over 90 Days | GP23: Nothing entered | GQ23: Over 90 Days | GR23: Over 90 Days | GS23: Nothing entered | GT23: Nothing entered | GU23: Nothing entered | GV23: Nothing entered | GW23: Nothing entered | GX23: Nothing entered | GY23: Nothing entered | GZ23: Over 90 Days | HA23: Nothing entered | HB23: Nothing entered | HC23: Nothing entered | HD23: Nothing entered | HE23: Nothing entered | HF23: Within 2 Years | HG23: Within 2 Years | HH23: Within 5 Years | HI23: Asset PlanningNo Change | HJ23: 0 | HK23: No Date Supplied | HL23: 0 | HM23: 0 | HN23: No Date Supplied | HO23: No Date Supplied | HP23: No Date Supplied | HQ23: 0 | HR23: No Date Supplied | HS23: No Date Supplied | HT23: No Date Supplied | HU23: No Date Supplied | HW23: Water | HX23: GROWTH | HY23: 81600 | HZ23: 1919335.122 | IA23: 0 | IB23: 0 | IC23: 0 | ID23: 0 | IE23: 0 | IF23: 0 | IG23: 0 | IH23: 0 | II23: 2000935.122 | IJ23: WaterGROWTH
A24: LIST | B24: W1158 | C24: Bellarine Transfer Main Stage 6 | D24: Price,Sheryne | F24: Asset Planning | G24: Enterprise Project Delivery | H24: GROWTH | I24: Asset Planning | J24: Project | K24: 0 | L24: 0 | M24: 219123 | N24: 0 | O24: 0 | P24: 0 | Q24: 0 | R24: 0 | S24: 0 | T24: 0 | U24: 0 | V24: 0 | W24: 0 | X24: 0 | Y24: 0 | Z24: 0 | AA24: 0 | AB24: 0 | AC24: 0 | AD24: 0 | AE24: 0 | AF24: 0 | AG24: 0 | AH24: 0 | AI24: 0 | AJ24: 0 | AK24: 0 | AL24: 0 | AM24: 0 | AN24: 0 | AO24: 0 | AP24: 0 | AQ24: 0 | AR24: 0 | AS24: 0 | AT24: 0 | AU24: 0 | AW24: 0 | AX24: 0 | AY24: 0 | AZ24: 0 | BA24: 0 | BB24: 0 | BC24: 0 | BD24: 0 | BE24: 0 | BF24: 0 | BG24: 0 | BH24: 0 | BI24: 0 | BJ24: 0 | BK24: 0 | BL24: 0 | BM24: 0 | BN24: 0 | BO24: Ideation | BP24: 0 | BQ24: 0 | BR24: 0 | BS24: 0 | BT24: 0 | BU24: 0 | BV24: 0 | BW24: 0 | BX24: 0 | BY24: 0 | BZ24: 0 | CA24: 0 | CB24: 0 | CC24: 0 | CE24: 0 | CF24: 0 | CG24: 0 | CH24: 0 | CI24: 0 | CJ24: 0 | CK24: 1080829.86 | CL24: 1080829.86 | CM24: 0 | CN24: 3832033.17 | CO24: 3832033.17 | CP24: 0 | CQ24: 0 | CR24: 0 | CS24: 0 | CT24: 0 | CU24: 0 | CV24: 0 | CW24: 0 | CX24: 0 | CY24: 0 | CZ24: 0 | DA24: 10691672.86 | DB24: 10691672.86 | DC24: 0 | DD24: 0 | DE24: 0 | DF24: 0 | DG24: 0 | DH24: 0 | DI24: 10691672.86 | DJ24: 0 | DK24: -10691672.86 | DM24: 0 | DN24: 0 | DO24: 0 | DP24: 0 | DQ24: 0 | DR24: 0 | DS24: 0 | DT24: 0 | DU24: 0 | DV24: 0 | DW24: 0 | DY24: 15823658.89 | DZ24: 0 | EA24: 15823658.89 | EB24: 15823658.89 | EC24: 15823658.89 | EF24: Ideation | EZ24: Ideation | FT24: 0 | FU24: Asset PlanningIdeation | FV24: Yes | FW24: Asset PlanningYes | FX24: Asset PlanningGate 1: Project Commencement DateNothing entered | FY24: Asset PlanningConsultancy Award DateNothing entered | FZ24: Asset PlanningGate 2: Business Case Approval DateNothing entered | GA24: Asset PlanningProject Referral DateNothing entered | GB24: Asset PlanningDesign Completion DateNothing entered | GC24: Asset PlanningGate 3: Tender Release DateNothing entered | GD24: Asset PlanningGate 4: Contract Award DateNothing entered | GE24: No Comment | GF24: No Comment | GG24: No Comment | GH24: Asset PlanningGate 5: Complete Construction/Go-live DateNothing entered | GI24: Asset PlanningPractical Completion DateNothing entered | GJ24: Asset PlanningEnd Defect Liability PeriodNothing entered | GK24: Asset PlanningEnd Construction/ Go-LiveNothing entered | GL24: Asset PlanningGate 6:Post-Implementation ReviewNothing entered | GM24: Asset PlanningProject Close-outNothing entered | GN24: Asset PlanningBank Guarantees ReturnedNothing entered | GO24: Nothing entered | GP24: Nothing entered | GQ24: Nothing entered | GR24: Nothing entered | GS24: Nothing entered | GT24: Nothing entered | GU24: Nothing entered | GV24: Nothing entered | GW24: Nothing entered | GX24: Nothing entered | GY24: Nothing entered | GZ24: Nothing entered | HA24: Nothing entered | HB24: Nothing entered | HC24: Nothing entered | HD24: Nothing entered | HE24: Nothing entered | HF24: Nothing entered | HG24: Nothing entered | HH24: Nothing entered | HI24: Asset PlanningNo Change | HJ24: No Date Supplied | HK24: No Date Supplied | HL24: No Date Supplied | HM24: No Date Supplied | HN24: No Date Supplied | HO24: No Date Supplied | HP24: No Date Supplied | HQ24: No Date Supplied | HR24: No Date Supplied | HS24: No Date Supplied | HT24: No Date Supplied | HU24: No Date Supplied | HW24: Water | HX24: GROWTH | HY24: 0 | HZ24: 0 | IA24: 0 | IB24: 1169925 | IC24: 4230874.26 | ID24: 0 | IE24: 0 | IF24: 0 | IG24: 12777538.78 | IH24: 0 | II24: 18178338.04 | IJ24: WaterGROWTH
A25: LIST | B25: W1160 | C25: Colac West Feeder Main | D25: Price,Sheryne | F25: Asset Planning | G25: Enterprise Project Delivery | H25: GROWTH | I25: Asset Planning | J25: Project | K25: 0 | L25: 0 | M25: 0 | N25: 0 | O25: 0 | P25: 0 | Q25: 0 | R25: 0 | S25: 0 | T25: 0 | U25: 0 | V25: 0 | W25: 0 | X25: 0 | Y25: 0 | Z25: 0 | AA25: 0 | AB25: 0 | AC25: 0 | AD25: 0 | AE25: 0 | AF25: 0 | AG25: 0 | AH25: 0 | AI25: 0 | AJ25: 0 | AK25: 0 | AL25: 0 | AM25: 0 | AN25: 0 | AO25: 0 | AP25: 0 | AQ25: 0 | AR25: 0 | AS25: 0 | AT25: 0 | AU25: 0 | AW25: 0 | AX25: 0 | AY25: 0 | AZ25: 0 | BA25: 0 | BB25: 0 | BC25: 0 | BD25: 0 | BE25: 0 | BF25: 0 | BG25: 0 | BH25: 0 | BI25: 0 | BJ25: 0 | BK25: 0 | BL25: 0 | BM25: 0 | BN25: 0 | BO25: Ideation | BP25: 0 | BQ25: 0 | BR25: 0 | BS25: 0 | BT25: 0 | BU25: 0 | BV25: 0 | BW25: 0 | BX25: 0 | BY25: 0 | BZ25: 0 | CA25: 0 | CB25: 0 | CC25: 0 | CE25: 0 | CF25: 0 | CG25: 0 | CH25: 0 | CI25: 0 | CJ25: 0 | CK25: 0 | CL25: 0 | CM25: 0 | CN25: 0 | CO25: 0 | CP25: 0 | CQ25: 0 | CR25: 0 | CS25: 0 | CT25: 0 | CU25: 3200000 | CV25: 3200000 | CW25: 0 | CX25: 0 | CY25: 0 | CZ25: 0 | DA25: 0 | DB25: 0 | DC25: 0 | DD25: 0 | DE25: 0 | DF25: 0 | DG25: 0 | DH25: 0 | DI25: 2349240.71 | DJ25: 3000000 | DK25: 650759.29 | DM25: 0 | DN25: 0 | DO25: 0 | DP25: 0 | DQ25: 0 | DR25: 0 | DS25: 0 | DT25: 0 | DU25: 0 | DV25: 0 | DW25: 0 | DY25: 6200000 | DZ25: 0 | EA25: 6200000 | EB25: 6200000 | EC25: 6200000 | EF25: Ideation | EZ25: Ideation | FT25: 0 | FU25: Asset PlanningIdeation | FV25: Yes | FW25: Asset PlanningYes | FX25: Asset PlanningGate 1: Project Commencement DateNothing entered | FY25: Asset PlanningConsultancy Award DateNothing entered | FZ25: Asset PlanningGate 2: Business Case Approval DateNothing entered | GA25: Asset PlanningProject Referral DateNothing entered | GB25: Asset PlanningDesign Completion DateNothing entered | GC25: Asset PlanningGate 3: Tender Release DateNothing entered | GD25: Asset PlanningGate 4: Contract Award DateNothing entered | GE25: No Comment | GF25: No Comment | GG25: No Comment | GH25: Asset PlanningGate 5: Complete Construction/Go-live DateNothing entered | GI25: Asset PlanningPractical Completion DateNothing entered | GJ25: Asset PlanningEnd Defect Liability PeriodNothing entered | GK25: Asset PlanningEnd Construction/ Go-LiveNothing entered | GL25: Asset PlanningGate 6:Post-Implementation ReviewNothing entered | GM25: Asset PlanningProject Close-outNothing entered | GN25: Asset PlanningBank Guarantees ReturnedNothing entered | GO25: Nothing entered | GP25: Nothing entered | GQ25: Nothing entered | GR25: Nothing entered | GS25: Nothing entered | GT25: Nothing entered | GU25: Nothing entered | GV25: Nothing entered | GW25: Nothing entered | GX25: Nothing entered | GY25: Nothing entered | GZ25: Nothing entered | HA25: Nothing entered | HB25: Nothing entered | HC25: Nothing entered | HD25: Nothing entered | HE25: Nothing entered | HF25: Nothing entered | HG25: Nothing entered | HH25: Nothing entered | HI25: Asset PlanningNo Change | HJ25: No Date Supplied | HK25: No Date Supplied | HL25: No Date Supplied | HM25: No Date Supplied | HN25: No Date Supplied | HO25: No Date Supplied | HP25: No Date Supplied | HQ25: No Date Supplied | HR25: No Date Supplied | HS25: No Date Supplied | HT25: No Date Supplied | HU25: No Date Supplied | HW25: Water | HX25: GROWTH | HY25: 0 | HZ25: 0 | IA25: 0 | IB25: 0 | IC25: 0 | ID25: 0 | IE25: 3675794.136 | IF25: 0 | IG25: 0 | IH25: 0 | II25: 3675794.136 | IJ25: WaterGROWTH
A26: LIST | B26: W1164 | C26: Highton Feeder Main Stage 2 | D26: Price,Sheryne | F26: Asset Planning | G26: Enterprise Project Delivery | H26: GROWTH | I26: Asset Planning | J26: Project | K26: 0 | L26: 0 | M26: 0 | N26: 0 | O26: 0 | P26: 0 | Q26: 0 | R26: 0 | S26: 0 | T26: 0 | U26: 0 | V26: 0 | W26: 0 | X26: 0 | Y26: 0 | Z26: 0 | AA26: 0 | AB26: 0 | AC26: 0 | AD26: 0 | AE26: 0 | AF26: 0 | AG26: 0 | AH26: 0 | AI26: 0 | AJ26: 0 | AK26: 0 | AL26: 0 | AM26: 0 | AN26: 0 | AO26: 0 | AP26: 0 | AQ26: 0 | AR26: 0 | AS26: 0 | AT26: 0 | AU26: 0 | AW26: 0 | AX26: 0 | AY26: 0 | AZ26: 0 | BA26: 0 | BB26: 0 | BC26: 0 | BD26: 0 | BE26: 0 | BF26: 0 | BG26: 0 | BH26: 0 | BI26: 0 | BJ26: 0 | BK26: 0 | BL26: 0 | BM26: 0 | BN26: 0 | BO26: Ideation | BP26: 0 | BQ26: 0 | BR26: 0 | BS26: 0 | BT26: 0 | BU26: 0 | BV26: 0 | BW26: 0 | BX26: 0 | BY26: 0 | BZ26: 0 | CA26: 0 | CB26: 0 | CC26: 0 | CE26: 0 | CF26: 0 | CG26: 0 | CH26: 0 | CI26: 0 | CJ26: 0 | CK26: 0 | CL26: 0 | CM26: 0 | CN26: 0 | CO26: 0 | CP26: 0 | CQ26: 591917.31 | CR26: 591917.31 | CS26: 0 | CT26: 2295484.18 | CU26: 2295484.18 | CV26: 0 | CW26: 0 | CX26: 0 | CY26: 0 | CZ26: 0 | DA26: 0 | DB26: 0 | DC26: 0 | DD26: 0 | DE26: 0 | DF26: 0 | DG26: 0 | DH26: 0 | DI26: 0 | DJ26: 0 | DK26: 0 | DM26: 0 | DN26: 0 | DO26: 0 | DP26: 0 | DQ26: 0 | DR26: 0 | DS26: 0 | DT26: 0 | DU26: 0 | DV26: 0 | DW26: 0 | DY26: 2887401.49 | DZ26: 0 | EA26: 2887401.49 | EB26: 2887401.49 | EC26: 2887401.49 | EF26: Ideation | EZ26: Ideation | FT26: 0 | FU26: Asset PlanningIdeation | FV26: Yes | FW26: Asset PlanningYes | FX26: Asset PlanningGate 1: Project Commencement DateNothing entered | FY26: Asset PlanningConsultancy Award DateNothing entered | FZ26: Asset PlanningGate 2: Business Case Approval DateNothing entered | GA26: Asset PlanningProject Referral DateNothing entered | GB26: Asset PlanningDesign Completion DateNothing entered | GC26: Asset PlanningGate 3: Tender Release DateNothing entered | GD26: Asset PlanningGate 4: Contract Award DateNothing entered | GE26: No Comment | GF26: No Comment | GG26: No Comment | GH26: Asset PlanningGate 5: Complete Construction/Go-live DateNothing entered | GI26: Asset PlanningPractical Completion DateNothing entered | GJ26: Asset PlanningEnd Defect Liability PeriodNothing entered | GK26: Asset PlanningEnd Construction/ Go-LiveNothing entered | GL26: Asset PlanningGate 6:Post-Implementation ReviewNothing entered | GM26: Asset PlanningProject Close-outNothing entered | GN26: Asset PlanningBank Guarantees ReturnedNothing entered | GO26: Nothing entered | GP26: Nothing entered | GQ26: Nothing entered | GR26: Nothing entered | GS26: Nothing entered | GT26: Nothing entered | GU26: Nothing entered | GV26: Nothing entered | GW26: Nothing entered | GX26: Nothing entered | GY26: Nothing entered | GZ26: Nothing entered | HA26: Nothing entered | HB26: Nothing entered | HC26: Nothing entered | HD26: Nothing entered | HE26: Nothing entered | HF26: Nothing entered | HG26: Nothing entered | HH26: Nothing entered | HI26: Asset PlanningNo Change | HJ26: No Date Supplied | HK26: No Date Supplied | HL26: No Date Supplied | HM26: No Date Supplied | HN26: No Date Supplied | HO26: No Date Supplied | HP26: No Date Supplied | HQ26: No Date Supplied | HR26: No Date Supplied | HS26: No Date Supplied | HT26: No Date Supplied | HU26: No Date Supplied | HW26: Water | HX26: GROWTH | HY26: 0 | HZ26: 0 | IA26: 0 | IB26: 0 | IC26: 0 | ID26: 666595.0298 | IE26: 2636789.778 | IF26: 0 | IG26: 0 | IH26: 0 | II26: 3303384.808 | IJ26: WaterGROWTH
